Workbook

Sheet Read Me
A4: Retrospective Soil Health Economic Calculator (R-SHEC)
A5: ROW CROP VERSION
A6: Crops built in: Barley, Canola, Corn Grain, Corn Silage, Ensilage (green chop), Forage, Flaxseed, Grain Sorghum, Hay (Alfalfa and Grass), Mustard Seed, Oats, Rapeseed, Rye, Safflower, Sugar beets, Soybeans, Triticale, Wheat
A8: © 2024 American Farmland Trust
A9: Updated: May 30, 2024
A11: BEFORE BEGINNING DATA ENTRY, CREATE A NEW VERSION OF THE WORKBOOK FOR YOUR SOIL HEALTH SUCCESSFUL FARMER
A14: Soil Health Practices Evaluated
A15: NRCS Practice Code | C15: Practice | D15: NRCS Conservation Practice Standard Definition 1
A16: 329 | C16: No-till | D16: Limiting soil disturbance to manage the amount, orientation and distribution of crop/plant residue on soil surface year round.
A17: 345 | C17: Reduced Till | D17: Managing the amount, orientation and distribution of crop/plant residue on soil surface year round while limiting soil-disturbing activities used to grow and harvest crops in systems where the field surface is tilled prior to planting
A20: 340 | C20: Cover Crops | D20: Growing a crop of grasses, small grains, &/or legumes for seasonal vegetative cover and soil improvement.
A21: 590 | C21: Nutrient Management (NM) | D21: Manage rate, source, placement, and timing of plant nutrients and soil amendments while reducing environmental impacts.
A22: 328 | C22: Conservation Crop Rotation (CCR) | D22: Growing a planned sequence of various crops on the same ground over a period of time (i.e. the rotation cycle) for conservation purposes; thus, a CCR must be a minimum of two different crops (not including cover crops).
A25: 1 Natural Resources Conservation Service. Conservation Practice Standards. Visited on May 15, 2024: https://www.nrcs.usda.gov/resources/guides-and-instructions/conservation-practice-standards
A27: General Information
A28: Access the R-SHEC Manual & Questionnaire here: https://farmlandinfo.org/rshec-toolkit/
A30: Complete this survey to determine if the R-SHEC Tool is right for your study area!
B32: The Row Crop version of the Retrospective Soil Health Economic Calculator (R-SHEC) is designed to estimate the economic effects, retrospectively, of soil health practices adopted by "soil health successful" row crop farmers. The row crop R-SHEC can be used with row crop farmers that have adopted any combination of conservation crop rotation, cover crops, no-till, reduced till, &/or nutrient management for four or more years and within the last 15 years, on fields growing barley, canola, corn grain, corn silage, ensilage, flaxseed, forage, grain sorghum (milo), hay, millet (proso), mustard seed, oats, rapeseed, rye, safflower, soybeans, sugarbeets, sunflower seed, triticale grain, and/or wheat. The R-SHEC estimates changes in field operation costs and benefits with the adoption of soil health practice(s) on average; comparing “benchmark” operations (before adoption of soil health practices) versus current operations (after adoption of soil health practices). For each crop in the rotation, the farmer must have a clear understanding of average benchmark versus current field operations, including input amounts and, in some cases, costs as well. Data input occurs in the orange tabs (data-entry occurs in yellow-shaded cells; see instructions or user manual for details) and output is presented in the green tabs. The R-SHEC employs a partial budget analysis (PBA) to estimate the change in net income due to adoption of soil health practice(s). A PBA focuses only on variables that change. This PBA analyzes economic effects within these cost/benefit categories: machinery, fertilizer, chemicals, yield, erosion repair, learning costs, and open-ended "other costs/benefits". The R-SHEC compares average costs & benefits in these categories pre- & post-adoption of soil health practice(s), relying on a combination of farmer-provided data and standardized cost and price data built into the Tool. Whenever possible, national prices or costs are used to avoid biasing the results in cases where the farmer's prices may not be representative of typical prices. However, the user does have the option to use the farmer's own prices for fertilizer, crops, and custom-hire operations. The R-SHEC relies on the farmer to provide chemical prices as as we do not provide national average default chemical costs due to the variety and wide spectrum. Default prices and their sources are listed on the "Prices" and "Machinery Costs" tabs. Results are displayed in a PBA table on an annual basis for the Study Area on the 'Results' and 'Editable PBA' green tabs. NOTES: - The Row Crop R-SHEC was designed for use in Midwestern and Mid-Atlantic states but can be used for farms in other locations with price &/or cost adjustments as needed. - We encourage users to review and, ideally, complete the Row Crop R-SHEC Questionnaire so that data needed by the Tool is organized and at-hand for data entry. - American Farmland Trust (AFT) used the R-SHEC Tool to conduct the PBA for case studies of soil health successful farms in various states as part of a Conservation Innovation Grant, "Quantifying the Economic and Environmental Benefits of Soil Health" (NR183A750008G008) and NRCS Cooperative Agreement (NR223A750010C003). - These case studies are available on AFT’s Farmland Information Center website: https://farmlandinfo.org/rshec-toolkit For more information, please contact: Michelle Perez, Project Leader and Water Initiative Director, American Farmland Trust at mperez@farmland.org For trouble-shooting assistance with the R-SHEC Tool, please contact: Robert Ellis, Agricultural Economist, American Farmland Trust at rellis@farmland.org *Special thanks to Florence Swartz, Lead Developer of the first version of the R-SHEC Tools and Consulting Economist for AFT from 2018 - 2021, Retired NRCS-NY Economist
A62: Instructions
A63: 1 | B63: This workbook is protected in order to protect formulas throughout the workbook. Data entry is allowed in yellow-shaded cells.
A64: 2 | B64: In order to adjust the data built into the R-SHEC, specifically on the Price, Machinery Costs, or Lists tabs, or to view formulas, follow these steps for full access to protected sheets:
B65: Click on "File" in the top left corner;
B66: Click on "Info" to open a page containing a yellow box called "Protect Workbook" that lists protected worksheets;
B67: Click on "Unprotect" adjacent to each worksheet you wish to have access to;
B68: To re-protect a worksheet, select "File" as before; select "Info"; select "Protect Workbook"; select "Protect Current Sheet".
B69: You will be presented with a box offering the options of selecting a password and what access, if any, you wish to allow.
B70: You should allow access to unlocked cells, at a minimum, in order to allow data entry.
B71: Navigate to the next sheet you wish to unprotect or protect and follow the same process.
B72: WARNING: If you unprotect 'Machinery' or 'Cover Crops', DO NOT add or remove rows because it will break the macro that adjusts the # of tables based on # crops.
B73: WARNING: If you unprotect 'Cash Crop Inputs' or 'Yields' DO NOT add or remove columns because it will break the macro that adjusts the # of columns based on # crops.
A74: 3 | B74: The Study Area should only include farm acres following the same crop rotation and field operations on average.
A75: 4 | B75: The user will enter data for benchmark (blue themed) and current (green themed) scenarios that represent field operations before and after soil health practice adoption.
A76: 4 | B76: Results are stated on an annual basis per acre and for the entire Study Area.
A77: 5 | B77: Results of all per acre calculations are weighted averages based on the crop rotation.
A78: 6 | B78: Changes in per acre field operation and input costs by crop occur within each of the worksheets.
A79: 7 | B79: Results are summarized on the Results tab in a partial budget analysis table format.
A81: About Individual Worksheets (aka 'Tabs')
A82: 1 | B82: Results:
B83: Presents the partial budget analysis (PBA) using data from each input tab (orange) and placing them in the correct quadrant of the PBA table to determine Annual Total and Per Acre Change in Net Income and Return on Investment.
B85: The PBA table is divided into four quadrants then presents the results at the bottom of the table:
B86: i. Increase in Income (top left side of PBA Table)
B87: ii. Decrease in Cost (bottom left side of PBA Table)
B88: iii. Decrease in Income (top right side of PBA Table)
B89: ii. Increase in Cost (bottom right side of PBA Table)
B90: iii. Results are displayed as Change in Total Net Income, Change in Per Acre Net Income, and % Return on Investment
B91: This tab should never be unprotected to save results to reference.
A92: 2 | B92: Editable PBA:
B93: This unprotected worksheet is for the user to finalize and modify the PBA table to share. Instructions and guidance are provided at the top of the Editable PBA worksheet.
A94: 3 | B94: Study Area Overview:
B95: Records information used throughout the workbook.
B96: REQUIRED: User must select Y/N organic crops grown in the study area. Organic crop prices are included for producers who are certified organic. These prices will be used automatically if the user enters "Y" or "y" for "Is this an organic farm? (Y/N)".
B98: REQUIRED: User must complete "Benchmark Rotation" and "Current Rotation" tables even if farmer did not change their rotation
B99: (in that case fill in both tables with identical information)
B100: REQUIRED: User must complete the "Cover Crop Information" table if the user wants to analyze the economic effects of cover crop adoption.
B101: OPTIONAL: Enter an estimated number of hours spent per year on average learning about the soil health practices being analyzed.
B102: OPTIONAL: User must complete the "Farmer-provided Custom-hire Costs ($/ac)" table by operation if the user prefers using actual custom-hired costs incurred instead of the machinery cost estimates built in.
B104: OPTIONAL: Enter farmer-provided fertilizers cost, crops price-received, and cover crops forage value if the user prefers the farmer-provided prices instead of the national average prices built in.
A106: 4 | B106: Machinery:
B107: Captures difference in machinery costs by per acre cost and number of passes over the field "before" versus "after" (benchmark versus current) soil health practice adoption.
B108: Number of tables automatically adjusts to the current rotation detailed on the 'Overview' tab.
B109: User selects from dropdown list machinery operations by crop for tillage, planting, chemical & nutrient, and harvest machinery as appropriate for the desired analysis.
B110: If there is a change in the benchmark and current crop rotation, user has to enter all benchmark and current machinery.
B111: If there is no change in crop rotation, user only enters machinery for operations that changed.
B112: Tillage and planting machinery costs associated with hay establishment is prorated by the number of years of hay in the rotation.
B113: Note: Machinery tab are for equipment ONLY and do not include costs of inputs (that is included in "Cash Crop Inputs" tab.)
A114: 3 | B114: Cash Crop Inputs:
B115: Captures by crop changes in cash crop seed costs, soil sampling costs, nitrogen, phosphorous, potassium, other fertilizers, manure, compost, herbicide, insecticide, & fungicide inputs - excluding the associated machinery costs as equipment costs are captured on the "Machinery" tab.
B117: If there is a change in the benchmark and current crop rotation, user has to enter all benchmark and current inputs by crop.
B118: If there is no change in crop rotation, user only enters inputs for operations that changed.
A119: 3 | B119: Cover Crops:
B120: Captures costs of cover crops, including inputs and machinery.
B121: Captures benefits of cover crops via haying for forage or grazing practices.
A122: 4 | B122: Other Costs & Benefits
B123: Captures the value of reduced erosion (tons/ac; $/yr), learning acitivities (hrs/yr), financial assistance received for soil health practices, and a catch-all "other" costs and benefits table.
B124: Note: Any financial assistance payments listed are not included in the results because cost-share is temporary and not received by all.
A125: 9 | B125: Prices:
B126: For reference, contains prices used throughout the workbook and relevant Producer Prices Paid and Received Index (PPI & PRI) for updating prices as needed.
B127: Provides references to all price data sources.
A128: 10 | B128: Machinery Costs:
B129: For reference, contains per acre machinery costs used in 'Machinery', 'Cover Crops', and 'Yields' tabs.
B130: You can add to this list as needed, but we encourage only using published prices as they include depreciation, labor, fuel, interest, discount value, salvage cost, etc. Most farmers will undervalue their per acre machinery costs.
A131: 12 | B131: Lists:
B132: This worksheet contains lists used in drop-down menus throughout the workbook.
B133: You can add to this list as needed.
A134: 13 | B134: Matrix:
B135: This worksheet contains a table that turns the benchmark and current crop rotation information entered on the 'Study Area Overview' tab into a matrix. This matrix is used to pull the correct acres by crop to determine per acre and total per year weighted average economic effects for the Study Area throughout the tool.
B139: Data Sources
B140: Item | C140: Release Date | D140: Source
B141: Crop Prices, Non-organic | C141: February | D141: USDA NASS. (February 26, 2024). Crop Values: 2023 Summary. Retrieved on March 20, 2024 from https://usda.library.cornell.edu/concern/publications/k35694332
B142: Crop Prices, Organic | C142: Biennially (or less) | D142: USDA NASS. (2022, December 15). Certified Organic Survey 2021 Summary: Table 13. Certified Organic Field Crops and Hay Harvested and Value of Sales: 2021 Organic Survey. Retrieved April 16, 2024, from https://www.nass.usda.gov/Surveys/Guide_to_NASS_Surveys/Organic_Production/index.php
B143: Fertilizer Prices | C143: January | D143: Iowa State University Extension and Outreach. (2020-2024). Ag Decision Maker: Estimated Costs of Crop Production in Iowa (File A1-20). Retrieved on February 6, 2024 from https://www.extension.iastate.edu/agdm/crops/html/a1-20.html
B144: Labor Rate, Farm Manager | C144: April | D144: U.S. Bureau of Labor Statistics. (April 3, 2024). 45-1011 First-Line Supervisors of Farming, Fishing, and Forestry Workers - Occupational Employment and Wages, May 2023. Retrieved May 8, 2024, from https://www.bls.gov/oes/current/oes451011.htm
B145: Machinery Cost Estimates | C145: Biennially | D145: University of Illinois at Urbana-Champaign Department of Ag and Consumer Economics. (September 2023). Farm Business Management Machinery Cost Estimates: Field Operations. Retrieved on November 28, 2023 from https://farmdoc.illinois.edu/management#handbook
B146: Machinery Costs for Fertilizer Applications | C146: March | D146: Iowa State University Extension and Outreach. (March 2023). Ag Decision Maker: 2023 Iowa Farm Custom Rate Survey (File A3-10). Retrieved on November 28, 2023 from https://www.extension.iastate.edu/agdm/crops/html/a3-10.html
B147: Machinery Cost Estimates for Harvest | C147: Biennially | D147: University of Illinois at Urbana-Champaign Department of Ag and Consumer Economics. (Sept 2023). Farm Business Management Machinery Cost Estimates: Forage Field Operations. Retrieved on March 28, 2024 from https://farmdoc.illinois.edu/handbook/forage-operations
B148: Prices Paid Index | C148: Monthly | D148: USDA NASS. (Ongoing). Prices Paid: Indexes for All Items and Production Items by Month - United States. Retrieved February 6, 2024, from https://www.nass.usda.gov/Charts_and_Maps/Agricultural_Prices/index.php
B149: Prices Received Index | C149: Monthly | D149: USDA NASS. (Ongoing). Prices Received: Indexes for Ag, Crop, and Livestock Production by Month - United States. Retrieved February 6, 2024, from https://www.nass.usda.gov/Charts_and_Maps/Agricultural_Prices/index.php
B150: Drying, Storage, and Trucking Cost | C150: March | D150: University of Kentucky Department of Agricultural Economics. (March 2024). Corn and Soybean Budgets - 2024. Retrieved on April 14, 2024 from https://agecon.ca.uky.edu/budgets
B151: Drying, Storage, and Trucking Cost | C151: February | D151: North Dakota State University Extension. (February 2024). Projected 2024 Crop Budgets. Retrieved on April 14, 2024 from https://www.ndsu.edu/agriculture/sites/default/files/2024-02/2024%20North%20Central%20ND%20Projected% 20Crop%20Budget%20-%20PDF.pdf
B152: Drying, Storage, and Trucking Cost | C152: October | D152: University of Missouri Extension. (October 2023). Missouri Forage Budget. Retrieved on April 14, 2024 from https://extension.missouri.edu/programs/agricultural-business-and-policy-extension/missouri-crop-and-livestock-enterprise-budgets
B153: Drying, Storage, and Trucking Cost | C153: Indeterminant | D153: University of Idaho Extension. (2022). 2022 Sugarbeet Enterprise Budget: Southwestern Idaho. Retrieved on April 14, 2024 from https://www.uidaho.edu/-/media/uidaho-responsive/files/cals/programs/idaho-agbiz/crop-budgets/southwest/ 2022-sugarbeet-budget-southwestern-idaho.pdf?la=en&rev=7d4ad1906ef84c7eb6796e9c8d81f1f0

Sheet Results
B1: PARTIAL BUDGET ANALYSIS
B3: ABOUT THIS TAB:
B4: DO NOT EDIT THIS TAB: This tab and the table within should not be edited. Create your final PBA table in the subsequent tab called "Editable PBA" so if any mistakes are made you have this tab to reference and save results. The Partial Budget Analysis 'Results' tab autopopulates and organizes the effects calculated on the preceeding tabs into four quadrants: (1) Increase in Income; (2) Decrease in Cost; (3) Decrease in Income; and (4) Increase in Cost Positive effects are displayed on the left and negative effects on the right. Effects are sorted automatically into the four quadrants based on their value. Columns A and K display the effect category from previous tabs assigned to the adjacent cell. NRCS practice codes are used instead of practice names as follows: 328 is Conservation Crop Rotation, 329 represents tillage changes, 340 is Cover Crops, and 590 is Nutrient Management (see Legend key to the right). The table can house every possible effect from the preceeding tabs. This means that most of the rows will not be populated. Totals are summarized at the bottom of the table for the entire Study Area. These totals are used to calculate the net change in income on a per acre basis and for the Study Area. The table also calculates the return on investment. All values are on an annual basis. A summary of financial assistance payments received appear at the bottom of the table; FA is not included in the analysis because cost-share is temporary and not received by all. This table should not be edited here, but on the subsequent tab called "Editable PBA".
B19: WARNING: DO NOT attempt to edit the table as it contains complex formulas. The user risks losing the calculated effect information if the formulas are broken. The "Editable PBA" tab is identical to the 'Results' tab and can be used for producing a version for publication.
B22: ="Economic Effects of Soil Health Practices on "& 'Study Area Overview'!B8& " (2023 Prices)" -> Economic Effects of Soil Health Practices on (2023 Prices) | L22: LEGEND
B23: Increases in Net Income | G23: Decreases in Net Income | L23: CPS Code | M23: Practice
A24: Notes indicating variables captured by row: | B24: Increase in Income | G24: Decrease in Income | L24: 328 | M24: CCR
B25: Item | C25: Per Acre | D25: Acres | E25: Total | G25: Item | H25: Per Acre | I25: Acres | J25: Total | L25: 329 | M25: RT/NT
A26: ALL PRACTICES YIELD CHANGE | B26: =IF((SUMPRODUCT(((Yields!$C$86:$L$86 -Yields!$C$90:$L$90) * Matrix!$F$37:$O$37) - ((Yields!$C$60:$L$60 -Yields!$C$64:$L$64) * Matrix!$F$37:$O$37),Yields!$C$49:$L$49)/IF(SUM(Yields!$C$113:$L$113)=0,1,SUMIF(Yields!$C$113:$L$113,"<>0",Matrix!$F$37:$O$37)))>0,Lists!C29,"NA") -> NA | C26: =IF((SUMPRODUCT(((Yields!$C$86:$L$86 -Yields!$C$90:$L$90) * Matrix!$F$37:$O$37) - ((Yields!$C$60:$L$60 -Yields!$C$64:$L$64) * Matrix!$F$37:$O$37),Yields!$C$49:$L$49)/IF(SUM(Yields!$C$113:$L$113)=0,1,SUMIF(Yields!$C$113:$L$113,"<>0",Matrix!$F$37:$O$37)))>0,SUMPRODUCT(((Yields!$C$86:$L$86 -Yields!$C$90:$L$90) * Matrix!$F$37:$O$37) - ((Yields!$C$60:$L$60 -Yields!$C$64:$L$64) * Matrix!$F$37:$O$37),Yields!$C$49:$L$49)/IF(SUM(Yields!$C$113:$L$113)=0,1,SUMIF(Yields!$C$113:$L$113,"<>0",Matrix!$F$37:$O$37)),"NA") -> NA | D26: =IF((SUMPRODUCT(((Yields!$C$86:$L$86 -Yields!$C$90:$L$90) * Matrix!$F$37:$O$37) - ((Yields!$C$60:$L$60 -Yields!$C$64:$L$64) * Matrix!$F$37:$O$37),Yields!$C$49:$L$49)/IF(SUM(Yields!$C$113:$L$113)=0,1,SUMIF(Yields!$C$113:$L$113,"<>0",Matrix!$F$37:$O$37)))>0,IF(SUM(Yields!$C$113:$L$113)=0,1,SUMIF(Yields!$C$113:$L$113,"<>0",Matrix!$F$37:$O$37)),"NA") -> NA | E26: =IFERROR(C26*D26,"NA") -> NA | G26: =IF((SUMPRODUCT(((Yields!$C$86:$L$86 -Yields!$C$90:$L$90) * Matrix!$F$37:$O$37) - ((Yields!$C$60:$L$60 -Yields!$C$64:$L$64) * Matrix!$F$37:$O$37),Yields!$C$49:$L$49)/IF(SUM(Yields!$C$113:$L$113)=0,1,SUMIF(Yields!$C$113:$L$113,"<>0",Matrix!$F$37:$O$37)))<0,Lists!H29,"NA") -> NA | H26: =IF((SUMPRODUCT(((Yields!$C$86:$L$86 -Yields!$C$90:$L$90) * Matrix!$F$37:$O$37) - ((Yields!$C$60:$L$60 -Yields!$C$64:$L$64) * Matrix!$F$37:$O$37),Yields!$C$49:$L$49)/IF(SUM(Yields!$C$113:$L$113)=0,1,SUMIF(Yields!$C$113:$L$113,"<>0",Matrix!$F$37:$O$37)))<0,SUMPRODUCT(((Yields!$C$86:$L$86 -Yields!$C$90:$L$90) * Matrix!$F$37:$O$37) - ((Yields!$C$60:$L$60 -Yields!$C$64:$L$64) * Matrix!$F$37:$O$37),Yields!$C$49:$L$49)/IF(SUM(Yields!$C$113:$L$113)=0,1,SUMIF(Yields!$C$113:$L$113,"<>0",Matrix!$F$37:$O$37))*-1,"NA") -> NA | I26: =IF((SUMPRODUCT(((Yields!$C$86:$L$86 -Yields!$C$90:$L$90) * Matrix!$F$37:$O$37) - ((Yields!$C$60:$L$60 -Yields!$C$64:$L$64) * Matrix!$F$37:$O$37),Yields!$C$49:$L$49)/IF(SUM(Yields!$C$113:$L$113)=0,1,SUMIF(Yields!$C$113:$L$113,"<>0",Matrix!$F$37:$O$37)))<0,IF(SUM(Yields!$C$113:$L$113)=0,1,SUMIF(Yields!$C$113:$L$113,"<>0",Matrix!$F$37:$O$37)),"NA") -> NA | J26: =IFERROR(H26*I26,"NA") -> NA | K26: ALL PRACTICES YIELD CHANGE | L26: 340 | M26: CC
A27: 328 Change in net income due to CCR | B27: =IF(((SUMPRODUCT(Yields!$C$97:$L$97,Matrix!$F$43:$O$43)-SUMPRODUCT(Matrix!$F$37:$O$37,Yields!$C$71:$L$71))+SUMPRODUCT(Yields!$C$97:$L$97,Matrix!$F$44:$O$44))/IF(SUM(SUMPRODUCT(Yields!$C$97:$L$97,Matrix!$F$43:$O$43)-SUMPRODUCT(Matrix!$F$37:$O$37,Yields!$C$71:$L$71)+SUMPRODUCT(Yields!$C$97:$L$97,Matrix!$F$44:$O$44))=0,1,SUMPRODUCT(--(Yields!$C$97:$L$97-Yields!$C$69:$L$69<>0),Matrix!$F$43:$O$43)+SUMPRODUCT(--(Yields!$C$97:$L$97-Yields!$C$71:$L$71<>0),Matrix!$F$44:$O$44))>0,Lists!$C$30,"NA") -> NA | C27: =IF(((SUMPRODUCT(Yields!$C$97:$L$97,Matrix!$F$43:$O$43)-SUMPRODUCT(Matrix!$F$37:$O$37,Yields!$C$71:$L$71))+SUMPRODUCT(Yields!$C$97:$L$97,Matrix!$F$44:$O$44))/IF(SUM(SUMPRODUCT(Yields!$C$97:$L$97,Matrix!$F$43:$O$43)-SUMPRODUCT(Matrix!$F$37:$O$37,Yields!$C$71:$L$71)+SUMPRODUCT(Yields!$C$97:$L$97,Matrix!$F$44:$O$44))=0,1,SUMPRODUCT(--(Yields!$C$97:$L$97-Yields!$C$69:$L$69<>0),Matrix!$F$43:$O$43)+SUMPRODUCT(--(Yields!$C$97:$L$97-Yields!$C$71:$L$71<>0),Matrix!$F$44:$O$44))>0,((SUMPRODUCT(Yields!$C$97:$L$97,Matrix!$F$43:$O$43)-SUMPRODUCT(Matrix!$F$37:$O$37,Yields!$C$71:$L$71))+SUMPRODUCT(Yields!$C$97:$L$97,Matrix!$F$44:$O$44))/IF(SUM(SUMPRODUCT(Yields!$C$97:$L$97,Matrix!$F$43:$O$43)-SUMPRODUCT(Matrix!$F$37:$O$37,Yields!$C$71:$L$71)+SUMPRODUCT(Yields!$C$97:$L$97,Matrix!$F$44:$O$44))=0,1,SUMPRODUCT(--(Yields!$C$97:$L$97-Yields!$C$69:$L$69<>0),Matrix!$F$43:$O$43)+SUMPRODUCT(--(Yields!$C$97:$L$97-Yields!$C$71:$L$71<>0),Matrix!$F$44:$O$44)),"NA") -> NA | D27: =IF(((SUMPRODUCT(Yields!$C$97:$L$97,Matrix!$F$43:$O$43)-SUMPRODUCT(Matrix!$F$37:$O$37,Yields!$C$71:$L$71))+SUMPRODUCT(Yields!$C$97:$L$97,Matrix!$F$44:$O$44))/IF(SUM(SUMPRODUCT(Yields!$C$97:$L$97,Matrix!$F$43:$O$43)-SUMPRODUCT(Matrix!$F$37:$O$37,Yields!$C$71:$L$71)+SUMPRODUCT(Yields!$C$97:$L$97,Matrix!$F$44:$O$44))=0,1,SUMPRODUCT(--(Yields!$C$97:$L$97-Yields!$C$69:$L$69<>0),Matrix!$F$43:$O$43)+SUMPRODUCT(--(Yields!$C$97:$L$97-Yields!$C$71:$L$71<>0),Matrix!$F$44:$O$44))>0,IF(SUM(SUMPRODUCT(Yields!$C$97:$L$97,Matrix!$F$43:$O$43)-SUMPRODUCT(Matrix!$F$37:$O$37,Yields!$C$71:$L$71)+SUMPRODUCT(Yields!$C$97:$L$97,Matrix!$F$44:$O$44))=0,1,SUMPRODUCT(--(Yields!$C$97:$L$97-Yields!$C$69:$L$69<>0),Matrix!$F$43:$O$43)+SUMPRODUCT(--(Yields!$C$97:$L$97-Yields!$C$71:$L$71<>0),Matrix!$F$44:$O$44)),"NA") -> NA | E27: =IFERROR(C27*D27,"NA") -> NA | G27: =IF(((SUMPRODUCT(Yields!$C$97:$L$97,Matrix!$F$43:$O$43)-SUMPRODUCT(Matrix!$F$37:$O$37,Yields!$C$71:$L$71))+SUMPRODUCT(Yields!$C$97:$L$97,Matrix!$F$44:$O$44))/IF(SUM(SUMPRODUCT(Yields!$C$97:$L$97,Matrix!$F$43:$O$43)-SUMPRODUCT(Matrix!$F$37:$O$37,Yields!$C$71:$L$71)+SUMPRODUCT(Yields!$C$97:$L$97,Matrix!$F$44:$O$44))=0,1,SUMPRODUCT(--(Yields!$C$97:$L$97-Yields!$C$69:$L$69<>0),Matrix!$F$43:$O$43)+SUMPRODUCT(--(Yields!$C$97:$L$97-Yields!$C$71:$L$71<>0),Matrix!$F$44:$O$44))<0,Lists!$D$30,"NA") -> NA | H27: =IF(((SUMPRODUCT(Yields!$C$97:$L$97,Matrix!$F$43:$O$43)-SUMPRODUCT(Matrix!$F$37:$O$37,Yields!$C$71:$L$71))+SUMPRODUCT(Yields!$C$97:$L$97,Matrix!$F$44:$O$44))/IF(SUM(SUMPRODUCT(Yields!$C$97:$L$97,Matrix!$F$43:$O$43)-SUMPRODUCT(Matrix!$F$37:$O$37,Yields!$C$71:$L$71)+SUMPRODUCT(Yields!$C$97:$L$97,Matrix!$F$44:$O$44))=0,1,SUMPRODUCT(--(Yields!$C$97:$L$97-Yields!$C$69:$L$69<>0),Matrix!$F$43:$O$43)+SUMPRODUCT(--(Yields!$C$97:$L$97-Yields!$C$71:$L$71<>0),Matrix!$F$44:$O$44))<0,((SUMPRODUCT(Yields!$C$97:$L$97,Matrix!$F$43:$O$43)-SUMPRODUCT(Matrix!$F$37:$O$37,Yields!$C$71:$L$71))+SUMPRODUCT(Yields!$C$97:$L$97,Matrix!$F$44:$O$44))/IF(SUM(SUMPRODUCT(Yields!$C$97:$L$97,Matrix!$F$43:$O$43)-SUMPRODUCT(Matrix!$F$37:$O$37,Yields!$C$71:$L$71)+SUMPRODUCT(Yields!$C$97:$L$97,Matrix!$F$44:$O$44))=0,1,SUMPRODUCT(--(Yields!$C$97:$L$97-Yields!$C$69:$L$69<>0),Matrix!$F$43:$O$43)+SUMPRODUCT(--(Yields!$C$97:$L$97-Yields!$C$71:$L$71<>0),Matrix!$F$44:$O$44))*-1,"NA") -> NA | I27: =IF(((SUMPRODUCT(Yields!$C$97:$L$97,Matrix!$F$43:$O$43)-SUMPRODUCT(Matrix!$F$37:$O$37,Yields!$C$71:$L$71))+SUMPRODUCT(Yields!$C$97:$L$97,Matrix!$F$44:$O$44))/IF(SUM(SUMPRODUCT(Yields!$C$97:$L$97,Matrix!$F$43:$O$43)-SUMPRODUCT(Matrix!$F$37:$O$37,Yields!$C$71:$L$71)+SUMPRODUCT(Yields!$C$97:$L$97,Matrix!$F$44:$O$44))=0,1,SUMPRODUCT(--(Yields!$C$97:$L$97-Yields!$C$69:$L$69<>0),Matrix!$F$43:$O$43)+SUMPRODUCT(--(Yields!$C$97:$L$97-Yields!$C$71:$L$71<>0),Matrix!$F$44:$O$44))<0,IF(SUM(SUMPRODUCT(Yields!$C$97:$L$97,Matrix!$F$43:$O$43)-SUMPRODUCT(Matrix!$F$37:$O$37,Yields!$C$71:$L$71)+SUMPRODUCT(Yields!$C$97:$L$97,Matrix!$F$44:$O$44))=0,1,SUMPRODUCT(--(Yields!$C$97:$L$97-Yields!$C$69:$L$69<>0),Matrix!$F$43:$O$43)+SUMPRODUCT(--(Yields!$C$97:$L$97-Yields!$C$71:$L$71<>0),Matrix!$F$44:$O$44)),"NA") -> NA | J27: =IFERROR(H27*I27,"NA") -> NA | K27: 328 Change in net income due to CCR | L27: 590 | M27: NM
A28: 340 Graz CC Benefit | B28: =IF('Cover Crops'!C291>0,Lists!C31,"NA") -> NA | C28: =IF('Cover Crops'!C291>0,'Cover Crops'!C291,"NA") -> NA | D28: =IF('Cover Crops'!C291>0,'Cover Crops'!C286,"NA") -> NA | E28: =IFERROR(C28*D28,"NA") -> NA
A29: 340 Hay CC Benefit | B29: =IF('Cover Crops'!$G$288>0,Lists!C32,"") ->  | C29: =IF('Cover Crops'!$G$288>0,'Cover Crops'!G288,"NA") -> NA | D29: =IF('Cover Crops'!G288>0,'Cover Crops'!G286,"NA") -> NA | E29: =IFERROR(C29*D29,"NA") -> NA
B30: Total Increased Income | E30: =SUM(E26:E29) -> 0 | G30: Total Decreased Income | J30: =SUM(J26:J29) -> 0
B31: Decrease in Cost | G31: Increase in Cost
B32: Item | C32: Per Acre | D32: Acres | E32: Total | G32: Item | H32: Per Acre | I32: Acres | J32: Total
G33: =IF('Other Costs & Benefits'!$C$48>0,Lists!D34& " (" &'Other Costs & Benefits'!$C$48&" hrs/yr)","NA") -> NA | J33: =IF('Other Costs & Benefits'!$C$48>0,'Other Costs & Benefits'!$D$48,0) -> 0 | K33: 328 Education costs
G34: =IF('Other Costs & Benefits'!$C$45>0,Lists!D35& " (" &'Other Costs & Benefits'!$C$45&" hrs/yr)","NA") -> NA | J34: =IF('Other Costs & Benefits'!$C$45>0,'Other Costs & Benefits'!$D$45,0) -> 0 | K34: 329 Education costs
G35: =IF('Other Costs & Benefits'!$C$46>0,Lists!D36& " (" &'Other Costs & Benefits'!$C$46&" hrs/yr)","NA") -> NA | J35: =IF('Other Costs & Benefits'!$C$46>0,'Other Costs & Benefits'!$D$46,0) -> 0 | K35: 340 Education costs
G36: =IF('Other Costs & Benefits'!$C$47>0,Lists!D37& " (" &'Other Costs & Benefits'!$C$47&" hrs/yr)","NA") -> NA | J36: =IF('Other Costs & Benefits'!$C$47>0,'Other Costs & Benefits'!$D$47,0) -> 0 | K36: 590 Education costs
G37: =IF('Other Costs & Benefits'!$C$50>0,Lists!D38& " (" &'Other Costs & Benefits'!$C$50&" hrs/yr)","NA") -> NA | J37: =IF('Other Costs & Benefits'!$C$50>0,'Other Costs & Benefits'!$D$50,0) -> 0 | K37: ALL PRACTICES Education costs
A38: 329 Machinery reduction due to RT/NT | B38: =IF((SUMPRODUCT(Yields!$C$91:$L$91,Matrix!$F$37:$O$37)-SUMPRODUCT(Matrix!$F$37:$O$37,Yields!$C$65:$L$65))/IF(SUM(SUMPRODUCT(Yields!$C$91:$L$91,Matrix!$F$37:$O$37)-SUMPRODUCT(Matrix!$F$37:$O$37,Yields!$C$65:$L$65))=0,1,SUMPRODUCT(--(Yields!$C$91:$L$91-Yields!$C$65:$L$65<>0),Matrix!$F$37:$O$37))<0,Lists!C39,"NA") -> NA | C38: =IF((SUMPRODUCT(Yields!$C$91:$L$91,Matrix!$F$37:$O$37)-SUMPRODUCT(Matrix!$F$37:$O$37,Yields!$C$65:$L$65))/IF(SUM(SUMPRODUCT(Yields!$C$91:$L$91,Matrix!$F$37:$O$37)-SUMPRODUCT(Matrix!$F$37:$O$37,Yields!$C$65:$L$65))=0,1,SUMPRODUCT(--(Yields!$C$91:$L$91-Yields!$C$65:$L$65<>0),Matrix!$F$37:$O$37))<0,(SUMPRODUCT(Yields!$C$91:$L$91,Matrix!$F$37:$O$37)-SUMPRODUCT(Matrix!$F$37:$O$37,Yields!$C$65:$L$65))/IF(SUM(SUMPRODUCT(Yields!$C$91:$L$91,Matrix!$F$37:$O$37)-SUMPRODUCT(Matrix!$F$37:$O$37,Yields!$C$65:$L$65))=0,1,SUMPRODUCT(--(Yields!$C$91:$L$91-Yields!$C$65:$L$65<>0),Matrix!$F$37:$O$37))*-1,"NA") -> NA | D38: =IF((SUMPRODUCT(Yields!$C$91:$L$91,Matrix!$F$37:$O$37)-SUMPRODUCT(Matrix!$F$37:$O$37,Yields!$C$65:$L$65))/IF(SUM(SUMPRODUCT(Yields!$C$91:$L$91,Matrix!$F$37:$O$37)-SUMPRODUCT(Matrix!$F$37:$O$37,Yields!$C$65:$L$65))=0,1,SUMPRODUCT(--(Yields!$C$91:$L$91-Yields!$C$65:$L$65<>0),Matrix!$F$37:$O$37))<0,IF(SUM(SUMPRODUCT(Yields!$C$91:$L$91,Matrix!$F$37:$O$37)-SUMPRODUCT(Matrix!$F$37:$O$37,Yields!$C$65:$L$65))=0,1,SUMPRODUCT(--(Yields!$C$91:$L$91-Yields!$C$65:$L$65<>0),Matrix!$F$37:$O$37)),"NA") -> NA | E38: =IFERROR(C38*D38,"NA") -> NA | G38: =IF((SUMPRODUCT(Yields!$C$91:$L$91,Matrix!$F$37:$O$37)-SUMPRODUCT(Matrix!$F$37:$O$37,Yields!$C$65:$L$65))/IF(SUM(SUMPRODUCT(Yields!$C$91:$L$91,Matrix!$F$37:$O$37)-SUMPRODUCT(Matrix!$F$37:$O$37,Yields!$C$65:$L$65))=0,1,SUMPRODUCT(--(Yields!$C$91:$L$91-Yields!$C$65:$L$65<>0),Matrix!$F$37:$O$37))>0,Lists!D39,"NA") -> NA | H38: =IF((SUMPRODUCT(Yields!$C$91:$L$91,Matrix!$F$37:$O$37)-SUMPRODUCT(Matrix!$F$37:$O$37,Yields!$C$65:$L$65))/IF(SUM(SUMPRODUCT(Yields!$C$91:$L$91,Matrix!$F$37:$O$37)-SUMPRODUCT(Matrix!$F$37:$O$37,Yields!$C$65:$L$65))=0,1,SUMPRODUCT(--(Yields!$C$91:$L$91-Yields!$C$65:$L$65<>0),Matrix!$F$37:$O$37))>0,(SUMPRODUCT(Yields!$C$91:$L$91,Matrix!$F$37:$O$37)-SUMPRODUCT(Matrix!$F$37:$O$37,Yields!$C$65:$L$65))/IF(SUM(SUMPRODUCT(Yields!$C$91:$L$91,Matrix!$F$37:$O$37)-SUMPRODUCT(Matrix!$F$37:$O$37,Yields!$C$65:$L$65))=0,1,SUMPRODUCT(--(Yields!$C$91:$L$91-Yields!$C$65:$L$65<>0),Matrix!$F$37:$O$37)),"NA") -> NA | I38: =IF((SUMPRODUCT(Yields!$C$91:$L$91,Matrix!$F$37:$O$37)-SUMPRODUCT(Matrix!$F$37:$O$37,Yields!$C$65:$L$65))/IF(SUM(SUMPRODUCT(Yields!$C$91:$L$91,Matrix!$F$37:$O$37)-SUMPRODUCT(Matrix!$F$37:$O$37,Yields!$C$65:$L$65))=0,1,SUMPRODUCT(--(Yields!$C$91:$L$91-Yields!$C$65:$L$65<>0),Matrix!$F$37:$O$37))>0,IF(SUM(SUMPRODUCT(Yields!$C$91:$L$91,Matrix!$F$37:$O$37)-SUMPRODUCT(Matrix!$F$37:$O$37,Yields!$C$65:$L$65))=0,1,SUMPRODUCT(--(Yields!$C$91:$L$91-Yields!$C$65:$L$65<>0),Matrix!$F$37:$O$37)),"NA") -> NA | J38: =IFERROR(H38*I38,"NA") -> NA | K38: 329 Machinery increases due to RT/NT
G39: =IF('Cover Crops'!$G$263<>0,Lists!D40,"NA") -> NA | H39: =IF('Cover Crops'!$G$263<>0,'Cover Crops'!$G$263,"NA") -> NA | I39: =IF('Cover Crops'!$G$263<>0,SUM('Cover Crops'!$C$252:$C$261),"NA") -> NA | J39: =IFERROR(H39*I39,"NA") -> NA | K39: 340 Cover Crop Seed, Establishment, Termination Costs
G40: =IF('Cover Crops'!$C$302>0,Lists!D41,"NA") -> NA | H40: =IF('Cover Crops'!$C$302>0,'Cover Crops'!$C$302,"NA") -> NA | I40: =IF('Cover Crops'!$C$302>0,'Cover Crops'!$C$286,"NA") -> NA | J40: =IFERROR(H40*I40,"NA") -> NA | K40: 340 Grazing CC costs
G41: =IF('Cover Crops'!$G$289>0,Lists!D42,"NA") -> NA | H41: =IF('Cover Crops'!$G$289>0,'Cover Crops'!$G$289,"NA") -> NA | I41: =IF('Cover Crops'!$G$289>0,'Cover Crops'!$G$286,"NA") -> NA | J41: =IFERROR(H41*I41,"NA") -> NA | K41: 340 Haying CC costs
A42: N, P, &/or K increases due to ALL PRACTICES | B42: =IF(C42="NA","NA",IF(OR('Cash Crop Inputs'!$O$177="no-till",'Cash Crop Inputs'!$O$177="Reduced tillage"),Lists!C43,IF('Cash Crop Inputs'!$O$177="Cover Crops",Lists!C44,IF('Cash Crop Inputs'!$O$177="Nutrient management",Lists!C45,IF('Cash Crop Inputs'!$O$177="Combination of practices",Lists!C46,"NA"))))) -> NA | C42: =IF((SUMPRODUCT(Yields!$C$94:$L$94,Matrix!$F$37:$O$37)-SUMPRODUCT(Matrix!$F$37:$O$37,Yields!$C$68:$L$68))/IF(SUM(SUMPRODUCT(Yields!$C$94:$L$94,Matrix!$F$37:$O$37)-SUMPRODUCT(Matrix!$F$37:$O$37,Yields!$C$68:$L$68))=0,1,SUMPRODUCT(--(Yields!$C$94:$L$94-Yields!$C$68:$L$68<>0),Matrix!$F$37:$O$37))<0,(SUMPRODUCT(Yields!$C$94:$L$94,Matrix!$F$37:$O$37)-SUMPRODUCT(Matrix!$F$37:$O$37,Yields!$C$68:$L$68))/IF(SUM(SUMPRODUCT(Yields!$C$94:$L$94,Matrix!$F$37:$O$37)-SUMPRODUCT(Matrix!$F$37:$O$37,Yields!$C$68:$L$68))=0,1,SUMPRODUCT(--(Yields!$C$94:$L$94-Yields!$C$68:$L$68<>0),Matrix!$F$37:$O$37))*-1,"NA") -> NA | D42: =IF((SUMPRODUCT(Yields!$C$94:$L$94,Matrix!$F$37:$O$37)-SUMPRODUCT(Matrix!$F$37:$O$37,Yields!$C$68:$L$68))/IF(SUM(SUMPRODUCT(Yields!$C$94:$L$94,Matrix!$F$37:$O$37)-SUMPRODUCT(Matrix!$F$37:$O$37,Yields!$C$68:$L$68))=0,1,SUMPRODUCT(--(Yields!$C$94:$L$94-Yields!$C$68:$L$68<>0),Matrix!$F$37:$O$37))<0,IF(SUM(SUMPRODUCT(Yields!$C$94:$L$94,Matrix!$F$37:$O$37)-SUMPRODUCT(Matrix!$F$37:$O$37,Yields!$C$68:$L$68))=0,1,SUMPRODUCT(--(Yields!$C$94:$L$94-Yields!$C$68:$L$68<>0),Matrix!$F$37:$O$37)),"NA") -> NA | E42: =IFERROR(C42*D42,"NA") -> NA | G42: =IF(H42="NA","NA",IF(OR('Cash Crop Inputs'!$O$177="no-till",'Cash Crop Inputs'!$O$177="Reduced tillage"),Lists!D43,IF('Cash Crop Inputs'!$O$177="Cover Crops",Lists!D44,IF('Cash Crop Inputs'!$O$177="Nutrient management",Lists!D45,IF('Cash Crop Inputs'!$O$177="Combination of practices",Lists!D46,"NA"))))) -> NA | H42: =IF((SUMPRODUCT(Yields!$C$94:$L$94,Matrix!$F$37:$O$37)-SUMPRODUCT(Matrix!$F$37:$O$37,Yields!$C$68:$L$68))/IF(SUM(SUMPRODUCT(Yields!$C$94:$L$94,Matrix!$F$37:$O$37)-SUMPRODUCT(Matrix!$F$37:$O$37,Yields!$C$68:$L$68))=0,1,SUMPRODUCT(--(Yields!$C$94:$L$94-Yields!$C$68:$L$68<>0),Matrix!$F$37:$O$37))>0,(SUMPRODUCT(Yields!$C$94:$L$94,Matrix!$F$37:$O$37)-SUMPRODUCT(Matrix!$F$37:$O$37,Yields!$C$68:$L$68))/IF(SUM(SUMPRODUCT(Yields!$C$94:$L$94,Matrix!$F$37:$O$37)-SUMPRODUCT(Matrix!$F$37:$O$37,Yields!$C$68:$L$68))=0,1,SUMPRODUCT(--(Yields!$C$94:$L$94-Yields!$C$68:$L$68<>0),Matrix!$F$37:$O$37)),"NA") -> NA | I42: =IF((SUMPRODUCT(Yields!$C$94:$L$94,Matrix!$F$37:$O$37)-SUMPRODUCT(Matrix!$F$37:$O$37,Yields!$C$68:$L$68))/IF(SUM(SUMPRODUCT(Yields!$C$94:$L$94,Matrix!$F$37:$O$37)-SUMPRODUCT(Matrix!$F$37:$O$37,Yields!$C$68:$L$68))=0,1,SUMPRODUCT(--(Yields!$C$94:$L$94-Yields!$C$68:$L$68<>0),Matrix!$F$37:$O$37))>0,IF(SUM(SUMPRODUCT(Yields!$C$94:$L$94,Matrix!$F$37:$O$37)-SUMPRODUCT(Matrix!$F$37:$O$37,Yields!$C$68:$L$68))=0,1,SUMPRODUCT(--(Yields!$C$94:$L$94-Yields!$C$68:$L$68<>0),Matrix!$F$37:$O$37)),"NA") -> NA | J42: NA | K42: N, P, &/or K reductions due to ALL PRACTICES
A43: Manure/compost increases due to ALL PRACTICES | B43: =IF(C43="NA","NA",IF(OR('Cash Crop Inputs'!$O$179="no-till",'Cash Crop Inputs'!$O$179="Reduced tillage"),Lists!C47,IF('Cash Crop Inputs'!$O$179="Cover Crops",Lists!C48,IF('Cash Crop Inputs'!$O$179="Nutrient management",Lists!C49,IF('Cash Crop Inputs'!$O$179="Combination of practices",Lists!C50,"NA"))))) -> NA | C43: =IF((SUMPRODUCT(Yields!$C$95:$L$95,Matrix!$F$37:$O$37)-SUMPRODUCT(Matrix!$F$37:$O$37,Yields!$C$69:$L$69))/IF(SUM(SUMPRODUCT(Yields!$C$95:$L$95,Matrix!$F$37:$O$37)-SUMPRODUCT(Matrix!$F$37:$O$37,Yields!$C$69:$L$69))=0,1,SUMPRODUCT(--(Yields!$C$95:$L$95-Yields!$C$69:$L$69<>0),Matrix!$F$37:$O$37))<0,(SUMPRODUCT(Yields!$C$95:$L$95,Matrix!$F$37:$O$37)-SUMPRODUCT(Matrix!$F$37:$O$37,Yields!$C$69:$L$69))/IF(SUM(SUMPRODUCT(Yields!$C$95:$L$95,Matrix!$F$37:$O$37)-SUMPRODUCT(Matrix!$F$37:$O$37,Yields!$C$69:$L$69))=0,1,SUMPRODUCT(--(Yields!$C$95:$L$95-Yields!$C$69:$L$69<>0),Matrix!$F$37:$O$37))*-1,"NA") -> NA | D43: =IF((SUMPRODUCT(Yields!$C$95:$L$95,Matrix!$F$37:$O$37)-SUMPRODUCT(Matrix!$F$37:$O$37,Yields!$C$69:$L$69))/IF(SUM(SUMPRODUCT(Yields!$C$95:$L$95,Matrix!$F$37:$O$37)-SUMPRODUCT(Matrix!$F$37:$O$37,Yields!$C$69:$L$69))=0,1,SUMPRODUCT(--(Yields!$C$95:$L$95-Yields!$C$69:$L$69<>0),Matrix!$F$37:$O$37))<0,IF(SUM(SUMPRODUCT(Yields!$C$95:$L$95,Matrix!$F$37:$O$37)-SUMPRODUCT(Matrix!$F$37:$O$37,Yields!$C$69:$L$69))=0,1,SUMPRODUCT(--(Yields!$C$95:$L$95-Yields!$C$69:$L$69<>0),Matrix!$F$37:$O$37)),"NA") -> NA | E43: =IFERROR(C43*D43,"NA") -> NA | G43: =IF(H43="NA","NA",IF(OR('Cash Crop Inputs'!$O$179="no-till",'Cash Crop Inputs'!$O$179="Reduced tillage"),Lists!D47,IF('Cash Crop Inputs'!$O$179="Cover Crops",Lists!D48,IF('Cash Crop Inputs'!$O$179="Nutrient management",Lists!D49,IF('Cash Crop Inputs'!$O$179="Combination of practices",Lists!D50,"NA"))))) -> NA | H43: =IF((SUMPRODUCT(Yields!$C$95:$L$95,Matrix!$F$37:$O$37)-SUMPRODUCT(Matrix!$F$37:$O$37,Yields!$C$69:$L$69))/IF(SUM(SUMPRODUCT(Yields!$C$95:$L$95,Matrix!$F$37:$O$37)-SUMPRODUCT(Matrix!$F$37:$O$37,Yields!$C$69:$L$69))=0,1,SUMPRODUCT(--(Yields!$C$95:$L$95-Yields!$C$69:$L$69<>0),Matrix!$F$37:$O$37))>0,(SUMPRODUCT(Yields!$C$95:$L$95,Matrix!$F$37:$O$37)-SUMPRODUCT(Matrix!$F$37:$O$37,Yields!$C$69:$L$69))/IF(SUM(SUMPRODUCT(Yields!$C$95:$L$95,Matrix!$F$37:$O$37)-SUMPRODUCT(Matrix!$F$37:$O$37,Yields!$C$69:$L$69))=0,1,SUMPRODUCT(--(Yields!$C$95:$L$95-Yields!$C$69:$L$69<>0),Matrix!$F$37:$O$37)),"NA") -> NA | I43: =IF((SUMPRODUCT(Yields!$C$95:$L$95,Matrix!$F$37:$O$37)-SUMPRODUCT(Matrix!$F$37:$O$37,Yields!$C$69:$L$69))/IF(SUM(SUMPRODUCT(Yields!$C$95:$L$95,Matrix!$F$37:$O$37)-SUMPRODUCT(Matrix!$F$37:$O$37,Yields!$C$69:$L$69))=0,1,SUMPRODUCT(--(Yields!$C$95:$L$95-Yields!$C$69:$L$69<>0),Matrix!$F$37:$O$37))>0,IF(SUM(SUMPRODUCT(Yields!$C$95:$L$95,Matrix!$F$37:$O$37)-SUMPRODUCT(Matrix!$F$37:$O$37,Yields!$C$69:$L$69))=0,1,SUMPRODUCT(--(Yields!$C$95:$L$95-Yields!$C$69:$L$69<>0),Matrix!$F$37:$O$37)),"NA") -> NA | J43: NA | K43: Manure/compost reductions due to ALL PRACTICES
A44: Pesticide increases due to ALL PRACTICES | B44: =IF(C44="NA","NA",IF(OR('Cash Crop Inputs'!$O$181="no-till",'Cash Crop Inputs'!$O$181="Reduced tillage"),Lists!C51,IF('Cash Crop Inputs'!$O$181="Cover Crops",Lists!C52,IF('Cash Crop Inputs'!$O$181="Nutrient management",Lists!C53,IF('Cash Crop Inputs'!$O$181="Combination of practices",Lists!C54,"NA"))))) -> NA | C44: =IF((SUMPRODUCT(Yields!$C$96:$L$96,Matrix!$F$37:$O$37)-SUMPRODUCT(Matrix!$F$37:$O$37,Yields!$C$70:$L$70))/IF(SUM(SUMPRODUCT(Yields!$C$96:$L$96,Matrix!$F$37:$O$37)-SUMPRODUCT(Matrix!$F$37:$O$37,Yields!$C$70:$L$70))=0,1,SUMPRODUCT(--(Yields!$C$96:$L$96-Yields!$C$70:$L$70<>0),Matrix!$F$37:$O$37))<0,(SUMPRODUCT(Yields!$C$96:$L$96,Matrix!$F$37:$O$37)-SUMPRODUCT(Matrix!$F$37:$O$37,Yields!$C$70:$L$70))/IF(SUM(SUMPRODUCT(Yields!$C$96:$L$96,Matrix!$F$37:$O$37)-SUMPRODUCT(Matrix!$F$37:$O$37,Yields!$C$70:$L$70))=0,1,SUMPRODUCT(--(Yields!$C$96:$L$96-Yields!$C$70:$L$70<>0),Matrix!$F$37:$O$37))*-1,"NA") -> NA | D44: =IF((SUMPRODUCT(Yields!$C$96:$L$96,Matrix!$F$37:$O$37)-SUMPRODUCT(Matrix!$F$37:$O$37,Yields!$C$70:$L$70))/IF(SUM(SUMPRODUCT(Yields!$C$96:$L$96,Matrix!$F$37:$O$37)-SUMPRODUCT(Matrix!$F$37:$O$37,Yields!$C$70:$L$70))=0,1,SUMPRODUCT(--(Yields!$C$96:$L$96-Yields!$C$70:$L$70<>0),Matrix!$F$37:$O$37))<0,IF(SUM(SUMPRODUCT(Yields!$C$96:$L$96,Matrix!$F$37:$O$37)-SUMPRODUCT(Matrix!$F$37:$O$37,Yields!$C$70:$L$70))=0,1,SUMPRODUCT(--(Yields!$C$96:$L$96-Yields!$C$70:$L$70<>0),Matrix!$F$37:$O$37)),"NA") -> NA | E44: =IFERROR(C44*D44,"NA") -> NA | G44: =IF(H44="NA","NA",IF(OR('Cash Crop Inputs'!$O$181="no-till",'Cash Crop Inputs'!$O$181="Reduced tillage"),Lists!D51,IF('Cash Crop Inputs'!$O$181="Cover Crops",Lists!D52,IF('Cash Crop Inputs'!$O$181="Nutrient management",Lists!D53,IF('Cash Crop Inputs'!$O$181="Combination of practices",Lists!D54,"NA"))))) -> NA | H44: =IF((SUMPRODUCT(Yields!$C$96:$L$96,Matrix!$F$37:$O$37)-SUMPRODUCT(Matrix!$F$37:$O$37,Yields!$C$70:$L$70))/IF(SUM(SUMPRODUCT(Yields!$C$96:$L$96,Matrix!$F$37:$O$37)-SUMPRODUCT(Matrix!$F$37:$O$37,Yields!$C$70:$L$70))=0,1,SUMPRODUCT(--(Yields!$C$96:$L$96-Yields!$C$70:$L$70<>0),Matrix!$F$37:$O$37))>0,(SUMPRODUCT(Yields!$C$96:$L$96,Matrix!$F$37:$O$37)-SUMPRODUCT(Matrix!$F$37:$O$37,Yields!$C$70:$L$70))/IF(SUM(SUMPRODUCT(Yields!$C$96:$L$96,Matrix!$F$37:$O$37)-SUMPRODUCT(Matrix!$F$37:$O$37,Yields!$C$70:$L$70))=0,1,SUMPRODUCT(--(Yields!$C$96:$L$96-Yields!$C$70:$L$70<>0),Matrix!$F$37:$O$37)),"NA") -> NA | I44: =IF((SUMPRODUCT(Yields!$C$96:$L$96,Matrix!$F$37:$O$37)-SUMPRODUCT(Matrix!$F$37:$O$37,Yields!$C$70:$L$70))/IF(SUM(SUMPRODUCT(Yields!$C$96:$L$96,Matrix!$F$37:$O$37)-SUMPRODUCT(Matrix!$F$37:$O$37,Yields!$C$70:$L$70))=0,1,SUMPRODUCT(--(Yields!$C$96:$L$96-Yields!$C$70:$L$70<>0),Matrix!$F$37:$O$37))>0,IF(SUM(SUMPRODUCT(Yields!$C$96:$L$96,Matrix!$F$37:$O$37)-SUMPRODUCT(Matrix!$F$37:$O$37,Yields!$C$70:$L$70))=0,1,SUMPRODUCT(--(Yields!$C$96:$L$96-Yields!$C$70:$L$70<>0),Matrix!$F$37:$O$37)),"NA") -> NA | J44: NA | K44: Pesticide reductions due to ALL PRACTICES
A45: Soil sampling change due to ALL PRACTICES | B45: =IF((SUMPRODUCT(Yields!$C$116:$L$116,Matrix!$F$37:$O$37)/IF(SUM(Yields!$C$116:$L$116)=0,1,SUMIF(Yields!$C$116:$L$116,"<>0",Matrix!$F$37:$O$37)))<0,Lists!C55,"NA") -> NA | C45: =IF((SUMPRODUCT(Yields!$C$93:$L$93,Matrix!$F$37:$O$37)-SUMPRODUCT(Matrix!$F$37:$O$37,Yields!$C$67:$L$67))/IF(SUM(SUMPRODUCT(Yields!$C$93:$L$93,Matrix!$F$37:$O$37)-SUMPRODUCT(Matrix!$F$37:$O$37,Yields!$C$67:$L$67))=0,1,SUMPRODUCT(--(Yields!$C$93:$L$93-Yields!$C$67:$L$67<>0),Matrix!$F$37:$O$37))<0,(SUMPRODUCT(Yields!$C$93:$L$93,Matrix!$F$37:$O$37)-SUMPRODUCT(Matrix!$F$37:$O$37,Yields!$C$67:$L$67))/IF(SUM(SUMPRODUCT(Yields!$C$93:$L$93,Matrix!$F$37:$O$37)-SUMPRODUCT(Matrix!$F$37:$O$37,Yields!$C$67:$L$67))=0,1,SUMPRODUCT(--(Yields!$C$93:$L$93-Yields!$C$67:$L$67<>0),Matrix!$F$37:$O$37))*-1,"NA") -> NA | D45: =IF((SUMPRODUCT(Yields!$C$93:$L$93,Matrix!$F$37:$O$37)-SUMPRODUCT(Matrix!$F$37:$O$37,Yields!$C$67:$L$67))/IF(SUM(SUMPRODUCT(Yields!$C$93:$L$93,Matrix!$F$37:$O$37)-SUMPRODUCT(Matrix!$F$37:$O$37,Yields!$C$67:$L$67))=0,1,SUMPRODUCT(--(Yields!$C$93:$L$93-Yields!$C$67:$L$67<>0),Matrix!$F$37:$O$37))<0,IF(SUM(SUMPRODUCT(Yields!$C$93:$L$93,Matrix!$F$37:$O$37)-SUMPRODUCT(Matrix!$F$37:$O$37,Yields!$C$67:$L$67))=0,1,SUMPRODUCT(--(Yields!$C$93:$L$93-Yields!$C$67:$L$67<>0),Matrix!$F$37:$O$37)),"NA") -> NA | E45: =IFERROR(C45*D45,"NA") -> NA | G45: =IF((SUMPRODUCT(Yields!$C$93:$L$93,Matrix!$F$37:$O$37)-SUMPRODUCT(Matrix!$F$37:$O$37,Yields!$C$67:$L$67))/IF(SUM(Yields!$C$116:$L$116)=0,1,SUMIF(Yields!$C$116:$L$116,"<>0",Matrix!$F$37:$O$37))>0,Lists!D55,"NA") -> NA | H45: =IF((SUMPRODUCT(Yields!$C$93:$L$93,Matrix!$F$37:$O$37)-SUMPRODUCT(Matrix!$F$37:$O$37,Yields!$C$67:$L$67))/IF(SUM(SUMPRODUCT(Yields!$C$93:$L$93,Matrix!$F$37:$O$37)-SUMPRODUCT(Matrix!$F$37:$O$37,Yields!$C$67:$L$67))=0,1,SUMPRODUCT(--(Yields!$C$93:$L$93-Yields!$C$67:$L$67<>0),Matrix!$F$37:$O$37))>0,(SUMPRODUCT(Yields!$C$93:$L$93,Matrix!$F$37:$O$37)-SUMPRODUCT(Matrix!$F$37:$O$37,Yields!$C$67:$L$67))/IF(SUM(SUMPRODUCT(Yields!$C$93:$L$93,Matrix!$F$37:$O$37)-SUMPRODUCT(Matrix!$F$37:$O$37,Yields!$C$67:$L$67))=0,1,SUMPRODUCT(--(Yields!$C$93:$L$93-Yields!$C$67:$L$67<>0),Matrix!$F$37:$O$37)),"NA") -> NA | I45: =IF((SUMPRODUCT(Yields!$C$93:$L$93,Matrix!$F$37:$O$37)-SUMPRODUCT(Matrix!$F$37:$O$37,Yields!$C$67:$L$67))/IF(SUM(SUMPRODUCT(Yields!$C$93:$L$93,Matrix!$F$37:$O$37)-SUMPRODUCT(Matrix!$F$37:$O$37,Yields!$C$67:$L$67))=0,1,SUMPRODUCT(--(Yields!$C$93:$L$93-Yields!$C$67:$L$67<>0),Matrix!$F$37:$O$37))>0,IF(SUM(SUMPRODUCT(Yields!$C$93:$L$93,Matrix!$F$37:$O$37)-SUMPRODUCT(Matrix!$F$37:$O$37,Yields!$C$67:$L$67))=0,1,SUMPRODUCT(--(Yields!$C$93:$L$93-Yields!$C$67:$L$67<>0),Matrix!$F$37:$O$37)),"NA") -> NA | J45: NA
A46: All PracticesPosEff1 | B46: =IF('Other Costs & Benefits'!C63<>0,'Other Costs & Benefits'!B63,"NA") -> NA | C46: =IF('Other Costs & Benefits'!C63<0,'Other Costs & Benefits'!C63*-1,IF('Other Costs & Benefits'!C63>0,'Other Costs & Benefits'!C63,"NA")) -> NA | D46: =IF('Other Costs & Benefits'!C63<>0,'Other Costs & Benefits'!D63,"NA") -> NA | E46: =IFERROR(C46*D46,"NA") -> NA | G46: =IF('Other Costs & Benefits'!C70<>0,'Other Costs & Benefits'!B70,"NA") -> NA | H46: =IF('Other Costs & Benefits'!C70<0,'Other Costs & Benefits'!C70*-1,IF('Other Costs & Benefits'!C70>0,'Other Costs & Benefits'!C70,"NA")) -> NA | I46: =IF('Other Costs & Benefits'!C70<>0,'Other Costs & Benefits'!D70,"NA") -> NA | J46: =IFERROR(H46*I46,"NA") -> NA | K46: All PracticesNegEff1
A47: All PracticesPosEff2 | B47: =IF('Other Costs & Benefits'!C64<>0,'Other Costs & Benefits'!B64,"NA") -> NA | C47: =IF('Other Costs & Benefits'!C64<0,'Other Costs & Benefits'!C64*-1,IF('Other Costs & Benefits'!C64>0,'Other Costs & Benefits'!C64,"NA")) -> NA | D47: =IF('Other Costs & Benefits'!C64<>0,'Other Costs & Benefits'!D64,"NA") -> NA | E47: NA | G47: =IF('Other Costs & Benefits'!C71<>0,'Other Costs & Benefits'!B71,"NA") -> NA | H47: =IF('Other Costs & Benefits'!C71<0,'Other Costs & Benefits'!C71*-1,IF('Other Costs & Benefits'!C71>0,'Other Costs & Benefits'!C71,"NA")) -> NA | I47: =IF('Other Costs & Benefits'!C71<>0,'Other Costs & Benefits'!D71,"NA") -> NA | J47: NA | K47: All PracticesNegEff2
A48: All PracticesPosEff3 | B48: =IF('Other Costs & Benefits'!C65<>0,'Other Costs & Benefits'!B65,"NA") -> NA | C48: =IF('Other Costs & Benefits'!C65<0,'Other Costs & Benefits'!C65*-1,IF('Other Costs & Benefits'!C65>0,'Other Costs & Benefits'!C65,"NA")) -> NA | D48: =IF('Other Costs & Benefits'!C65<>0,'Other Costs & Benefits'!D65,"NA") -> NA | E48: NA | G48: =IF('Other Costs & Benefits'!C72<>0,'Other Costs & Benefits'!B72,"NA") -> NA | H48: =IF('Other Costs & Benefits'!C72<0,'Other Costs & Benefits'!C72*-1,IF('Other Costs & Benefits'!C72>0,'Other Costs & Benefits'!C72,"NA")) -> NA | I48: =IF('Other Costs & Benefits'!C72<>0,'Other Costs & Benefits'!D72,"NA") -> NA | J48: NA | K48: All PracticesNegEff3
A49: All PracticesPosEff4 | B49: =IF('Other Costs & Benefits'!C66<>0,'Other Costs & Benefits'!B66,"NA") -> NA | C49: =IF('Other Costs & Benefits'!C66<0,'Other Costs & Benefits'!C66*-1,IF('Other Costs & Benefits'!C66>0,'Other Costs & Benefits'!C66,"NA")) -> NA | D49: =IF('Other Costs & Benefits'!C66<>0,'Other Costs & Benefits'!D66,"NA") -> NA | E49: NA | G49: =IF('Other Costs & Benefits'!C73<>0,'Other Costs & Benefits'!B73,"NA") -> NA | H49: =IF('Other Costs & Benefits'!C73<0,'Other Costs & Benefits'!C73*-1,IF('Other Costs & Benefits'!C73>0,'Other Costs & Benefits'!C73,"NA")) -> NA | I49: =IF('Other Costs & Benefits'!C73<>0,'Other Costs & Benefits'!D73,"NA") -> NA | J49: NA | K49: All PracticesNegEff4
A50: All Practices Erosion Benefits only | B50: =IF('Other Costs & Benefits'!$C$31<0,Lists!C60,"NA") -> NA | C50: =IF('Other Costs & Benefits'!$C$31<0,'Other Costs & Benefits'!$C$31*-1,"NA") -> NA | D50: =IF('Other Costs & Benefits'!$C$31<0,'Other Costs & Benefits'!$C$32,"NA") -> NA | E50: =IFERROR(C50*D50,"NA") -> NA
B51: Total Decreased Cost | E51: =SUM(E33:E50) -> 0 | G51: Total Increased Cost | J51: =SUM(J33:J50) -> 0
B53: Annual Total Increased Net Income | E53: =IFERROR(E51+E30,0) -> 0 | G53: Annual Total Decrease | J53: =IFERROR(J51+J30,0) -> 0
B54: Total Acres in this Study Area | E54: ='Study Area Overview'!D71 -> 0 | G54: Total Acres in this Study Area | J54: ='Study Area Overview'!D71 -> 0
B55: Annual Per Acre Increased Net Income | E55: =IFERROR(ROUND(E53/E54,0),0) -> 0 | G55: Annual Per Acre Decreased Net Income | J55: =IFERROR(ROUND(J53/J54,0),0) -> 0
B57: Annual Change in Total Net Income | F57: = | G57: =IFERROR(E53-J53,0) -> 0
B58: Annual Change in Per Acre Net Income | F58: = | G58: =IFERROR(G57/E54,0) -> 0
B59: Return on Investment | F59: = | G59: =IFERROR(G57/J53,0) -> 0
B60: Footnotes: | K60: Notes to authors about editing footnotes:
B61: This table represents estimated average costs and benefits attributed to adopting [list SH practices] over the entire study area (### acres), where [list crops] are grown, as reported by the farmer. | K61: Update with featured grower's information.
B63: All values are in 2023 dollars.
B64: Prices are stated as per acre values for items that vary by area. Prices such as learning costs, which don't vary by area, are only given as total costs. | K64: If applicable
B65: Machinery costs include the cost of equipment, custom hire, labor, depreciation, interest, insurance, housing, repairs, and fuel (Univ. of IL at Urbana-Champaign, Sept. 2023, Farm Business Management Machinery Cost Estimates: Field Operations & Forage Operations; Iowa State University, Nov. 2023, Ag Decision Maker: Iowa Farm Custom Rate Survey). | K65: List only the sources used in the analysis and modify as needed (sometimes need to shorten further due to word count limitation); should match references provided in the 'ReadMe' or 'Machinery Costs' tabs.
B68: Prices used (5-yr rolling averages): Barley: $6.56/bu, Canola: $13.32/bu, Corn Grain: $5.65/bu, Corn Silage: $53.25/ton, Ensilage: $68.42/ton, Flaxseed: $16.92/bu, Forage: $171.06/ton, Grain Sorghum: $5.69/bu, Hay alfalfa: $237.97/ton, Hay all other: $171.06, Millet: $8.85/bu, Mustard: $20.24/bu, Oats: $4.08/bu, Rapeseed: $11.74/bu, Rye: $7.23/bu, Safflower: $11.42/bu, Soybeans: $13.26/bu, Sugarbeets: $59.62/ton, Sunflower: $8.17/bu, Triticale: $4.20/ton, Winter Wheat: $7.06/bu, & Spring Wheat: $7.62/bu (USDA NASS, 2022-2024, Crop Values Summary, 2019-2023 averages); Nitrogen: $0.63/lb, Phosphate: $0.61/lb, Potash: $0.54/lb (Iowa State University Extension and Outreach. (2020-2024). Ag Decision Maker: Estimated Costs of Crop Production in Iowa (File A1-20). Retrieved on February 6, 2024); 2023 hourly labor rate: $29.23/hr (U.S. Bureau of Labor Statistics, 2023, Occupational Employment & Wage Statistics, First-Line Supervisors of Farming). | K68: Only include applicable crop price if there was a change in yield. Only include applicable fertilizer prices if there was a change in fertilizer use.
B74: Value of decreased erosion ($2.07/ton) is based on estimated N & P content of the soil (2.32 lbs N/ton, 1 lb P/ton) and fertilizer prices (USDA NRCS, May 2010, Benefit-Cost Analysis for the EQIP) and [insert farmer name] estimate of reduced mechanical erosion repair costs. | K74: Only include if there was a change in erosion rate, then edit appropriately depending on if grower provided an annual savings in mechanical erosion repair cost.
B76: Return on Investment is the ratio of Annual Total Change in Net Income to Annual Total Decreased Net Income, as a percent.
B77: This material is based on work by American Farmland Trust supported by USDA NRCS CIG grant NR183A750008G008 [and insert any other associated grants funding this case study]. | K77: Option to add applicable funding information.
B78: For information about study methodology, see farmland.org/soilhealthcasestudies.
B79: [insert grower's first name] received [insert amount, e.g., $/ac/yr or $/yr] through the [insert name of program (years active)]. This is not included in the analysis because cost-share is temporary and not received by all. | K79: Only include if grower received financial assistance. Complete missing information based on grower's unique circumstances.
B83: Impact of Financial Assistance Payments
B84: Increase in Income
B85: Soil Health Practice | C85: Per Acre | D85: Acres | E85: Total
B86: =IF('Other Costs & Benefits'!B83="","",'Other Costs & Benefits'!B83) ->  | C86: =IFERROR('Other Costs & Benefits'!C83,0) -> 0 | D86: =IFERROR('Other Costs & Benefits'!D83,0) -> 0 | E86: =IFERROR(D86*C86,0) -> 0
B87: =IF('Other Costs & Benefits'!B84="","",'Other Costs & Benefits'!B84) ->  | C87: =IFERROR('Other Costs & Benefits'!C84,0) -> 0 | D87: =IFERROR('Other Costs & Benefits'!D84,0) -> 0 | E87: =IFERROR(D87*C87,0) -> 0
B88: =IF('Other Costs & Benefits'!B85="","",'Other Costs & Benefits'!B85) ->  | C88: =IFERROR('Other Costs & Benefits'!C85,0) -> 0 | D88: =IFERROR('Other Costs & Benefits'!D85,0) -> 0 | E88: =IFERROR(D88*C88,0) -> 0
B89: =IF('Other Costs & Benefits'!B86="","",'Other Costs & Benefits'!B86) ->  | C89: =IFERROR('Other Costs & Benefits'!C86,0) -> 0 | D89: =IFERROR('Other Costs & Benefits'!D86,0) -> 0 | E89: =IFERROR(D89*C89,0) -> 0
B90: Total Increase due to Financial Assistance | E90: =SUM(E86:E89) -> 0
B91: Annual Change in Total Net Income = | E91: =IFERROR(G57+E90,0) -> 0
B92: Annual Change in Per Acre Net Income = | E92: =IFERROR(E91/'Study Area Overview'!$D$71,0) -> 0

Sheet Editable PBA
A1: EDITABLE PARTIAL BUDGET ANALYSIS TABLE
A3: ABOUT THIS TAB:
A4: The 'Editable PBA' tab is a copy of the results (identical to the partial budget analysis table in the 'Results' tab) to be edited as the user sees fit. TO EDIT: First remove the formulas by copy and pasting the table to only include values (not formulas) so the results will not change. You can always reference the protected 'Results' tab. Once you have only values, remove all unused items on the left and right by deleting rows and shifting cells. We encourage users to make the item descriptions more detailed. We provide a tutorial on this in our training video online, accessed via the Toolkit or searching AFT's YouTube channel for "2024 Row Crop R-SHEC." Reminder: Positive effects are displayed on the left and negative effects on the right. Effects are sorted automatically into the four quadrants based on their value. The table can house every possible effect from the preceeding tabs. This means that most of the rows will not be populated. Totals are summarized at the bottom of the table for the entire Study Area. All values are on an annual basis. Suggested footnotes appear at the bottom of the table followed by a summary of financial assistance payments received, if any. FA is not included in the PBA results because cost-share is temporary and not received by all.
A16: ="Economic Effects of Soil Health Practices on "& 'Study Area Overview'!B8& " (2023 Prices)" -> Economic Effects of Soil Health Practices on (2023 Prices)
A17: Increases in Net Income | F17: Decreases in Net Income
A18: Increase in Income | F18: Decrease in Income
A19: Item | B19: Per Acre | C19: Acres | D19: Total | F19: Item | G19: Per Acre | H19: Acres | I19: Total
A20: =IF((SUMPRODUCT(((Yields!$C$86:$L$86 -Yields!$C$90:$L$90) * Matrix!$F$37:$O$37) - ((Yields!$C$60:$L$60 -Yields!$C$64:$L$64) * Matrix!$F$37:$O$37),Yields!$C$49:$L$49)/IF(SUM(Yields!$C$113:$L$113)=0,1,SUMIF(Yields!$C$113:$L$113,"<>0",Matrix!$F$37:$O$37)))>0,Lists!C29,"NA") -> NA | B20: =IF((SUMPRODUCT(((Yields!$C$86:$L$86 -Yields!$C$90:$L$90) * Matrix!$F$37:$O$37) - ((Yields!$C$60:$L$60 -Yields!$C$64:$L$64) * Matrix!$F$37:$O$37),Yields!$C$49:$L$49)/IF(SUM(Yields!$C$113:$L$113)=0,1,SUMIF(Yields!$C$113:$L$113,"<>0",Matrix!$F$37:$O$37)))>0,SUMPRODUCT(((Yields!$C$86:$L$86 -Yields!$C$90:$L$90) * Matrix!$F$37:$O$37) - ((Yields!$C$60:$L$60 -Yields!$C$64:$L$64) * Matrix!$F$37:$O$37),Yields!$C$49:$L$49)/IF(SUM(Yields!$C$113:$L$113)=0,1,SUMIF(Yields!$C$113:$L$113,"<>0",Matrix!$F$37:$O$37)),"NA") -> NA | C20: =IF((SUMPRODUCT(((Yields!$C$86:$L$86 -Yields!$C$90:$L$90) * Matrix!$F$37:$O$37) - ((Yields!$C$60:$L$60 -Yields!$C$64:$L$64) * Matrix!$F$37:$O$37),Yields!$C$49:$L$49)/IF(SUM(Yields!$C$113:$L$113)=0,1,SUMIF(Yields!$C$113:$L$113,"<>0",Matrix!$F$37:$O$37)))>0,IF(SUM(Yields!$C$113:$L$113)=0,1,SUMIF(Yields!$C$113:$L$113,"<>0",Matrix!$F$37:$O$37)),"NA") -> NA | D20: =IFERROR(B20*C20,"NA") -> NA | F20: =IF((SUMPRODUCT(((Yields!$C$86:$L$86 -Yields!$C$90:$L$90) * Matrix!$F$37:$O$37) - ((Yields!$C$60:$L$60 -Yields!$C$64:$L$64) * Matrix!$F$37:$O$37),Yields!$C$49:$L$49)/IF(SUM(Yields!$C$113:$L$113)=0,1,SUMIF(Yields!$C$113:$L$113,"<>0",Matrix!$F$37:$O$37)))<0,Lists!H29,"NA") -> NA | G20: =IF((SUMPRODUCT(((Yields!$C$86:$L$86 -Yields!$C$90:$L$90) * Matrix!$F$37:$O$37) - ((Yields!$C$60:$L$60 -Yields!$C$64:$L$64) * Matrix!$F$37:$O$37),Yields!$C$49:$L$49)/IF(SUM(Yields!$C$113:$L$113)=0,1,SUMIF(Yields!$C$113:$L$113,"<>0",Matrix!$F$37:$O$37)))<0,SUMPRODUCT(((Yields!$C$86:$L$86 -Yields!$C$90:$L$90) * Matrix!$F$37:$O$37) - ((Yields!$C$60:$L$60 -Yields!$C$64:$L$64) * Matrix!$F$37:$O$37),Yields!$C$49:$L$49)/IF(SUM(Yields!$C$113:$L$113)=0,1,SUMIF(Yields!$C$113:$L$113,"<>0",Matrix!$F$37:$O$37))*-1,"NA") -> NA | H20: =IF((SUMPRODUCT(((Yields!$C$86:$L$86 -Yields!$C$90:$L$90) * Matrix!$F$37:$O$37) - ((Yields!$C$60:$L$60 -Yields!$C$64:$L$64) * Matrix!$F$37:$O$37),Yields!$C$49:$L$49)/IF(SUM(Yields!$C$113:$L$113)=0,1,SUMIF(Yields!$C$113:$L$113,"<>0",Matrix!$F$37:$O$37)))<0,IF(SUM(Yields!$C$113:$L$113)=0,1,SUMIF(Yields!$C$113:$L$113,"<>0",Matrix!$F$37:$O$37)),"NA") -> NA | I20: =IFERROR(G20*H20,"NA") -> NA
A21: =IF(((SUMPRODUCT(Yields!$C$97:$L$97,Matrix!$F$43:$O$43)-SUMPRODUCT(Matrix!$F$37:$O$37,Yields!$C$71:$L$71))+SUMPRODUCT(Yields!$C$97:$L$97,Matrix!$F$44:$O$44))/IF(SUM(SUMPRODUCT(Yields!$C$97:$L$97,Matrix!$F$43:$O$43)-SUMPRODUCT(Matrix!$F$37:$O$37,Yields!$C$71:$L$71)+SUMPRODUCT(Yields!$C$97:$L$97,Matrix!$F$44:$O$44))=0,1,SUMPRODUCT(--(Yields!$C$97:$L$97-Yields!$C$69:$L$69<>0),Matrix!$F$43:$O$43)+SUMPRODUCT(--(Yields!$C$97:$L$97-Yields!$C$71:$L$71<>0),Matrix!$F$44:$O$44))>0,Lists!$C$30,"NA") -> NA | B21: =IF(((SUMPRODUCT(Yields!$C$97:$L$97,Matrix!$F$43:$O$43)-SUMPRODUCT(Matrix!$F$37:$O$37,Yields!$C$71:$L$71))+SUMPRODUCT(Yields!$C$97:$L$97,Matrix!$F$44:$O$44))/IF(SUM(SUMPRODUCT(Yields!$C$97:$L$97,Matrix!$F$43:$O$43)-SUMPRODUCT(Matrix!$F$37:$O$37,Yields!$C$71:$L$71)+SUMPRODUCT(Yields!$C$97:$L$97,Matrix!$F$44:$O$44))=0,1,SUMPRODUCT(--(Yields!$C$97:$L$97-Yields!$C$69:$L$69<>0),Matrix!$F$43:$O$43)+SUMPRODUCT(--(Yields!$C$97:$L$97-Yields!$C$71:$L$71<>0),Matrix!$F$44:$O$44))>0,((SUMPRODUCT(Yields!$C$97:$L$97,Matrix!$F$43:$O$43)-SUMPRODUCT(Matrix!$F$37:$O$37,Yields!$C$71:$L$71))+SUMPRODUCT(Yields!$C$97:$L$97,Matrix!$F$44:$O$44))/IF(SUM(SUMPRODUCT(Yields!$C$97:$L$97,Matrix!$F$43:$O$43)-SUMPRODUCT(Matrix!$F$37:$O$37,Yields!$C$71:$L$71)+SUMPRODUCT(Yields!$C$97:$L$97,Matrix!$F$44:$O$44))=0,1,SUMPRODUCT(--(Yields!$C$97:$L$97-Yields!$C$69:$L$69<>0),Matrix!$F$43:$O$43)+SUMPRODUCT(--(Yields!$C$97:$L$97-Yields!$C$71:$L$71<>0),Matrix!$F$44:$O$44)),"NA") -> NA | C21: =IF(((SUMPRODUCT(Yields!$C$97:$L$97,Matrix!$F$43:$O$43)-SUMPRODUCT(Matrix!$F$37:$O$37,Yields!$C$71:$L$71))+SUMPRODUCT(Yields!$C$97:$L$97,Matrix!$F$44:$O$44))/IF(SUM(SUMPRODUCT(Yields!$C$97:$L$97,Matrix!$F$43:$O$43)-SUMPRODUCT(Matrix!$F$37:$O$37,Yields!$C$71:$L$71)+SUMPRODUCT(Yields!$C$97:$L$97,Matrix!$F$44:$O$44))=0,1,SUMPRODUCT(--(Yields!$C$97:$L$97-Yields!$C$69:$L$69<>0),Matrix!$F$43:$O$43)+SUMPRODUCT(--(Yields!$C$97:$L$97-Yields!$C$71:$L$71<>0),Matrix!$F$44:$O$44))>0,IF(SUM(SUMPRODUCT(Yields!$C$97:$L$97,Matrix!$F$43:$O$43)-SUMPRODUCT(Matrix!$F$37:$O$37,Yields!$C$71:$L$71)+SUMPRODUCT(Yields!$C$97:$L$97,Matrix!$F$44:$O$44))=0,1,SUMPRODUCT(--(Yields!$C$97:$L$97-Yields!$C$69:$L$69<>0),Matrix!$F$43:$O$43)+SUMPRODUCT(--(Yields!$C$97:$L$97-Yields!$C$71:$L$71<>0),Matrix!$F$44:$O$44)),"NA") -> NA | D21: =IFERROR(B21*C21,"NA") -> NA | F21: =IF(((SUMPRODUCT(Yields!$C$97:$L$97,Matrix!$F$43:$O$43)-SUMPRODUCT(Matrix!$F$37:$O$37,Yields!$C$71:$L$71))+SUMPRODUCT(Yields!$C$97:$L$97,Matrix!$F$44:$O$44))/IF(SUM(SUMPRODUCT(Yields!$C$97:$L$97,Matrix!$F$43:$O$43)-SUMPRODUCT(Matrix!$F$37:$O$37,Yields!$C$71:$L$71)+SUMPRODUCT(Yields!$C$97:$L$97,Matrix!$F$44:$O$44))=0,1,SUMPRODUCT(--(Yields!$C$97:$L$97-Yields!$C$69:$L$69<>0),Matrix!$F$43:$O$43)+SUMPRODUCT(--(Yields!$C$97:$L$97-Yields!$C$71:$L$71<>0),Matrix!$F$44:$O$44))<0,Lists!$D$30,"NA") -> NA | G21: =IF(((SUMPRODUCT(Yields!$C$97:$L$97,Matrix!$F$43:$O$43)-SUMPRODUCT(Matrix!$F$37:$O$37,Yields!$C$71:$L$71))+SUMPRODUCT(Yields!$C$97:$L$97,Matrix!$F$44:$O$44))/IF(SUM(SUMPRODUCT(Yields!$C$97:$L$97,Matrix!$F$43:$O$43)-SUMPRODUCT(Matrix!$F$37:$O$37,Yields!$C$71:$L$71)+SUMPRODUCT(Yields!$C$97:$L$97,Matrix!$F$44:$O$44))=0,1,SUMPRODUCT(--(Yields!$C$97:$L$97-Yields!$C$69:$L$69<>0),Matrix!$F$43:$O$43)+SUMPRODUCT(--(Yields!$C$97:$L$97-Yields!$C$71:$L$71<>0),Matrix!$F$44:$O$44))<0,((SUMPRODUCT(Yields!$C$97:$L$97,Matrix!$F$43:$O$43)-SUMPRODUCT(Matrix!$F$37:$O$37,Yields!$C$71:$L$71))+SUMPRODUCT(Yields!$C$97:$L$97,Matrix!$F$44:$O$44))/IF(SUM(SUMPRODUCT(Yields!$C$97:$L$97,Matrix!$F$43:$O$43)-SUMPRODUCT(Matrix!$F$37:$O$37,Yields!$C$71:$L$71)+SUMPRODUCT(Yields!$C$97:$L$97,Matrix!$F$44:$O$44))=0,1,SUMPRODUCT(--(Yields!$C$97:$L$97-Yields!$C$69:$L$69<>0),Matrix!$F$43:$O$43)+SUMPRODUCT(--(Yields!$C$97:$L$97-Yields!$C$71:$L$71<>0),Matrix!$F$44:$O$44))*-1,"NA") -> NA | H21: =IF(((SUMPRODUCT(Yields!$C$97:$L$97,Matrix!$F$43:$O$43)-SUMPRODUCT(Matrix!$F$37:$O$37,Yields!$C$71:$L$71))+SUMPRODUCT(Yields!$C$97:$L$97,Matrix!$F$44:$O$44))/IF(SUM(SUMPRODUCT(Yields!$C$97:$L$97,Matrix!$F$43:$O$43)-SUMPRODUCT(Matrix!$F$37:$O$37,Yields!$C$71:$L$71)+SUMPRODUCT(Yields!$C$97:$L$97,Matrix!$F$44:$O$44))=0,1,SUMPRODUCT(--(Yields!$C$97:$L$97-Yields!$C$69:$L$69<>0),Matrix!$F$43:$O$43)+SUMPRODUCT(--(Yields!$C$97:$L$97-Yields!$C$71:$L$71<>0),Matrix!$F$44:$O$44))<0,IF(SUM(SUMPRODUCT(Yields!$C$97:$L$97,Matrix!$F$43:$O$43)-SUMPRODUCT(Matrix!$F$37:$O$37,Yields!$C$71:$L$71)+SUMPRODUCT(Yields!$C$97:$L$97,Matrix!$F$44:$O$44))=0,1,SUMPRODUCT(--(Yields!$C$97:$L$97-Yields!$C$69:$L$69<>0),Matrix!$F$43:$O$43)+SUMPRODUCT(--(Yields!$C$97:$L$97-Yields!$C$71:$L$71<>0),Matrix!$F$44:$O$44)),"NA") -> NA | I21: =IFERROR(G21*H21,"NA") -> NA
A22: =IF('Cover Crops'!C291>0,Lists!C31,"NA") -> NA | B22: =IF('Cover Crops'!C291>0,'Cover Crops'!C291,"NA") -> NA | C22: =IF('Cover Crops'!C291>0,'Cover Crops'!C286,"NA") -> NA | D22: =IFERROR(B22*C22,"NA") -> NA
A23: =IF('Cover Crops'!$G$288>0,Lists!C32,"") ->  | B23: =IF('Cover Crops'!$G$288>0,'Cover Crops'!G288,"NA") -> NA | C23: =IF('Cover Crops'!G288>0,'Cover Crops'!G286,"NA") -> NA | D23: =IFERROR(B23*C23,"NA") -> NA
A24: Total Increased Income | D24: =SUM(D20:D23) -> 0 | F24: Total Decreased Income | I24: =SUM(I20:I23) -> 0
A25: Decrease in Cost | F25: Increase in Cost
A26: Item | B26: Per Acre | C26: Acres | D26: Total | F26: Item | G26: Per Acre | H26: Acres | I26: Total
F27: =IF('Other Costs & Benefits'!$C$48>0,Lists!D34& " (" &'Other Costs & Benefits'!$C$48&" hrs/yr)","NA") -> NA | I27: =IF('Other Costs & Benefits'!$C$48>0,'Other Costs & Benefits'!$D$48,0) -> 0
F28: =IF('Other Costs & Benefits'!$C$45>0,Lists!D35& " (" &'Other Costs & Benefits'!$C$45&" hrs/yr)","NA") -> NA | I28: =IF('Other Costs & Benefits'!$C$45>0,'Other Costs & Benefits'!$D$45,0) -> 0
F29: =IF('Other Costs & Benefits'!$C$46>0,Lists!D36& " (" &'Other Costs & Benefits'!$C$46&" hrs/yr)","NA") -> NA | I29: =IF('Other Costs & Benefits'!$C$46>0,'Other Costs & Benefits'!$D$46,0) -> 0
F30: =IF('Other Costs & Benefits'!$C$47>0,Lists!D37& " (" &'Other Costs & Benefits'!$C$47&" hrs/yr)","NA") -> NA | I30: =IF('Other Costs & Benefits'!$C$47>0,'Other Costs & Benefits'!$D$47,0) -> 0
F31: =IF('Other Costs & Benefits'!$C$50>0,Lists!D38& " (" &'Other Costs & Benefits'!$C$50&" hrs/yr)","NA") -> NA | I31: =IF('Other Costs & Benefits'!$C$50>0,'Other Costs & Benefits'!$D$50,0) -> 0
A32: =IF((SUMPRODUCT(Yields!$C$91:$L$91,Matrix!$F$37:$O$37)-SUMPRODUCT(Matrix!$F$37:$O$37,Yields!$C$65:$L$65))/IF(SUM(SUMPRODUCT(Yields!$C$91:$L$91,Matrix!$F$37:$O$37)-SUMPRODUCT(Matrix!$F$37:$O$37,Yields!$C$65:$L$65))=0,1,SUMPRODUCT(--(Yields!$C$91:$L$91-Yields!$C$65:$L$65<>0),Matrix!$F$37:$O$37))<0,Lists!C39,"NA") -> NA | B32: =IF((SUMPRODUCT(Yields!$C$91:$L$91,Matrix!$F$37:$O$37)-SUMPRODUCT(Matrix!$F$37:$O$37,Yields!$C$65:$L$65))/IF(SUM(SUMPRODUCT(Yields!$C$91:$L$91,Matrix!$F$37:$O$37)-SUMPRODUCT(Matrix!$F$37:$O$37,Yields!$C$65:$L$65))=0,1,SUMPRODUCT(--(Yields!$C$91:$L$91-Yields!$C$65:$L$65<>0),Matrix!$F$37:$O$37))<0,(SUMPRODUCT(Yields!$C$91:$L$91,Matrix!$F$37:$O$37)-SUMPRODUCT(Matrix!$F$37:$O$37,Yields!$C$65:$L$65))/IF(SUM(SUMPRODUCT(Yields!$C$91:$L$91,Matrix!$F$37:$O$37)-SUMPRODUCT(Matrix!$F$37:$O$37,Yields!$C$65:$L$65))=0,1,SUMPRODUCT(--(Yields!$C$91:$L$91-Yields!$C$65:$L$65<>0),Matrix!$F$37:$O$37))*-1,"NA") -> NA | C32: =IF((SUMPRODUCT(Yields!$C$91:$L$91,Matrix!$F$37:$O$37)-SUMPRODUCT(Matrix!$F$37:$O$37,Yields!$C$65:$L$65))/IF(SUM(SUMPRODUCT(Yields!$C$91:$L$91,Matrix!$F$37:$O$37)-SUMPRODUCT(Matrix!$F$37:$O$37,Yields!$C$65:$L$65))=0,1,SUMPRODUCT(--(Yields!$C$91:$L$91-Yields!$C$65:$L$65<>0),Matrix!$F$37:$O$37))<0,IF(SUM(SUMPRODUCT(Yields!$C$91:$L$91,Matrix!$F$37:$O$37)-SUMPRODUCT(Matrix!$F$37:$O$37,Yields!$C$65:$L$65))=0,1,SUMPRODUCT(--(Yields!$C$91:$L$91-Yields!$C$65:$L$65<>0),Matrix!$F$37:$O$37)),"NA") -> NA | D32: =IFERROR(B32*C32,"NA") -> NA | F32: =IF((SUMPRODUCT(Yields!$C$91:$L$91,Matrix!$F$37:$O$37)-SUMPRODUCT(Matrix!$F$37:$O$37,Yields!$C$65:$L$65))/IF(SUM(SUMPRODUCT(Yields!$C$91:$L$91,Matrix!$F$37:$O$37)-SUMPRODUCT(Matrix!$F$37:$O$37,Yields!$C$65:$L$65))=0,1,SUMPRODUCT(--(Yields!$C$91:$L$91-Yields!$C$65:$L$65<>0),Matrix!$F$37:$O$37))>0,Lists!D39,"NA") -> NA | G32: =IF((SUMPRODUCT(Yields!$C$91:$L$91,Matrix!$F$37:$O$37)-SUMPRODUCT(Matrix!$F$37:$O$37,Yields!$C$65:$L$65))/IF(SUM(SUMPRODUCT(Yields!$C$91:$L$91,Matrix!$F$37:$O$37)-SUMPRODUCT(Matrix!$F$37:$O$37,Yields!$C$65:$L$65))=0,1,SUMPRODUCT(--(Yields!$C$91:$L$91-Yields!$C$65:$L$65<>0),Matrix!$F$37:$O$37))>0,(SUMPRODUCT(Yields!$C$91:$L$91,Matrix!$F$37:$O$37)-SUMPRODUCT(Matrix!$F$37:$O$37,Yields!$C$65:$L$65))/IF(SUM(SUMPRODUCT(Yields!$C$91:$L$91,Matrix!$F$37:$O$37)-SUMPRODUCT(Matrix!$F$37:$O$37,Yields!$C$65:$L$65))=0,1,SUMPRODUCT(--(Yields!$C$91:$L$91-Yields!$C$65:$L$65<>0),Matrix!$F$37:$O$37)),"NA") -> NA | H32: =IF((SUMPRODUCT(Yields!$C$91:$L$91,Matrix!$F$37:$O$37)-SUMPRODUCT(Matrix!$F$37:$O$37,Yields!$C$65:$L$65))/IF(SUM(SUMPRODUCT(Yields!$C$91:$L$91,Matrix!$F$37:$O$37)-SUMPRODUCT(Matrix!$F$37:$O$37,Yields!$C$65:$L$65))=0,1,SUMPRODUCT(--(Yields!$C$91:$L$91-Yields!$C$65:$L$65<>0),Matrix!$F$37:$O$37))>0,IF(SUM(SUMPRODUCT(Yields!$C$91:$L$91,Matrix!$F$37:$O$37)-SUMPRODUCT(Matrix!$F$37:$O$37,Yields!$C$65:$L$65))=0,1,SUMPRODUCT(--(Yields!$C$91:$L$91-Yields!$C$65:$L$65<>0),Matrix!$F$37:$O$37)),"NA") -> NA | I32: =IFERROR(G32*H32,"NA") -> NA
F33: =IF('Cover Crops'!$G$263<>0,Lists!D40,"NA") -> NA | G33: =IF('Cover Crops'!$G$263<>0,'Cover Crops'!$G$263,"NA") -> NA | H33: =IF('Cover Crops'!$G$263<>0,SUM('Cover Crops'!$C$252:$C$261),"NA") -> NA | I33: =IFERROR(G33*H33,"NA") -> NA
F34: =IF('Cover Crops'!$C$302>0,Lists!D41,"NA") -> NA | G34: =IF('Cover Crops'!$C$302>0,'Cover Crops'!$C$302,"NA") -> NA | H34: =IF('Cover Crops'!$C$302>0,'Cover Crops'!$C$286,"NA") -> NA | I34: =IFERROR(G34*H34,"NA") -> NA
F35: =IF('Cover Crops'!$G$289>0,Lists!D42,"NA") -> NA | G35: =IF('Cover Crops'!$G$289>0,'Cover Crops'!$G$289,"NA") -> NA | H35: =IF('Cover Crops'!$G$289>0,'Cover Crops'!$G$286,"NA") -> NA | I35: =IFERROR(G35*H35,"NA") -> NA
A36: =IF(B36="NA","NA",IF(OR('Cash Crop Inputs'!$O$177="no-till",'Cash Crop Inputs'!$O$177="Reduced tillage"),Lists!C43,IF('Cash Crop Inputs'!$O$177="Cover Crops",Lists!C44,IF('Cash Crop Inputs'!$O$177="Nutrient management",Lists!C45,IF('Cash Crop Inputs'!$O$177="Combination of practices",Lists!C46,"NA"))))) -> NA | B36: =IF((SUMPRODUCT(Yields!$C$94:$L$94,Matrix!$F$37:$O$37)-SUMPRODUCT(Matrix!$F$37:$O$37,Yields!$C$68:$L$68))/IF(SUM(SUMPRODUCT(Yields!$C$94:$L$94,Matrix!$F$37:$O$37)-SUMPRODUCT(Matrix!$F$37:$O$37,Yields!$C$68:$L$68))=0,1,SUMPRODUCT(--(Yields!$C$94:$L$94-Yields!$C$68:$L$68<>0),Matrix!$F$37:$O$37))<0,(SUMPRODUCT(Yields!$C$94:$L$94,Matrix!$F$37:$O$37)-SUMPRODUCT(Matrix!$F$37:$O$37,Yields!$C$68:$L$68))/IF(SUM(SUMPRODUCT(Yields!$C$94:$L$94,Matrix!$F$37:$O$37)-SUMPRODUCT(Matrix!$F$37:$O$37,Yields!$C$68:$L$68))=0,1,SUMPRODUCT(--(Yields!$C$94:$L$94-Yields!$C$68:$L$68<>0),Matrix!$F$37:$O$37))*-1,"NA") -> NA | C36: =IF((SUMPRODUCT(Yields!$C$94:$L$94,Matrix!$F$37:$O$37)-SUMPRODUCT(Matrix!$F$37:$O$37,Yields!$C$68:$L$68))/IF(SUM(SUMPRODUCT(Yields!$C$94:$L$94,Matrix!$F$37:$O$37)-SUMPRODUCT(Matrix!$F$37:$O$37,Yields!$C$68:$L$68))=0,1,SUMPRODUCT(--(Yields!$C$94:$L$94-Yields!$C$68:$L$68<>0),Matrix!$F$37:$O$37))<0,IF(SUM(SUMPRODUCT(Yields!$C$94:$L$94,Matrix!$F$37:$O$37)-SUMPRODUCT(Matrix!$F$37:$O$37,Yields!$C$68:$L$68))=0,1,SUMPRODUCT(--(Yields!$C$94:$L$94-Yields!$C$68:$L$68<>0),Matrix!$F$37:$O$37)),"NA") -> NA | D36: =IFERROR(B36*C36,"NA") -> NA | F36: =IF(G36="NA","NA",IF(OR('Cash Crop Inputs'!$O$177="no-till",'Cash Crop Inputs'!$O$177="Reduced tillage"),Lists!D43,IF('Cash Crop Inputs'!$O$177="Cover Crops",Lists!D44,IF('Cash Crop Inputs'!$O$177="Nutrient management",Lists!D45,IF('Cash Crop Inputs'!$O$177="Combination of practices",Lists!D46,"NA"))))) -> NA | G36: =IF((SUMPRODUCT(Yields!$C$94:$L$94,Matrix!$F$37:$O$37)-SUMPRODUCT(Matrix!$F$37:$O$37,Yields!$C$68:$L$68))/IF(SUM(SUMPRODUCT(Yields!$C$94:$L$94,Matrix!$F$37:$O$37)-SUMPRODUCT(Matrix!$F$37:$O$37,Yields!$C$68:$L$68))=0,1,SUMPRODUCT(--(Yields!$C$94:$L$94-Yields!$C$68:$L$68<>0),Matrix!$F$37:$O$37))>0,(SUMPRODUCT(Yields!$C$94:$L$94,Matrix!$F$37:$O$37)-SUMPRODUCT(Matrix!$F$37:$O$37,Yields!$C$68:$L$68))/IF(SUM(SUMPRODUCT(Yields!$C$94:$L$94,Matrix!$F$37:$O$37)-SUMPRODUCT(Matrix!$F$37:$O$37,Yields!$C$68:$L$68))=0,1,SUMPRODUCT(--(Yields!$C$94:$L$94-Yields!$C$68:$L$68<>0),Matrix!$F$37:$O$37)),"NA") -> NA | H36: =IF((SUMPRODUCT(Yields!$C$94:$L$94,Matrix!$F$37:$O$37)-SUMPRODUCT(Matrix!$F$37:$O$37,Yields!$C$68:$L$68))/IF(SUM(SUMPRODUCT(Yields!$C$94:$L$94,Matrix!$F$37:$O$37)-SUMPRODUCT(Matrix!$F$37:$O$37,Yields!$C$68:$L$68))=0,1,SUMPRODUCT(--(Yields!$C$94:$L$94-Yields!$C$68:$L$68<>0),Matrix!$F$37:$O$37))>0,IF(SUM(SUMPRODUCT(Yields!$C$94:$L$94,Matrix!$F$37:$O$37)-SUMPRODUCT(Matrix!$F$37:$O$37,Yields!$C$68:$L$68))=0,1,SUMPRODUCT(--(Yields!$C$94:$L$94-Yields!$C$68:$L$68<>0),Matrix!$F$37:$O$37)),"NA") -> NA | I36: NA
A37: =IF(B37="NA","NA",IF(OR('Cash Crop Inputs'!$O$179="no-till",'Cash Crop Inputs'!$O$179="Reduced tillage"),Lists!C47,IF('Cash Crop Inputs'!$O$179="Cover Crops",Lists!C48,IF('Cash Crop Inputs'!$O$179="Nutrient management",Lists!C49,IF('Cash Crop Inputs'!$O$179="Combination of practices",Lists!C50,"NA"))))) -> NA | B37: =IF((SUMPRODUCT(Yields!$C$95:$L$95,Matrix!$F$37:$O$37)-SUMPRODUCT(Matrix!$F$37:$O$37,Yields!$C$69:$L$69))/IF(SUM(SUMPRODUCT(Yields!$C$95:$L$95,Matrix!$F$37:$O$37)-SUMPRODUCT(Matrix!$F$37:$O$37,Yields!$C$69:$L$69))=0,1,SUMPRODUCT(--(Yields!$C$95:$L$95-Yields!$C$69:$L$69<>0),Matrix!$F$37:$O$37))<0,(SUMPRODUCT(Yields!$C$95:$L$95,Matrix!$F$37:$O$37)-SUMPRODUCT(Matrix!$F$37:$O$37,Yields!$C$69:$L$69))/IF(SUM(SUMPRODUCT(Yields!$C$95:$L$95,Matrix!$F$37:$O$37)-SUMPRODUCT(Matrix!$F$37:$O$37,Yields!$C$69:$L$69))=0,1,SUMPRODUCT(--(Yields!$C$95:$L$95-Yields!$C$69:$L$69<>0),Matrix!$F$37:$O$37))*-1,"NA") -> NA | C37: =IF((SUMPRODUCT(Yields!$C$95:$L$95,Matrix!$F$37:$O$37)-SUMPRODUCT(Matrix!$F$37:$O$37,Yields!$C$69:$L$69))/IF(SUM(SUMPRODUCT(Yields!$C$95:$L$95,Matrix!$F$37:$O$37)-SUMPRODUCT(Matrix!$F$37:$O$37,Yields!$C$69:$L$69))=0,1,SUMPRODUCT(--(Yields!$C$95:$L$95-Yields!$C$69:$L$69<>0),Matrix!$F$37:$O$37))<0,IF(SUM(SUMPRODUCT(Yields!$C$95:$L$95,Matrix!$F$37:$O$37)-SUMPRODUCT(Matrix!$F$37:$O$37,Yields!$C$69:$L$69))=0,1,SUMPRODUCT(--(Yields!$C$95:$L$95-Yields!$C$69:$L$69<>0),Matrix!$F$37:$O$37)),"NA") -> NA | D37: =IFERROR(B37*C37,"NA") -> NA | F37: =IF(G37="NA","NA",IF(OR('Cash Crop Inputs'!$O$179="no-till",'Cash Crop Inputs'!$O$179="Reduced tillage"),Lists!D47,IF('Cash Crop Inputs'!$O$179="Cover Crops",Lists!D48,IF('Cash Crop Inputs'!$O$179="Nutrient management",Lists!D49,IF('Cash Crop Inputs'!$O$179="Combination of practices",Lists!D50,"NA"))))) -> NA | G37: =IF((SUMPRODUCT(Yields!$C$95:$L$95,Matrix!$F$37:$O$37)-SUMPRODUCT(Matrix!$F$37:$O$37,Yields!$C$69:$L$69))/IF(SUM(SUMPRODUCT(Yields!$C$95:$L$95,Matrix!$F$37:$O$37)-SUMPRODUCT(Matrix!$F$37:$O$37,Yields!$C$69:$L$69))=0,1,SUMPRODUCT(--(Yields!$C$95:$L$95-Yields!$C$69:$L$69<>0),Matrix!$F$37:$O$37))>0,(SUMPRODUCT(Yields!$C$95:$L$95,Matrix!$F$37:$O$37)-SUMPRODUCT(Matrix!$F$37:$O$37,Yields!$C$69:$L$69))/IF(SUM(SUMPRODUCT(Yields!$C$95:$L$95,Matrix!$F$37:$O$37)-SUMPRODUCT(Matrix!$F$37:$O$37,Yields!$C$69:$L$69))=0,1,SUMPRODUCT(--(Yields!$C$95:$L$95-Yields!$C$69:$L$69<>0),Matrix!$F$37:$O$37)),"NA") -> NA | H37: =IF((SUMPRODUCT(Yields!$C$95:$L$95,Matrix!$F$37:$O$37)-SUMPRODUCT(Matrix!$F$37:$O$37,Yields!$C$69:$L$69))/IF(SUM(SUMPRODUCT(Yields!$C$95:$L$95,Matrix!$F$37:$O$37)-SUMPRODUCT(Matrix!$F$37:$O$37,Yields!$C$69:$L$69))=0,1,SUMPRODUCT(--(Yields!$C$95:$L$95-Yields!$C$69:$L$69<>0),Matrix!$F$37:$O$37))>0,IF(SUM(SUMPRODUCT(Yields!$C$95:$L$95,Matrix!$F$37:$O$37)-SUMPRODUCT(Matrix!$F$37:$O$37,Yields!$C$69:$L$69))=0,1,SUMPRODUCT(--(Yields!$C$95:$L$95-Yields!$C$69:$L$69<>0),Matrix!$F$37:$O$37)),"NA") -> NA | I37: NA
A38: =IF(B38="NA","NA",IF(OR('Cash Crop Inputs'!$O$181="no-till",'Cash Crop Inputs'!$O$181="Reduced tillage"),Lists!C51,IF('Cash Crop Inputs'!$O$181="Cover Crops",Lists!C52,IF('Cash Crop Inputs'!$O$181="Nutrient management",Lists!C53,IF('Cash Crop Inputs'!$O$181="Combination of practices",Lists!C54,"NA"))))) -> NA | B38: =IF((SUMPRODUCT(Yields!$C$96:$L$96,Matrix!$F$37:$O$37)-SUMPRODUCT(Matrix!$F$37:$O$37,Yields!$C$70:$L$70))/IF(SUM(SUMPRODUCT(Yields!$C$96:$L$96,Matrix!$F$37:$O$37)-SUMPRODUCT(Matrix!$F$37:$O$37,Yields!$C$70:$L$70))=0,1,SUMPRODUCT(--(Yields!$C$96:$L$96-Yields!$C$70:$L$70<>0),Matrix!$F$37:$O$37))<0,(SUMPRODUCT(Yields!$C$96:$L$96,Matrix!$F$37:$O$37)-SUMPRODUCT(Matrix!$F$37:$O$37,Yields!$C$70:$L$70))/IF(SUM(SUMPRODUCT(Yields!$C$96:$L$96,Matrix!$F$37:$O$37)-SUMPRODUCT(Matrix!$F$37:$O$37,Yields!$C$70:$L$70))=0,1,SUMPRODUCT(--(Yields!$C$96:$L$96-Yields!$C$70:$L$70<>0),Matrix!$F$37:$O$37))*-1,"NA") -> NA | C38: =IF((SUMPRODUCT(Yields!$C$96:$L$96,Matrix!$F$37:$O$37)-SUMPRODUCT(Matrix!$F$37:$O$37,Yields!$C$70:$L$70))/IF(SUM(SUMPRODUCT(Yields!$C$96:$L$96,Matrix!$F$37:$O$37)-SUMPRODUCT(Matrix!$F$37:$O$37,Yields!$C$70:$L$70))=0,1,SUMPRODUCT(--(Yields!$C$96:$L$96-Yields!$C$70:$L$70<>0),Matrix!$F$37:$O$37))<0,IF(SUM(SUMPRODUCT(Yields!$C$96:$L$96,Matrix!$F$37:$O$37)-SUMPRODUCT(Matrix!$F$37:$O$37,Yields!$C$70:$L$70))=0,1,SUMPRODUCT(--(Yields!$C$96:$L$96-Yields!$C$70:$L$70<>0),Matrix!$F$37:$O$37)),"NA") -> NA | D38: =IFERROR(B38*C38,"NA") -> NA | F38: =IF(G38="NA","NA",IF(OR('Cash Crop Inputs'!$O$181="no-till",'Cash Crop Inputs'!$O$181="Reduced tillage"),Lists!D51,IF('Cash Crop Inputs'!$O$181="Cover Crops",Lists!D52,IF('Cash Crop Inputs'!$O$181="Nutrient management",Lists!D53,IF('Cash Crop Inputs'!$O$181="Combination of practices",Lists!D54,"NA"))))) -> NA | G38: =IF((SUMPRODUCT(Yields!$C$96:$L$96,Matrix!$F$37:$O$37)-SUMPRODUCT(Matrix!$F$37:$O$37,Yields!$C$70:$L$70))/IF(SUM(SUMPRODUCT(Yields!$C$96:$L$96,Matrix!$F$37:$O$37)-SUMPRODUCT(Matrix!$F$37:$O$37,Yields!$C$70:$L$70))=0,1,SUMPRODUCT(--(Yields!$C$96:$L$96-Yields!$C$70:$L$70<>0),Matrix!$F$37:$O$37))>0,(SUMPRODUCT(Yields!$C$96:$L$96,Matrix!$F$37:$O$37)-SUMPRODUCT(Matrix!$F$37:$O$37,Yields!$C$70:$L$70))/IF(SUM(SUMPRODUCT(Yields!$C$96:$L$96,Matrix!$F$37:$O$37)-SUMPRODUCT(Matrix!$F$37:$O$37,Yields!$C$70:$L$70))=0,1,SUMPRODUCT(--(Yields!$C$96:$L$96-Yields!$C$70:$L$70<>0),Matrix!$F$37:$O$37)),"NA") -> NA | H38: =IF((SUMPRODUCT(Yields!$C$96:$L$96,Matrix!$F$37:$O$37)-SUMPRODUCT(Matrix!$F$37:$O$37,Yields!$C$70:$L$70))/IF(SUM(SUMPRODUCT(Yields!$C$96:$L$96,Matrix!$F$37:$O$37)-SUMPRODUCT(Matrix!$F$37:$O$37,Yields!$C$70:$L$70))=0,1,SUMPRODUCT(--(Yields!$C$96:$L$96-Yields!$C$70:$L$70<>0),Matrix!$F$37:$O$37))>0,IF(SUM(SUMPRODUCT(Yields!$C$96:$L$96,Matrix!$F$37:$O$37)-SUMPRODUCT(Matrix!$F$37:$O$37,Yields!$C$70:$L$70))=0,1,SUMPRODUCT(--(Yields!$C$96:$L$96-Yields!$C$70:$L$70<>0),Matrix!$F$37:$O$37)),"NA") -> NA | I38: NA
A39: =IF((SUMPRODUCT(Yields!$C$116:$L$116,Matrix!$F$37:$O$37)/IF(SUM(Yields!$C$116:$L$116)=0,1,SUMIF(Yields!$C$116:$L$116,"<>0",Matrix!$F$37:$O$37)))<0,Lists!C55,"NA") -> NA | B39: =IF((SUMPRODUCT(Yields!$C$93:$L$93,Matrix!$F$37:$O$37)-SUMPRODUCT(Matrix!$F$37:$O$37,Yields!$C$67:$L$67))/IF(SUM(SUMPRODUCT(Yields!$C$93:$L$93,Matrix!$F$37:$O$37)-SUMPRODUCT(Matrix!$F$37:$O$37,Yields!$C$67:$L$67))=0,1,SUMPRODUCT(--(Yields!$C$93:$L$93-Yields!$C$67:$L$67<>0),Matrix!$F$37:$O$37))<0,(SUMPRODUCT(Yields!$C$93:$L$93,Matrix!$F$37:$O$37)-SUMPRODUCT(Matrix!$F$37:$O$37,Yields!$C$67:$L$67))/IF(SUM(SUMPRODUCT(Yields!$C$93:$L$93,Matrix!$F$37:$O$37)-SUMPRODUCT(Matrix!$F$37:$O$37,Yields!$C$67:$L$67))=0,1,SUMPRODUCT(--(Yields!$C$93:$L$93-Yields!$C$67:$L$67<>0),Matrix!$F$37:$O$37))*-1,"NA") -> NA | C39: =IF((SUMPRODUCT(Yields!$C$93:$L$93,Matrix!$F$37:$O$37)-SUMPRODUCT(Matrix!$F$37:$O$37,Yields!$C$67:$L$67))/IF(SUM(SUMPRODUCT(Yields!$C$93:$L$93,Matrix!$F$37:$O$37)-SUMPRODUCT(Matrix!$F$37:$O$37,Yields!$C$67:$L$67))=0,1,SUMPRODUCT(--(Yields!$C$93:$L$93-Yields!$C$67:$L$67<>0),Matrix!$F$37:$O$37))<0,IF(SUM(SUMPRODUCT(Yields!$C$93:$L$93,Matrix!$F$37:$O$37)-SUMPRODUCT(Matrix!$F$37:$O$37,Yields!$C$67:$L$67))=0,1,SUMPRODUCT(--(Yields!$C$93:$L$93-Yields!$C$67:$L$67<>0),Matrix!$F$37:$O$37)),"NA") -> NA | D39: =IFERROR(B39*C39,"NA") -> NA | F39: =IF((SUMPRODUCT(Yields!$C$93:$L$93,Matrix!$F$37:$O$37)-SUMPRODUCT(Matrix!$F$37:$O$37,Yields!$C$67:$L$67))/IF(SUM(Yields!$C$116:$L$116)=0,1,SUMIF(Yields!$C$116:$L$116,"<>0",Matrix!$F$37:$O$37))>0,Lists!D55,"NA") -> NA | G39: =IF((SUMPRODUCT(Yields!$C$93:$L$93,Matrix!$F$37:$O$37)-SUMPRODUCT(Matrix!$F$37:$O$37,Yields!$C$67:$L$67))/IF(SUM(SUMPRODUCT(Yields!$C$93:$L$93,Matrix!$F$37:$O$37)-SUMPRODUCT(Matrix!$F$37:$O$37,Yields!$C$67:$L$67))=0,1,SUMPRODUCT(--(Yields!$C$93:$L$93-Yields!$C$67:$L$67<>0),Matrix!$F$37:$O$37))>0,(SUMPRODUCT(Yields!$C$93:$L$93,Matrix!$F$37:$O$37)-SUMPRODUCT(Matrix!$F$37:$O$37,Yields!$C$67:$L$67))/IF(SUM(SUMPRODUCT(Yields!$C$93:$L$93,Matrix!$F$37:$O$37)-SUMPRODUCT(Matrix!$F$37:$O$37,Yields!$C$67:$L$67))=0,1,SUMPRODUCT(--(Yields!$C$93:$L$93-Yields!$C$67:$L$67<>0),Matrix!$F$37:$O$37)),"NA") -> NA | H39: =IF((SUMPRODUCT(Yields!$C$93:$L$93,Matrix!$F$37:$O$37)-SUMPRODUCT(Matrix!$F$37:$O$37,Yields!$C$67:$L$67))/IF(SUM(SUMPRODUCT(Yields!$C$93:$L$93,Matrix!$F$37:$O$37)-SUMPRODUCT(Matrix!$F$37:$O$37,Yields!$C$67:$L$67))=0,1,SUMPRODUCT(--(Yields!$C$93:$L$93-Yields!$C$67:$L$67<>0),Matrix!$F$37:$O$37))>0,IF(SUM(SUMPRODUCT(Yields!$C$93:$L$93,Matrix!$F$37:$O$37)-SUMPRODUCT(Matrix!$F$37:$O$37,Yields!$C$67:$L$67))=0,1,SUMPRODUCT(--(Yields!$C$93:$L$93-Yields!$C$67:$L$67<>0),Matrix!$F$37:$O$37)),"NA") -> NA | I39: NA
A40: =IF('Other Costs & Benefits'!C63<>0,'Other Costs & Benefits'!B63,"NA") -> NA | B40: =IF('Other Costs & Benefits'!C63<0,'Other Costs & Benefits'!C63*-1,IF('Other Costs & Benefits'!C63>0,'Other Costs & Benefits'!C63,"NA")) -> NA | C40: =IF('Other Costs & Benefits'!C63<>0,'Other Costs & Benefits'!D63,"NA") -> NA | D40: =IFERROR(B40*C40,"NA") -> NA | F40: =IF('Other Costs & Benefits'!C70<>0,'Other Costs & Benefits'!B70,"NA") -> NA | G40: =IF('Other Costs & Benefits'!C70<0,'Other Costs & Benefits'!C70*-1,IF('Other Costs & Benefits'!C70>0,'Other Costs & Benefits'!C70,"NA")) -> NA | H40: =IF('Other Costs & Benefits'!C70<>0,'Other Costs & Benefits'!D70,"NA") -> NA | I40: NA
A41: =IF('Other Costs & Benefits'!C64<>0,'Other Costs & Benefits'!B64,"NA") -> NA | B41: =IF('Other Costs & Benefits'!C64<0,'Other Costs & Benefits'!C64*-1,IF('Other Costs & Benefits'!C64>0,'Other Costs & Benefits'!C64,"NA")) -> NA | C41: =IF('Other Costs & Benefits'!C64<>0,'Other Costs & Benefits'!D64,"NA") -> NA | D41: NA | F41: =IF('Other Costs & Benefits'!C71<>0,'Other Costs & Benefits'!B71,"NA") -> NA | G41: =IF('Other Costs & Benefits'!C71<0,'Other Costs & Benefits'!C71*-1,IF('Other Costs & Benefits'!C71>0,'Other Costs & Benefits'!C71,"NA")) -> NA | H41: =IF('Other Costs & Benefits'!C71<>0,'Other Costs & Benefits'!D71,"NA") -> NA | I41: NA
A42: =IF('Other Costs & Benefits'!C65<>0,'Other Costs & Benefits'!B65,"NA") -> NA | B42: =IF('Other Costs & Benefits'!C65<0,'Other Costs & Benefits'!C65*-1,IF('Other Costs & Benefits'!C65>0,'Other Costs & Benefits'!C65,"NA")) -> NA | C42: =IF('Other Costs & Benefits'!C65<>0,'Other Costs & Benefits'!D65,"NA") -> NA | D42: NA | F42: =IF('Other Costs & Benefits'!C72<>0,'Other Costs & Benefits'!B72,"NA") -> NA | G42: =IF('Other Costs & Benefits'!C72<0,'Other Costs & Benefits'!C72*-1,IF('Other Costs & Benefits'!C72>0,'Other Costs & Benefits'!C72,"NA")) -> NA | H42: =IF('Other Costs & Benefits'!C72<>0,'Other Costs & Benefits'!D72,"NA") -> NA | I42: NA
A43: =IF('Other Costs & Benefits'!C66<>0,'Other Costs & Benefits'!B66,"NA") -> NA | B43: =IF('Other Costs & Benefits'!C66<0,'Other Costs & Benefits'!C66*-1,IF('Other Costs & Benefits'!C66>0,'Other Costs & Benefits'!C66,"NA")) -> NA | C43: =IF('Other Costs & Benefits'!C66<>0,'Other Costs & Benefits'!D66,"NA") -> NA | D43: NA | F43: =IF('Other Costs & Benefits'!C73<>0,'Other Costs & Benefits'!B73,"NA") -> NA | G43: =IF('Other Costs & Benefits'!C73<0,'Other Costs & Benefits'!C73*-1,IF('Other Costs & Benefits'!C73>0,'Other Costs & Benefits'!C73,"NA")) -> NA | H43: =IF('Other Costs & Benefits'!C73<>0,'Other Costs & Benefits'!D73,"NA") -> NA | I43: NA
A44: =IF('Other Costs & Benefits'!$C$31<0,Lists!C60,"NA") -> NA | B44: =IF('Other Costs & Benefits'!$C$31<0,'Other Costs & Benefits'!$C$31*-1,"NA") -> NA | C44: =IF('Other Costs & Benefits'!$C$31<0,'Other Costs & Benefits'!$C$32,"NA") -> NA | D44: =IFERROR(B44*C44,"NA") -> NA
A45: Total Decreased Cost | D45: =SUM(D27:D44) -> 0 | F45: Total Increased Cost | I45: =SUM(I27:I44) -> 0
A47: Annual Total Increased Net Income | D47: =IFERROR(D45+D24,0) -> 0 | F47: Annual Total Decreased Net Income | I47: =IFERROR(I45+I24,0) -> 0
A48: Total Acres in this Study Area | D48: ='Study Area Overview'!D71 -> 0 | F48: Total Acres in this Study Area | I48: ='Study Area Overview'!D71 -> 0
A49: Annual Per Acre Increased Net Income | D49: =IFERROR(ROUND(D47/D48,0),0) -> 0 | F49: Annual Per Acre Decreased Net Income | I49: =IFERROR(ROUND(I47/I48,0),0) -> 0
A51: Annual Change in Total Net Income | E51: = | F51: =IFERROR(D47-I47,0) -> 0
A52: Annual Change in Per Acre Net Income | E52: = | F52: =IFERROR(F51/D48,0) -> 0
A53: Return on Investment | E53: = | F53: =IFERROR(F51/I47,0) -> 0
A54: Footnotes: | J54: Notes to authors about editing footnotes:
A55: This table represents estimated average costs and benefits attributed to adopting [list SH practices] over the entire study area (### acres), where [list crops] are grown, as reported by the farmer. | J55: Update with featured grower's information.
A57: All values are in 2023 dollars.
A58: Prices are stated as per acre values for items that vary by area. Prices such as learning costs, which don't vary by area, are only given as total costs. | J58: If applicable
A59: Machinery costs include the cost of equipment, custom hire, labor, depreciation, interest, insurance, housing, repairs, and fuel (Univ. of IL at Urbana-Champaign, Sept. 2023, Farm Business Management Machinery Cost Estimates: Field Operations & Forage Operations; Iowa State University, Nov. 2023, Ag Decision Maker: Iowa Farm Custom Rate Survey). | J59: List only the sources used in the analysis and modify as needed (sometimes need to shorten further due to word count limitation); should match references provided in the 'ReadMe' or 'Machinery Costs' tabs.
A62: Prices used (5-yr rolling averages): Barley: $6.56/bu, Canola: $13.32/bu, Corn Grain: $5.65/bu, Corn Silage: $53.25/ton, Ensilage: $68.42/ton, Flaxseed: $16.92/bu, Forage: $171.06/ton, Grain Sorghum: $5.69/bu, Hay alfalfa: $237.97/ton, Hay all other: $171.06, Millet: $8.85/bu, Mustard: $20.24/bu, Oats: $4.08/bu, Rapeseed: $11.74/bu, Rye: $7.23/bu, Safflower: $11.42/bu, Soybeans: $13.26/bu, Sugarbeets: $59.62/ton, Sunflower: $8.17/bu, Triticale: $4.20/ton, Winter Wheat: $7.06/bu, & Spring Wheat: $7.62/bu (USDA NASS, 2022-2024, Crop Values Summary, 2019-2023 averages); Nitrogen: $0.63/lb, Phosphate: $0.61/lb, Potash: $0.54/lb (Iowa State University Extension and Outreach. (2020-2024). Ag Decision Maker: Estimated Costs of Crop Production in Iowa (File A1-20). Retrieved on February 6, 2024); 2023 hourly labor rate: $29.23/hr (U.S. Bureau of Labor Statistics, 2023, Occupational Employment & Wage Statistics, First-Line Supervisors of Farming). | J62: Only include applicable crop price if there was a change in yield. Only include applicable fertilizer prices if there was a change in fertilizer use.
A68: Value of decreased erosion ($2.07/ton) is based on estimated N & P content of the soil (2.32 lbs N/ton, 1 lb P/ton) and fertilizer prices (USDA NRCS, May 2010, Benefit-Cost Analysis for the EQIP) and [insert farmer name] estimate of reduced mechanical erosion repair costs. | J68: Only include if there was a change in erosion rate, then edit appropriately depending on if grower provided an annual savings in mechanical erosion repair cost.
A70: Return on Investment is the ratio of Annual Total Change in Net Income to Annual Total Decreased Net Income, as a percent.
A71: This material is based on work by American Farmland Trust supported by USDA NRCS CIG grant NR183A750008G008 [and insert any other associated grants funding this case study]. | J71: Option to add applicable funding information.
A72: For information about study methodology, see farmland.org/soilhealthcasestudies.
A73: [insert grower's first name] received [insert amount, e.g., $/ac/yr or $/yr] through the [insert name of program (years active)]. This is not included in the analysis because cost-share is temporary and not received by all. | J73: Only include if grower received financial assistance. Complete missing information based on grower's unique circumstances.
A77: Impact of Financial Assistance Payments
A78: Increase in Income
A79: Soil Health Practice | B79: Per Acre | C79: Acres | D79: Total
A80: =IF('Other Costs & Benefits'!B83="","",'Other Costs & Benefits'!B83) ->  | B80: =IFERROR('Other Costs & Benefits'!C83,0) -> 0 | C80: =IFERROR('Other Costs & Benefits'!D83,0) -> 0 | D80: =IFERROR(C80*B80,0) -> 0
A81: =IF('Other Costs & Benefits'!B84="","",'Other Costs & Benefits'!B84) ->  | B81: =IFERROR('Other Costs & Benefits'!C84,0) -> 0 | C81: =IFERROR('Other Costs & Benefits'!D84,0) -> 0 | D81: =IFERROR(C81*B81,0) -> 0
A82: =IF('Other Costs & Benefits'!B85="","",'Other Costs & Benefits'!B85) ->  | B82: =IFERROR('Other Costs & Benefits'!C85,0) -> 0 | C82: =IFERROR('Other Costs & Benefits'!D85,0) -> 0 | D82: =IFERROR(C82*B82,0) -> 0
A83: =IF('Other Costs & Benefits'!B86="","",'Other Costs & Benefits'!B86) ->  | B83: =IFERROR('Other Costs & Benefits'!C86,0) -> 0 | C83: =IFERROR('Other Costs & Benefits'!D86,0) -> 0 | D83: =IFERROR(C83*B83,0) -> 0
A84: Total Increase due to Financial Assistance | D84: =SUM(D80:D83) -> 0
A85: Annual Change in Total Net Income = | D85: =IFERROR(F51+D84,0) -> 0
A86: Annual Change in Per Acre Net Income = | D86: =IFERROR(D85/'Study Area Overview'!$D$71,0) -> 0

Sheet Study Area Overview
A1: Study Area Overview
A2: ABOUT THIS TAB:
A3: The Study Area Overview tab records the farmer name, name of farm (required), location, study area acres (required), organic Y/N (required), benchmark and current crop rotations (required), soil health practices (required), and farmer's nutrient costs, crop prices, & custom-hire costs (optional).
B5: Farmer Name | C5: County | D5: State
B7: Farm
B9: Watershed Name | C9: Study Area Acres (required)
B12: Are the study area crops grown organic? (REQUIRED; select from dropdown)
A17: Soil Health Practices (required)
B18: The table below controls a macro in the R-SHEC Tool that hides sections of the 'Machinery' tab based on if a CCR is being analyzed or not (e.g., harvest machinery is only required if analyzing CCR.) That said, you may experience a slight delay when you select CCR as that initiates the macro.
B20: Tips:
B21: (1) The definition of each soil health practice is found on the ReadMe tab.
B22: (2) Crops under practice is optional as this information is not used substantively in the tool.
B23: (3) Initial year of practice is only used by the 'Yield' tab to guide users on what timeframe to use to compare benchmark and current crop yields.
B24: Soil Health Practice | C24: If analyzing, select "X" from dropdown | D24: Crops under practice (optional) | E24: Initial Year of Practice
B26: No-Till or Reduced Tillage
B27: Nutrient Management
B28: Cover Crops
B29: Conservation Crop Rotation (CCR)
A31: Study Area Crop Rotation (required)
B32: Complete both the Benchmark and Current crop rotation tables, even if the crop rotation did not change. This table controls the majority of the macros in the R-SHEC Tool, matching the number of rows/columns based on the number of crops. That said, you will experience slower processing (the "thinking" circle) as you complete the below table, particularly the acres by crop and when the rotation includes more than three crops.
B35: Tips:
B36: (1) The crop rotation information should reflect the acres where the soil health practices being analyzed were adopted.
B37: (2) If there is no conservation crop rotation being analyzed, enter identical crop rotation information for Benchmark and Current tables.
B38: (3) Double cropping is the establishment and harvest of a second crop the same season that a first crop is harvested. Mark “X” next to the two crops harvested in the same year.
B40: (4) To annualize the crop rotation, user can calculate average annual acres of each crop in the rotation by dividing the total acres in the rotation by the number of years in rotation, then multiply by the number of years that a specific crop is in rotation: e.g., if the Study Area is 400 acres with a 4-year crop rotation (2-corn, 1-wheat, 1-soybeans), then user enters 200 acres for corn [(400/4) * 2], 100 acres in wheat, and 100 acres in soybeans [(400/4)*1].
B43: (5) We provide this calculated acres per year by crop in the Acres Calculators to the right of these tables, for your reference.
B44: (6) Only enter a crop once per rotation, and adjust the number of years and acres appropriately.
B46: Benchmark Rotation-Cash Crop | J46: Benchmark Acres Calculator
B47: Crop (select from dropdown) | C47: # Years in Rotation | D47: Acres Per Year | E47: Planting Date | F47: Harvest Date | G47: Tillage Method (select from dropdown) | H47: If double crop, select "X" from dropdown | J47: Crop | K47: Acres/Year
J48: =IF(B48="","",B48) ->  | K48: =IF(OR($C$10="",C48=""),"",IF(($C$10/$C$58)*C48=0,"",($C$10/$C$58)*C48)) -> 
J49: =IF(B49="","",B49) -> 
B58: Total (Study Area) | C58: =IF(COUNTA(H48:H57)>0,SUM(C48:C57)-(_xlfn.MINIFS(C48:C57,H48:H57,"X")),SUM(C48:C57)) -> 0 | D58: =IF(COUNTA(H48:H57)>0,SUM(D48:D57)-(_xlfn.MINIFS(D48:D57,H48:H57,"X")),SUM(D48:D57)) -> 0
B59: Current Rotation-Cash Crop | J59: Current Acres Calculator
B60: Crop (select from dropdown) | C60: # Years in Rotation | D60: Acres Per Year | E60: Planting Date | F60: Harvest Date | G60: Tillage Method (select from dropdown) | H60: If double crop, select "X" from dropdown | J60: Crop | K60: Acres/Year
J61: =IF(B61="","",B61) ->  | K61: =IF(OR($C$10="",C61=""),"",IF(($C$10/$C$71)*C61=0,"",($C$10/$C$71)*C61)) -> 
J62: =IF(B62="","",B62) -> 
B71: Total (Study Area) | C71: =IF(COUNTA(H61:H70)>0,SUM(C61:C70)-(_xlfn.MINIFS(C61:C70,H61:H70,"X")),SUM(C61:C70)) -> 0 | D71: =IF(IF(COUNTA(H61:H70)>0,SUM(D61:D70)-(_xlfn.MINIFS(D61:D70,H61:H70,"X")),SUM(D61:D70))<>D58,"Total Acres must be the same as Benchmark Rotation",IF(COUNTA(H61:H70)>0,SUM(D61:D70)-(_xlfn.MINIFS(D61:D70,H61:H70,"X")),SUM(D61:D70))) -> 0
A73: Study Area Cover Crop Information (required for cover crop analysis)
B74: If analyzing the adoption of cover crops, the user MUST complete the table below as this information is used on the 'Cover Crops' tab. Note, you may experience slower processing as you complete this table as a macro is activated to adjust the number of cover crop tables on the 'Cover Crops' tab.
B76: Tips:
B77: (1) The user may enter the same cover crop twice if it is used before/after different crops in the crop rotation. Review the 'Cover Crops' tab to understand what data is required by cover crop species.
B79: (2) Enter the average acreage planted by cover crop species (e.g., if farmer only plants every other row in certain cover crop, enter half the cash crop acreage).
B80: Cover Crop Information | I80: *Would users want to see a Years in Rotation column for cover crops as we do for cash crops?
B81: Cash Crop Before (select from dropdown) | C81: Cover crop species | D81: Cash Crop After (select from dropdown) | E81: Cover Crop Planting Date | F81: Cover Crop Termination Method (select from dropdown) | G81: Acres Planted | H81: Notes (optional)
A93: Farmer-Provided Prices and Costs
B94: If the farmer prefers to use their own values, enter them here and they will be used throughout the workbook. If no values entered, national average prices will be used throughout the workbook (see 'Prices' tab).
B96: Farmer-provided Prices | F96: Farmer-provided Custom-hire Costs (optional)
B97: Fertilizer (N, P, K optional) | C97: Unit | D97: $/Unit | F97: Practice | H97: $/Acre
B98: Nitrogen | C98: Lb | F98: Cash Crop Planting
B99: Phosphorus | C99: Lb | F99: Cash Crop Fertilizer Application
B100: Potassium | C100: Lb | F100: Cash Crop Manure Application
B101: Manure (required) | C101: Ton | F101: Cash Crop Compost Application
B102: Compost (required) | C102: Ton | F102: Cash Crop Chemical Application
B103: Cash Crop Prices (optional) | C103: Unit | D103: $/Unit | F103: Cash Crop Harvest
B104: Barley | C104: Bushels | F104: Cover Crop Planting
B105: Canola | C105: Bushels | F105: Cover Crop Termination
B106: Corn Grain | C106: Bushels
B107: Corn Silage | C107: Tons
B108: Ensilage (green chop) | C108: Tons
B109: Flaxseed | C109: Bushels
B110: Forage (haylage) | C110: Tons
B111: Grain Sorghum (milo) | C111: Bushels
B112: Hay, alfalfa | C112: Tons
B113: Hay, all other | C113: Tons
B114: Millet (proso) | C114: Bushels
B115: Mustard seed | C115: Bushels
B116: Oats | C116: Bushels
B117: Rapeseed | C117: Bushels
B118: Rye | C118: Bushels
B119: Safflower | C119: Bushels
B120: Soybeans | C120: Bushels
B121: Sugarbeets | C121: Tons
B122: Sunflower seeds | C122: Bushels
B123: Triticale (grain) | C123: Bushels
B124: Winter wheat | C124: Bushels
B125: Wheat, other spring | C125: Bushels
B126: Cover Crop Value (optional) | C126: Unit | D126: $/Unit
B127: Forage value | C127: Ton

Sheet Machinery
A1: Machinery Changes due to Soil Health Practices
A3: ABOUT THIS TAB:
A4: The Machinery tab calculates the increases and decreases in tillage, planting, chemical, nutrient, &/or harvest machinery costs. Users select from a dropdown list of machinery and enter the number of passes per year. The number of tables shown will correspond to the number of crops in the crop rotation provided in the 'Study Area Overview' tab. Presented in the 'Summary of Changes in Machinery Costs" table at the end of this tab is the calculated changes in machinery cost on an annual per acre basis and for the entire Study Area, by crop and as a weighted average for the Study Area. If analyzing a conservation crop rotation (CCR), you must provide all benchmark and current machinery - even if there is no difference - because when acreage shifts from one crop to another crop, we need to estimate a per acre net income for each crop impacted. This allows the RSHEC to quantify the change in Study Area net income due to a CCR. However, if a new crop is being introduced as part of a CCR, then just list the “current” machinery as there is no benchmark. If NOT analyzing a CCR, the harvest machinery rows are hidden and you only need to provide benchmark and current machinery operations that changed due to the adoption of the other soil health practices. Note: This tab can be used on its own to analyze changes in machinery operations generally (with or without the adoption of soil health practices.)
B13: TIPS:
B14: (1) Benchmark refers to the period before soil health practices were adopted.
B15: (2) Current refers to the period after soil health practices were adopted.
B16: (3) If growing hay in rotation, the tillage and planting machinery sums of "Total Cost/Ac" are automatically adjusted to account for the fact that hay production involves only one year of machinery costs to establish as a perennial crop based on the number of years in rotation entered for hay in the 'Study Area Overview' crop rotation table. The machinery costs associated with hay establishment is prorated by the number of years of hay in the rotation.
B18: (4) If analyzing the adoption of a cover crop, do not include new machinery used to establish, manage, &/or terminate cover crops. That information is entered on the 'Cover Crops' tab. Be careful not to double-count.
B19: (5) Review the list of machinery and associated costs on the "Machinery Costs" tab to determine the machinery that most closely matches your equipment and costs. The information in the 'Machinery Costs' tab is captured in the corresponding dropdown lists on this tab.
B21: (6) Alternatively, follow directions on the "Machinery Costs" tab to add machinery costs to the list as identified by the yellow-shaded cells; OR add farmer-provided custom-hire operations costs to the 'Study Area Overview' tab. These additions will then be made available to select from in the dropdown list.
B23: (7) "# Passes/Yr" refers to the number of passes the equipment takes over that crop in a growing season. Partial passes may be entered if that piece of equipment does not pass over every acre of that crop.
B24: Benchmark Cash Crop 1: | C24: =IF('Study Area Overview'!$B$48="","",'Study Area Overview'!$B$48) ->  | G24: Current Cash Crop 1: | H24: =IF('Study Area Overview'!$B$61="","",'Study Area Overview'!$B$61) -> 
B25: Benchmark Tillage: | C25: =IF('Study Area Overview'!$G$48="","",'Study Area Overview'!$G$48) ->  | G25: Current Tillage: | H25: =IF('Study Area Overview'!$G$61="","",'Study Area Overview'!$G$61) -> 
B26: Benchmark Years in Rotation: | C26: =IF('Study Area Overview'!$C$48="","",'Study Area Overview'!$C$48) ->  | G26: Current Years in Rotation: | H26: =IF('Study Area Overview'!$C$61="","",'Study Area Overview'!$C$61) -> 
B27: Benchmark Acres: | C27: =IF('Study Area Overview'!$D$48="","",'Study Area Overview'!$D$48) ->  | G27: Current Acres: | H27: =IF('Study Area Overview'!$D$61="","",'Study Area Overview'!$D$61) -> 
B28: Cash Crop 1 Benchmark Tillage Machinery (select from dropdown) | C28: Cost/Ac | D28: # Passes/Yr | E28: Total Cost/Ac | G28: Cash Crop 1 Current Tillage Machinery (select from dropdown) | H28: Cost/Ac | I28: # Passes/Yr | J28: Total Cost/Ac
C30: =IFERROR(VLOOKUP(B30,'Machinery Costs'!$B$19:$G$115,4,FALSE),0) -> 0 | E30: =IFERROR(D30*C30, "See 'Machinery Costs' tab") -> 0 | H30: =IFERROR(VLOOKUP(G30,'Machinery Costs'!$B$19:$G$115,4,FALSE),0) -> 0 | J30: =IFERROR(I30*H30, "See 'Machinery Costs' tab") -> 0
C31: =IFERROR(VLOOKUP(B31,'Machinery Costs'!$B$19:$G$115,4,FALSE),0) -> 0 | E31: =IFERROR(D31*C31, "See 'Machinery Costs' tab") -> 0 | H31: =IFERROR(VLOOKUP(G31,'Machinery Costs'!$B$19:$G$115,4,FALSE),0) -> 0 | J31: =IFERROR(I31*H31, "See 'Machinery Costs' tab") -> 0
C32: =IFERROR(VLOOKUP(B32,'Machinery Costs'!$B$19:$G$115,4,FALSE),0) -> 0 | E32: =IFERROR(D32*C32, "See 'Machinery Costs' tab") -> 0 | H32: =IFERROR(VLOOKUP(G32,'Machinery Costs'!$B$19:$G$115,4,FALSE),0) -> 0 | J32: =IFERROR(I32*H32, "See 'Machinery Costs' tab") -> 0
C33: =IFERROR(VLOOKUP(B33,'Machinery Costs'!$B$19:$G$115,4,FALSE),0) -> 0 | E33: =IFERROR(D33*C33, "See 'Machinery Costs' tab") -> 0 | H33: =IFERROR(VLOOKUP(G33,'Machinery Costs'!$B$19:$G$115,4,FALSE),0) -> 0 | J33: =IFERROR(I33*H33, "See 'Machinery Costs' tab") -> 0
E34: =IFERROR(IF(OR(C24="Hay, alfalfa",C24="Hay, all Other"),(SUM(E30:E33))/C26,SUM(E30:E33)),0) -> 0 | J34: =IFERROR(IF(OR(H24="Hay, alfalfa",H24="Hay, all Other"),(SUM(J30:J33))/H26,SUM(J30:J33)),0) -> 0
B35: Cash Crop 1 Benchmark Planting Machinery | C35: Cost/Ac | D35: # Passes/Yr | E35: Total Cost/Ac | G35: Cash Crop 1 Current Planting Machinery | H35: Cost/Ac | I35: # Passes/Yr | J35: Total Cost/Ac
C37: =IFERROR(VLOOKUP(B37,'Machinery Costs'!$B$19:$G$115,4,FALSE),0) -> 0 | E37: =IFERROR(D37*C37, "See 'Machinery Costs' tab") -> 0 | H37: =IFERROR(VLOOKUP(G37,'Machinery Costs'!$B$19:$G$115,4,FALSE),0) -> 0 | J37: =IFERROR(I37*H37, "See 'Machinery Costs' tab") -> 0
C38: =IFERROR(VLOOKUP(B38,'Machinery Costs'!$B$19:$G$115,4,FALSE),0) -> 0 | E38: =IFERROR(D38*C38, "See 'Machinery Costs' tab") -> 0 | H38: =IFERROR(VLOOKUP(G38,'Machinery Costs'!$B$19:$G$115,4,FALSE),0) -> 0 | J38: =IFERROR(I38*H38, "See 'Machinery Costs' tab") -> 0
C39: =IFERROR(VLOOKUP(B39,'Machinery Costs'!$B$19:$G$115,4,FALSE),0) -> 0 | E39: =IFERROR(D39*C39, "See 'Machinery Costs' tab") -> 0 | H39: =IFERROR(VLOOKUP(G39,'Machinery Costs'!$B$19:$G$115,4,FALSE),0) -> 0 | J39: =IFERROR(I39*H39, "See 'Machinery Costs' tab") -> 0
C40: =IFERROR(VLOOKUP(B40,'Machinery Costs'!$B$19:$G$115,4,FALSE),0) -> 0 | E40: =IFERROR(D40*C40, "See 'Machinery Costs' tab") -> 0 | H40: =IFERROR(VLOOKUP(G40,'Machinery Costs'!$B$19:$G$115,4,FALSE),0) -> 0 | J40: =IFERROR(I40*H40, "See 'Machinery Costs' tab") -> 0
E41: =IFERROR(IF(OR(C24="Hay, alfalfa",C24="Hay, all Other"),(SUM(E37:E40))/C26,SUM(E37:E40)),0) -> 0 | J41: =IFERROR(IF(OR(H24="Hay, alfalfa",H24="Hay, all Other"),(SUM(J37:J40))/H26,SUM(J37:J40)),0) -> 0
B42: Cash Crop 1 Benchmark Chemical & Nutrient Machinery | C42: Cost/Ac | D42: # Passes/Yr | E42: Total Cost/Ac | G42: Cash Crop 1 Current Chemical & Nutrient Machinery | H42: Cost/Ac | I42: # Passes/Yr | J42: Total Cost/Ac
C44: =IFERROR(VLOOKUP(B44,'Machinery Costs'!$B$125:$E$149,4,FALSE),0) -> 0 | E44: =IFERROR(D44*C44, "See 'Machinery Costs' tab") -> 0 | H44: =IFERROR(VLOOKUP(G44,'Machinery Costs'!$B$125:$E$149,4,FALSE),0) -> 0 | J44: =IFERROR(I44*H44, "See 'Machinery Costs' tab") -> 0
C45: =IFERROR(VLOOKUP(B45,'Machinery Costs'!$B$125:$E$149,4,FALSE),0) -> 0 | E45: =IFERROR(D45*C45, "See 'Machinery Costs' tab") -> 0 | H45: =IFERROR(VLOOKUP(G45,'Machinery Costs'!$B$125:$E$149,4,FALSE),0) -> 0 | J45: =IFERROR(I45*H45, "See 'Machinery Costs' tab") -> 0
C46: =IFERROR(VLOOKUP(B46,'Machinery Costs'!$B$125:$E$149,4,FALSE),0) -> 0 | E46: =IFERROR(D46*C46, "See 'Machinery Costs' tab") -> 0 | H46: =IFERROR(VLOOKUP(G46,'Machinery Costs'!$B$125:$E$149,4,FALSE),0) -> 0 | J46: =IFERROR(I46*H46, "See 'Machinery Costs' tab") -> 0
C47: =IFERROR(VLOOKUP(B47,'Machinery Costs'!$B$125:$E$149,4,FALSE),0) -> 0 | E47: =IFERROR(D47*C47, "See 'Machinery Costs' tab") -> 0 | H47: =IFERROR(VLOOKUP(G47,'Machinery Costs'!$B$125:$E$149,4,FALSE),0) -> 0 | J47: =IFERROR(I47*H47, "See 'Machinery Costs' tab") -> 0
E48: =SUM(E44:E47) -> 0 | J48: =SUM(J44:J47) -> 0
B49: Cash Crop 1 Benchmark Harvest Machinery | C49: Cost/Ac | D49: # Passes/Yr | E49: Total Cost/Ac | G49: Cash Crop 1 Current Harvest Machinery | H49: Cost/Ac | I49: # Passes/Yr | J49: Total Cost/Ac
C51: =IFERROR(VLOOKUP(B51,'Machinery Costs'!$B$162:$E$187,4,FALSE),0) -> 0 | E51: =IFERROR(D51*C51, "See 'Machinery Costs' tab") -> 0 | H51: =IFERROR(VLOOKUP(G51,'Machinery Costs'!$B$162:$E$187,4,FALSE),0) -> 0 | J51: =IFERROR(I51*H51, "See 'Machinery Costs' tab") -> 0
C52: =IFERROR(VLOOKUP(B52,'Machinery Costs'!$B$165:$E$186,4,FALSE),0) -> 0 | E52: =IFERROR(D52*C52, "See 'Machinery Costs' tab") -> 0 | H52: =IFERROR(VLOOKUP(G52,'Machinery Costs'!$B$165:$E$186,4,FALSE),0) -> 0 | J52: =IFERROR(I52*H52, "See 'Machinery Costs' tab") -> 0
C53: =IFERROR(VLOOKUP(B53,'Machinery Costs'!$B$165:$E$186,4,FALSE),0) -> 0 | E53: =IFERROR(D53*C53, "See 'Machinery Costs' tab") -> 0 | H53: =IFERROR(VLOOKUP(G53,'Machinery Costs'!$B$165:$E$186,4,FALSE),0) -> 0 | J53: =IFERROR(I53*H53, "See 'Machinery Costs' tab") -> 0
C54: =IFERROR(VLOOKUP(B54,'Machinery Costs'!$B$165:$E$186,4,FALSE),0) -> 0 | E54: =IFERROR(D54*C54, "See 'Machinery Costs' tab") -> 0 | H54: =IFERROR(VLOOKUP(G54,'Machinery Costs'!$B$165:$E$186,4,FALSE),0) -> 0 | J54: =IFERROR(I54*H54, "See 'Machinery Costs' tab") -> 0
E55: =SUM(E51:E54) -> 0 | J55: =SUM(J51:J54) -> 0
D56: Total $/Ac | E56: =SUM(E34,E41,E48,E55) -> 0 | I56: Total $/Ac | J56: =SUM(J34,J41,J48,J55) -> 0
B58: Benchmark Cash Crop 2: | C58: ='Study Area Overview'!$B$49 -> 0 | G58: Current Cash Crop 2: | H58: =IF('Study Area Overview'!$B$62="","",'Study Area Overview'!$B$62) -> 
B59: Benchmark Tillage: | C59: =IF('Study Area Overview'!$G$49="","",'Study Area Overview'!$G$49) ->  | G59: Current Tillage: | H59: =IF('Study Area Overview'!$G$62="","",'Study Area Overview'!$G$62) -> 
B60: Benchmark Years in Rotation: | C60: =IF('Study Area Overview'!$C$49="","",'Study Area Overview'!$C$49) ->  | G60: Current Years in Rotation: | H60: =IF('Study Area Overview'!$C$62="","",'Study Area Overview'!$C$62) -> 
B61: Benchmark Acres: | C61: =IF('Study Area Overview'!$D$49="","",'Study Area Overview'!$D$49) ->  | G61: Current Acres: | H61: =IF('Study Area Overview'!$D$62="","",'Study Area Overview'!$D$62) -> 
B62: Cash Crop 2 Benchmark Tillage Machinery (select from dropdown) | C62: Cost/Ac | D62: # Passes/Yr | E62: Total Cost/Ac | G62: Cash Crop 2 Current Tillage Machinery (select from dropdown) | H62: Cost/Ac | I62: # Passes/Yr | J62: Total Cost/Ac
C64: =IFERROR(VLOOKUP(B64,'Machinery Costs'!$B$19:$G$115,4,FALSE),0) -> 0 | E64: =IFERROR(D64*C64, "See 'Machinery Costs' tab") -> 0 | H64: =IFERROR(VLOOKUP(G64,'Machinery Costs'!$B$19:$G$115,4,FALSE),0) -> 0 | J64: =IFERROR(I64*H64, "See 'Machinery Costs' tab") -> 0
C65: =IFERROR(VLOOKUP(B65,'Machinery Costs'!$B$19:$G$115,4,FALSE),0) -> 0 | E65: =IFERROR(D65*C65, "See 'Machinery Costs' tab") -> 0 | H65: =IFERROR(VLOOKUP(G65,'Machinery Costs'!$B$19:$G$115,4,FALSE),0) -> 0 | J65: =IFERROR(I65*H65, "See 'Machinery Costs' tab") -> 0
C66: =IFERROR(VLOOKUP(B66,'Machinery Costs'!$B$19:$G$115,4,FALSE),0) -> 0 | E66: =IFERROR(D66*C66, "See 'Machinery Costs' tab") -> 0 | H66: =IFERROR(VLOOKUP(G66,'Machinery Costs'!$B$19:$G$115,4,FALSE),0) -> 0 | J66: =IFERROR(I66*H66, "See 'Machinery Costs' tab") -> 0
C67: =IFERROR(VLOOKUP(B67,'Machinery Costs'!$B$19:$G$115,4,FALSE),0) -> 0 | E67: =IFERROR(D67*C67, "See 'Machinery Costs' tab") -> 0 | H67: =IFERROR(VLOOKUP(G67,'Machinery Costs'!$B$19:$G$115,4,FALSE),0) -> 0 | J67: =IFERROR(I67*H67, "See 'Machinery Costs' tab") -> 0
E68: =IFERROR(IF(OR(C58="Hay, alfalfa",C58="Hay, all Other"),(SUM(E64:E67))/C60,SUM(E64:E67)),0) -> 0 | J68: =IFERROR(IF(OR(H58="Hay, alfalfa",H58="Hay, all Other"),(SUM(J64:J67))/H60,SUM(J64:J67)),0) -> 0
B69: Cash Crop 2 Benchmark Planting Machinery | C69: Cost/Ac | D69: # Passes/Yr | E69: Total Cost/Ac | G69: Cash Crop 2 Current Planting Machinery | H69: Cost/Ac | I69: # Passes/Yr | J69: Total Cost/Ac
C71: =IFERROR(VLOOKUP(B71,'Machinery Costs'!$B$19:$G$115,4,FALSE),0) -> 0 | E71: =IFERROR(D71*C71, "See 'Machinery Costs' tab") -> 0 | H71: =IFERROR(VLOOKUP(G71,'Machinery Costs'!$B$19:$G$115,4,FALSE),0) -> 0 | J71: =IFERROR(I71*H71, "See 'Machinery Costs' tab") -> 0
C72: =IFERROR(VLOOKUP(B72,'Machinery Costs'!$B$19:$G$115,4,FALSE),0) -> 0 | E72: =IFERROR(D72*C72, "See 'Machinery Costs' tab") -> 0 | H72: =IFERROR(VLOOKUP(G72,'Machinery Costs'!$B$19:$G$115,4,FALSE),0) -> 0 | J72: =IFERROR(I72*H72, "See 'Machinery Costs' tab") -> 0
C73: =IFERROR(VLOOKUP(B73,'Machinery Costs'!$B$19:$G$115,4,FALSE),0) -> 0 | E73: =IFERROR(D73*C73, "See 'Machinery Costs' tab") -> 0 | H73: =IFERROR(VLOOKUP(G73,'Machinery Costs'!$B$19:$G$115,4,FALSE),0) -> 0 | J73: =IFERROR(I73*H73, "See 'Machinery Costs' tab") -> 0
C74: =IFERROR(VLOOKUP(B74,'Machinery Costs'!$B$19:$G$115,4,FALSE),0) -> 0 | E74: =IFERROR(D74*C74, "See 'Machinery Costs' tab") -> 0 | H74: =IFERROR(VLOOKUP(G74,'Machinery Costs'!$B$19:$G$115,4,FALSE),0) -> 0 | J74: =IFERROR(I74*H74, "See 'Machinery Costs' tab") -> 0
E75: =IFERROR(IF(OR(C58="Hay, alfalfa",C58="Hay, all Other"),(SUM(E71:E74))/C60,SUM(E71:E74)),0) -> 0 | J75: =IFERROR(IF(OR(H58="Hay, alfalfa",H58="Hay, all Other"),(SUM(J71:J74))/H60,SUM(J71:J74)),0) -> 0
B76: Cash Crop 2 Benchmark Chemical & Nutrient Machinery | C76: Cost/Ac | D76: # Passes/Yr | E76: Total Cost/Ac | G76: Cash Crop 2 Current Chemical & Nutrient Machinery | H76: Cost/Ac | I76: # Passes/Yr | J76: Total Cost/Ac
C78: =IFERROR(VLOOKUP(B78,'Machinery Costs'!$B$125:$E$149,4,FALSE),0) -> 0 | E78: =IFERROR(D78*C78, "See 'Machinery Costs' tab") -> 0 | H78: =IFERROR(VLOOKUP(G78,'Machinery Costs'!$B$125:$E$149,4,FALSE),0) -> 0 | J78: =IFERROR(I78*H78, "See 'Machinery Costs' tab") -> 0
C79: =IFERROR(VLOOKUP(B79,'Machinery Costs'!$B$125:$E$149,4,FALSE),0) -> 0 | E79: =IFERROR(D79*C79, "See 'Machinery Costs' tab") -> 0 | H79: =IFERROR(VLOOKUP(G79,'Machinery Costs'!$B$125:$E$149,4,FALSE),0) -> 0 | J79: =IFERROR(I79*H79, "See 'Machinery Costs' tab") -> 0
C80: =IFERROR(VLOOKUP(B80,'Machinery Costs'!$B$125:$E$149,4,FALSE),0) -> 0 | E80: =IFERROR(D80*C80, "See 'Machinery Costs' tab") -> 0 | H80: =IFERROR(VLOOKUP(G80,'Machinery Costs'!$B$125:$E$149,4,FALSE),0) -> 0 | J80: =IFERROR(I80*H80, "See 'Machinery Costs' tab") -> 0
C81: =IFERROR(VLOOKUP(B81,'Machinery Costs'!$B$125:$E$149,4,FALSE),0) -> 0 | E81: =IFERROR(D81*C81, "See 'Machinery Costs' tab") -> 0 | H81: =IFERROR(VLOOKUP(G81,'Machinery Costs'!$B$125:$E$149,4,FALSE),0) -> 0 | J81: =IFERROR(I81*H81, "See 'Machinery Costs' tab") -> 0
E82: =SUM(E78:E81) -> 0 | J82: =SUM(J78:J81) -> 0
B83: Cash Crop 2 Benchmark Harvest Machinery | C83: Cost/Ac | E83: Total Cost/Ac | G83: Cash Crop 2 Current Harvest Machinery | H83: Cost/Ac | I83: # Passes/Yr | J83: Total Cost/Ac
C85: =IFERROR(VLOOKUP(B85,'Machinery Costs'!$B$162:$E$187,4,FALSE),0) -> 0 | E85: =IFERROR(D85*C85, "See 'Machinery Costs' tab") -> 0 | H85: =IFERROR(VLOOKUP(G85,'Machinery Costs'!$B$162:$E$187,4,FALSE),0) -> 0 | J85: =IFERROR(I85*H85, "See 'Machinery Costs' tab") -> 0
C86: =IFERROR(VLOOKUP(B86,'Machinery Costs'!$B$165:$E$186,4,FALSE),0) -> 0 | E86: =IFERROR(D86*C86, "See 'Machinery Costs' tab") -> 0 | H86: =IFERROR(VLOOKUP(G86,'Machinery Costs'!$B$165:$E$186,4,FALSE),0) -> 0 | J86: =IFERROR(I86*H86, "See 'Machinery Costs' tab") -> 0
C87: =IFERROR(VLOOKUP(B87,'Machinery Costs'!$B$165:$E$186,4,FALSE),0) -> 0 | E87: =IFERROR(D87*C87, "See 'Machinery Costs' tab") -> 0 | H87: =IFERROR(VLOOKUP(G87,'Machinery Costs'!$B$165:$E$186,4,FALSE),0) -> 0 | J87: =IFERROR(I87*H87, "See 'Machinery Costs' tab") -> 0
C88: =IFERROR(VLOOKUP(B88,'Machinery Costs'!$B$165:$E$186,4,FALSE),0) -> 0 | E88: =IFERROR(D88*C88, "See 'Machinery Costs' tab") -> 0 | H88: =IFERROR(VLOOKUP(G88,'Machinery Costs'!$B$165:$E$186,4,FALSE),0) -> 0 | J88: =IFERROR(I88*H88, "See 'Machinery Costs' tab") -> 0
E89: =SUM(E85:E88) -> 0 | J89: =SUM(J85:J88) -> 0
D90: Total $/Ac | E90: =SUM(E68,E75,E82,E89) -> 0 | I90: Total $/Ac | J90: =SUM(J68,J75,J82,J89) -> 0
B92: Benchmark Cash Crop 3: | C92: =IF('Study Area Overview'!$B$50="","",'Study Area Overview'!$B$50) ->  | G92: Current Cash Crop 3: | H92: =IF('Study Area Overview'!$B$63="","",'Study Area Overview'!$B$63) -> 
B93: Benchmark Tillage: | C93: =IF('Study Area Overview'!$G$50="","",'Study Area Overview'!$G$50) ->  | G93: Current Tillage: | H93: =IF('Study Area Overview'!$G$63="","",'Study Area Overview'!$G$63) -> 
B94: Benchmark Years in Rotation: | C94: =IF('Study Area Overview'!$C$50="","",'Study Area Overview'!$C$50) ->  | G94: Current Years in Rotation: | H94: =IF('Study Area Overview'!$C$63="","",'Study Area Overview'!$C$63) -> 
B95: Benchmark Acres: | C95: =IF('Study Area Overview'!$D$50="","",'Study Area Overview'!$D$50) ->  | G95: Current Acres: | H95: =IF('Study Area Overview'!$D$63="","",'Study Area Overview'!$D$63) -> 
B96: Cash Crop 3 Benchmark Tillage Machinery (select from dropdown) | C96: Cost/Ac | D96: # Passes/Yr | E96: Total Cost/Ac | G96: Cash Crop 3 Current Tillage Machinery (select from dropdown) | H96: Cost/Ac | I96: # Passes/Yr | J96: Total Cost/Ac
C98: =IFERROR(VLOOKUP(B98,'Machinery Costs'!$B$19:$G$115,4,FALSE),0) -> 0 | E98: =IFERROR(D98*C98, "See 'Machinery Costs' tab") -> 0 | H98: =IFERROR(VLOOKUP(G98,'Machinery Costs'!$B$19:$G$115,4,FALSE),0) -> 0 | J98: =IFERROR(I98*H98, "See 'Machinery Costs' tab") -> 0
C99: =IFERROR(VLOOKUP(B99,'Machinery Costs'!$B$19:$G$115,4,FALSE),0) -> 0 | E99: =IFERROR(D99*C99, "See 'Machinery Costs' tab") -> 0 | H99: =IFERROR(VLOOKUP(G99,'Machinery Costs'!$B$19:$G$115,4,FALSE),0) -> 0 | J99: =IFERROR(I99*H99, "See 'Machinery Costs' tab") -> 0
C100: =IFERROR(VLOOKUP(B100,'Machinery Costs'!$B$19:$G$115,4,FALSE),0) -> 0 | E100: =IFERROR(D100*C100, "See 'Machinery Costs' tab") -> 0 | H100: =IFERROR(VLOOKUP(G100,'Machinery Costs'!$B$19:$G$115,4,FALSE),0) -> 0 | J100: =IFERROR(I100*H100, "See 'Machinery Costs' tab") -> 0
C101: =IFERROR(VLOOKUP(B101,'Machinery Costs'!$B$19:$G$115,4,FALSE),0) -> 0 | E101: =IFERROR(D101*C101, "See 'Machinery Costs' tab") -> 0 | H101: =IFERROR(VLOOKUP(G101,'Machinery Costs'!$B$19:$G$115,4,FALSE),0) -> 0 | J101: =IFERROR(I101*H101, "See 'Machinery Costs' tab") -> 0
E102: =IFERROR(IF(OR(C92="Hay, alfalfa",C92="Hay, all Other"),(SUM(E98:E101))/C94,SUM(E98:E101)),0) -> 0 | J102: =IFERROR(IF(OR(N98="Hay, alfalfa",N98="Hay, all Other"),(SUM(J98:J101))/N100,SUM(J98:J101)),0) -> 0
B103: Cash Crop 3 Benchmark Planting Machinery | C103: Cost/Ac | D103: # Passes/Yr | E103: Total Cost/Ac | G103: Cash Crop 3 Current Planting Machinery | H103: Cost/Ac | I103: # Passes/Yr | J103: Total Cost/Ac
C105: =IFERROR(VLOOKUP(B105,'Machinery Costs'!$B$19:$G$115,4,FALSE),0) -> 0 | E105: =IFERROR(D105*C105, "See 'Machinery Costs' tab") -> 0 | H105: =IFERROR(VLOOKUP(G105,'Machinery Costs'!$B$19:$G$115,4,FALSE),0) -> 0 | J105: =IFERROR(I105*H105, "See 'Machinery Costs' tab") -> 0
C106: =IFERROR(VLOOKUP(B106,'Machinery Costs'!$B$19:$G$115,4,FALSE),0) -> 0 | E106: =IFERROR(D106*C106, "See 'Machinery Costs' tab") -> 0 | H106: =IFERROR(VLOOKUP(G106,'Machinery Costs'!$B$19:$G$115,4,FALSE),0) -> 0 | J106: =IFERROR(I106*H106, "See 'Machinery Costs' tab") -> 0
C107: =IFERROR(VLOOKUP(B107,'Machinery Costs'!$B$19:$G$115,4,FALSE),0) -> 0 | E107: =IFERROR(D107*C107, "See 'Machinery Costs' tab") -> 0 | H107: =IFERROR(VLOOKUP(G107,'Machinery Costs'!$B$19:$G$115,4,FALSE),0) -> 0 | J107: =IFERROR(I107*H107, "See 'Machinery Costs' tab") -> 0
C108: =IFERROR(VLOOKUP(B108,'Machinery Costs'!$B$19:$G$115,4,FALSE),0) -> 0 | E108: =IFERROR(D108*C108, "See 'Machinery Costs' tab") -> 0 | H108: =IFERROR(VLOOKUP(G108,'Machinery Costs'!$B$19:$G$115,4,FALSE),0) -> 0 | J108: =IFERROR(I108*H108, "See 'Machinery Costs' tab") -> 0
E109: =IFERROR(IF(OR(C92="Hay, alfalfa",C92="Hay, all Other"),(SUM(E105:E108))/C94,SUM(E105:E108)),0) -> 0 | J109: =IFERROR(IF(OR(N98="Hay, alfalfa",N98="Hay, all Other"),(SUM(J105:J108))/N100,SUM(J105:J108)),0) -> 0
B110: Cash Crop 3 Benchmark Chemical & Nutrient Machinery | C110: Cost/Ac | D110: # Passes/Yr | E110: Total Cost/Ac | G110: Cash Crop 3 Current Chemical & Nutrient Machinery | H110: Cost/Ac | I110: # Passes/Yr | J110: Total Cost/Ac
C112: =IFERROR(VLOOKUP(B112,'Machinery Costs'!$B$125:$E$149,4,FALSE),0) -> 0 | E112: =IFERROR(D112*C112, "See 'Machinery Costs' tab") -> 0 | H112: =IFERROR(VLOOKUP(G112,'Machinery Costs'!$B$125:$E$149,4,FALSE),0) -> 0 | J112: =IFERROR(I112*H112, "See 'Machinery Costs' tab") -> 0
C113: =IFERROR(VLOOKUP(B113,'Machinery Costs'!$B$125:$E$149,4,FALSE),0) -> 0 | E113: =IFERROR(D113*C113, "See 'Machinery Costs' tab") -> 0 | H113: =IFERROR(VLOOKUP(G113,'Machinery Costs'!$B$125:$E$149,4,FALSE),0) -> 0 | J113: =IFERROR(I113*H113, "See 'Machinery Costs' tab") -> 0
C114: =IFERROR(VLOOKUP(B114,'Machinery Costs'!$B$125:$E$149,4,FALSE),0) -> 0 | E114: =IFERROR(D114*C114, "See 'Machinery Costs' tab") -> 0 | H114: =IFERROR(VLOOKUP(G114,'Machinery Costs'!$B$125:$E$149,4,FALSE),0) -> 0 | J114: =IFERROR(I114*H114, "See 'Machinery Costs' tab") -> 0
C115: =IFERROR(VLOOKUP(B115,'Machinery Costs'!$B$125:$E$149,4,FALSE),0) -> 0 | E115: =IFERROR(D115*C115, "See 'Machinery Costs' tab") -> 0 | H115: =IFERROR(VLOOKUP(G115,'Machinery Costs'!$B$125:$E$149,4,FALSE),0) -> 0 | J115: =IFERROR(I115*H115, "See 'Machinery Costs' tab") -> 0
E116: =SUM(E112:E115) -> 0 | J116: =SUM(J112:J115) -> 0
B117: Cash Crop 3 Benchmark Harvest Machinery | C117: Cost/Ac | D117: # Passes/Yr | E117: Total Cost/Ac | G117: Cash Crop 3 Current Harvest Machinery | H117: Cost/Ac | I117: # Passes/Yr | J117: Total Cost/Ac
C119: =IFERROR(VLOOKUP(B119,'Machinery Costs'!$B$162:$E$187,4,FALSE),0) -> 0 | E119: =IFERROR(D119*C119, "See 'Machinery Costs' tab") -> 0 | H119: =IFERROR(VLOOKUP(G119,'Machinery Costs'!$B$162:$E$187,4,FALSE),0) -> 0 | J119: =IFERROR(I119*H119, "See 'Machinery Costs' tab") -> 0
C120: =IFERROR(VLOOKUP(B120,'Machinery Costs'!$B$165:$E$186,4,FALSE),0) -> 0 | E120: =IFERROR(D120*C120, "See 'Machinery Costs' tab") -> 0 | H120: =IFERROR(VLOOKUP(G120,'Machinery Costs'!$B$165:$E$186,4,FALSE),0) -> 0 | J120: =IFERROR(I120*H120, "See 'Machinery Costs' tab") -> 0
C121: =IFERROR(VLOOKUP(B121,'Machinery Costs'!$B$165:$E$186,4,FALSE),0) -> 0 | E121: =IFERROR(D121*C121, "See 'Machinery Costs' tab") -> 0 | H121: =IFERROR(VLOOKUP(G121,'Machinery Costs'!$B$165:$E$186,4,FALSE),0) -> 0 | J121: =IFERROR(I121*H121, "See 'Machinery Costs' tab") -> 0
C122: =IFERROR(VLOOKUP(B122,'Machinery Costs'!$B$165:$E$186,4,FALSE),0) -> 0 | E122: =IFERROR(D122*C122, "See 'Machinery Costs' tab") -> 0 | H122: =IFERROR(VLOOKUP(G122,'Machinery Costs'!$B$165:$E$186,4,FALSE),0) -> 0 | J122: =IFERROR(I122*H122, "See 'Machinery Costs' tab") -> 0
E123: =SUM(E119:E122) -> 0 | J123: =SUM(J119:J122) -> 0
D124: Total $/Ac | E124: =SUM(E102,E109,E116,E123) -> 0 | I124: Total $/Ac | J124: =SUM(J102,J109,J116,J123) -> 0
B126: Benchmark Cash Crop 4: | C126: =IF('Study Area Overview'!$B$51="","",'Study Area Overview'!$B$51) ->  | G126: Current Cash Crop 4: | H126: =IF('Study Area Overview'!$B$64="","",'Study Area Overview'!$B$64) -> 
B127: Benchmark Tillage: | C127: =IF('Study Area Overview'!$G$51="","",'Study Area Overview'!$G$51) ->  | G127: Current Tillage: | H127: =IF('Study Area Overview'!$G$64="","",'Study Area Overview'!$G$64) -> 
B128: Benchmark Years in Rotation: | C128: =IF('Study Area Overview'!$C$51="","",'Study Area Overview'!$C$51) ->  | G128: Current Years in Rotation: | H128: =IF('Study Area Overview'!$C$64="","",'Study Area Overview'!$C$64) -> 
B129: Benchmark Acres: | C129: =IF('Study Area Overview'!$D$51="","",'Study Area Overview'!$D$51) ->  | G129: Current Acres: | H129: =IF('Study Area Overview'!$D$64="","",'Study Area Overview'!$D$64) -> 
B130: Cash Crop 4 Benchmark Tillage Machinery (select from dropdown) | C130: Cost/Ac | D130: # Passes/Yr | E130: Total Cost/Ac | G130: Cash Crop 4 Current Tillage Machinery (select from dropdown) | H130: Cost/Ac | I130: # Passes/Yr | J130: Total Cost/Ac
C132: =IFERROR(VLOOKUP(B132,'Machinery Costs'!$B$19:$G$115,4,FALSE),0) -> 0 | E132: =IFERROR(D132*C132, "See 'Machinery Costs' tab") -> 0 | H132: =IFERROR(VLOOKUP(G132,'Machinery Costs'!$B$19:$G$115,4,FALSE),0) -> 0 | J132: =IFERROR(I132*H132, "See 'Machinery Costs' tab") -> 0
C133: =IFERROR(VLOOKUP(B133,'Machinery Costs'!$B$19:$G$115,4,FALSE),0) -> 0 | E133: =IFERROR(D133*C133, "See 'Machinery Costs' tab") -> 0 | H133: =IFERROR(VLOOKUP(G133,'Machinery Costs'!$B$19:$G$115,4,FALSE),0) -> 0 | J133: =IFERROR(I133*H133, "See 'Machinery Costs' tab") -> 0
C134: =IFERROR(VLOOKUP(B134,'Machinery Costs'!$B$19:$G$115,4,FALSE),0) -> 0 | E134: =IFERROR(D134*C134, "See 'Machinery Costs' tab") -> 0 | H134: =IFERROR(VLOOKUP(G134,'Machinery Costs'!$B$19:$G$115,4,FALSE),0) -> 0 | J134: =IFERROR(I134*H134, "See 'Machinery Costs' tab") -> 0
C135: =IFERROR(VLOOKUP(B135,'Machinery Costs'!$B$19:$G$115,4,FALSE),0) -> 0 | E135: =IFERROR(D135*C135, "See 'Machinery Costs' tab") -> 0 | H135: =IFERROR(VLOOKUP(G135,'Machinery Costs'!$B$19:$G$115,4,FALSE),0) -> 0 | J135: =IFERROR(I135*H135, "See 'Machinery Costs' tab") -> 0
E136: =IFERROR(IF(OR(C126="Hay, alfalfa",C126="Hay, all Other"),(SUM(E132:E135))/C128,SUM(E132:E135)),0) -> 0 | J136: =IFERROR(IF(OR(H126="Hay, alfalfa",H126="Hay, all Other"),(SUM(J132:J135))/H128,SUM(J132:J135)),0) -> 0
B137: Cash Crop 4 Benchmark Planting Machinery | C137: Cost/Ac | D137: # Passes/Yr | E137: Total Cost/Ac | G137: Cash Crop 4 Current Planting Machinery | H137: Cost/Ac | I137: # Passes/Yr | J137: Total Cost/Ac
C139: =IFERROR(VLOOKUP(B139,'Machinery Costs'!$B$19:$G$115,4,FALSE),0) -> 0 | E139: =IFERROR(D139*C139, "See 'Machinery Costs' tab") -> 0 | H139: =IFERROR(VLOOKUP(G139,'Machinery Costs'!$B$19:$G$115,4,FALSE),0) -> 0 | J139: =IFERROR(I139*H139, "See 'Machinery Costs' tab") -> 0
C140: =IFERROR(VLOOKUP(B140,'Machinery Costs'!$B$19:$G$115,4,FALSE),0) -> 0 | E140: =IFERROR(D140*C140, "See 'Machinery Costs' tab") -> 0 | H140: =IFERROR(VLOOKUP(G140,'Machinery Costs'!$B$19:$G$115,4,FALSE),0) -> 0 | J140: =IFERROR(I140*H140, "See 'Machinery Costs' tab") -> 0
C141: =IFERROR(VLOOKUP(B141,'Machinery Costs'!$B$19:$G$115,4,FALSE),0) -> 0 | E141: =IFERROR(D141*C141, "See 'Machinery Costs' tab") -> 0 | H141: =IFERROR(VLOOKUP(G141,'Machinery Costs'!$B$19:$G$115,4,FALSE),0) -> 0 | J141: =IFERROR(I141*H141, "See 'Machinery Costs' tab") -> 0
C142: =IFERROR(VLOOKUP(B142,'Machinery Costs'!$B$19:$G$115,4,FALSE),0) -> 0 | E142: =IFERROR(D142*C142, "See 'Machinery Costs' tab") -> 0 | H142: =IFERROR(VLOOKUP(G142,'Machinery Costs'!$B$19:$G$115,4,FALSE),0) -> 0 | J142: =IFERROR(I142*H142, "See 'Machinery Costs' tab") -> 0
E143: =IFERROR(IF(OR(C126="Hay, alfalfa",C126="Hay, all Other"),(SUM(E139:E142))/C128,SUM(E139:E142)),0) -> 0 | J143: =IFERROR(IF(OR(H126="Hay, alfalfa",H126="Hay, all Other"),(SUM(J139:J142))/H128,SUM(J139:J142)),0) -> 0
B144: Cash Crop 4 Benchmark Chemical & Nutrient Machinery | C144: Cost/Ac | D144: # Passes/Yr | E144: Total Cost/Ac | G144: Cash Crop 4 Current Chemical & Nutrient Machinery | H144: Cost/Ac | I144: # Passes/Yr | J144: Total Cost/Ac
C146: =IFERROR(VLOOKUP(B146,'Machinery Costs'!$B$125:$E$149,4,FALSE),0) -> 0 | E146: =IFERROR(D146*C146, "See 'Machinery Costs' tab") -> 0 | H146: =IFERROR(VLOOKUP(G146,'Machinery Costs'!$B$125:$E$149,4,FALSE),0) -> 0 | J146: =IFERROR(I146*H146, "See 'Machinery Costs' tab") -> 0
C147: =IFERROR(VLOOKUP(B147,'Machinery Costs'!$B$125:$E$149,4,FALSE),0) -> 0 | E147: =IFERROR(D147*C147, "See 'Machinery Costs' tab") -> 0 | H147: =IFERROR(VLOOKUP(G147,'Machinery Costs'!$B$125:$E$149,4,FALSE),0) -> 0 | J147: =IFERROR(I147*H147, "See 'Machinery Costs' tab") -> 0
C148: =IFERROR(VLOOKUP(B148,'Machinery Costs'!$B$125:$E$149,4,FALSE),0) -> 0 | E148: =IFERROR(D148*C148, "See 'Machinery Costs' tab") -> 0 | H148: =IFERROR(VLOOKUP(G148,'Machinery Costs'!$B$125:$E$149,4,FALSE),0) -> 0 | J148: =IFERROR(I148*H148, "See 'Machinery Costs' tab") -> 0
C149: =IFERROR(VLOOKUP(B149,'Machinery Costs'!$B$125:$E$149,4,FALSE),0) -> 0 | E149: =IFERROR(D149*C149, "See 'Machinery Costs' tab") -> 0 | H149: =IFERROR(VLOOKUP(G149,'Machinery Costs'!$B$125:$E$149,4,FALSE),0) -> 0 | J149: =IFERROR(I149*H149, "See 'Machinery Costs' tab") -> 0
E150: =SUM(E146:E149) -> 0 | J150: =SUM(J146:J149) -> 0
B151: Cash Crop 4 Benchmark Harvest Machinery | C151: Cost/Ac | D151: # Passes/Yr | E151: Total Cost/Ac | G151: Cash Crop 4 Current Harvest Machinery | H151: Cost/Ac | I151: # Passes/Yr | J151: Total Cost/Ac
C153: =IFERROR(VLOOKUP(B153,'Machinery Costs'!$B$162:$E$187,4,FALSE),0) -> 0 | E153: =IFERROR(D153*C153, "See 'Machinery Costs' tab") -> 0 | H153: =IFERROR(VLOOKUP(G153,'Machinery Costs'!$B$162:$E$187,4,FALSE),0) -> 0 | J153: =IFERROR(I153*H153, "See 'Machinery Costs' tab") -> 0
C154: =IFERROR(VLOOKUP(B154,'Machinery Costs'!$B$165:$E$186,4,FALSE),0) -> 0 | E154: =IFERROR(D154*C154, "See 'Machinery Costs' tab") -> 0 | H154: =IFERROR(VLOOKUP(G154,'Machinery Costs'!$B$165:$E$186,4,FALSE),0) -> 0 | J154: =IFERROR(I154*H154, "See 'Machinery Costs' tab") -> 0
C155: =IFERROR(VLOOKUP(B155,'Machinery Costs'!$B$165:$E$186,4,FALSE),0) -> 0 | E155: =IFERROR(D155*C155, "See 'Machinery Costs' tab") -> 0 | H155: =IFERROR(VLOOKUP(G155,'Machinery Costs'!$B$165:$E$186,4,FALSE),0) -> 0 | J155: =IFERROR(I155*H155, "See 'Machinery Costs' tab") -> 0
C156: =IFERROR(VLOOKUP(B156,'Machinery Costs'!$B$165:$E$186,4,FALSE),0) -> 0 | E156: =IFERROR(D156*C156, "See 'Machinery Costs' tab") -> 0 | H156: =IFERROR(VLOOKUP(G156,'Machinery Costs'!$B$165:$E$186,4,FALSE),0) -> 0 | J156: =IFERROR(I156*H156, "See 'Machinery Costs' tab") -> 0
E157: =SUM(E153:E156) -> 0 | J157: =SUM(J153:J156) -> 0
D158: Total $/Ac | E158: =SUM(E136,E143,E150,E157) -> 0 | I158: Total $/Ac | J158: =SUM(J136,J143,J150,J157) -> 0
B160: Benchmark Cash Crop 5: | C160: =IF('Study Area Overview'!$B$52="","",'Study Area Overview'!$B$52) ->  | G160: Current Cash Crop 5: | H160: =IF('Study Area Overview'!$B$65="","",'Study Area Overview'!$B$65) -> 
B161: Benchmark Tillage: | C161: =IF('Study Area Overview'!$G$52="","",'Study Area Overview'!$G$52) ->  | G161: Current Tillage: | H161: =IF('Study Area Overview'!$G$65="","",'Study Area Overview'!$G$65) -> 
B162: Benchmark Years in Rotation: | C162: =IF('Study Area Overview'!$C$52="","",'Study Area Overview'!$C$52) ->  | G162: Current Years in Rotation: | H162: =IF('Study Area Overview'!$C$65="","",'Study Area Overview'!$C$65) -> 
B163: Benchmark Acres: | C163: =IF('Study Area Overview'!$D$52="","",'Study Area Overview'!$D$52) ->  | G163: Current Acres: | H163: =IF('Study Area Overview'!$D$65="","",'Study Area Overview'!$D$65) -> 
B164: Cash Crop 5 Benchmark Tillage Machinery (select from dropdown) | C164: Cost/Ac | D164: # Passes/Yr | E164: Total Cost/Ac | G164: Cash Crop 5 Current Tillage Machinery (select from dropdown) | H164: Cost/Ac | I164: # Passes/Yr | J164: Total Cost/Ac
C166: =IFERROR(VLOOKUP(B166,'Machinery Costs'!$B$19:$G$115,4,FALSE),0) -> 0 | E166: =IFERROR(D166*C166, "See 'Machinery Costs' tab") -> 0 | H166: =IFERROR(VLOOKUP(G166,'Machinery Costs'!$B$19:$G$115,4,FALSE),0) -> 0 | J166: =IFERROR(I166*H166, "See 'Machinery Costs' tab") -> 0
C167: =IFERROR(VLOOKUP(B167,'Machinery Costs'!$B$19:$G$115,4,FALSE),0) -> 0 | E167: =IFERROR(D167*C167, "See 'Machinery Costs' tab") -> 0 | H167: =IFERROR(VLOOKUP(G167,'Machinery Costs'!$B$19:$G$115,4,FALSE),0) -> 0 | J167: =IFERROR(I167*H167, "See 'Machinery Costs' tab") -> 0
C168: =IFERROR(VLOOKUP(B168,'Machinery Costs'!$B$19:$G$115,4,FALSE),0) -> 0 | E168: =IFERROR(D168*C168, "See 'Machinery Costs' tab") -> 0 | H168: =IFERROR(VLOOKUP(G168,'Machinery Costs'!$B$19:$G$115,4,FALSE),0) -> 0 | J168: =IFERROR(I168*H168, "See 'Machinery Costs' tab") -> 0
C169: =IFERROR(VLOOKUP(B169,'Machinery Costs'!$B$19:$G$115,4,FALSE),0) -> 0 | E169: =IFERROR(D169*C169, "See 'Machinery Costs' tab") -> 0 | H169: =IFERROR(VLOOKUP(G169,'Machinery Costs'!$B$19:$G$115,4,FALSE),0) -> 0 | J169: =IFERROR(I169*H169, "See 'Machinery Costs' tab") -> 0
E170: =IFERROR(IF(OR(C160="Hay, alfalfa",C160="Hay, all Other"),(SUM(E166:E169))/C162,SUM(E166:E169)),0) -> 0 | J170: =IFERROR(IF(OR(H160="Hay, alfalfa",H160="Hay, all Other"),(SUM(J166:J169))/H162,SUM(J166:J169)),0) -> 0
B171: Cash Crop 5 Benchmark Planting Machinery | C171: Cost/Ac | D171: # Passes/Yr | E171: Total Cost/Ac | G171: Cash Crop 5 Current Planting Machinery | H171: Cost/Ac | I171: # Passes/Yr | J171: Total Cost/Ac
C173: =IFERROR(VLOOKUP(B173,'Machinery Costs'!$B$19:$G$115,4,FALSE),0) -> 0 | E173: =IFERROR(D173*C173, "See 'Machinery Costs' tab") -> 0 | H173: =IFERROR(VLOOKUP(G173,'Machinery Costs'!$B$19:$G$115,4,FALSE),0) -> 0 | J173: =IFERROR(I173*H173, "See 'Machinery Costs' tab") -> 0
C174: =IFERROR(VLOOKUP(B174,'Machinery Costs'!$B$19:$G$115,4,FALSE),0) -> 0 | E174: =IFERROR(D174*C174, "See 'Machinery Costs' tab") -> 0 | H174: =IFERROR(VLOOKUP(G174,'Machinery Costs'!$B$19:$G$115,4,FALSE),0) -> 0 | J174: =IFERROR(I174*H174, "See 'Machinery Costs' tab") -> 0
C175: =IFERROR(VLOOKUP(B175,'Machinery Costs'!$B$19:$G$115,4,FALSE),0) -> 0 | E175: =IFERROR(D175*C175, "See 'Machinery Costs' tab") -> 0 | H175: =IFERROR(VLOOKUP(G175,'Machinery Costs'!$B$19:$G$115,4,FALSE),0) -> 0 | J175: =IFERROR(I175*H175, "See 'Machinery Costs' tab") -> 0
C176: =IFERROR(VLOOKUP(B176,'Machinery Costs'!$B$19:$G$115,4,FALSE),0) -> 0 | E176: =IFERROR(D176*C176, "See 'Machinery Costs' tab") -> 0 | H176: =IFERROR(VLOOKUP(G176,'Machinery Costs'!$B$19:$G$115,4,FALSE),0) -> 0 | J176: =IFERROR(I176*H176, "See 'Machinery Costs' tab") -> 0
E177: =IFERROR(IF(OR(C160="Hay, alfalfa",C160="Hay, all Other"),(SUM(E173:E176))/C162,SUM(E173:E176)),0) -> 0 | J177: =IFERROR(IF(OR(H160="Hay, alfalfa",H160="Hay, all Other"),(SUM(J173:J176))/H162,SUM(J173:J176)),0) -> 0
B178: Cash Crop 5 Benchmark Chemical & Nutrient Machinery | C178: Cost/Ac | D178: # Passes/Yr | E178: Total Cost/Ac | G178: Cash Crop 5 Current Chemical & Nutrient Machinery | H178: Cost/Ac | I178: # Passes/Yr | J178: Total Cost/Ac
C180: =IFERROR(VLOOKUP(B180,'Machinery Costs'!$B$125:$E$149,4,FALSE),0) -> 0 | E180: =IFERROR(D180*C180, "See 'Machinery Costs' tab") -> 0 | H180: =IFERROR(VLOOKUP(G180,'Machinery Costs'!$B$125:$E$149,4,FALSE),0) -> 0 | J180: =IFERROR(I180*H180, "See 'Machinery Costs' tab") -> 0
C181: =IFERROR(VLOOKUP(B181,'Machinery Costs'!$B$125:$E$149,4,FALSE),0) -> 0 | E181: =IFERROR(D181*C181, "See 'Machinery Costs' tab") -> 0 | H181: =IFERROR(VLOOKUP(G181,'Machinery Costs'!$B$125:$E$149,4,FALSE),0) -> 0 | J181: =IFERROR(I181*H181, "See 'Machinery Costs' tab") -> 0
C182: =IFERROR(VLOOKUP(B182,'Machinery Costs'!$B$125:$E$149,4,FALSE),0) -> 0 | E182: =IFERROR(D182*C182, "See 'Machinery Costs' tab") -> 0 | H182: =IFERROR(VLOOKUP(G182,'Machinery Costs'!$B$125:$E$149,4,FALSE),0) -> 0 | J182: =IFERROR(I182*H182, "See 'Machinery Costs' tab") -> 0
C183: =IFERROR(VLOOKUP(B183,'Machinery Costs'!$B$125:$E$149,4,FALSE),0) -> 0 | E183: =IFERROR(D183*C183, "See 'Machinery Costs' tab") -> 0 | H183: =IFERROR(VLOOKUP(G183,'Machinery Costs'!$B$125:$E$149,4,FALSE),0) -> 0 | J183: =IFERROR(I183*H183, "See 'Machinery Costs' tab") -> 0
E184: =SUM(E180:E183) -> 0 | J184: =SUM(J180:J183) -> 0
B185: Cash Crop 5 Benchmark Harvest Machinery | C185: Cost/Ac | D185: # Passes/Yr | E185: Total Cost/Ac | G185: Cash Crop 5 Current Harvest Machinery | H185: Cost/Ac | I185: # Passes/Yr | J185: Total Cost/Ac
C187: =IFERROR(VLOOKUP(B187,'Machinery Costs'!$B$162:$E$187,4,FALSE),0) -> 0 | E187: =IFERROR(D187*C187, "See 'Machinery Costs' tab") -> 0 | H187: =IFERROR(VLOOKUP(G187,'Machinery Costs'!$B$162:$E$187,4,FALSE),0) -> 0 | J187: =IFERROR(I187*H187, "See 'Machinery Costs' tab") -> 0
C188: =IFERROR(VLOOKUP(B188,'Machinery Costs'!$B$165:$E$186,4,FALSE),0) -> 0 | E188: =IFERROR(D188*C188, "See 'Machinery Costs' tab") -> 0 | H188: =IFERROR(VLOOKUP(G188,'Machinery Costs'!$B$165:$E$186,4,FALSE),0) -> 0 | J188: =IFERROR(I188*H188, "See 'Machinery Costs' tab") -> 0
C189: =IFERROR(VLOOKUP(B189,'Machinery Costs'!$B$165:$E$186,4,FALSE),0) -> 0 | E189: =IFERROR(D189*C189, "See 'Machinery Costs' tab") -> 0 | H189: =IFERROR(VLOOKUP(G189,'Machinery Costs'!$B$165:$E$186,4,FALSE),0) -> 0 | J189: =IFERROR(I189*H189, "See 'Machinery Costs' tab") -> 0
C190: =IFERROR(VLOOKUP(B190,'Machinery Costs'!$B$165:$E$186,4,FALSE),0) -> 0 | E190: =IFERROR(D190*C190, "See 'Machinery Costs' tab") -> 0 | H190: =IFERROR(VLOOKUP(G190,'Machinery Costs'!$B$165:$E$186,4,FALSE),0) -> 0 | J190: =IFERROR(I190*H190, "See 'Machinery Costs' tab") -> 0
E191: =SUM(E187:E190) -> 0 | J191: =SUM(J187:J190) -> 0
D192: Total $/Ac | E192: =SUM(E170,E177,E184,E191) -> 0 | I192: Total $/Ac | J192: =SUM(J170,J177,J184,J191) -> 0
B194: Benchmark Cash Crop 6: | C194: =IF('Study Area Overview'!$B$53="","",'Study Area Overview'!$B$53) ->  | G194: Current Cash Crop 6: | H194: =IF('Study Area Overview'!$B$66="","",'Study Area Overview'!$B$66) -> 
B195: Benchmark Tillage: | C195: =IF('Study Area Overview'!$G$53="","",'Study Area Overview'!$G$53) ->  | G195: Current Tillage: | H195: =IF('Study Area Overview'!$G$66="","",'Study Area Overview'!$G$66) -> 
B196: Benchmark Years in Rotation: | C196: =IF('Study Area Overview'!$C$53="","",'Study Area Overview'!$C$53) ->  | G196: Current Years in Rotation: | H196: =IF('Study Area Overview'!$C$66="","",'Study Area Overview'!$C$66) -> 
B197: Benchmark Acres: | C197: =IF('Study Area Overview'!$D$53="","",'Study Area Overview'!$D$53) ->  | G197: Current Acres: | H197: =IF('Study Area Overview'!$D$66="","",'Study Area Overview'!$D$66) -> 
B198: Cash Crop 6 Benchmark Tillage Machinery (select from dropdown) | C198: Cost/Ac | D198: # Passes/Yr | E198: Total Cost/Ac | G198: Cash Crop 6 Current Tillage Machinery (select from dropdown) | H198: Cost/Ac | I198: # Passes/Yr | J198: Total Cost/Ac
C200: =IFERROR(VLOOKUP(B200,'Machinery Costs'!$B$19:$G$115,4,FALSE),0) -> 0 | E200: =IFERROR(D200*C200, "See 'Machinery Costs' tab") -> 0 | H200: =IFERROR(VLOOKUP(G200,'Machinery Costs'!$B$19:$G$115,4,FALSE),0) -> 0 | J200: =IFERROR(I200*H200, "See 'Machinery Costs' tab") -> 0
C201: =IFERROR(VLOOKUP(B201,'Machinery Costs'!$B$19:$G$115,4,FALSE),0) -> 0 | E201: =IFERROR(D201*C201, "See 'Machinery Costs' tab") -> 0 | H201: =IFERROR(VLOOKUP(G201,'Machinery Costs'!$B$19:$G$115,4,FALSE),0) -> 0 | J201: =IFERROR(I201*H201, "See 'Machinery Costs' tab") -> 0
C202: =IFERROR(VLOOKUP(B202,'Machinery Costs'!$B$19:$G$115,4,FALSE),0) -> 0 | E202: =IFERROR(D202*C202, "See 'Machinery Costs' tab") -> 0 | H202: =IFERROR(VLOOKUP(G202,'Machinery Costs'!$B$19:$G$115,4,FALSE),0) -> 0 | J202: =IFERROR(I202*H202, "See 'Machinery Costs' tab") -> 0
C203: =IFERROR(VLOOKUP(B203,'Machinery Costs'!$B$19:$G$115,4,FALSE),0) -> 0 | E203: =IFERROR(D203*C203, "See 'Machinery Costs' tab") -> 0 | H203: =IFERROR(VLOOKUP(G203,'Machinery Costs'!$B$19:$G$115,4,FALSE),0) -> 0 | J203: =IFERROR(I203*H203, "See 'Machinery Costs' tab") -> 0
E204: =IFERROR(IF(OR(C194="Hay, alfalfa",C194="Hay, all Other"),(SUM(E200:E203))/C196,SUM(E200:E203)),0) -> 0 | J204: =IFERROR(IF(OR(H194="Hay, alfalfa",H194="Hay, all Other"),(SUM(J200:J203))/H196,SUM(J200:J203)),0) -> 0
B205: Cash Crop 6 Benchmark Planting Machinery | C205: Cost/Ac | D205: # Passes/Yr | E205: Total Cost/Ac | G205: Cash Crop 6 Current Planting Machinery | H205: Cost/Ac | I205: # Passes/Yr | J205: Total Cost/Ac
C207: =IFERROR(VLOOKUP(B207,'Machinery Costs'!$B$19:$G$115,4,FALSE),0) -> 0 | E207: =IFERROR(D207*C207, "See 'Machinery Costs' tab") -> 0 | H207: =IFERROR(VLOOKUP(G207,'Machinery Costs'!$B$19:$G$115,4,FALSE),0) -> 0 | J207: =IFERROR(I207*H207, "See 'Machinery Costs' tab") -> 0
C208: =IFERROR(VLOOKUP(B208,'Machinery Costs'!$B$19:$G$115,4,FALSE),0) -> 0 | E208: =IFERROR(D208*C208, "See 'Machinery Costs' tab") -> 0 | H208: =IFERROR(VLOOKUP(G208,'Machinery Costs'!$B$19:$G$115,4,FALSE),0) -> 0 | J208: =IFERROR(I208*H208, "See 'Machinery Costs' tab") -> 0
C209: =IFERROR(VLOOKUP(B209,'Machinery Costs'!$B$19:$G$115,4,FALSE),0) -> 0 | E209: =IFERROR(D209*C209, "See 'Machinery Costs' tab") -> 0 | H209: =IFERROR(VLOOKUP(G209,'Machinery Costs'!$B$19:$G$115,4,FALSE),0) -> 0 | J209: =IFERROR(I209*H209, "See 'Machinery Costs' tab") -> 0
C210: =IFERROR(VLOOKUP(B210,'Machinery Costs'!$B$19:$G$115,4,FALSE),0) -> 0 | E210: =IFERROR(D210*C210, "See 'Machinery Costs' tab") -> 0 | H210: =IFERROR(VLOOKUP(G210,'Machinery Costs'!$B$19:$G$115,4,FALSE),0) -> 0 | J210: =IFERROR(I210*H210, "See 'Machinery Costs' tab") -> 0
E211: =IFERROR(IF(OR(C194="Hay, alfalfa",C194="Hay, all Other"),(SUM(E207:E210))/C196,SUM(E207:E210)),0) -> 0 | J211: =IFERROR(IF(OR(H194="Hay, alfalfa",H194="Hay, all Other"),(SUM(J207:J210))/H196,SUM(J207:J210)),0) -> 0
B212: Cash Crop 6 Benchmark Chemical & Nutrient Machinery | C212: Cost/Ac | D212: # Passes/Yr | E212: Total Cost/Ac | G212: Cash Crop 6 Current Chemical & Nutrient Machinery | H212: Cost/Ac | I212: # Passes/Yr | J212: Total Cost/Ac
C214: =IFERROR(VLOOKUP(B214,'Machinery Costs'!$B$125:$E$149,4,FALSE),0) -> 0 | E214: =IFERROR(D214*C214, "See 'Machinery Costs' tab") -> 0 | H214: =IFERROR(VLOOKUP(G214,'Machinery Costs'!$B$125:$E$149,4,FALSE),0) -> 0 | J214: =IFERROR(I214*H214, "See 'Machinery Costs' tab") -> 0
C215: =IFERROR(VLOOKUP(B215,'Machinery Costs'!$B$125:$E$149,4,FALSE),0) -> 0 | E215: =IFERROR(D215*C215, "See 'Machinery Costs' tab") -> 0 | H215: =IFERROR(VLOOKUP(G215,'Machinery Costs'!$B$125:$E$149,4,FALSE),0) -> 0 | J215: =IFERROR(I215*H215, "See 'Machinery Costs' tab") -> 0
C216: =IFERROR(VLOOKUP(B216,'Machinery Costs'!$B$125:$E$149,4,FALSE),0) -> 0 | E216: =IFERROR(D216*C216, "See 'Machinery Costs' tab") -> 0 | H216: =IFERROR(VLOOKUP(G216,'Machinery Costs'!$B$125:$E$149,4,FALSE),0) -> 0 | J216: =IFERROR(I216*H216, "See 'Machinery Costs' tab") -> 0
C217: =IFERROR(VLOOKUP(B217,'Machinery Costs'!$B$125:$E$149,4,FALSE),0) -> 0 | E217: =IFERROR(D217*C217, "See 'Machinery Costs' tab") -> 0 | H217: =IFERROR(VLOOKUP(G217,'Machinery Costs'!$B$125:$E$149,4,FALSE),0) -> 0 | J217: =IFERROR(I217*H217, "See 'Machinery Costs' tab") -> 0
E218: =SUM(E214:E217) -> 0 | J218: =SUM(J214:J217) -> 0
B219: Cash Crop 6 Benchmark Harvest Machinery | C219: Cost/Ac | D219: # Passes/Yr | E219: Total Cost/Ac | G219: Cash Crop 6 Current Harvest Machinery | H219: Cost/Ac | I219: # Passes/Yr | J219: Total Cost/Ac
C221: =IFERROR(VLOOKUP(B221,'Machinery Costs'!$B$162:$E$187,4,FALSE),0) -> 0 | E221: =IFERROR(D221*C221, "See 'Machinery Costs' tab") -> 0 | H221: =IFERROR(VLOOKUP(G221,'Machinery Costs'!$B$162:$E$187,4,FALSE),0) -> 0 | J221: =IFERROR(I221*H221, "See 'Machinery Costs' tab") -> 0
C222: =IFERROR(VLOOKUP(B222,'Machinery Costs'!$B$165:$E$186,4,FALSE),0) -> 0 | E222: =IFERROR(D222*C222, "See 'Machinery Costs' tab") -> 0 | H222: =IFERROR(VLOOKUP(G222,'Machinery Costs'!$B$165:$E$186,4,FALSE),0) -> 0 | J222: =IFERROR(I222*H222, "See 'Machinery Costs' tab") -> 0
C223: =IFERROR(VLOOKUP(B223,'Machinery Costs'!$B$165:$E$186,4,FALSE),0) -> 0 | E223: =IFERROR(D223*C223, "See 'Machinery Costs' tab") -> 0 | H223: =IFERROR(VLOOKUP(G223,'Machinery Costs'!$B$165:$E$186,4,FALSE),0) -> 0 | J223: =IFERROR(I223*H223, "See 'Machinery Costs' tab") -> 0
C224: =IFERROR(VLOOKUP(B224,'Machinery Costs'!$B$165:$E$186,4,FALSE),0) -> 0 | E224: =IFERROR(D224*C224, "See 'Machinery Costs' tab") -> 0 | H224: =IFERROR(VLOOKUP(G224,'Machinery Costs'!$B$165:$E$186,4,FALSE),0) -> 0 | J224: =IFERROR(I224*H224, "See 'Machinery Costs' tab") -> 0
E225: =SUM(E221:E224) -> 0 | J225: =SUM(J221:J224) -> 0
D226: Total $/Ac | E226: =SUM(E204,E211,E218,E225) -> 0 | I226: Total $/Ac | J226: =SUM(J204,J211,J218,J225) -> 0
B228: Benchmark Cash Crop 7: | C228: =IF('Study Area Overview'!$B$54="","",'Study Area Overview'!$B$54) ->  | G228: Current Cash Crop 7: | H228: =IF('Study Area Overview'!$B$67="","",'Study Area Overview'!$B$67) -> 
B229: Benchmark Tillage: | C229: =IF('Study Area Overview'!$G$54="","",'Study Area Overview'!$G$54) ->  | G229: Current Tillage: | H229: =IF('Study Area Overview'!$G$67="","",'Study Area Overview'!$G$67) -> 
B230: Benchmark Years in Rotation: | C230: =IF('Study Area Overview'!$C$54="","",'Study Area Overview'!$C$54) ->  | G230: Current Years in Rotation: | H230: =IF('Study Area Overview'!$C$67="","",'Study Area Overview'!$C$67) -> 
B231: Benchmark Acres: | C231: =IF('Study Area Overview'!$D$54="","",'Study Area Overview'!$D$54) ->  | G231: Current Acres: | H231: =IF('Study Area Overview'!$D$67="","",'Study Area Overview'!$D$67) -> 
B232: Cash Crop 7 Benchmark Tillage Machinery (select from dropdown) | C232: Cost/Ac | D232: # Passes/Yr | E232: Total Cost/Ac | G232: Cash Crop 7 Current Tillage Machinery (select from dropdown) | H232: Cost/Ac | I232: # Passes/Yr | J232: Total Cost/Ac
C234: =IFERROR(VLOOKUP(B234,'Machinery Costs'!$B$19:$G$115,4,FALSE),0) -> 0 | E234: =IFERROR(D234*C234, "See 'Machinery Costs' tab") -> 0 | H234: =IFERROR(VLOOKUP(G234,'Machinery Costs'!$B$19:$G$115,4,FALSE),0) -> 0 | J234: =IFERROR(I234*H234, "See 'Machinery Costs' tab") -> 0
C235: =IFERROR(VLOOKUP(B235,'Machinery Costs'!$B$19:$G$115,4,FALSE),0) -> 0 | E235: =IFERROR(D235*C235, "See 'Machinery Costs' tab") -> 0 | H235: =IFERROR(VLOOKUP(G235,'Machinery Costs'!$B$19:$G$115,4,FALSE),0) -> 0 | J235: =IFERROR(I235*H235, "See 'Machinery Costs' tab") -> 0
C236: =IFERROR(VLOOKUP(B236,'Machinery Costs'!$B$19:$G$115,4,FALSE),0) -> 0 | E236: =IFERROR(D236*C236, "See 'Machinery Costs' tab") -> 0 | H236: =IFERROR(VLOOKUP(G236,'Machinery Costs'!$B$19:$G$115,4,FALSE),0) -> 0 | J236: =IFERROR(I236*H236, "See 'Machinery Costs' tab") -> 0
C237: =IFERROR(VLOOKUP(B237,'Machinery Costs'!$B$19:$G$115,4,FALSE),0) -> 0 | E237: =IFERROR(D237*C237, "See 'Machinery Costs' tab") -> 0 | H237: =IFERROR(VLOOKUP(G237,'Machinery Costs'!$B$19:$G$115,4,FALSE),0) -> 0 | J237: =IFERROR(I237*H237, "See 'Machinery Costs' tab") -> 0
E238: =IFERROR(IF(OR(C228="Hay, alfalfa",C228="Hay, all Other"),(SUM(E234:E237))/C230,SUM(E234:E237)),0) -> 0 | J238: =IFERROR(IF(OR(H228="Hay, alfalfa",H228="Hay, all Other"),(SUM(J234:J237))/H230,SUM(J234:J237)),0) -> 0
B239: Cash Crop 7 Benchmark Planting Machinery | C239: Cost/Ac | D239: # Passes/Yr | E239: Total Cost/Ac | G239: Cash Crop 7 Current Planting Machinery | H239: Cost/Ac | I239: # Passes/Yr | J239: Total Cost/Ac
C241: =IFERROR(VLOOKUP(B241,'Machinery Costs'!$B$19:$G$115,4,FALSE),0) -> 0 | E241: =IFERROR(D241*C241, "See 'Machinery Costs' tab") -> 0 | H241: =IFERROR(VLOOKUP(G241,'Machinery Costs'!$B$19:$G$115,4,FALSE),0) -> 0 | J241: =IFERROR(I241*H241, "See 'Machinery Costs' tab") -> 0
C242: =IFERROR(VLOOKUP(B242,'Machinery Costs'!$B$19:$G$115,4,FALSE),0) -> 0 | E242: =IFERROR(D242*C242, "See 'Machinery Costs' tab") -> 0 | H242: =IFERROR(VLOOKUP(G242,'Machinery Costs'!$B$19:$G$115,4,FALSE),0) -> 0 | J242: =IFERROR(I242*H242, "See 'Machinery Costs' tab") -> 0
C243: =IFERROR(VLOOKUP(B243,'Machinery Costs'!$B$19:$G$115,4,FALSE),0) -> 0 | E243: =IFERROR(D243*C243, "See 'Machinery Costs' tab") -> 0 | H243: =IFERROR(VLOOKUP(G243,'Machinery Costs'!$B$19:$G$115,4,FALSE),0) -> 0 | J243: =IFERROR(I243*H243, "See 'Machinery Costs' tab") -> 0
C244: =IFERROR(VLOOKUP(B244,'Machinery Costs'!$B$19:$G$115,4,FALSE),0) -> 0 | E244: =IFERROR(D244*C244, "See 'Machinery Costs' tab") -> 0 | H244: =IFERROR(VLOOKUP(G244,'Machinery Costs'!$B$19:$G$115,4,FALSE),0) -> 0 | J244: =IFERROR(I244*H244, "See 'Machinery Costs' tab") -> 0
... 146 more rows

Sheet Cash Crop Inputs
A1: Cash Crop Input Changes due to Soil Health Practices
A3: ABOUT THIS TAB:
A4: The Cash Crop Inputs tab calculates the increases and decreases in seed, soil sampling, nitrogen, phosphorus, potassium, other fertilizer, manure, compost, herbicide, insecticide, & fungicide costs. The number of tables and columns shown will correspond to the number of crops in the crop rotation provided in the 'Study Area Overview' tab. If analyzing a conservation crop rotation (CCR), you must provide all benchmark and current input costs - even if there is no difference - because when acreage shifts from one crop to another crop, we need to estimate a per acre net income for each crop impacted. This allows the R-SHEC to quantify the change in Study Area net income due to a CCR. If NOT analyzing a CCR, you only need to provide benchmark and current input costs that changed due to the adoption of the other soil health practices. Presented in the 'Summary of Changes in Input Costs" table at the end of this tab is the calculated changes in input costs on an annual per acre basis by crop and as a weighted average for the Study Area. In this table, the user must select from the dropdown list which soil health practice(s) they attribute to the calculated changes as that feeds into the 'Results' partial budget analysis table. Note: This tab can be used on its own to analyze changes in inputs generally (with or without the adoption of soil health practices.)
B18: TIPS:
B19: (1) Benchmark refers to the period before soil health practices were adopted.
B20: (2) Current refers to the period after soil health practices were adopted.
B21: (3) If growing hay in rotation, user will need to adjust inputs as needed if only applies to some years as a perennial crop because the tool will assume annual applications. For example, if an input is applied on an as-needed basis, averaging one out of years of hay, enter one-fourth the amount.
B24: (4) If analyzing the adoption of a cover crop, do not enter additional inputs due to cover crops here as that information is collected on the 'Cover Crops' tab. Be careful not to double-count.
A27: Cash Crop Seed Cost by Crop (required if analyzing CCR)
A28: If you want to capture a change in cash crop seed costs, you must enter the per acre cost by crop. If analyzing a CCR, you must provide all benchmark and current seed costs as it is part of the crop net income calculation. If NOT analyzing a CCR, you only need to provide benchmark and current seed costs that changed due to the adoption of the other soil health practices (e.g., increased seeding rate with switch to no-till.)
B33: Benchmark Seed Cost | C33: =IF('Study Area Overview'!$B$48="","",'Study Area Overview'!$B$48) ->  | D33: =IF('Study Area Overview'!$B$49="","",'Study Area Overview'!$B$49) ->  | E33: =IF('Study Area Overview'!$B$50="","",'Study Area Overview'!$B$50) ->  | F33: =IF('Study Area Overview'!$B$51="","",'Study Area Overview'!$B$51) ->  | G33: =IF('Study Area Overview'!$B$52="","",'Study Area Overview'!$B$52) ->  | H33: =IF('Study Area Overview'!$B$53="","",'Study Area Overview'!$B$53) ->  | I33: =IF('Study Area Overview'!$B$54="","",'Study Area Overview'!$B$54) ->  | J33: =IF('Study Area Overview'!$B$55="","",'Study Area Overview'!$B$55) ->  | K33: =IF('Study Area Overview'!$B$56="","",'Study Area Overview'!$B$56) ->  | L33: =IF('Study Area Overview'!$B$57="","",'Study Area Overview'!$B$57) -> 
B34: Cash Crop Seed ($/ac)
B35: Current Seed Cost | C35: =IF('Study Area Overview'!$B$61="","",'Study Area Overview'!$B$61) ->  | D35: =IF('Study Area Overview'!$B$62="","",'Study Area Overview'!$B$62) ->  | E35: =IF('Study Area Overview'!$B$63="","",'Study Area Overview'!$B$63) ->  | F35: =IF('Study Area Overview'!$B$64="","",'Study Area Overview'!$B$64) ->  | G35: =IF('Study Area Overview'!$B$65="","",'Study Area Overview'!$B$65) ->  | H35: =IF('Study Area Overview'!$B$66="","",'Study Area Overview'!$B$66) ->  | I35: =IF('Study Area Overview'!$B$67="","",'Study Area Overview'!$B$67) ->  | J35: =IF('Study Area Overview'!$B$68="","",'Study Area Overview'!$B$68) ->  | K35: =IF('Study Area Overview'!$B$69="","",'Study Area Overview'!$B$69) ->  | L35: =IF('Study Area Overview'!$B$70="","",'Study Area Overview'!$B$70) -> 
B36: Cash Crop Seed ($/ac)
A38: Soil Sampling Costs by Crop
A39: If you want to capture a change in soil sampling costs, you must enter the average cost per sample(s) and average number of sample(s) per acre. If you know $/yr soil sampling costs and # samples, you can back-calculate these values. If analyzing a CCR or not, you only need to provide benchmark and current soil sampling costs that changed due to the adoption of the soil health practices.
B42: Benchmark Soil Sampling Cost | C42: =IF('Study Area Overview'!$B$48="","",'Study Area Overview'!$B$48) ->  | D42: =IF('Study Area Overview'!$B$49="","",'Study Area Overview'!$B$49) ->  | E42: =IF('Study Area Overview'!$B$50="","",'Study Area Overview'!$B$50) ->  | F42: =IF('Study Area Overview'!$B$51="","",'Study Area Overview'!$B$51) ->  | G42: =IF('Study Area Overview'!$B$52="","",'Study Area Overview'!$B$52) ->  | H42: =IF('Study Area Overview'!$B$53="","",'Study Area Overview'!$B$53) ->  | I42: =IF('Study Area Overview'!$B$54="","",'Study Area Overview'!$B$54) ->  | J42: =IF('Study Area Overview'!$B$55="","",'Study Area Overview'!$B$55) ->  | K42: =IF('Study Area Overview'!$B$56="","",'Study Area Overview'!$B$56) ->  | L42: =IF('Study Area Overview'!$B$57="","",'Study Area Overview'!$B$57) -> 
B43: Soil sampling method (optional)
B44: Average cost per sample(s) (required)
B45: Average # sample(s) per acre (required)
B46: Calculated Soil Sampling Cost ($/ac) | C46: =IFERROR((C44*C45),0) -> 0 | D46: =IFERROR((D44*D45),0) -> 0 | E46: 0 | F46: 0 | G46: 0 | H46: 0 | I46: 0 | J46: 0 | K46: 0 | L46: 0
B47: Current Soil Sampling Cost | C47: =IF('Study Area Overview'!$B$61="","",'Study Area Overview'!$B$61) ->  | D47: =IF('Study Area Overview'!$B$62="","",'Study Area Overview'!$B$62) ->  | E47: =IF('Study Area Overview'!$B$63="","",'Study Area Overview'!$B$63) ->  | F47: =IF('Study Area Overview'!$B$64="","",'Study Area Overview'!$B$64) ->  | G47: =IF('Study Area Overview'!$B$65="","",'Study Area Overview'!$B$65) ->  | H47: =IF('Study Area Overview'!$B$66="","",'Study Area Overview'!$B$66) ->  | I47: =IF('Study Area Overview'!$B$67="","",'Study Area Overview'!$B$67) ->  | J47: =IF('Study Area Overview'!$B$68="","",'Study Area Overview'!$B$68) ->  | K47: =IF('Study Area Overview'!$B$69="","",'Study Area Overview'!$B$69) ->  | L47: =IF('Study Area Overview'!$B$70="","",'Study Area Overview'!$B$70) -> 
B48: Soil sampling method (optional)
B49: Average cost per sample(s) (required)
B50: Average # sample(s) per acre (required)
B51: Calculated Soil Sampling Cost ($/ac) | C51: =IFERROR((C49*C50),0) -> 0 | D51: =IFERROR((D49*D50),0) -> 0 | E51: =IFERROR((E49*E50),0) -> 0 | F51: =IFERROR((F49*F50),0) -> 0 | G51: =IFERROR((G49*G50),0) -> 0 | H51: =IFERROR((H49*H50),0) -> 0 | I51: =IFERROR((I49*I50),0) -> 0 | J51: =IFERROR((J49*J50),0) -> 0 | K51: =IFERROR((K49*K50),0) -> 0 | L51: =IFERROR((L49*L50),0) -> 0
A53: Nutrient Costs by Crop
A54: The user is asked to input benchmark and current pounds per acre of nitrogen, phosphorus, &/or potassium applied by crop, which is then multiplied by N, P, & K prices per pound. Similarly, the user is asked to input benchmark and current tons per acre of manure &/or compost applied by crop, which is then multiplied by the farmer-provided price (required to be input on the 'Study Area Overview' tab.) Remember: if analyzing CCR, enter benchmark and current fertilizer applied to each crop. If not analyzing CCR, you only need to provide benchmark and current fertilizer costs that changed due to the adoption of the other soil health practices.
B59: TIPS:
B60: (1) Do not include the machinery cost for applying fertilizer, manure, or compost, as captured on the 'Machinery' or 'Cover Crops' tabs.
B61: (2) If the user does not want to use the default national average N, P, & K $/lb, the user must provide their preferred price(s) on the 'Study Area Overview' farmer-provided prices table.
B63: (3) Alternatively or in addition, a user could enter a $/ac fertilizer cost by crop in the below table (e.g., unknown N, P, K lbs/acre, but known total fertilizer input cost; or in addition to N,P,K inputs, a micronutrient blend is applied which can be captured in the $/ac row.)
B65: (4) If the user applies manure &/or compost, it is required to provide manure/compost prices in the 'Study Area Overview" farmer-provided prices table as there are no national averages in this tool.
B67: (5) If the user is analyzing the adoption of cover crops, do not include additions of fertilizer inputs applied to cover crops here. They must only be on the 'Cover Crops' tab. Be careful not to double-count fertilizer inputs.
B69: (6) The 'Nutrient Prices Used' table auto-updates to show farmer-provided prices if applicable, otherwise the default values are shown for reference.
B71: Nutrient Prices Used
B72: Nitrogen ($/lb) | C72: =IF('Study Area Overview'!$D$98>0,'Study Area Overview'!$D$98,'Prices (2023)'!$C$93) -> 0.6275676287
B73: Phosphorus ($/lb) | C73: =IF('Study Area Overview'!$D$99>0,'Study Area Overview'!$D$99,'Prices (2023)'!$C$94) -> 0.6146598605
B74: Potassium ($/lb) | C74: =IF('Study Area Overview'!$D$100>0,'Study Area Overview'!$D$100,'Prices (2023)'!$C$95) -> 0.5363283147
B76: Benchmark Fertilizer Applied by Crop | C76: =IF('Study Area Overview'!$B$48="","",'Study Area Overview'!$B$48) ->  | D76: =IF('Study Area Overview'!$B$49="","",'Study Area Overview'!$B$49) ->  | E76: =IF('Study Area Overview'!$B$50="","",'Study Area Overview'!$B$50) ->  | F76: =IF('Study Area Overview'!$B$51="","",'Study Area Overview'!$B$51) ->  | G76: =IF('Study Area Overview'!$B$52="","",'Study Area Overview'!$B$52) ->  | H76: =IF('Study Area Overview'!$B$53="","",'Study Area Overview'!$B$53) ->  | I76: =IF('Study Area Overview'!$B$54="","",'Study Area Overview'!$B$54) ->  | J76: =IF('Study Area Overview'!$B$55="","",'Study Area Overview'!$B$55) ->  | K76: =IF('Study Area Overview'!$B$56="","",'Study Area Overview'!$B$56) ->  | L76: =IF('Study Area Overview'!$B$57="","",'Study Area Overview'!$B$57) -> 
B77: Nitrogen (Lbs/Ac)
B78: Phosphorus (Lbs/Ac)
B79: Potassium (Lbs/Ac)
B80: Other Fertilizer ($/Ac)
B81: Fertilizer forms used (optional)
B82: Benchmark Fertilizer Cost ($/Ac) | C82: =IFERROR(SUM((C77*$C$72),(C78*$C$73),(C79*$C$74),C80),0) -> 0 | D82: =IFERROR(SUM((D77*$C$72),(D78*$C$73),(D79*$C$74),D80),0) -> 0 | E82: =IFERROR(SUM((E77*$C$72),(E78*$C$73),(E79*$C$74),E80),0) -> 0 | F82: 0 | G82: 0 | H82: 0 | I82: 0 | J82: 0 | K82: 0 | L82: 0
B83: Current Fertilizer Applied by Crop | C83: =IF('Study Area Overview'!$B$61="","",'Study Area Overview'!$B$61) ->  | D83: =IF('Study Area Overview'!$B$62="","",'Study Area Overview'!$B$62) ->  | E83: =IF('Study Area Overview'!$B$63="","",'Study Area Overview'!$B$63) ->  | F83: =IF('Study Area Overview'!$B$64="","",'Study Area Overview'!$B$64) ->  | G83: =IF('Study Area Overview'!$B$65="","",'Study Area Overview'!$B$65) ->  | H83: =IF('Study Area Overview'!$B$66="","",'Study Area Overview'!$B$66) ->  | I83: =IF('Study Area Overview'!$B$67="","",'Study Area Overview'!$B$67) ->  | J83: =IF('Study Area Overview'!$B$68="","",'Study Area Overview'!$B$68) ->  | K83: =IF('Study Area Overview'!$B$69="","",'Study Area Overview'!$B$69) ->  | L83: =IF('Study Area Overview'!$B$70="","",'Study Area Overview'!$B$70) -> 
B84: Nitrogen (Lbs/Ac)
B85: Phosphorus (Lbs/Ac)
B86: Potassium (Lbs/Ac)
B87: Other Fertilizer ($/Ac)
B88: Fertilizer forms used (optional)
B89: Current Fertilizer Cost ($/Ac) | C89: =IFERROR(SUM((C84*$C$72),(C85*$C$73),(C86*$C$74),C87),0) -> 0 | D89: =IFERROR(SUM((D84*$C$72),(D85*$C$73),(D86*$C$74),D87),0) -> 0 | E89: 0 | F89: 0 | G89: 0 | H89: 0 | I89: 0 | J89: 0 | K89: 0 | L89: 0
B91: Benchmark Manure/Compost Applied by Crop | C91: =IF('Study Area Overview'!$B$48="","",'Study Area Overview'!$B$48) ->  | D91: =IF('Study Area Overview'!$B$49="","",'Study Area Overview'!$B$49) ->  | E91: =IF('Study Area Overview'!$B$50="","",'Study Area Overview'!$B$50) ->  | F91: =IF('Study Area Overview'!$B$51="","",'Study Area Overview'!$B$51) ->  | G91: =IF('Study Area Overview'!$B$52="","",'Study Area Overview'!$B$52) ->  | H91: =IF('Study Area Overview'!$B$53="","",'Study Area Overview'!$B$53) ->  | I91: =IF('Study Area Overview'!$B$54="","",'Study Area Overview'!$B$54) ->  | J91: =IF('Study Area Overview'!$B$55="","",'Study Area Overview'!$B$55) ->  | K91: =IF('Study Area Overview'!$B$56="","",'Study Area Overview'!$B$56) ->  | L91: =IF('Study Area Overview'!$B$57="","",'Study Area Overview'!$B$57) -> 
B92: Manure Type (optional)
B93: Manure (Tons/Ac)
B94: Manure Price per Ton | C94: =IF(C93="","",'Study Area Overview'!$D$101) ->  | D94: =IF(D93="","",'Study Area Overview'!$D$101) ->  | E94: =IF(E93="","",'Study Area Overview'!$D$101) ->  | F94: =IF(F93="","",'Study Area Overview'!$D$101) ->  | G94: =IF(G93="","",'Study Area Overview'!$D$101) ->  | H94: =IF(H93="","",'Study Area Overview'!$D$101) ->  | I94: =IF(I93="","",'Study Area Overview'!$D$101) ->  | J94: =IF(J93="","",'Study Area Overview'!$D$101) ->  | K94: =IF(K93="","",'Study Area Overview'!$D$101) ->  | L94: =IF(L93="","",'Study Area Overview'!$D$101) -> 
B95: Compost Type (optional)
B96: Compost (Tons/Ac)
B97: Compost Price per Ton | C97: =IF(C96="","",'Study Area Overview'!$D$102) ->  | D97: =IF(D96="","",'Study Area Overview'!$D$102) ->  | E97: =IF(E96="","",'Study Area Overview'!$D$102) ->  | F97: =IF(F96="","",'Study Area Overview'!$D$102) ->  | G97: =IF(G96="","",'Study Area Overview'!$D$102) ->  | H97: =IF(H96="","",'Study Area Overview'!$D$102) ->  | I97: =IF(I96="","",'Study Area Overview'!$D$102) ->  | J97: =IF(J96="","",'Study Area Overview'!$D$102) ->  | K97: =IF(K96="","",'Study Area Overview'!$D$102) ->  | L97: =IF(L96="","",'Study Area Overview'!$D$102) -> 
B98: Benchmark Manure/Compost Cost ($/Ac) | C98: =IFERROR(SUM(C93*C94,C96*C97),0) -> 0 | D98: =IFERROR(SUM(D93*D94,D96*D97),0) -> 0 | E98: 0 | F98: 0 | G98: 0 | H98: 0 | I98: 0 | J98: 0 | K98: 0 | L98: 0
B99: Current Manure/Compost Applied by Crop | C99: =IF('Study Area Overview'!$B$61="","",'Study Area Overview'!$B$61) ->  | D99: =IF('Study Area Overview'!$B$62="","",'Study Area Overview'!$B$62) ->  | E99: =IF('Study Area Overview'!$B$63="","",'Study Area Overview'!$B$63) ->  | F99: =IF('Study Area Overview'!$B$64="","",'Study Area Overview'!$B$64) ->  | G99: =IF('Study Area Overview'!$B$65="","",'Study Area Overview'!$B$65) ->  | H99: =IF('Study Area Overview'!$B$66="","",'Study Area Overview'!$B$66) ->  | I99: =IF('Study Area Overview'!$B$67="","",'Study Area Overview'!$B$67) ->  | J99: =IF('Study Area Overview'!$B$68="","",'Study Area Overview'!$B$68) ->  | K99: =IF('Study Area Overview'!$B$69="","",'Study Area Overview'!$B$69) ->  | L99: =IF('Study Area Overview'!$B$70="","",'Study Area Overview'!$B$70) -> 
B100: Manure Type (optional)
B101: Manure (Tons/Ac)
B102: Manure Price per Ton | C102: =IF(C101="","",'Study Area Overview'!$D$101) ->  | D102: =IF(D101="","",'Study Area Overview'!$D$101) ->  | E102: =IF(E101="","",'Study Area Overview'!$D$101) ->  | F102: =IF(F101="","",'Study Area Overview'!$D$101) ->  | G102: =IF(G101="","",'Study Area Overview'!$D$101) ->  | H102: =IF(H101="","",'Study Area Overview'!$D$101) ->  | I102: =IF(I101="","",'Study Area Overview'!$D$101) ->  | J102: =IF(J101="","",'Study Area Overview'!$D$101) ->  | K102: =IF(K101="","",'Study Area Overview'!$D$101) ->  | L102: =IF(L101="","",'Study Area Overview'!$D$101) -> 
B103: Compost Type (optional)
B104: Compost (Tons/Ac)
B105: Compost Price per Ton | C105: =IF(C104="","",'Study Area Overview'!$D$102) ->  | D105: =IF(D104="","",'Study Area Overview'!$D$102) ->  | E105: =IF(E104="","",'Study Area Overview'!$D$102) ->  | F105: =IF(F104="","",'Study Area Overview'!$D$102) ->  | G105: =IF(G104="","",'Study Area Overview'!$D$102) ->  | H105: =IF(H104="","",'Study Area Overview'!$D$102) ->  | I105: =IF(I104="","",'Study Area Overview'!$D$102) ->  | J105: =IF(J104="","",'Study Area Overview'!$D$102) ->  | K105: =IF(K104="","",'Study Area Overview'!$D$102) ->  | L105: =IF(L104="","",'Study Area Overview'!$D$102) -> 
B106: Current Manure/Compost Cost ($/Ac) | C106: =IFERROR(SUM(C101*C102,C104*C105),0) -> 0 | D106: =IFERROR(SUM(D101*D102,D104*D105),0) -> 0 | E106: =IFERROR(SUM(E101*E102,E104*E105),0) -> 0 | F106: 0 | G106: 0 | H106: 0 | I106: 0 | J106: 0 | K106: 0 | L106: 0
A108: Chemical Costs by Crop
A109: The user is asked to input benchmark and current $/ac herbicide, insecticide, &/or fungicide by crop. This is because we do not have default prices for these chemicals as they are so wide-ranging and diverse. It is optional to provide herbicide used &/or purpose and amount applied per acre as it is not information used by the tool, but space for the user to keep notes. Remember: if analyzing CCR, enter benchmark and current chemicals applied to each crop. If not analyzing CCR, you only need to provide benchmark and current chemical costs that changed due to the adoption of the other soil health practices.
B114: TIPS:
B115: (1) Alternatively, a user could enter a total $/ac chemical cost by crop in one of the three categories in the below table instead of by herbicide, fungicide, and insecticide categories.
B117: (2) Do not include the machinery cost for applying herbicide, fungicide, or insecticide, as that is captured on the 'Machinery' or 'Cover Crops' tabs.
B119: (3) If the user is analyzing the adoption of cover crops, do not include any additions of chemical inputs applied to cover crops here. They must only be on the 'Cover Crops' tab. Be careful not to double-count chemical inputs.
B121: Benchmark Chemicals Applied by Crop | C121: =IF('Study Area Overview'!$B$48="","",'Study Area Overview'!$B$48) ->  | D121: =IF('Study Area Overview'!$B$49="","",'Study Area Overview'!$B$49) ->  | E121: =IF('Study Area Overview'!$B$50="","",'Study Area Overview'!$B$50) ->  | F121: =IF('Study Area Overview'!$B$51="","",'Study Area Overview'!$B$51) ->  | G121: =IF('Study Area Overview'!$B$52="","",'Study Area Overview'!$B$52) ->  | H121: =IF('Study Area Overview'!$B$53="","",'Study Area Overview'!$B$53) ->  | I121: =IF('Study Area Overview'!$B$54="","",'Study Area Overview'!$B$54) ->  | J121: =IF('Study Area Overview'!$B$55="","",'Study Area Overview'!$B$55) ->  | K121: =IF('Study Area Overview'!$B$56="","",'Study Area Overview'!$B$56) ->  | L121: =IF('Study Area Overview'!$B$57="","",'Study Area Overview'!$B$57) -> 
B122: Herbicide Type &/or Purpose (optional)
B123: Herbicide Amount Applied Per Acre (optional)
B124: Herbicide Price per Acre
B125: Insecticide Type &/or Purpose (optional)
B126: Insecticide Amt Applied Per Acre (optional)
B127: Insecticide Price per Acre
B128: Fungicide Type &/or Purpose (optional)
B129: Fungicide Amount Applied Per Acre (optional)
B130: Fungicide Price per Acre
B131: Benchmark Chemical Cost ($/Ac) | C131: =IFERROR(SUM(C124,C127,C130),0) -> 0 | D131: =IFERROR(SUM(D124,D127,D130),0) -> 0 | E131: 0 | F131: 0 | G131: 0 | H131: 0 | I131: 0 | J131: 0 | K131: 0 | L131: 0
B132: Current Chemicals Applied by Crop | C132: =IF('Study Area Overview'!$B$61="","",'Study Area Overview'!$B$61) ->  | D132: =IF('Study Area Overview'!$B$62="","",'Study Area Overview'!$B$62) ->  | E132: =IF('Study Area Overview'!$B$63="","",'Study Area Overview'!$B$63) ->  | F132: =IF('Study Area Overview'!$B$64="","",'Study Area Overview'!$B$64) ->  | G132: =IF('Study Area Overview'!$B$65="","",'Study Area Overview'!$B$65) ->  | H132: =IF('Study Area Overview'!$B$66="","",'Study Area Overview'!$B$66) ->  | I132: =IF('Study Area Overview'!$B$67="","",'Study Area Overview'!$B$67) ->  | J132: =IF('Study Area Overview'!$B$68="","",'Study Area Overview'!$B$68) ->  | K132: =IF('Study Area Overview'!$B$69="","",'Study Area Overview'!$B$69) ->  | L132: =IF('Study Area Overview'!$B$70="","",'Study Area Overview'!$B$70) -> 
B133: Herbicide Used &/or Purpose (optional)
B134: Herbicide Amount Applied Per Acre (optional)
B135: Herbicide Price per Acre
B136: Insecticide Used &/or Purpose (optional)
B137: Insecticide Amt Applied Per Acre (optional)
B138: Insecticide Price per Acre
B139: Fungicide Used &/or Purpose (optional)
B140: Fungicide Amount Applied Per Acre (optional)
B141: Fungicide Price per Acre
B142: Current Chemical Cost ($/Ac) | C142: =IFERROR(SUM(C135,,C138,C141),0) -> 0 | D142: 0 | E142: 0 | F142: 0 | G142: 0 | H142: 0 | I142: 0 | J142: 0 | K142: 0 | L142: =IFERROR(SUM((L135),,L138,L141),0) -> 0
A144: Summary of Benchmark & Current Input Costs by Crop
B146: Benchmark Cash Crop Input Costs | C146: =IF('Study Area Overview'!$B$48="","",'Study Area Overview'!$B$48) ->  | D146: =IF('Study Area Overview'!$B$49="","",'Study Area Overview'!$B$49) ->  | E146: =IF('Study Area Overview'!$B$50="","",'Study Area Overview'!$B$50) ->  | F146: =IF('Study Area Overview'!$B$51="","",'Study Area Overview'!$B$51) ->  | G146: =IF('Study Area Overview'!$B$52="","",'Study Area Overview'!$B$52) ->  | H146: =IF('Study Area Overview'!$B$53="","",'Study Area Overview'!$B$53) ->  | I146: =IF('Study Area Overview'!$B$54="","",'Study Area Overview'!$B$54) ->  | J146: =IF('Study Area Overview'!$B$55="","",'Study Area Overview'!$B$55) ->  | K146: =IF('Study Area Overview'!$B$56="","",'Study Area Overview'!$B$56) ->  | L146: =IF('Study Area Overview'!$B$57="","",'Study Area Overview'!$B$57) -> 
B147: Seed Cost ($/Ac) | C147: =IF(C34>0,IF(OR(C146="Hay, alfalfa",C146="Hay, all other"),C34/'Study Area Overview'!C48,C34),IF(C146="",0,0)) -> 0 | D147: =IF(D34>0,IF(OR(D146="Hay, alfalfa",D146="Hay, all other"),D34/'Study Area Overview'!C49,D34),IF(D146="",0,0)) -> 0 | E147: =IF(E34>0,IF(OR(E146="Hay, alfalfa",E146="Hay, all other"),E34/'Study Area Overview'!C50,E34),IF(E146="",0,0)) -> 0 | F147: =IF(F34>0,IF(OR(F146="Hay, alfalfa",F146="Hay, all other"),F34/'Study Area Overview'!C51,F34),IF(F146="",0,0)) -> 0 | G147: =IF(G34>0,IF(OR(G146="Hay, alfalfa",G146="Hay, all other"),G34/'Study Area Overview'!C52,G34),IF(G146="",0,0)) -> 0 | H147: =IF(H34>0,IF(OR(H146="Hay, alfalfa",H146="Hay, all other"),H34/'Study Area Overview'!C53,H34),IF(H146="",0,0)) -> 0 | I147: =IF(I34>0,IF(OR(I146="Hay, alfalfa",I146="Hay, all other"),I34/'Study Area Overview'!C54,I34),IF(I146="",0,0)) -> 0 | J147: =IF(J34>0,IF(OR(J146="Hay, alfalfa",J146="Hay, all other"),J34/'Study Area Overview'!C55,J34),IF(J146="",0,0)) -> 0 | K147: =IF(K34>0,IF(OR(K146="Hay, alfalfa",K146="Hay, all other"),K34/'Study Area Overview'!C56,K34),IF(K146="",0,0)) -> 0 | L147: =IF(L34>0,IF(OR(L146="Hay, alfalfa",L146="Hay, all other"),L34/'Study Area Overview'!C57,L34),IF(L146="",0,0)) -> 0
B148: Soil Sampling Cost ($/Ac) | C148: =IF(C46>0,C46,IF(C146="",0,0)) -> 0 | D148: 0 | E148: 0 | F148: 0 | G148: 0 | H148: 0 | I148: 0 | J148: 0 | K148: 0 | L148: 0
B149: Fertilizer Cost ($/Ac) | C149: =IF(C82>0,C82,IF(C146="",0,0)) -> 0 | D149: 0 | E149: 0 | F149: 0 | G149: 0 | H149: 0 | I149: 0 | J149: 0 | K149: 0 | L149: 0
B150: Manure/Compost Cost ($/Ac) | C150: =IF(C98>0,C98,IF(C146="",0,0)) -> 0 | D150: 0 | E150: 0 | F150: 0 | G150: 0 | H150: 0 | I150: 0 | J150: 0 | K150: 0 | L150: 0
B151: Chemical Cost ($/Ac) | C151: =IF(C131>0,C131,IF(C146="",0,0)) -> 0 | D151: =IF(D131>0,D131,IF(D146="",0,0)) -> 0 | E151: =IF(E131>0,E131,IF(E146="",0,0)) -> 0 | F151: =IF(F131>0,F131,IF(F146="",0,0)) -> 0 | G151: 0 | H151: 0 | I151: 0 | J151: 0 | K151: 0 | L151: 0
B152: Current Cash Crop Input Costs | C152: =IF('Study Area Overview'!$B$61="","",'Study Area Overview'!$B$61) ->  | D152: =IF('Study Area Overview'!$B$62="","",'Study Area Overview'!$B$62) ->  | E152: =IF('Study Area Overview'!$B$63="","",'Study Area Overview'!$B$63) ->  | F152: =IF('Study Area Overview'!$B$64="","",'Study Area Overview'!$B$64) ->  | G152: =IF('Study Area Overview'!$B$65="","",'Study Area Overview'!$B$65) ->  | H152: =IF('Study Area Overview'!$B$66="","",'Study Area Overview'!$B$66) ->  | I152: =IF('Study Area Overview'!$B$67="","",'Study Area Overview'!$B$67) ->  | J152: =IF('Study Area Overview'!$B$68="","",'Study Area Overview'!$B$68) ->  | K152: =IF('Study Area Overview'!$B$69="","",'Study Area Overview'!$B$69) ->  | L152: =IF('Study Area Overview'!$B$70="","",'Study Area Overview'!$B$70) -> 
B153: Seed Cost ($/Ac) | C153: =IF(C36>0,IF(OR(C152="Hay, alfalfa",C152="Hay, all other"),C36/'Study Area Overview'!C61,C36),IF(C152="",0,0)) -> 0 | D153: =IF(D36>0,IF(OR(D152="Hay, alfalfa",D152="Hay, all other"),D36/'Study Area Overview'!C62,D36),IF(D152="",0,0)) -> 0 | E153: =IF(E36>0,IF(OR(E152="Hay, alfalfa",E152="Hay, all other"),E36/'Study Area Overview'!C63,E36),IF(E152="",0,0)) -> 0 | F153: =IF(F36>0,IF(OR(F152="Hay, alfalfa",F152="Hay, all other"),F36/'Study Area Overview'!C64,F36),IF(F152="",0,0)) -> 0 | G153: =IF(G36>0,IF(OR(G152="Hay, alfalfa",G152="Hay, all other"),G36/'Study Area Overview'!C65,G36),IF(G152="",0,0)) -> 0 | H153: =IF(H36>0,IF(OR(H152="Hay, alfalfa",H152="Hay, all other"),H36/'Study Area Overview'!C66,H36),IF(H152="",0,0)) -> 0 | I153: =IF(I36>0,IF(OR(I152="Hay, alfalfa",I152="Hay, all other"),I36/'Study Area Overview'!C67,I36),IF(I152="",0,0)) -> 0 | J153: =IF(J36>0,IF(OR(J152="Hay, alfalfa",J152="Hay, all other"),J36/'Study Area Overview'!C68,J36),IF(J152="",0,0)) -> 0 | K153: =IF(K36>0,IF(OR(K152="Hay, alfalfa",K152="Hay, all other"),K36/'Study Area Overview'!C69,K36),IF(K152="",0,0)) -> 0 | L153: =IF(L36>0,IF(OR(L152="Hay, alfalfa",L152="Hay, all other"),L36/'Study Area Overview'!C70,L36),IF(L152="",0,0)) -> 0
B154: Soil Sampling Cost ($/Ac) | C154: =IF(C51>0,C51,IF(C152="",0,0)) -> 0 | D154: 0 | E154: 0 | F154: 0 | G154: 0 | H154: 0 | I154: 0 | J154: 0 | K154: 0 | L154: 0
B155: Fertilizer Cost ($/Ac) | C155: =IF(C89>0,C89,IF(C152="",0,0)) -> 0 | D155: 0 | E155: 0 | F155: 0 | G155: 0 | H155: 0 | I155: 0 | J155: 0 | K155: 0 | L155: 0
B156: Manure/Compost Cost ($/Ac) | C156: =IF(C106>0,C106,IF(C152="",0,0)) -> 0 | D156: 0 | E156: 0 | F156: 0 | G156: 0 | H156: 0 | I156: 0 | J156: 0 | K156: 0 | L156: 0
B157: Chemical Cost ($/Ac) | C157: =IF(C142>0,C142,IF(C152="",0,0)) -> 0 | D157: =IF(D142>0,D142,IF(D152="",0,0)) -> 0 | E157: =IF(E142>0,E142,IF(E152="",0,0)) -> 0 | F157: =IF(F142>0,F142,IF(F152="",0,0)) -> 0 | G157: 0 | H157: 0 | I157: 0 | J157: 0 | K157: 0 | L157: 0
B158: =SUM(C158:D158) -> 0
A159: Summary of Changes in Input Costs
A160: The results below summarize the change in input costs by cash crop by subtracting the benchmark from current cash crop input costs by category by crop. The results are presented per acre only; you can find total change per year on the 'Yields' tab. The last two columns present the study area weighted average change for all inputs costs across all crops. Two categories of weighted averages are provided: the first being the weighted average considering only changes on acres with the same before/after crop, while the second being the weighted average considering only changes on acres with different before/after crops. If not analyzing a CCR, only the first weighted average applies because there is no change in crop rotation analyzed. Note: The user must select from the dropdown list which soil health practice(s) they attribute to the input cost changes as that feeds into the 'Results' partial budget analysis table.
M169: Weighted Average Change, No CCR ($/Ac) | N169: Weighted Average Change, CCR only ($/Ac)
B171: Change in Input Costs by Cash Crop | C171: =IF('Study Area Overview'!$B61="","",'Study Area Overview'!$B61) ->  | D171: =IF('Study Area Overview'!$B62="","",'Study Area Overview'!$B62) ->  | E171: =IF('Study Area Overview'!$B63="","",'Study Area Overview'!$B63) ->  | F171: =IF('Study Area Overview'!$B64="","",'Study Area Overview'!$B64) ->  | G171: =IF('Study Area Overview'!$B65="","",'Study Area Overview'!$B65) ->  | H171: =IF('Study Area Overview'!$B66="","",'Study Area Overview'!$B66) ->  | I171: =IF('Study Area Overview'!$B67="","",'Study Area Overview'!$B67) ->  | J171: =IF('Study Area Overview'!$B68="","",'Study Area Overview'!$B68) ->  | K171: =IF('Study Area Overview'!$B69="","",'Study Area Overview'!$B69) ->  | L171: =IF('Study Area Overview'!$B70="","",'Study Area Overview'!$B70) -> 
B172: Seed Cost Change by Crop ($/Ac) | C172: =IF(C$171="",0,(IF(Matrix!F$37>0,(SUMPRODUCT(Matrix!$F$12:$O$12,$C$153:$L$153)-SUMPRODUCT(Matrix!$F$12:$O$12,$C$147:$L$147)),0)+IF(Matrix!F$39+Matrix!F$40>0,SUM(C$153*Matrix!F$39,C$153*Matrix!F$40)-SUMPRODUCT(Matrix!$F$32:$O$32,$C$147:$L$147),0)+IF(Matrix!F$38>0,C$153*Matrix!F$38,0))/SUM(Matrix!F$37:F$40)) -> 0 | D172: =IF(D$171="",0,(IF(Matrix!G$37>0,(SUMPRODUCT(Matrix!$F$14:$O$14,$C$153:$L$153)-SUMPRODUCT(Matrix!$F$14:$O$14,$C$147:$L$147)),0)+IF(Matrix!G$39+Matrix!G$40>0,SUM(D$153*Matrix!G$39,D$153*Matrix!G$40)-SUMPRODUCT(Matrix!$F$32:$O$32,$C$147:$L$147),0)+IF(Matrix!G$38>0,D$153*Matrix!G$38,0))/SUM(Matrix!G$37:G$40)) -> 0 | E172: =IF(E$171="",0,(IF(Matrix!H$37>0,(SUMPRODUCT(Matrix!$F$16:$O$16,$C$153:$L$153)-SUMPRODUCT(Matrix!$F$16:$O$16,$C$147:$L$147)),0)+IF(Matrix!H$39+Matrix!H$40>0,SUM(E$153*Matrix!H$39,E$153*Matrix!H$40)-SUMPRODUCT(Matrix!$F$32:$O$32,$C$147:$L$147),0)+IF(Matrix!H$38>0,E$153*Matrix!H$38,0))/SUM(Matrix!H$37:H$40)) -> 0 | F172: =IF(F$171="",0,(IF(Matrix!I$37>0,(SUMPRODUCT(Matrix!$F$18:$O$18,$C$153:$L$153)-SUMPRODUCT(Matrix!$F$18:$O$18,$C$147:$L$147)),0)+IF(Matrix!I$39+Matrix!I$40>0,SUM(F$153*Matrix!I$39,F$153*Matrix!I$40)-SUMPRODUCT(Matrix!$F$32:$O$32,$C$147:$L$147),0)+IF(Matrix!I$38>0,F$153*Matrix!I$38,0))/SUM(Matrix!I$37:I$40)) -> 0 | G172: =IF(G$171="",0,(IF(Matrix!J$37>0,(SUMPRODUCT(Matrix!$F$20:$O$20,$C$153:$L$153)-SUMPRODUCT(Matrix!$F$20:$O$20,$C$147:$L$147)),0)+IF(Matrix!J$39+Matrix!J$40>0,SUM(G$153*Matrix!J$39,G$153*Matrix!J$40)-SUMPRODUCT(Matrix!$F$32:$O$32,$C$147:$L$147),0)+IF(Matrix!J$38>0,G$153*Matrix!J$38,0))/SUM(Matrix!J$37:J$40)) -> 0 | H172: =IF(H$171="",0,(IF(Matrix!K$37>0,(SUMPRODUCT(Matrix!$F$22:$O$22,$C$153:$L$153)-SUMPRODUCT(Matrix!$F$22:$O$22,$C$147:$L$147)),0)+IF(Matrix!K$39+Matrix!K$40>0,SUM(H$153*Matrix!K$39,H$153*Matrix!K$40)-SUMPRODUCT(Matrix!$F$32:$O$32,$C$147:$L$147),0)+IF(Matrix!K$38>0,H$153*Matrix!K$38,0))/SUM(Matrix!K$37:K$40)) -> 0 | I172: =IF(I$171="",0,(IF(Matrix!L$37>0,(SUMPRODUCT(Matrix!$F$24:$O$24,$C$153:$L$153)-SUMPRODUCT(Matrix!$F$24:$O$24,$C$147:$L$147)),0)+IF(Matrix!L$39+Matrix!L$40>0,SUM(I$153*Matrix!L$39,I$153*Matrix!L$40)-SUMPRODUCT(Matrix!$F$32:$O$32,$C$147:$L$147),0)+IF(Matrix!L$38>0,I$153*Matrix!L$38,0))/SUM(Matrix!L$37:L$40)) -> 0 | J172: =IF(J$171="",0,(IF(Matrix!M$37>0,(SUMPRODUCT(Matrix!$F$26:$O$26,$C$153:$L$153)-SUMPRODUCT(Matrix!$F$26:$O$26,$C$147:$L$147)),0)+IF(Matrix!M$39+Matrix!M$40>0,SUM(J$153*Matrix!M$39,J$153*Matrix!M$40)-SUMPRODUCT(Matrix!$F$32:$O$32,$C$147:$L$147),0)+IF(Matrix!M$38>0,J$153*Matrix!M$38,0))/SUM(Matrix!M$37:M$40)) -> 0 | K172: =IF(K$171="",0,(IF(Matrix!N$37>0,(SUMPRODUCT(Matrix!$F$28:$O$28,$C$153:$L$153)-SUMPRODUCT(Matrix!$F$28:$O$28,$C$147:$L$147)),0)+IF(Matrix!N$39+Matrix!N$40>0,SUM(K$153*Matrix!N$39,K$153*Matrix!N$40)-SUMPRODUCT(Matrix!$F$32:$O$32,$C$147:$L$147),0)+IF(Matrix!N$38>0,K$153*Matrix!N$38,0))/SUM(Matrix!N$37:N$40)) -> 0 | L172: =IF(L$171="",0,(IF(Matrix!O$37>0,(SUMPRODUCT(Matrix!$F$30:$O$30,$C$153:$L$153)-SUMPRODUCT(Matrix!$F$30:$O$30,$C$147:$L$147)),0)+IF(Matrix!O$39+Matrix!O$40>0,SUM(L$153*Matrix!O$39,L$153*Matrix!O$40)-SUMPRODUCT(Matrix!$F$32:$O$32,$C$147:$L$147),0)+IF(Matrix!O$38>0,L$153*Matrix!O$38,0))/SUM(Matrix!O$37:O$40)) -> 0 | M172: =(SUMPRODUCT($C$153:$L$153,Matrix!$F$37:$O$37)-SUMPRODUCT(Matrix!$F$37:$O$37,$C$147:$L$147))/IF(SUM(SUMPRODUCT($C$153:$L$153,Matrix!$F$37:$O$37)-SUMPRODUCT(Matrix!$F$37:$O$37,$C$147:$L$147))=0,1,SUMPRODUCT(--($C$153:$L$153-$C$147:$L$147<>0),Matrix!$F$37:$O$37)) -> 0 | N172: =(SUMPRODUCT(C172:L172,Matrix!$F$38:$O$38)+SUMPRODUCT(C172:L172,Matrix!$F$39:$O$39))/IF(SUMIF(C172:L172,"<>0",Matrix!$F$38:$O$38) + SUMIF(C172:L172,"<>0",Matrix!$F$39:$O$39)=0,1,SUMIF(C172:L172,"<>0",Matrix!$F$38:$O$38) + SUMIF(C172:L172,"<>0",Matrix!$F$39:$O$39)) -> 0
B173: Study Area Seed Cost Per Acre Change (Weighted Average, $/Ac)
B174: Soil Sampling Change by Crop ($/Ac) | C174: =IF(C$171="",0,(IF(Matrix!F$37>0,(SUMPRODUCT(Matrix!$F$12:$O$12,$C$154:$L$154)-SUMPRODUCT(Matrix!$F$12:$O$12,$C$148:$L$148)),0)+IF(Matrix!F$39+Matrix!F$40>0,SUM(C$154*Matrix!F$39,C$154*Matrix!F$40)-SUMPRODUCT(Matrix!$F$32:$O$32,$C$148:$L$148),0)+IF(Matrix!F$38>0,C$154*Matrix!F$38,0))/SUM(Matrix!F$37:F$40)) -> 0 | D174: =IF(D$171="",0,(IF(Matrix!G$37>0,(SUMPRODUCT(Matrix!$F$14:$O$14,$C$154:$L$154)-SUMPRODUCT(Matrix!$F$14:$O$14,$C$148:$L$148)),0)+IF(Matrix!G$39+Matrix!G$40>0,SUM(D$154*Matrix!G$39,D$154*Matrix!G$40)-SUMPRODUCT(Matrix!$F$32:$O$32,$C$148:$L$148),0)+IF(Matrix!G$38>0,D$154*Matrix!G$38,0))/SUM(Matrix!G$37:G$40)) -> 0 | E174: =IF(E$171="",0,(IF(Matrix!H$37>0,(SUMPRODUCT(Matrix!$F$16:$O$16,$C$154:$L$154)-SUMPRODUCT(Matrix!$F$16:$O$16,$C$148:$L$148)),0)+IF(Matrix!H$39+Matrix!H$40>0,SUM(E$154*Matrix!H$39,E$154*Matrix!H$40)-SUMPRODUCT(Matrix!$F$32:$O$32,$C$148:$L$148),0)+IF(Matrix!H$38>0,E$154*Matrix!H$38,0))/SUM(Matrix!H$37:H$40)) -> 0 | F174: =IF(F$171="",0,(IF(Matrix!I$37>0,(SUMPRODUCT(Matrix!$F$18:$O$18,$C$154:$L$154)-SUMPRODUCT(Matrix!$F$18:$O$18,$C$148:$L$148)),0)+IF(Matrix!I$39+Matrix!I$40>0,SUM(F$154*Matrix!I$39,F$154*Matrix!I$40)-SUMPRODUCT(Matrix!$F$32:$O$32,$C$148:$L$148),0)+IF(Matrix!I$38>0,F$154*Matrix!I$38,0))/SUM(Matrix!I$37:I$40)) -> 0 | G174: =IF(G$171="",0,(IF(Matrix!J$37>0,(SUMPRODUCT(Matrix!$F$20:$O$20,$C$154:$L$154)-SUMPRODUCT(Matrix!$F$20:$O$20,$C$148:$L$148)),0)+IF(Matrix!J$39+Matrix!J$40>0,SUM(G$154*Matrix!J$39,G$154*Matrix!J$40)-SUMPRODUCT(Matrix!$F$32:$O$32,$C$148:$L$148),0)+IF(Matrix!J$38>0,G$154*Matrix!J$38,0))/SUM(Matrix!J$37:J$40)) -> 0 | H174: =IF(H$171="",0,(IF(Matrix!K$37>0,(SUMPRODUCT(Matrix!$F$22:$O$22,$C$154:$L$154)-SUMPRODUCT(Matrix!$F$22:$O$22,$C$148:$L$148)),0)+IF(Matrix!K$39+Matrix!K$40>0,SUM(H$154*Matrix!K$39,H$154*Matrix!K$40)-SUMPRODUCT(Matrix!$F$32:$O$32,$C$148:$L$148),0)+IF(Matrix!K$38>0,H$154*Matrix!K$38,0))/SUM(Matrix!K$37:K$40)) -> 0 | I174: =IF(I$171="",0,(IF(Matrix!L$37>0,(SUMPRODUCT(Matrix!$F$24:$O$24,$C$154:$L$154)-SUMPRODUCT(Matrix!$F$24:$O$24,$C$148:$L$148)),0)+IF(Matrix!L$39+Matrix!L$40>0,SUM(I$154*Matrix!L$39,I$154*Matrix!L$40)-SUMPRODUCT(Matrix!$F$32:$O$32,$C$148:$L$148),0)+IF(Matrix!L$38>0,I$154*Matrix!L$38,0))/SUM(Matrix!L$37:L$40)) -> 0 | J174: =IF(J$171="",0,(IF(Matrix!M$37>0,(SUMPRODUCT(Matrix!$F$26:$O$26,$C$154:$L$154)-SUMPRODUCT(Matrix!$F$26:$O$26,$C$148:$L$148)),0)+IF(Matrix!M$39+Matrix!M$40>0,SUM(J$154*Matrix!M$39,J$154*Matrix!M$40)-SUMPRODUCT(Matrix!$F$32:$O$32,$C$148:$L$148),0)+IF(Matrix!M$38>0,J$154*Matrix!M$38,0))/SUM(Matrix!M$37:M$40)) -> 0 | K174: =IF(K$171="",0,(IF(Matrix!N$37>0,(SUMPRODUCT(Matrix!$F$28:$O$28,$C$154:$L$154)-SUMPRODUCT(Matrix!$F$28:$O$28,$C$148:$L$148)),0)+IF(Matrix!N$39+Matrix!N$40>0,SUM(K$154*Matrix!N$39,K$154*Matrix!N$40)-SUMPRODUCT(Matrix!$F$32:$O$32,$C$148:$L$148),0)+IF(Matrix!N$38>0,K$154*Matrix!N$38,0))/SUM(Matrix!N$37:N$40)) -> 0 | L174: =IF(L$171="",0,(IF(Matrix!O$37>0,(SUMPRODUCT(Matrix!$F$30:$O$30,$C$154:$L$154)-SUMPRODUCT(Matrix!$F$30:$O$30,$C$148:$L$148)),0)+IF(Matrix!O$39+Matrix!O$40>0,SUM(L$154*Matrix!O$39,L$154*Matrix!O$40)-SUMPRODUCT(Matrix!$F$32:$O$32,$C$148:$L$148),0)+IF(Matrix!O$38>0,L$154*Matrix!O$38,0))/SUM(Matrix!O$37:O$40)) -> 0 | M174: =(SUMPRODUCT($C$154:$L$154,Matrix!$F$37:$O$37)-SUMPRODUCT(Matrix!$F$37:$O$37,$C$148:$L$148))/IF(SUM(SUMPRODUCT($C$154:$L$154,Matrix!$F$37:$O$37)-SUMPRODUCT(Matrix!$F$37:$O$37,$C$148:$L$148))=0,1,SUMPRODUCT(--($C$154:$L$154-$C$148:$L$148<>0),Matrix!$F$37:$O$37)) -> 0 | N174: =(SUMPRODUCT(C174:L174,Matrix!$F$38:$O$38)+SUMPRODUCT(C174:L174,Matrix!$F$39:$O$39))/IF(SUMIF(C174:L174,"<>0",Matrix!$F$38:$O$38) + SUMIF(C174:L174,"<>0",Matrix!$F$39:$O$39)=0,1,SUMIF(C174:L174,"<>0",Matrix!$F$38:$O$38) + SUMIF(C174:L174,"<>0",Matrix!$F$39:$O$39)) -> 0
B175: Study Area Soil Sampling Cost Per Acre Change (Weighted Average, $/Ac) | O175: What soil health practice do you attribute your change in nutrients to?
B176: Fertilizer Cost Change by Crop ($/Ac) | C176: =IF(C$171="",0,(IF(Matrix!F$37>0,(SUMPRODUCT(Matrix!$F$12:$O$12,$C$155:$L$155)-SUMPRODUCT(Matrix!$F$12:$O$12,$C$149:$L$149)),0)+IF(Matrix!F$39+Matrix!F$40>0,SUM(C$155*Matrix!F$39,C$155*Matrix!F$40)-SUMPRODUCT(Matrix!$F$32:$O$32,$C$149:$L$149),0)+IF(Matrix!F$38>0,C$155*Matrix!F$38,0))/SUM(Matrix!F$37:F$40)) -> 0 | D176: =IF(D$171="",0,(IF(Matrix!G$37>0,(SUMPRODUCT(Matrix!$F$14:$O$14,$C$155:$L$155)-SUMPRODUCT(Matrix!$F$14:$O$14,$C$149:$L$149)),0)+IF(Matrix!G$39+Matrix!G$40>0,SUM(D$155*Matrix!G$39,D$155*Matrix!G$40)-SUMPRODUCT(Matrix!$F$32:$O$32,$C$149:$L$149),0)+IF(Matrix!G$38>0,D$155*Matrix!G$38,0))/SUM(Matrix!G$37:G$40)) -> 0 | E176: =IF(E$171="",0,(IF(Matrix!H$37>0,(SUMPRODUCT(Matrix!$F$16:$O$16,$C$155:$L$155)-SUMPRODUCT(Matrix!$F$16:$O$16,$C$149:$L$149)),0)+IF(Matrix!H$39+Matrix!H$40>0,SUM(E$155*Matrix!H$39,E$155*Matrix!H$40)-SUMPRODUCT(Matrix!$F$32:$O$32,$C$149:$L$149),0)+IF(Matrix!H$38>0,E$155*Matrix!H$38,0))/SUM(Matrix!H$37:H$40)) -> 0 | F176: =IF(F$171="",0,(IF(Matrix!I$37>0,(SUMPRODUCT(Matrix!$F$18:$O$18,$C$155:$L$155)-SUMPRODUCT(Matrix!$F$18:$O$18,$C$149:$L$149)),0)+IF(Matrix!I$39+Matrix!I$40>0,SUM(F$155*Matrix!I$39,F$155*Matrix!I$40)-SUMPRODUCT(Matrix!$F$32:$O$32,$C$149:$L$149),0)+IF(Matrix!I$38>0,F$155*Matrix!I$38,0))/SUM(Matrix!I$37:I$40)) -> 0 | G176: =IF(G$171="",0,(IF(Matrix!J$37>0,(SUMPRODUCT(Matrix!$F$20:$O$20,$C$155:$L$155)-SUMPRODUCT(Matrix!$F$20:$O$20,$C$149:$L$149)),0)+IF(Matrix!J$39+Matrix!J$40>0,SUM(G$155*Matrix!J$39,G$155*Matrix!J$40)-SUMPRODUCT(Matrix!$F$32:$O$32,$C$149:$L$149),0)+IF(Matrix!J$38>0,G$155*Matrix!J$38,0))/SUM(Matrix!J$37:J$40)) -> 0 | H176: =IF(H$171="",0,(IF(Matrix!K$37>0,(SUMPRODUCT(Matrix!$F$22:$O$22,$C$155:$L$155)-SUMPRODUCT(Matrix!$F$22:$O$22,$C$149:$L$149)),0)+IF(Matrix!K$39+Matrix!K$40>0,SUM(H$155*Matrix!K$39,H$155*Matrix!K$40)-SUMPRODUCT(Matrix!$F$32:$O$32,$C$149:$L$149),0)+IF(Matrix!K$38>0,H$155*Matrix!K$38,0))/SUM(Matrix!K$37:K$40)) -> 0 | I176: =IF(I$171="",0,(IF(Matrix!L$37>0,(SUMPRODUCT(Matrix!$F$24:$O$24,$C$155:$L$155)-SUMPRODUCT(Matrix!$F$24:$O$24,$C$149:$L$149)),0)+IF(Matrix!L$39+Matrix!L$40>0,SUM(I$155*Matrix!L$39,I$155*Matrix!L$40)-SUMPRODUCT(Matrix!$F$32:$O$32,$C$149:$L$149),0)+IF(Matrix!L$38>0,I$155*Matrix!L$38,0))/SUM(Matrix!L$37:L$40)) -> 0 | J176: =IF(J$171="",0,(IF(Matrix!M$37>0,(SUMPRODUCT(Matrix!$F$26:$O$26,$C$155:$L$155)-SUMPRODUCT(Matrix!$F$26:$O$26,$C$149:$L$149)),0)+IF(Matrix!M$39+Matrix!M$40>0,SUM(J$155*Matrix!M$39,J$155*Matrix!M$40)-SUMPRODUCT(Matrix!$F$32:$O$32,$C$149:$L$149),0)+IF(Matrix!M$38>0,J$155*Matrix!M$38,0))/SUM(Matrix!M$37:M$40)) -> 0 | K176: =IF(K$171="",0,(IF(Matrix!N$37>0,(SUMPRODUCT(Matrix!$F$28:$O$28,$C$155:$L$155)-SUMPRODUCT(Matrix!$F$28:$O$28,$C$149:$L$149)),0)+IF(Matrix!N$39+Matrix!N$40>0,SUM(K$155*Matrix!N$39,K$155*Matrix!N$40)-SUMPRODUCT(Matrix!$F$32:$O$32,$C$149:$L$149),0)+IF(Matrix!N$38>0,K$155*Matrix!N$38,0))/SUM(Matrix!N$37:N$40)) -> 0 | L176: =IF(L$171="",0,(IF(Matrix!O$37>0,(SUMPRODUCT(Matrix!$F$30:$O$30,$C$155:$L$155)-SUMPRODUCT(Matrix!$F$30:$O$30,$C$149:$L$149)),0)+IF(Matrix!O$39+Matrix!O$40>0,SUM(L$155*Matrix!O$39,L$155*Matrix!O$40)-SUMPRODUCT(Matrix!$F$32:$O$32,$C$149:$L$149),0)+IF(Matrix!O$38>0,L$155*Matrix!O$38,0))/SUM(Matrix!O$37:O$40)) -> 0 | M176: =(SUMPRODUCT($C$155:$L$155,Matrix!$F$37:$O$37)-SUMPRODUCT(Matrix!$F$37:$O$37,$C$149:$L$149))/IF(SUM(SUMPRODUCT($C$155:$L$155,Matrix!$F$37:$O$37)-SUMPRODUCT(Matrix!$F$37:$O$37,$C$149:$L$149))=0,1,SUMPRODUCT(--($C$155:$L$155-$C$149:$L$149<>0),Matrix!$F$37:$O$37)) -> 0 | N176: =(SUMPRODUCT(C176:L176,Matrix!$F$38:$O$38)+SUMPRODUCT(C176:L176,Matrix!$F$39:$O$39))/IF(SUMIF(C176:L176,"<>0",Matrix!$F$38:$O$38) + SUMIF(C176:L176,"<>0",Matrix!$F$39:$O$39)=0,1,SUMIF(C176:L176,"<>0",Matrix!$F$38:$O$38) + SUMIF(C176:L176,"<>0",Matrix!$F$39:$O$39)) -> 0 | O176: Change in fertilizer (choose from dropdown)
B177: Study Area Fertilizer Per Acre Change (Weighted Average, $/Ac)
B178: Manure/Compost Cost Change by Crop ($/Ac) | C178: =IF(C$171="",0,(IF(Matrix!F$37>0,(SUMPRODUCT(Matrix!$F$12:$O$12,$C$156:$L$156)-SUMPRODUCT(Matrix!$F$12:$O$12,$C$150:$L$150)),0)+IF(Matrix!F$39+Matrix!F$40>0,SUM(C$156*Matrix!F$39,C$156*Matrix!F$40)-SUMPRODUCT(Matrix!$F$32:$O$32,$C$150:$L$150),0)+IF(Matrix!F$38>0,C$156*Matrix!F$38,0))/SUM(Matrix!F$37:F$40)) -> 0 | D178: =IF(D$171="",0,(IF(Matrix!G$37>0,(SUMPRODUCT(Matrix!$F$14:$O$14,$C$156:$L$156)-SUMPRODUCT(Matrix!$F$14:$O$14,$C$150:$L$150)),0)+IF(Matrix!G$39+Matrix!G$40>0,SUM(D$156*Matrix!G$39,D$156*Matrix!G$40)-SUMPRODUCT(Matrix!$F$32:$O$32,$C$150:$L$150),0)+IF(Matrix!G$38>0,D$156*Matrix!G$38,0))/SUM(Matrix!G$37:G$40)) -> 0 | E178: =IF(E$171="",0,(IF(Matrix!H$37>0,(SUMPRODUCT(Matrix!$F$16:$O$16,$C$156:$L$156)-SUMPRODUCT(Matrix!$F$16:$O$16,$C$150:$L$150)),0)+IF(Matrix!H$39+Matrix!H$40>0,SUM(E$156*Matrix!H$39,E$156*Matrix!H$40)-SUMPRODUCT(Matrix!$F$32:$O$32,$C$150:$L$150),0)+IF(Matrix!H$38>0,E$156*Matrix!H$38,0))/SUM(Matrix!H$37:H$40)) -> 0 | F178: =IF(F$171="",0,(IF(Matrix!I$37>0,(SUMPRODUCT(Matrix!$F$18:$O$18,$C$156:$L$156)-SUMPRODUCT(Matrix!$F$18:$O$18,$C$150:$L$150)),0)+IF(Matrix!I$39+Matrix!I$40>0,SUM(F$156*Matrix!I$39,F$156*Matrix!I$40)-SUMPRODUCT(Matrix!$F$32:$O$32,$C$150:$L$150),0)+IF(Matrix!I$38>0,F$156*Matrix!I$38,0))/SUM(Matrix!I$37:I$40)) -> 0 | G178: =IF(G$171="",0,(IF(Matrix!J$37>0,(SUMPRODUCT(Matrix!$F$20:$O$20,$C$156:$L$156)-SUMPRODUCT(Matrix!$F$20:$O$20,$C$150:$L$150)),0)+IF(Matrix!J$39+Matrix!J$40>0,SUM(G$156*Matrix!J$39,G$156*Matrix!J$40)-SUMPRODUCT(Matrix!$F$32:$O$32,$C$150:$L$150),0)+IF(Matrix!J$38>0,G$156*Matrix!J$38,0))/SUM(Matrix!J$37:J$40)) -> 0 | H178: =IF(H$171="",0,(IF(Matrix!K$37>0,(SUMPRODUCT(Matrix!$F$22:$O$22,$C$156:$L$156)-SUMPRODUCT(Matrix!$F$22:$O$22,$C$150:$L$150)),0)+IF(Matrix!K$39+Matrix!K$40>0,SUM(H$156*Matrix!K$39,H$156*Matrix!K$40)-SUMPRODUCT(Matrix!$F$32:$O$32,$C$150:$L$150),0)+IF(Matrix!K$38>0,H$156*Matrix!K$38,0))/SUM(Matrix!K$37:K$40)) -> 0 | I178: =IF(I$171="",0,(IF(Matrix!L$37>0,(SUMPRODUCT(Matrix!$F$24:$O$24,$C$156:$L$156)-SUMPRODUCT(Matrix!$F$24:$O$24,$C$150:$L$150)),0)+IF(Matrix!L$39+Matrix!L$40>0,SUM(I$156*Matrix!L$39,I$156*Matrix!L$40)-SUMPRODUCT(Matrix!$F$32:$O$32,$C$150:$L$150),0)+IF(Matrix!L$38>0,I$156*Matrix!L$38,0))/SUM(Matrix!L$37:L$40)) -> 0 | J178: =IF(J$171="",0,(IF(Matrix!M$37>0,(SUMPRODUCT(Matrix!$F$26:$O$26,$C$156:$L$156)-SUMPRODUCT(Matrix!$F$26:$O$26,$C$150:$L$150)),0)+IF(Matrix!M$39+Matrix!M$40>0,SUM(J$156*Matrix!M$39,J$156*Matrix!M$40)-SUMPRODUCT(Matrix!$F$32:$O$32,$C$150:$L$150),0)+IF(Matrix!M$38>0,J$156*Matrix!M$38,0))/SUM(Matrix!M$37:M$40)) -> 0 | K178: =IF(K$171="",0,(IF(Matrix!N$37>0,(SUMPRODUCT(Matrix!$F$28:$O$28,$C$156:$L$156)-SUMPRODUCT(Matrix!$F$28:$O$28,$C$150:$L$150)),0)+IF(Matrix!N$39+Matrix!N$40>0,SUM(K$156*Matrix!N$39,K$156*Matrix!N$40)-SUMPRODUCT(Matrix!$F$32:$O$32,$C$150:$L$150),0)+IF(Matrix!N$38>0,K$156*Matrix!N$38,0))/SUM(Matrix!N$37:N$40)) -> 0 | L178: =IF(L$171="",0,(IF(Matrix!O$37>0,(SUMPRODUCT(Matrix!$F$30:$O$30,$C$156:$L$156)-SUMPRODUCT(Matrix!$F$30:$O$30,$C$150:$L$150)),0)+IF(Matrix!O$39+Matrix!O$40>0,SUM(L$156*Matrix!O$39,L$156*Matrix!O$40)-SUMPRODUCT(Matrix!$F$32:$O$32,$C$150:$L$150),0)+IF(Matrix!O$38>0,L$156*Matrix!O$38,0))/SUM(Matrix!O$37:O$40)) -> 0 | M178: =(SUMPRODUCT($C$156:$L$156,Matrix!$F$37:$O$37)-SUMPRODUCT(Matrix!$F$37:$O$37,$C$150:$L$150))/IF(SUM(SUMPRODUCT($C$156:$L$156,Matrix!$F$37:$O$37)-SUMPRODUCT(Matrix!$F$37:$O$37,$C$150:$L$150))=0,1,SUMPRODUCT(--($C$156:$L$156-$C$150:$L$150<>0),Matrix!$F$37:$O$37)) -> 0 | N178: =(SUMPRODUCT(C178:L178,Matrix!$F$38:$O$38)+SUMPRODUCT(C178:L178,Matrix!$F$39:$O$39))/IF(SUMIF(C178:L178,"<>0",Matrix!$F$38:$O$38) + SUMIF(C178:L178,"<>0",Matrix!$F$39:$O$39)=0,1,SUMIF(C178:L178,"<>0",Matrix!$F$38:$O$38) + SUMIF(C178:L178,"<>0",Matrix!$F$39:$O$39)) -> 0 | O178: Change in manure (choose from dropdown)
B179: Study Area Manure/Compost Per Acre Change (Weighted Average, $/Ac)
B180: Chemical Cost Change by Crop ($/Ac) | C180: =IF(C$171="",0,(IF(Matrix!F$37>0,(SUMPRODUCT(Matrix!$F$12:$O$12,$C$157:$L$157)-SUMPRODUCT(Matrix!$F$12:$O$12,$C$151:$L$151)),0)+IF(Matrix!F$39+Matrix!F$40>0,SUM(C$157*Matrix!F$39,C$157*Matrix!F$40)-SUMPRODUCT(Matrix!$F$32:$O$32,$C$151:$L$151),0)+IF(Matrix!F$38>0,C$157*Matrix!F$38,0))/SUM(Matrix!F$37:F$40)) -> 0 | D180: =IF(D$171="",0,(IF(Matrix!G$37>0,(SUMPRODUCT(Matrix!$F$14:$O$14,$C$157:$L$157)-SUMPRODUCT(Matrix!$F$14:$O$14,$C$151:$L$151)),0)+IF(Matrix!G$39+Matrix!G$40>0,SUM(D$157*Matrix!G$39,D$157*Matrix!G$40)-SUMPRODUCT(Matrix!$F$32:$O$32,$C$151:$L$151),0)+IF(Matrix!G$38>0,D$157*Matrix!G$38,0))/SUM(Matrix!G$37:G$40)) -> 0 | E180: =IF(E$171="",0,(IF(Matrix!H$37>0,(SUMPRODUCT(Matrix!$F$16:$O$16,$C$157:$L$157)-SUMPRODUCT(Matrix!$F$16:$O$16,$C$151:$L$151)),0)+IF(Matrix!H$39+Matrix!H$40>0,SUM(E$157*Matrix!H$39,E$157*Matrix!H$40)-SUMPRODUCT(Matrix!$F$32:$O$32,$C$151:$L$151),0)+IF(Matrix!H$38>0,E$157*Matrix!H$38,0))/SUM(Matrix!H$37:H$40)) -> 0 | F180: =IF(F$171="",0,(IF(Matrix!I$37>0,(SUMPRODUCT(Matrix!$F$18:$O$18,$C$157:$L$157)-SUMPRODUCT(Matrix!$F$18:$O$18,$C$151:$L$151)),0)+IF(Matrix!I$39+Matrix!I$40>0,SUM(F$157*Matrix!I$39,F$157*Matrix!I$40)-SUMPRODUCT(Matrix!$F$32:$O$32,$C$151:$L$151),0)+IF(Matrix!I$38>0,F$157*Matrix!I$38,0))/SUM(Matrix!I$37:I$40)) -> 0 | G180: =IF(G$171="",0,(IF(Matrix!J$37>0,(SUMPRODUCT(Matrix!$F$20:$O$20,$C$157:$L$157)-SUMPRODUCT(Matrix!$F$20:$O$20,$C$151:$L$151)),0)+IF(Matrix!J$39+Matrix!J$40>0,SUM(G$157*Matrix!J$39,G$157*Matrix!J$40)-SUMPRODUCT(Matrix!$F$32:$O$32,$C$151:$L$151),0)+IF(Matrix!J$38>0,G$157*Matrix!J$38,0))/SUM(Matrix!J$37:J$40)) -> 0 | H180: =IF(H$171="",0,(IF(Matrix!K$37>0,(SUMPRODUCT(Matrix!$F$22:$O$22,$C$157:$L$157)-SUMPRODUCT(Matrix!$F$22:$O$22,$C$151:$L$151)),0)+IF(Matrix!K$39+Matrix!K$40>0,SUM(H$157*Matrix!K$39,H$157*Matrix!K$40)-SUMPRODUCT(Matrix!$F$32:$O$32,$C$151:$L$151),0)+IF(Matrix!K$38>0,H$157*Matrix!K$38,0))/SUM(Matrix!K$37:K$40)) -> 0 | I180: =IF(I$171="",0,(IF(Matrix!L$37>0,(SUMPRODUCT(Matrix!$F$24:$O$24,$C$157:$L$157)-SUMPRODUCT(Matrix!$F$24:$O$24,$C$151:$L$151)),0)+IF(Matrix!L$39+Matrix!L$40>0,SUM(I$157*Matrix!L$39,I$157*Matrix!L$40)-SUMPRODUCT(Matrix!$F$32:$O$32,$C$151:$L$151),0)+IF(Matrix!L$38>0,I$157*Matrix!L$38,0))/SUM(Matrix!L$37:L$40)) -> 0 | J180: =IF(J$171="",0,(IF(Matrix!M$37>0,(SUMPRODUCT(Matrix!$F$26:$O$26,$C$157:$L$157)-SUMPRODUCT(Matrix!$F$26:$O$26,$C$151:$L$151)),0)+IF(Matrix!M$39+Matrix!M$40>0,SUM(J$157*Matrix!M$39,J$157*Matrix!M$40)-SUMPRODUCT(Matrix!$F$32:$O$32,$C$151:$L$151),0)+IF(Matrix!M$38>0,J$157*Matrix!M$38,0))/SUM(Matrix!M$37:M$40)) -> 0 | K180: =IF(K$171="",0,(IF(Matrix!N$37>0,(SUMPRODUCT(Matrix!$F$28:$O$28,$C$157:$L$157)-SUMPRODUCT(Matrix!$F$28:$O$28,$C$151:$L$151)),0)+IF(Matrix!N$39+Matrix!N$40>0,SUM(K$157*Matrix!N$39,K$157*Matrix!N$40)-SUMPRODUCT(Matrix!$F$32:$O$32,$C$151:$L$151),0)+IF(Matrix!N$38>0,K$157*Matrix!N$38,0))/SUM(Matrix!N$37:N$40)) -> 0 | L180: =IF(L$171="",0,(IF(Matrix!O$37>0,(SUMPRODUCT(Matrix!$F$30:$O$30,$C$157:$L$157)-SUMPRODUCT(Matrix!$F$30:$O$30,$C$151:$L$151)),0)+IF(Matrix!O$39+Matrix!O$40>0,SUM(L$157*Matrix!O$39,L$157*Matrix!O$40)-SUMPRODUCT(Matrix!$F$32:$O$32,$C$151:$L$151),0)+IF(Matrix!O$38>0,L$157*Matrix!O$38,0))/SUM(Matrix!O$37:O$40)) -> 0 | M180: =(SUMPRODUCT($C$157:$L$157,Matrix!$F$37:$O$37)-SUMPRODUCT(Matrix!$F$37:$O$37,$C$151:$L$151))/IF(SUM(SUMPRODUCT($C$157:$L$157,Matrix!$F$37:$O$37)-SUMPRODUCT(Matrix!$F$37:$O$37,$C$151:$L$151))=0,1,SUMPRODUCT(--($C$157:$L$157-$C$151:$L$151<>0),Matrix!$F$37:$O$37)) -> 0 | N180: =(SUMPRODUCT(C180:L180,Matrix!$F$38:$O$38)+SUMPRODUCT(C180:L180,Matrix!$F$39:$O$39))/IF(SUMIF(C180:L180,"<>0",Matrix!$F$38:$O$38) + SUMIF(C180:L180,"<>0",Matrix!$F$39:$O$39)=0,1,SUMIF(C180:L180,"<>0",Matrix!$F$38:$O$38) + SUMIF(C180:L180,"<>0",Matrix!$F$39:$O$39)) -> 0 | O180: Change in chemical (choose from dropdown)
B181: Study Area Chemical Per Acre Change (Weighted Average, $/Ac)

Sheet Cover Crops
A1: Changes due to Adopting Cover Crops
A3: ABOUT THIS TAB:
A4: The Cover Crops tab calculates the costs and benefits due to adopting cover crops. Costs can include cover crop seed, additional nutrient &/or termination inputs, additional machinery operations costs, and grazing &/or haying costs. Benefits can include the added value of haying &/or grazing. This tab is set up to only analyze the adoption of cover crops (assumes no cover crop in benchmark); it cannot analyze changes to cover crop management, including switching cover crop species, establishment methods, termination methods, etc. The first set of tables, under Cover Crop Costs, captures cover crop costs. The number of tables shown will correspond to the cover crops in the crop rotation as provided in the cover crop information table on the 'Study Area Overview' tab. Presented in the 'Summary of Cover Crop Costs' table is the calculated cover crop cost on an annual per acre basis by cover crop and as a weighted average for the Study Area. The second set of tables, under 'Cover Crop Grazing &/or Haying Benefits', allows you the ability to calculate the effects of grazing and/or harvesting cover crop as hay, resulting in a net per acre grazing &/or haying benefit. Note: This tab can be used on its own to analyze cover crop economic effects generally.
A15: Cover Crop Costs
A16: Complete the following tables by cover crop noted in upper left corner of each table. Make sure to only include additional costs (e.g., if the farmer previously sprayed herbicide before cash crop planting, and now that spray kills the cover crop, do not include the cost.) Also, make sure to not double count inputs or machinery with the previous 'Machinery' and 'Cash Crop Inputs' tabs (e.g., if cash crop tillage practices terminate the cover crop, only include this on the 'Machinery' tab.)
B19: TIPS:
B20: (1) Cover crop information is pulled directly from the 'Study Area Overview' tab. To make changes to this information, such as acres in cover or cover type, you must do so on the 'Study Area Overview' tab.
B21: (2) For additional nutrient, termination, &/or open-ended other costs, only enter additional inputs (e.g., fertilizer at planting, herbicide to terminate, any other costs associated with growing cover crops, etc.) Make sure they have not been already captured in the 'Cash Crop Inputs' tab.
B23: (3) Review the list of machinery and associated costs on the 'Machinery Costs' tab to determine the machinery that most closely matches your machinery costs. The information in the 'Machinery Costs' tab is captured in the corresponding dropdown lists on this tab for cover crop planting and termination machinery.
B25: (4) Alternatively, follow directions on the 'Machinery Costs' tab to add machinery costs to the list as identified by the yellow-shaded cells; OR add farmer-provided custom-hire cover crop planting or termination operations costs to the 'Study Area Overview' tab. These additions will then be made available to select from in the dropdown list.
B27: (5) The cost of grazing &/or haying of cover crops is captured separately in the second set of tables at the end of this tab.
B28: (6) "# Passes/Yr" refers to the number of passes the equipment takes over that crop in a growing season. Partial passes may be entered if that piece of equipment does not pass over every acre of that crop.
B30: Cover Crop 1
B31: Cash Crop Before Cover | C31: =IF('Study Area Overview'!$B$82="","",'Study Area Overview'!$B$82) ->  | E31: Cover Crop Seed ($/Ac)
B32: Cover Crop 1 | C32: =IF('Study Area Overview'!$C$82="","",'Study Area Overview'!$C$82) ->  | E32: Additional Nutrient Inputs ($/Ac)
B33: Acres of Cover | C33: =IF('Study Area Overview'!$G$82="","",'Study Area Overview'!$G$82) ->  | E33: Additional Termination Inputs ($/Ac)
B34: Termination Method | C34: =IF('Study Area Overview'!$C$82 > 0, 'Study Area Overview'!$F$82, "") ->  | E34: Additional Costs ($/Ac)
B35: Cash Crop Following Cover | C35: =IF('Study Area Overview'!$D$82="","",'Study Area Overview'!$D$82) ->  | E35: Total Input Cost Per Acre | G35: =SUM(G31:G34) -> 0
B38: Cover Crop 1 Current Planting Machinery (select from dropdown) | E38: Cost/Ac | F38: # Passes/Yr | G38: Total Cost/Ac
E40: =IFERROR(VLOOKUP(B40,'Machinery Costs'!$B$19:$G$115,4,FALSE),0) -> 0 | G40: =IFERROR(F40*E40, "See 'Machinery Costs' tab") -> 0
E41: =IFERROR(VLOOKUP(B41,'Machinery Costs'!$B$19:$G$115,4,FALSE),0) -> 0 | G41: =IFERROR(F41*E41, "See 'Machinery Costs' tab") -> 0
E42: =IFERROR(VLOOKUP(B42,'Machinery Costs'!$B$19:$G$115,4,FALSE),0) -> 0 | G42: =IFERROR(F42*E42, "See 'Machinery Costs' tab") -> 0
G43: =SUM(G39:G42) -> 0
B44: Cover Crop 1 Terminating Machinery (select from dropdown) | E44: Cost/Ac | F44: # Passes/Yr | G44: Total Cost/Ac
E46: =IFERROR(VLOOKUP(B46,'Machinery Costs'!$B$125:$E$149,4,FALSE),0) -> 0 | G46: =IFERROR(F46*E46, "See 'Machinery Costs' tab") -> 0
E47: =IFERROR(VLOOKUP(B47,'Machinery Costs'!$B$125:$E$149,4,FALSE),0) -> 0 | G47: =IFERROR(F47*E47, "See 'Machinery Costs' tab") -> 0
E48: =IFERROR(VLOOKUP(B48,'Machinery Costs'!$B$125:$E$149,4,FALSE),0) -> 0 | G48: =IFERROR(F48*E48, "See 'Machinery Costs' tab") -> 0
G49: =SUM(G45:G48) -> 0
B50: Cover Crop Machinery Cost ($/Ac) | G50: =SUM(G43,G49) -> 0
B52: Cover Crop 2
B53: Cash Crop Before Cover | C53: =IF('Study Area Overview'!$B$83="","",'Study Area Overview'!$B$83) ->  | E53: Cover Crop Seed ($/Ac)
B54: Cover Crop 2 | C54: =IF('Study Area Overview'!$C$83="","",'Study Area Overview'!$C$83) ->  | E54: Additional Nutrient Inputs ($/Ac)
B55: Acres of Cover | C55: =IF('Study Area Overview'!$G$83="","",'Study Area Overview'!$G$83) ->  | E55: Additional Termination Inputs ($/Ac)
B56: Termination Method | C56: =IF('Study Area Overview'!$C$83 > 0, 'Study Area Overview'!$F$83, "") ->  | E56: Additional Costs ($/Ac)
B57: Cash Crop Following Cover | C57: =IF('Study Area Overview'!$D$83="","",'Study Area Overview'!$D$83) ->  | E57: Total Input Cost Per Acre | G57: =IFERROR(SUM(G53:G56),"") -> 0
B60: Cover Crop 2 Current Planting Machinery (select from dropdown) | E60: Cost/Ac | F60: # Passes/Yr | G60: Total Cost/Ac
E62: =IFERROR(VLOOKUP(B62,'Machinery Costs'!$B$19:$G$115,4,FALSE),0) -> 0 | G62: =IFERROR(F62*E62, "See 'Machinery Costs' tab") -> 0
E63: =IFERROR(VLOOKUP(B63,'Machinery Costs'!$B$19:$G$115,4,FALSE),0) -> 0 | G63: =IFERROR(F63*E63, "See 'Machinery Costs' tab") -> 0
E64: =IFERROR(VLOOKUP(B64,'Machinery Costs'!$B$19:$G$115,4,FALSE),0) -> 0 | G64: =IFERROR(F64*E64, "See 'Machinery Costs' tab") -> 0
G65: =SUM(G61:G64) -> 0
B66: Cover Crop 2 Terminating Machinery (select from dropdown) | E66: Cost/Ac | F66: # Passes/Yr | G66: Total Cost/Ac
E68: =IFERROR(VLOOKUP(B68,'Machinery Costs'!$B$125:$E$149,4,FALSE),0) -> 0 | G68: =IFERROR(F68*E68, "See 'Machinery Costs' tab") -> 0
E69: =IFERROR(VLOOKUP(B69,'Machinery Costs'!$B$125:$E$149,4,FALSE),0) -> 0 | G69: =IFERROR(F69*E69, "See 'Machinery Costs' tab") -> 0
E70: =IFERROR(VLOOKUP(B70,'Machinery Costs'!$B$125:$E$149,4,FALSE),0) -> 0 | G70: =IFERROR(F70*E70, "See 'Machinery Costs' tab") -> 0
G71: =SUM(G67:G70) -> 0
B72: Cover Crop Machinery Cost ($/Ac) | G72: =SUM(G65,G71) -> 0
B74: Cover Crop 3
B75: Cash Crop Before Cover | C75: =IF('Study Area Overview'!$B$84="","",'Study Area Overview'!$B$84) ->  | E75: Cover Crop Seed ($/Ac)
B76: Cover Crop 3 | C76: =IF('Study Area Overview'!$C$84="","",'Study Area Overview'!$C$84) ->  | E76: Additional Nutrient Inputs ($/Ac)
B77: Acres of Cover | C77: =IF('Study Area Overview'!$G$84="","",'Study Area Overview'!$G$84) ->  | E77: Additional Termination Inputs ($/Ac)
B78: Termination Method | C78: =IF('Study Area Overview'!$C$84 > 0, 'Study Area Overview'!$F$84, "") ->  | E78: Additional Costs ($/Ac)
B79: Cash Crop Following Cover | C79: =IF('Study Area Overview'!$D$84="","",'Study Area Overview'!$D$84) ->  | E79: Total Input Cost Per Acre | G79: =IFERROR(SUM(G75:G78),"") -> 0
B82: Cover Crop 3 Current Planting Machinery (select from dropdown) | E82: Cost/Ac | F82: # Passes/Yr | G82: Total Cost/Ac
E84: =IFERROR(VLOOKUP(B84,'Machinery Costs'!$B$19:$G$115,4,FALSE),0) -> 0 | G84: =IFERROR(F84*E84, "See 'Machinery Costs' tab") -> 0
E85: =IFERROR(VLOOKUP(B85,'Machinery Costs'!$B$19:$G$115,4,FALSE),0) -> 0 | G85: =IFERROR(F85*E85, "See 'Machinery Costs' tab") -> 0
E86: =IFERROR(VLOOKUP(B86,'Machinery Costs'!$B$19:$G$115,4,FALSE),0) -> 0 | G86: =IFERROR(F86*E86, "See 'Machinery Costs' tab") -> 0
G87: =SUM(G83:G86) -> 0
B88: Cover Crop 3 Terminating Machinery (select from dropdown) | E88: Cost/Ac | F88: # Passes/Yr | G88: Total Cost/Ac
E90: =IFERROR(VLOOKUP(B90,'Machinery Costs'!$B$125:$E$149,4,FALSE),0) -> 0 | G90: =IFERROR(F90*E90, "See 'Machinery Costs' tab") -> 0
E91: =IFERROR(VLOOKUP(B91,'Machinery Costs'!$B$125:$E$149,4,FALSE),0) -> 0 | G91: =IFERROR(F91*E91, "See 'Machinery Costs' tab") -> 0
E92: =IFERROR(VLOOKUP(B92,'Machinery Costs'!$B$125:$E$149,4,FALSE),0) -> 0 | G92: =IFERROR(F92*E92, "See 'Machinery Costs' tab") -> 0
G93: =SUM(G89:G92) -> 0
B94: Cover Crop Machinery Cost ($/Ac) | G94: =SUM(G87,G93) -> 0
B96: Cover Crop 4
B97: Cash Crop Before Cover | C97: =IF('Study Area Overview'!$B$85="","",'Study Area Overview'!$B$85) ->  | E97: Cover Crop Seed ($/Ac)
B98: Cover Crop 4 | C98: =IF('Study Area Overview'!$C$85="","",'Study Area Overview'!$C$85) ->  | E98: Additional Nutrient Inputs ($/Ac)
B99: Acres of Cover | C99: =IF('Study Area Overview'!$G$85="","",'Study Area Overview'!$G$85) ->  | E99: Additional Termination Inputs ($/Ac)
B100: Termination Method | C100: =IF('Study Area Overview'!$C$85 > 0, 'Study Area Overview'!$F$85, "") ->  | E100: Additional Costs ($/Ac)
B101: Cash Crop Following Cover | C101: =IF('Study Area Overview'!$D$85="","",'Study Area Overview'!$D$85) ->  | E101: Total Input Cost Per Acre | G101: =IFERROR(SUM(G97:G100),"") -> 0
B104: Cover Crop 4 Current Planting Machinery (select from dropdown) | E104: Cost/Ac | F104: # Passes/Yr | G104: Total Cost/Ac
E106: =IFERROR(VLOOKUP(B106,'Machinery Costs'!$B$19:$G$115,4,FALSE),0) -> 0 | G106: =IFERROR(F106*E106, "See 'Machinery Costs' tab") -> 0
E107: =IFERROR(VLOOKUP(B107,'Machinery Costs'!$B$19:$G$115,4,FALSE),0) -> 0 | G107: =IFERROR(F107*E107, "See 'Machinery Costs' tab") -> 0
E108: =IFERROR(VLOOKUP(B108,'Machinery Costs'!$B$19:$G$115,4,FALSE),0) -> 0 | G108: =IFERROR(F108*E108, "See 'Machinery Costs' tab") -> 0
G109: =SUM(G105:G108) -> 0
B110: Cover Crop 4 Terminating Machinery (select from dropdown) | E110: Cost/Ac | F110: # Passes/Yr | G110: Total Cost/Ac
E112: =IFERROR(VLOOKUP(B112,'Machinery Costs'!$B$125:$E$149,4,FALSE),0) -> 0 | G112: =IFERROR(F112*E112, "See 'Machinery Costs' tab") -> 0
E113: =IFERROR(VLOOKUP(B113,'Machinery Costs'!$B$125:$E$149,4,FALSE),0) -> 0 | G113: =IFERROR(F113*E113, "See 'Machinery Costs' tab") -> 0
E114: =IFERROR(VLOOKUP(B114,'Machinery Costs'!$B$125:$E$149,4,FALSE),0) -> 0 | G114: =IFERROR(F114*E114, "See 'Machinery Costs' tab") -> 0
G115: =SUM(G111:G114) -> 0
B116: Cover Crop Machinery Cost ($/Ac) | G116: =SUM(G109,G115) -> 0
B118: Cover Crop 5
B119: Cash Crop Before Cover | C119: =IF('Study Area Overview'!$B$86="","",'Study Area Overview'!$B$86) ->  | E119: Cover Crop Seed ($/Ac)
B120: Cover Crop 5 | C120: =IF('Study Area Overview'!$C$86="","",'Study Area Overview'!$C$86) ->  | E120: Additional Nutrient Inputs ($/Ac)
B121: Acres of Cover | C121: =IF('Study Area Overview'!$G$86="","",'Study Area Overview'!$G$86) ->  | E121: Additional Termination Inputs ($/Ac)
B122: Termination Method | C122: =IF('Study Area Overview'!$C$86 > 0, 'Study Area Overview'!$F$86, "") ->  | E122: Additional Costs ($/Ac)
B123: Cash Crop Following Cover | C123: =IF('Study Area Overview'!$D$86="","",'Study Area Overview'!$D$86) ->  | E123: Total Input Cost Per Acre | G123: =IFERROR(SUM(G119:G122),"") -> 0
B126: Cover Crop 5 Current Planting Machinery (select from dropdown) | E126: Cost/Ac | F126: # Passes/Yr | G126: Total Cost/Ac
E128: =IFERROR(VLOOKUP(B128,'Machinery Costs'!$B$19:$G$115,4,FALSE),0) -> 0 | G128: =IFERROR(F128*E128, "See 'Machinery Costs' tab") -> 0
E129: =IFERROR(VLOOKUP(B129,'Machinery Costs'!$B$19:$G$115,4,FALSE),0) -> 0 | G129: =IFERROR(F129*E129, "See 'Machinery Costs' tab") -> 0
E130: =IFERROR(VLOOKUP(B130,'Machinery Costs'!$B$19:$G$115,4,FALSE),0) -> 0 | G130: =IFERROR(F130*E130, "See 'Machinery Costs' tab") -> 0
G131: =SUM(G127:G130) -> 0
B132: Cover Crop 5 Terminating Machinery (select from dropdown) | E132: Cost/Ac | F132: # Passes/Yr | G132: Total Cost/Ac
E134: =IFERROR(VLOOKUP(B134,'Machinery Costs'!$B$125:$E$149,4,FALSE),0) -> 0 | G134: =IFERROR(F134*E134, "See 'Machinery Costs' tab") -> 0
E135: =IFERROR(VLOOKUP(B135,'Machinery Costs'!$B$125:$E$149,4,FALSE),0) -> 0 | G135: =IFERROR(F135*E135, "See 'Machinery Costs' tab") -> 0
E136: =IFERROR(VLOOKUP(B136,'Machinery Costs'!$B$125:$E$149,4,FALSE),0) -> 0 | G136: =IFERROR(F136*E136, "See 'Machinery Costs' tab") -> 0
G137: =SUM(G133:G136) -> 0
B138: Cover Crop Machinery Cost ($/Ac) | G138: =SUM(G131,G137) -> 0
B140: Cover Crop 6
B141: Cash Crop Before Cover | C141: =IF('Study Area Overview'!$B$87="","",'Study Area Overview'!$B$87) ->  | E141: Cover Crop Seed ($/Ac)
B142: Cover Crop 6 | C142: =IF('Study Area Overview'!$C$87="","",'Study Area Overview'!$C$87) ->  | E142: Additional Nutrient Inputs ($/Ac)
B143: Acres of Cover | C143: =IF('Study Area Overview'!$G$87="","",'Study Area Overview'!$G$87) ->  | E143: Additional Termination Inputs ($/Ac)
B144: Termination Method | C144: =IF('Study Area Overview'!$C$87 > 0, 'Study Area Overview'!$F$87, "") ->  | E144: Additional Costs ($/Ac)
B145: Cash Crop Following Cover | C145: =IF('Study Area Overview'!$D$87="","",'Study Area Overview'!$D$87) ->  | E145: Total Input Cost Per Acre | G145: =IFERROR(SUM(G141:G144),"") -> 0
B148: Cover Crop 6 Current Planting Machinery (select from dropdown) | E148: Cost/Ac | F148: # Passes/Yr | G148: Total Cost/Ac
E150: =IFERROR(VLOOKUP(B150,'Machinery Costs'!$B$19:$G$115,4,FALSE),0) -> 0 | G150: =IFERROR(F150*E150, "See 'Machinery Costs' tab") -> 0
E151: =IFERROR(VLOOKUP(B151,'Machinery Costs'!$B$19:$G$115,4,FALSE),0) -> 0 | G151: =IFERROR(F151*E151, "See 'Machinery Costs' tab") -> 0
E152: =IFERROR(VLOOKUP(B152,'Machinery Costs'!$B$19:$G$115,4,FALSE),0) -> 0 | G152: =IFERROR(F152*E152, "See 'Machinery Costs' tab") -> 0
G153: =SUM(G149:G152) -> 0
B154: Cover Crop 6 Terminating Machinery (select from dropdown) | E154: Cost/Ac | F154: # Passes/Yr | G154: Total Cost/Ac
E156: =IFERROR(VLOOKUP(B156,'Machinery Costs'!$B$125:$E$149,4,FALSE),0) -> 0 | G156: =IFERROR(F156*E156, "See 'Machinery Costs' tab") -> 0
E157: =IFERROR(VLOOKUP(B157,'Machinery Costs'!$B$125:$E$149,4,FALSE),0) -> 0 | G157: =IFERROR(F157*E157, "See 'Machinery Costs' tab") -> 0
E158: =IFERROR(VLOOKUP(B158,'Machinery Costs'!$B$125:$E$149,4,FALSE),0) -> 0 | G158: =IFERROR(F158*E158, "See 'Machinery Costs' tab") -> 0
G159: =SUM(G155:G158) -> 0
B160: Cover Crop Machinery Cost ($/Ac) | G160: =SUM(G153,G159) -> 0
B162: Cover Crop 7
B163: Cash Crop Before Cover | C163: =IF('Study Area Overview'!$B$88="","",'Study Area Overview'!$B$88) ->  | E163: Cover Crop Seed ($/Ac)
B164: Cover Crop 7 | C164: =IF('Study Area Overview'!$C$88="","",'Study Area Overview'!$C$88) ->  | E164: Additional Nutrient Inputs ($/Ac)
B165: Acres of Cover | C165: =IF('Study Area Overview'!$G$88="","",'Study Area Overview'!$G$88) ->  | E165: Additional Termination Inputs ($/Ac)
B166: Termination Method | C166: =IF('Study Area Overview'!$C$88 > 0, 'Study Area Overview'!$F$88, "") ->  | E166: Additional Costs ($/Ac)
B167: Cash Crop Following Cover | C167: =IF('Study Area Overview'!$D$88="","",'Study Area Overview'!$D$88) ->  | E167: Total Input Cost Per Acre | G167: =IFERROR(SUM(G163:G166),"") -> 0
B170: Cover Crop 7 Current Planting Machinery (select from dropdown) | E170: Cost/Ac | F170: # Passes/Yr | G170: Total Cost/Ac
E172: =IFERROR(VLOOKUP(B172,'Machinery Costs'!$B$19:$G$115,4,FALSE),0) -> 0 | G172: =IFERROR(F172*E172, "See 'Machinery Costs' tab") -> 0
E173: =IFERROR(VLOOKUP(B173,'Machinery Costs'!$B$19:$G$115,4,FALSE),0) -> 0 | G173: =IFERROR(F173*E173, "See 'Machinery Costs' tab") -> 0
E174: =IFERROR(VLOOKUP(B174,'Machinery Costs'!$B$19:$G$115,4,FALSE),0) -> 0 | G174: =IFERROR(F174*E174, "See 'Machinery Costs' tab") -> 0
G175: =SUM(G171:G174) -> 0
B176: Cover Crop 7 Terminating Machinery (select from dropdown) | E176: Cost/Ac | F176: # Passes/Yr | G176: Total Cost/Ac
E178: =IFERROR(VLOOKUP(B178,'Machinery Costs'!$B$125:$E$149,4,FALSE),0) -> 0 | G178: =IFERROR(F178*E178, "See 'Machinery Costs' tab") -> 0
E179: =IFERROR(VLOOKUP(B179,'Machinery Costs'!$B$125:$E$149,4,FALSE),0) -> 0 | G179: =IFERROR(F179*E179, "See 'Machinery Costs' tab") -> 0
E180: =IFERROR(VLOOKUP(B180,'Machinery Costs'!$B$125:$E$149,4,FALSE),0) -> 0 | G180: =IFERROR(F180*E180, "See 'Machinery Costs' tab") -> 0
G181: =SUM(G177:G180) -> 0
B182: Cover Crop Machinery Cost ($/Ac) | G182: =SUM(G175,G181) -> 0
B184: Cover Crop 8
B185: Cash Crop Before Cover | C185: =IF('Study Area Overview'!$B$89="","",'Study Area Overview'!$B$89) ->  | E185: Cover Crop Seed ($/Ac)
B186: Cover Crop 8 | C186: =IF('Study Area Overview'!$C$89="","",'Study Area Overview'!$C$89) ->  | E186: Additional Nutrient Inputs ($/Ac)
B187: Acres of Cover | C187: =IF('Study Area Overview'!$G$89="","",'Study Area Overview'!$G$89) ->  | E187: Additional Termination Inputs ($/Ac)
B188: Termination Method | C188: =IF('Study Area Overview'!$C$89 > 0, 'Study Area Overview'!$F$89, "") ->  | E188: Additional Costs ($/Ac)
B189: Cash Crop Following Cover | C189: =IF('Study Area Overview'!$D$89="","",'Study Area Overview'!$D$89) ->  | E189: Total Input Cost Per Acre | G189: =IFERROR(SUM(G185:G188),"") -> 0
B192: Cover Crop 8 Current Planting Machinery (select from dropdown) | E192: Cost/Ac | F192: # Passes/Yr | G192: Total Cost/Ac
E194: =IFERROR(VLOOKUP(B194,'Machinery Costs'!$B$19:$G$115,4,FALSE),0) -> 0 | G194: =IFERROR(F194*E194, "See 'Machinery Costs' tab") -> 0
E195: =IFERROR(VLOOKUP(B195,'Machinery Costs'!$B$19:$G$115,4,FALSE),0) -> 0 | G195: =IFERROR(F195*E195, "See 'Machinery Costs' tab") -> 0
E196: =IFERROR(VLOOKUP(B196,'Machinery Costs'!$B$19:$G$115,4,FALSE),0) -> 0 | G196: =IFERROR(F196*E196, "See 'Machinery Costs' tab") -> 0
G197: =SUM(G193:G196) -> 0
B198: Cover Crop 8 Terminating Machinery (select from dropdown) | E198: Cost/Ac | F198: # Passes/Yr | G198: Total Cost/Ac
E200: =IFERROR(VLOOKUP(B200,'Machinery Costs'!$B$125:$E$149,4,FALSE),0) -> 0 | G200: =IFERROR(F200*E200, "See 'Machinery Costs' tab") -> 0
E201: =IFERROR(VLOOKUP(B201,'Machinery Costs'!$B$125:$E$149,4,FALSE),0) -> 0 | G201: =IFERROR(F201*E201, "See 'Machinery Costs' tab") -> 0
E202: =IFERROR(VLOOKUP(B202,'Machinery Costs'!$B$125:$E$149,4,FALSE),0) -> 0 | G202: =IFERROR(F202*E202, "See 'Machinery Costs' tab") -> 0
G203: =SUM(G199:G202) -> 0
B204: Cover Crop Machinery Cost ($/Ac) | G204: =SUM(G197,G203) -> 0
B206: Cover Crop 9
B207: Cash Crop Before Cover | C207: =IF('Study Area Overview'!$B$90="","",'Study Area Overview'!$B$90) ->  | E207: Cover Crop Seed ($/Ac)
B208: Cover Crop 9 | C208: =IF('Study Area Overview'!$C$90="","",'Study Area Overview'!$C$90) ->  | E208: Additional Nutrient Inputs ($/Ac)
B209: Acres of Cover | C209: =IF('Study Area Overview'!$G$90="","",'Study Area Overview'!$G$90) ->  | E209: Additional Termination Inputs ($/Ac)
B210: Termination Method | C210: =IF('Study Area Overview'!$C$90 > 0, 'Study Area Overview'!$F$90, "") ->  | E210: Additional Costs ($/Ac)
B211: Cash Crop Following Cover | C211: =IF('Study Area Overview'!$D$90="","",'Study Area Overview'!$D$90) ->  | E211: Total Input Cost Per Acre | G211: =IFERROR(SUM(G207:G210),"") -> 0
B214: Cover Crop 9 Current Planting Machinery (select from dropdown) | E214: Cost/Ac | F214: # Passes/Yr | G214: Total Cost/Ac
E216: =IFERROR(VLOOKUP(B216,'Machinery Costs'!$B$19:$G$115,4,FALSE),0) -> 0 | G216: =IFERROR(F216*E216, "See 'Machinery Costs' tab") -> 0
E217: =IFERROR(VLOOKUP(B217,'Machinery Costs'!$B$19:$G$115,4,FALSE),0) -> 0 | G217: =IFERROR(F217*E217, "See 'Machinery Costs' tab") -> 0
E218: =IFERROR(VLOOKUP(B218,'Machinery Costs'!$B$19:$G$115,4,FALSE),0) -> 0 | G218: =IFERROR(F218*E218, "See 'Machinery Costs' tab") -> 0
G219: =SUM(G215:G218) -> 0
B220: Cover Crop 9 Terminating Machinery (select from dropdown) | E220: Cost/Ac | F220: # Passes/Yr | G220: Total Cost/Ac
E222: =IFERROR(VLOOKUP(B222,'Machinery Costs'!$B$125:$E$149,4,FALSE),0) -> 0 | G222: =IFERROR(F222*E222, "See 'Machinery Costs' tab") -> 0
E223: =IFERROR(VLOOKUP(B223,'Machinery Costs'!$B$125:$E$149,4,FALSE),0) -> 0 | G223: =IFERROR(F223*E223, "See 'Machinery Costs' tab") -> 0
E224: =IFERROR(VLOOKUP(B224,'Machinery Costs'!$B$125:$E$149,4,FALSE),0) -> 0 | G224: =IFERROR(F224*E224, "See 'Machinery Costs' tab") -> 0
G225: =SUM(G221:G224) -> 0
B226: Cover Crop Machinery Cost ($/Ac) | G226: =SUM(G219,G225) -> 0
B228: Cover Crop 10
B229: Cash Crop Before Cover | C229: =IF('Study Area Overview'!$B$91="","",'Study Area Overview'!$B$91) ->  | E229: Cover Crop Seed ($/Ac)
B230: Cover Crop 10 | C230: =IF('Study Area Overview'!$C$91="","",'Study Area Overview'!$C$91) ->  | E230: Additional Nutrient Inputs ($/Ac)
B231: Acres of Cover | C231: =IF('Study Area Overview'!$G$91="","",'Study Area Overview'!$G$91) ->  | E231: Additional Termination Inputs ($/Ac)
B232: Termination Method | C232: =IF('Study Area Overview'!$C$91 > 0, 'Study Area Overview'!$F$91, "") ->  | E232: Additional Costs ($/Ac)
B233: Cash Crop Following Cover | C233: =IF('Study Area Overview'!$D$91="","",'Study Area Overview'!$D$91) ->  | E233: Total Input Cost Per Acre | G233: =IFERROR(SUM(G229:G232),"") -> 0
B236: Cover Crop 10 Current Planting Machinery (select from dropdown) | E236: Cost/Ac | F236: # Passes/Yr | G236: Total Cost/Ac
E238: =IFERROR(VLOOKUP(B238,'Machinery Costs'!$B$19:$G$115,4,FALSE),0) -> 0 | G238: =IFERROR(F238*E238, "See 'Machinery Costs' tab") -> 0
E239: =IFERROR(VLOOKUP(B239,'Machinery Costs'!$B$19:$G$115,4,FALSE),0) -> 0 | G239: =IFERROR(F239*E239, "See 'Machinery Costs' tab") -> 0
E240: =IFERROR(VLOOKUP(B240,'Machinery Costs'!$B$19:$G$115,4,FALSE),0) -> 0 | G240: =IFERROR(F240*E240, "See 'Machinery Costs' tab") -> 0
G241: =SUM(G237:G240) -> 0
B242: Cover Crop 10 Terminating Machinery (select from dropdown) | E242: Cost/Ac | F242: # Passes/Yr | G242: Total Cost/Ac
E244: =IFERROR(VLOOKUP(B244,'Machinery Costs'!$B$125:$E$149,4,FALSE),0) -> 0 | G244: =IFERROR(F244*E244, "See 'Machinery Costs' tab") -> 0
E245: =IFERROR(VLOOKUP(B245,'Machinery Costs'!$B$125:$E$149,4,FALSE),0) -> 0 | G245: =IFERROR(F245*E245, "See 'Machinery Costs' tab") -> 0
E246: =IFERROR(VLOOKUP(B246,'Machinery Costs'!$B$125:$E$149,4,FALSE),0) -> 0 | G246: =IFERROR(F246*E246, "See 'Machinery Costs' tab") -> 0
G247: =SUM(G243:G246) -> 0
B248: Cover Crop Machinery Cost ($/Ac) | G248: =SUM(G241,G247) -> 0
A250: Summary of Cover Crop Costs
B251: Cover Species or Mix Description | C251: Acres Planted | D251: Per Acre Input Cost by Cover Crop ($/Ac) | E251: Per Acre Cover Crop Machinery Cost by Cover Crop ($/Ac) | F251: Per Acre Cost by Cover Crop ($/Ac) | G251: Total Cost by Cover Crop ($)
B252: =IF(C32="","",C32) ->  | C252: =IF(C33="","",C33) ->  | D252: =IF(G35>0,G35,"") ->  | E252: =IF(G50>0,G50,"") ->  | F252: =IFERROR(D252+E252,"") ->  | G252: =IFERROR(C252*F252,"") -> 
B253: =IF(C54="","",C54) ->  | C253: =IF(C55="","",C55) ->  | D253: =IF(G57>0,G57,"") ->  | E253: =IF(G72>0,G72,"") -> 
B254: =IF(C76="","",C76) ->  | C254: =IF(C77="","",C77) ->  | D254: =IF(G79>0,G79,"") ->  | E254: =IF(G94>0,G94,"") -> 
B255: =IF(C98="","",C98) ->  | C255: =IF(C99="","",C99) ->  | D255: =IF(G101>0,G101,"") ->  | E255: =IF(G116>0,G116,"") -> 
B256: =IF(C120="","",C120) ->  | C256: =IF(C121="","",C121) ->  | D256: =IF(G123>0,G123,"") ->  | E256: =IF(G138>0,G138,"") -> 
B257: =IF(C142="","",C142) ->  | C257: =IF(C143="","",C143) ->  | D257: =IF(G145>0,G145,"") ->  | E257: =IF(G160>0,G160,"") -> 
B258: =IF(C164="","",C164) ->  | C258: =IF(C165="","",C165) ->  | D258: =IF(G167>0,G167,"") ->  | E258: =IF(G182>0,G182,"") -> 
B259: =IF(C186="","",C186) ->  | C259: =IF(C187="","",C187) ->  | D259: =IF(G189>0,G189,"") ->  | E259: =IF(G204>0,G204,"") -> 
B260: =IF(C208="","",C208) ->  | C260: =IF(C209="","",C209) ->  | D260: =IF(G211>0,G211,"") ->  | E260: =IF(G226>0,G226,"") -> 
B261: =IF(C230="","",C230) ->  | C261: =IF(C231="","",C231) ->  | D261: =IF(G233>0,G233,"") ->  | E261: =IF(G248>0,G248,"") -> 
B262: Study Area Total Cover Crop Cost ($) | G262: =IFERROR(SUM(G252:G261),0) -> 0
B263: Study Area Per Acre Cover Crop Cost (Weighted Average, $/Ac) (negative value means decrease in cost) | G263: =IFERROR(G262/SUM(C252:C261),0) -> 0
A266: Cover Crop Grazing &/or Haying Benefits
A267: Complete the following tables considering all cover crops grazed &/or hayed. Make sure to only include additional costs (e.g., new fencing for grazing.) Also, make sure to not double count inputs or machinery with the previous tables. The value of the cover crop as forage is the default grass hay national average price (organic if noted on 'Study Area Overview' tab), unless a farmer-provided forage value is given on Overview tab.
B270: TIPS:
B271: (1) Per acre grazing benefit is calculated by multiplying # days grazed per year, stocking rate (animal unit per acre), and daily forage demand (pounds per animal unit), then dividing by 2,000lbs to estimate tons per acre grazed, which can then be multiplied by the value per ton. Alternatively, user can enter their estimated $/ac grazing benefit (e.g., if the farmer charges others to graze.)
... 25 more rows

Sheet Other Costs & Benefits
A1: Other Benefits & Costs
A3: ABOUT THIS TAB:
A4: The Other Costs & Benefits tab calculates the value of decreased erosion, cost of educational activities, annual financial assistance payments, and any other benefits and costs not otherwise accounted for on the previous tabs of the Tool. See below for guidance and tips related to each of these sections.
A8: Value of Decreased Erosion due to Soil Health Practices
A9: The value of nitrogen (N) and phosphorus (P) per ton of soil is based on the 5-year rolling average price of N and P and an assumption on the amount of N and P per ton eroded soil. See the 'Prices' tab for more information.
A11: TIPS:
A12: (1) Number of Acres is the area where the reduction in erosion was observed. This could be the entire area where the farmer switched to no-till or reduced tillage in cases where slopes are relatively uniform throughout. If the area is comprised of a combination of relatively flat areas and steeper ground, the acreage could be the portion encompassed by only the steeper ground. Do not enter a number greater than the total number of acres in the study area.
A16: (2) Enter tons of reduced erosion results (Tons/Acre/Year) modeled using any sediment reduction tool, such as the Nutrient Tracking Tool, the erosion reduction value from RUSLE-2 analysis, or any reasonable value based on soil type.
A18: (3) If the user does not wish to ascribe an economic value to the reduction in erosion, simply leave these fields blank
A19: (4) Total Annual Change in Repair Cost should only include changes in costs for repairs (e.g., fixing gullies) that occur within the Study Area due to the adoption of soil health practices.
B22: Retained Nutrients Benefits | C22: Amounts
B23: Value of N and P per Ton of Soil | C23: ='Prices (2023)'!$E$105 -> 2.070616759
B24: Number of Acres1
B25: Tons Reduced Erosion (Tons/Acre/Year)
B26: Total Value ($/Year) | C26: =C23*C24*C25 -> 0
B27: AND/OR
B28: Reduced Mechanical Erosion Repair due to SH practices | C28: $/Yr
B29: Total Annual Change in Repair Cost ($/Year)
B31: Total per Acre Value of Decreased Erosion ($/Ac/Yr) | C31: =IFERROR((IF(C29>0,C29*-1,C29)-C26)/C32,0) -> 0
B32: 1 Do not exceed total acres in the Study Area: | C32: ='Study Area Overview'!D71 -> 0
A34: Time Spent on Educational Activities
A35: Educational activities should reflect the average yearly amount of time spent learning the soil health practices, such as attending conferences and farmer meetings, reading magazines, etc. The hourly rate used to calculate the total education expense per year can be found on the 'Prices' tab.
A38: TIPS:
A39: (1) Do not enter hours for individual soil health practices if using Combined Practice Learning Activities.
A40: (2) Use Combined Practice Learning Activities when the farmer cannot separate hours spent by practice.
A41: (3) Total $/Yr is calculated using the default hourly labor rate, unless a farmer-provided hourly rate given on 'Study Area Overview' tab, multiplied by the number of learning activity hours by practice.
B43: Educational Activities
B44: Soil Health Practices | C44: Hours/Yr | D44: Total $/Yr
B45: Residue and Tillage Mgt. | D45: =IFERROR(IF('Study Area Overview'!G$52>0,'Study Area Overview'!G$52*C45,C45*'Prices (2023)'!$C$9),"") -> 0
B46: Cover Crops | D46: =IFERROR(IF('Study Area Overview'!G$52>0,'Study Area Overview'!G$52*C46,C46*'Prices (2023)'!$C$9),"") -> 0
B47: Nutrient Mgt. | D47: =IFERROR(IF('Study Area Overview'!G$52>0,'Study Area Overview'!G$52*C47,C47*'Prices (2023)'!$C$9),"") -> 0
B48: Conservation Crop Rotation | D48: =IFERROR(IF('Study Area Overview'!G$52>0,'Study Area Overview'!G$52*C48,C48*'Prices (2023)'!$C$9),"") -> 0
B50: Combined Practices Educational Activities | D50: =IFERROR(IF(SUM(D45:D48)>0,"See Tip 3",IF('Study Area Overview'!G$52>0,'Study Area Overview'!G$52*C50,C50*'Prices (2023)'!$C$9)),"") -> 0
C51: $/Hr
B52: Farmer's Reported Labor Hourly Rate (optional)
A54: Other Benefits and Costs
A55: Be sure these benefits and costs are not being captured anywhere else in the tool already. TIPS: (1) Descriptions should detail the benefits, costs, or changes in activities experienced and responsible for change as these descriptions will be used in the 'Results' partial budget analysis table to describe the associated increase/decrease in $/Ac. (2) The $/Ac should be positive for BOTH positive effects/decreased Costs and negative effects/increased costs. (3) Acres should not exceed study area acreage. The user can enter the full study area, or a portion of the study area.
B61: Decreased Costs
B62: Description of Other Benefit(s) | C62: $/Ac | D62: Number of Acres Affected | E62: Total Benefit
E63: =D63*C63 -> 0
E64: =D64*C64 -> 0
E65: 0
E66: 0
E67: 0
B68: Increased Costs
B69: Description of Other Cost(s) | C69: $/Ac | D69: Number of Acres Affected | E69: Total Cost
E70: =D70*C70 -> 0
E71: =D71*C71 -> 0
E72: 0
E73: =D73*C73 -> 0
E74: =D74*C74 -> 0
A76: Annual Financial Assistance Payments
A77: Any financial assistance payments listed are not included in the partial budget analysis because cost-share is temporary and not received by all, but they can be noted in the footnote of PBA table. TIPS: (1) Source is the funding source for the payment, such as NRCS EQIP.
B82: Source | C82: $/Ac/Yr | D82: Acres Funded | E82: Total ($) | F82: Weighted Average ($/Ac)
E83: =D83*C83 -> 0
E84: =D84*C84 -> 0
E85: =D85*C85 -> 0
E86: =D86*C86 -> 0
B87: Total Received | D87: =SUM(D83:D86) -> 0 | E87: =SUM(E83:E86) -> 0 | F87: =IFERROR(E87/D87,0) -> 0

Sheet Yields
A1: YIELD CHANGES & RESULTS BY CROP
A3: ABOUT THIS TAB:
A4: The Yields tab calculates revenue effects attributed to crop yield changes from adopting soil health practices. The only data entry on this tab is benchmark and current yields by crop. We've included results by crop for user reference only -- they are supplemental to the total Study Area weighted average results presented in the partial budget analysis table on the 'Results' green tabs. The Output tables (located below the yellow disclaimer) show results broken out by crop by revenue and each category of costs for both benchmark and current scenarios as well as a table of the changes (the difference between benchmark and current.) Users can use these tables to compare the various practice change impacts by category on each crop at both the per acre and total acreage amounts. All numbers and calculations in the output tables are automatically calculated within the tool; any changes to the Output tables must be made in the yield table or previous tabs, at which point these output tables will automatically update.
A12: Yield Impacts due to Soil Health Practices
A13: The user is asked to input benchmark and current yield per acre by crop. If there is a yield increase or decrease, the user has the option to attribute a portion of that yield change to adoption of soil health practices. For reference, soil health successful farmers featured in AFT’s soil health economic case studies have attributed between 1% and 60% of yield increases (19% average) to soil health practices. It is up to the farmer to estimate what portion of their yield change can be attributed to improved soil health. To guide this decision, we encourage users to compare the farmers benchmark and current average yields to their county average yields for the same benchmark and current time frame. While these county averages are not necessary for the partial budget analysis, we think they help reveal what yield changes may be due to other things beyond soil health practices, such as technological or time management improvements. If analyzing a conservation crop rotation (CCR), you must provide benchmark and current yields for all crops – even if there is no difference between benchmark and current yields – because when acreage shifts from one crop to another, we need to estimate a per acre net income for each crop impacted. This allows the R-SHEC to quantify the change in Study Area net income due to a CCR. If NOT analyzing a CCR, you only need to provide benchmark and current yields if you want to capture a yield change due to the adoption of soil health practices.
A26: TIPS:
A27: (1) Benchmark and current county averages are not required. It does provide a place to note county average yield change to assist in accurately estimating the percent yield change attributed to soil health practices by comparing the average increase in yield for the county over the same timeframe that the practices were adopted.
A30: (2) For county average yields, we suggest using the National Agricultural Statistics Service's QuickStats database to pull this information: https://quickstats.nass.usda.gov/
A32: (3) User must enter the "Farmer-provided: Benchmark Average Yield per Acre," "Farmer-provided: Current Average Yield per Acre," and "Farmer-provided % Yield Change Attributed to Soil Health Practices."
A34: (4) Benchmark average yield should reflect the average yield under benchmark practices before soil health practice adoption.
A35: (5) Current average yield should reflect the average yield since the soil health practice(s) were successfully adopted.
A36: (6) % Yield Change Attributed to Soil Health Practices should reflect the estimated amount of the yield change solely due to the adoption of soil health practices. Users should use the county reference as guidance for the estimated yield change due to non-soil health practices (such as technology or other industry changes.)
B40: Threshold Year (first adoption year): | C40: =MIN('Study Area Overview'!E26:E29) -> 0
B41: County | C41: ='Study Area Overview'!C6 -> 0
B42: Current Crop | C42: =IF('Study Area Overview'!$B$61="","",'Study Area Overview'!$B$61) ->  | D42: =IF('Study Area Overview'!$B$62="","",'Study Area Overview'!$B$62) ->  | E42: =IF('Study Area Overview'!$B$63="","",'Study Area Overview'!$B$63) ->  | F42: =IF('Study Area Overview'!$B$64="","",'Study Area Overview'!$B$64) ->  | G42: =IF('Study Area Overview'!$B$65="","",'Study Area Overview'!$B$65) ->  | H42: =IF('Study Area Overview'!$B$66="","",'Study Area Overview'!$B$66) ->  | I42: =IF('Study Area Overview'!$B$67="","",'Study Area Overview'!$B$67) ->  | J42: =IF('Study Area Overview'!$B$68="","",'Study Area Overview'!$B$68) ->  | K42: =IF('Study Area Overview'!$B$69="","",'Study Area Overview'!$B$69) ->  | L42: =IF('Study Area Overview'!$B$70="","",'Study Area Overview'!$B$70) -> 
B43: Benchmark County Average Yield per Acre (optional)
B44: Current County Average Yield per Acre (optional)
B45: Change in County Average Yield per Acre | C45: =IF(C44-C43=0,"",C44-C43) ->  | D45: =IF(D44-D43=0,"",D44-D43) -> 
B46: Farmer-provided: Benchmark Crop Average Yield per Acre (PRIOR to threshold year)
B47: Farmer-provided: Current Crop Average Yield per Acre (AFTER to threshold year)
B48: Calculated Change in Average Yield per Acre | C48: =IF(C47-C46=0,"",C47-C46) -> 
B49: Farmer-provided: % of Change in Average Yield Attributed to Soil Health Practices
A53: NOTE TO USERS: THE TABLES BELOW DO NOT REQUIRE DATA ENTRY. These tables are used by the 'Results' tabs. The data below are great to reference as we present by crop the benchmark, current, and change in costs and benefits.
A57: Output Tables
B58: Benchmark Data by Cash Crop | C58: =IF('Study Area Overview'!$B$48="","",'Study Area Overview'!$B$48) ->  | D58: =IF('Study Area Overview'!$B$49="","",'Study Area Overview'!$B$49) ->  | E58: =IF('Study Area Overview'!$B$50="","",'Study Area Overview'!$B$50) ->  | F58: =IF('Study Area Overview'!$B$51="","",'Study Area Overview'!$B$51) ->  | G58: =IF('Study Area Overview'!$B$52="","",'Study Area Overview'!$B$52) ->  | H58: =IF('Study Area Overview'!$B$53="","",'Study Area Overview'!$B$53) ->  | I58: =IF('Study Area Overview'!$B$54="","",'Study Area Overview'!$B$54) ->  | J58: =IF('Study Area Overview'!$B$55="","",'Study Area Overview'!$B$55) ->  | K58: =IF('Study Area Overview'!$B$56="","",'Study Area Overview'!$B$56) ->  | L58: =IF('Study Area Overview'!$B$57="","",'Study Area Overview'!$B$57) -> 
B59: Standard Crop Price per Unit | C59: =IFERROR(IF(VLOOKUP(C58,'Study Area Overview'!$B$104:$D$125,3,FALSE)>0,VLOOKUP(C58,'Study Area Overview'!$B$104:$D$125,3,FALSE),IF('Study Area Overview'!$B$15="Y",VLOOKUP(Yields!C$58,'Prices (2023)'!$B$62:$D$82,3,FALSE),VLOOKUP(Yields!C$58,'Prices (2023)'!$B$20:$D$41,3,FALSE))),"") ->  | D59: =IFERROR(IF(VLOOKUP(D58,'Study Area Overview'!$B$104:$D$125,3,FALSE)>0,VLOOKUP(D58,'Study Area Overview'!$B$104:$D$125,3,FALSE),IF('Study Area Overview'!$B$15="Y",VLOOKUP(Yields!D$58,'Prices (2023)'!$B$62:$D$82,3,FALSE),VLOOKUP(Yields!D$58,'Prices (2023)'!$B$20:$D$41,3,FALSE))),"") ->  | E59: =IFERROR(IF(VLOOKUP(E58,'Study Area Overview'!$B$104:$D$125,3,FALSE)>0,VLOOKUP(E58,'Study Area Overview'!$B$104:$D$125,3,FALSE),IF('Study Area Overview'!$B$15="Y",VLOOKUP(Yields!E$58,'Prices (2023)'!$B$62:$D$82,3,FALSE),VLOOKUP(Yields!E$58,'Prices (2023)'!$B$20:$D$41,3,FALSE))),"") ->  | F59: =IFERROR(IF(VLOOKUP(F58,'Study Area Overview'!$B$104:$D$125,3,FALSE)>0,VLOOKUP(F58,'Study Area Overview'!$B$104:$D$125,3,FALSE),IF('Study Area Overview'!$B$15="Y",VLOOKUP(Yields!F$58,'Prices (2023)'!$B$62:$D$82,3,FALSE),VLOOKUP(Yields!F$58,'Prices (2023)'!$B$20:$D$41,3,FALSE))),"") ->  | G59: =IFERROR(IF(VLOOKUP(G58,'Study Area Overview'!$B$104:$D$125,3,FALSE)>0,VLOOKUP(G58,'Study Area Overview'!$B$104:$D$125,3,FALSE),IF('Study Area Overview'!$B$15="Y",VLOOKUP(Yields!G$58,'Prices (2023)'!$B$62:$D$82,3,FALSE),VLOOKUP(Yields!G$58,'Prices (2023)'!$B$20:$D$41,3,FALSE))),"") ->  | H59: =IFERROR(IF(VLOOKUP(H58,'Study Area Overview'!$B$104:$D$125,3,FALSE)>0,VLOOKUP(H58,'Study Area Overview'!$B$104:$D$125,3,FALSE),IF('Study Area Overview'!$B$15="Y",VLOOKUP(Yields!H$58,'Prices (2023)'!$B$62:$D$82,3,FALSE),VLOOKUP(Yields!H$58,'Prices (2023)'!$B$20:$D$41,3,FALSE))),"") ->  | I59: =IFERROR(IF(VLOOKUP(I58,'Study Area Overview'!$B$104:$D$125,3,FALSE)>0,VLOOKUP(I58,'Study Area Overview'!$B$104:$D$125,3,FALSE),IF('Study Area Overview'!$B$15="Y",VLOOKUP(Yields!I$58,'Prices (2023)'!$B$62:$D$82,3,FALSE),VLOOKUP(Yields!I$58,'Prices (2023)'!$B$20:$D$41,3,FALSE))),"") ->  | J59: =IFERROR(IF(VLOOKUP(J58,'Study Area Overview'!$B$104:$D$125,3,FALSE)>0,VLOOKUP(J58,'Study Area Overview'!$B$104:$D$125,3,FALSE),IF('Study Area Overview'!$B$15="Y",VLOOKUP(Yields!J$58,'Prices (2023)'!$B$62:$D$82,3,FALSE),VLOOKUP(Yields!J$58,'Prices (2023)'!$B$20:$D$41,3,FALSE))),"") ->  | K59: =IFERROR(IF(VLOOKUP(K58,'Study Area Overview'!$B$104:$D$125,3,FALSE)>0,VLOOKUP(K58,'Study Area Overview'!$B$104:$D$125,3,FALSE),IF('Study Area Overview'!$B$15="Y",VLOOKUP(Yields!K$58,'Prices (2023)'!$B$62:$D$82,3,FALSE),VLOOKUP(Yields!K$58,'Prices (2023)'!$B$20:$D$41,3,FALSE))),"") ->  | L59: =IFERROR(IF(VLOOKUP(L58,'Study Area Overview'!$B$104:$D$125,3,FALSE)>0,VLOOKUP(L58,'Study Area Overview'!$B$104:$D$125,3,FALSE),IF('Study Area Overview'!$B$15="Y",VLOOKUP(Yields!L$58,'Prices (2023)'!$B$62:$D$82,3,FALSE),VLOOKUP(Yields!L$58,'Prices (2023)'!$B$20:$D$41,3,FALSE))),"") -> 
B60: Crop Gross Revenue ($/Ac) | C60: =IF(C46>0,C59*C46,IF(AND(C58="",C84=""),0,0)) -> 0 | D60: =IF(D46>0,D59*D46,IF(AND(D58="",D84=""),0,0)) -> 0 | E60: =IF(E46>0,E59*E46,IF(AND(E58="",E84=""),0,0)) -> 0 | F60: =IF(F46>0,F59*F46,IF(OR(F58="",F84=""),0,0)) -> 0 | G60: 0 | H60: 0 | I60: 0 | J60: 0 | K60: 0 | L60: 0
B61: Crop Trucking ($/Ac) | C61: =IFERROR(VLOOKUP(C$58,'Prices (2023)'!$B$117:$E$139,4,FALSE)*Yields!C$46,"") ->  | D61: =IFERROR(VLOOKUP(D$58,'Prices (2023)'!$B$117:$E$139,4,FALSE)*Yields!D$46,"") ->  | E61: =IFERROR(VLOOKUP(E$58,'Prices (2023)'!$B$117:$E$139,4,FALSE)*Yields!E$46,"") ->  | F61: =IFERROR(VLOOKUP(F$58,'Prices (2023)'!$B$117:$E$139,4,FALSE)*Yields!F$46,"") ->  | G61: =IFERROR(VLOOKUP(G$58,'Prices (2023)'!$B$117:$E$139,4,FALSE)*Yields!G$46,"") ->  | H61: =IFERROR(VLOOKUP(H$58,'Prices (2023)'!$B$117:$E$139,4,FALSE)*Yields!H$46,"") ->  | I61: =IFERROR(VLOOKUP(I$58,'Prices (2023)'!$B$117:$E$139,4,FALSE)*Yields!I$46,"") ->  | J61: =IFERROR(VLOOKUP(J$58,'Prices (2023)'!$B$117:$E$139,4,FALSE)*Yields!J$46,"") ->  | K61: =IFERROR(VLOOKUP(K$58,'Prices (2023)'!$B$117:$E$139,4,FALSE)*Yields!K$46,"") ->  | L61: =IFERROR(VLOOKUP(L$58,'Prices (2023)'!$B$117:$E$139,4,FALSE)*Yields!L$46,"") -> 
B62: Crop Drying ($/Ac) | C62: =IFERROR(VLOOKUP(C$58,'Prices (2023)'!$B$117:$E$139,2,FALSE)*Yields!C$46,"") ->  | D62: =IFERROR(VLOOKUP(D$58,'Prices (2023)'!$B$117:$E$139,2,FALSE)*Yields!D$46,"") ->  | E62: =IFERROR(VLOOKUP(E$58,'Prices (2023)'!$B$117:$E$139,2,FALSE)*Yields!E$46,"") ->  | F62: =IFERROR(VLOOKUP(F$58,'Prices (2023)'!$B$117:$E$139,2,FALSE)*Yields!F$46,"") ->  | G62: =IFERROR(VLOOKUP(G$58,'Prices (2023)'!$B$117:$E$139,2,FALSE)*Yields!G$46,"") ->  | H62: =IFERROR(VLOOKUP(H$58,'Prices (2023)'!$B$117:$E$139,2,FALSE)*Yields!H$46,"") ->  | I62: =IFERROR(VLOOKUP(I$58,'Prices (2023)'!$B$117:$E$139,2,FALSE)*Yields!I$46,"") ->  | J62: =IFERROR(VLOOKUP(J$58,'Prices (2023)'!$B$117:$E$139,2,FALSE)*Yields!J$46,"") ->  | K62: =IFERROR(VLOOKUP(K$58,'Prices (2023)'!$B$117:$E$139,2,FALSE)*Yields!K$46,"") ->  | L62: =IFERROR(VLOOKUP(L$58,'Prices (2023)'!$B$117:$E$139,2,FALSE)*Yields!L$46,"") -> 
B63: Crop Storage ($/Ac) | C63: =IFERROR(VLOOKUP(C$58,'Prices (2023)'!$B$117:$E$139,3,FALSE)*Yields!C$46,"") ->  | D63: =IFERROR(VLOOKUP(D$58,'Prices (2023)'!$B$117:$E$139,3,FALSE)*Yields!D$46,"") ->  | E63: =IFERROR(VLOOKUP(E$58,'Prices (2023)'!$B$117:$E$139,3,FALSE)*Yields!E$46,"") ->  | F63: =IFERROR(VLOOKUP(F$58,'Prices (2023)'!$B$117:$E$139,3,FALSE)*Yields!F$46,"") ->  | G63: =IFERROR(VLOOKUP(G$58,'Prices (2023)'!$B$117:$E$139,3,FALSE)*Yields!G$46,"") ->  | H63: =IFERROR(VLOOKUP(H$58,'Prices (2023)'!$B$117:$E$139,3,FALSE)*Yields!H$46,"") ->  | I63: =IFERROR(VLOOKUP(I$58,'Prices (2023)'!$B$117:$E$139,3,FALSE)*Yields!I$46,"") ->  | J63: =IFERROR(VLOOKUP(J$58,'Prices (2023)'!$B$117:$E$139,3,FALSE)*Yields!J$46,"") ->  | K63: =IFERROR(VLOOKUP(K$58,'Prices (2023)'!$B$117:$E$139,3,FALSE)*Yields!K$46,"") ->  | L63: =IFERROR(VLOOKUP(L$58,'Prices (2023)'!$B$117:$E$139,3,FALSE)*Yields!L$46,"") -> 
B64: Crop Handling Costs ($/Ac) | C64: =IF(SUM(C61:C63)>0,SUM(C61:C63),IF(AND(C58="",C84=""),0,0)) -> 0 | D64: =IF(SUM(D61:D63)>0,SUM(D61:D63),IF(AND(D58="",D84=""),0,0)) -> 0 | E64: =IF(SUM(E61:E63)>0,SUM(E61:E63),IF(AND(E58="",E84=""),0,0)) -> 0 | F64: =IF(SUM(F61:F63)>0,SUM(F61:F63),IF(AND(F58="",F84=""),0,0)) -> 0 | G64: =IF(SUM(G61:G63)>0,SUM(G61:G63),IF(AND(G58="",G84=""),0,0)) -> 0 | H64: 0 | I64: 0 | J64: 0 | K64: 0 | L64: 0
B65: Machinery Cost ($/Ac) | C65: =Machinery!C376 -> 0 | D65: =Machinery!C377 -> 0 | E65: =Machinery!C378 -> 0 | F65: =Machinery!C379 -> 0 | G65: =Machinery!C380 -> 0 | H65: =Machinery!C381 -> 0 | I65: =Machinery!C382 -> 0 | J65: =Machinery!C383 -> 0 | K65: =Machinery!C384 -> 0 | L65: =Machinery!C385 -> 0
B66: Cash Crop Seed ($/Ac) | C66: ='Cash Crop Inputs'!C147 -> 0 | D66: ='Cash Crop Inputs'!D147 -> 0 | E66: ='Cash Crop Inputs'!E147 -> 0 | F66: ='Cash Crop Inputs'!F147 -> 0 | G66: ='Cash Crop Inputs'!G147 -> 0 | H66: ='Cash Crop Inputs'!H147 -> 0 | I66: ='Cash Crop Inputs'!I147 -> 0 | J66: ='Cash Crop Inputs'!J147 -> 0 | K66: ='Cash Crop Inputs'!K147 -> 0 | L66: ='Cash Crop Inputs'!L147 -> 0
B67: Cash Crop Soil Sampling ($/Ac) | C67: ='Cash Crop Inputs'!C148 -> 0 | D67: ='Cash Crop Inputs'!D148 -> 0 | E67: ='Cash Crop Inputs'!E148 -> 0 | F67: ='Cash Crop Inputs'!F148 -> 0 | G67: ='Cash Crop Inputs'!G148 -> 0 | H67: ='Cash Crop Inputs'!H148 -> 0 | I67: ='Cash Crop Inputs'!I148 -> 0 | J67: ='Cash Crop Inputs'!J148 -> 0 | K67: ='Cash Crop Inputs'!K148 -> 0 | L67: ='Cash Crop Inputs'!L148 -> 0
B68: Fertilizer Cost ($/Ac) | C68: ='Cash Crop Inputs'!C149 -> 0 | D68: ='Cash Crop Inputs'!D149 -> 0 | E68: ='Cash Crop Inputs'!E149 -> 0 | F68: ='Cash Crop Inputs'!F149 -> 0 | G68: ='Cash Crop Inputs'!G149 -> 0 | H68: ='Cash Crop Inputs'!H149 -> 0 | I68: ='Cash Crop Inputs'!I149 -> 0 | J68: ='Cash Crop Inputs'!J149 -> 0 | K68: ='Cash Crop Inputs'!K149 -> 0 | L68: ='Cash Crop Inputs'!L149 -> 0
B69: Manure Cost ($/Ac) | C69: ='Cash Crop Inputs'!C150 -> 0 | D69: ='Cash Crop Inputs'!D150 -> 0 | E69: ='Cash Crop Inputs'!E150 -> 0 | F69: ='Cash Crop Inputs'!F150 -> 0 | G69: ='Cash Crop Inputs'!G150 -> 0 | H69: ='Cash Crop Inputs'!H150 -> 0 | I69: ='Cash Crop Inputs'!I150 -> 0 | J69: ='Cash Crop Inputs'!J150 -> 0 | K69: ='Cash Crop Inputs'!K150 -> 0 | L69: ='Cash Crop Inputs'!L150 -> 0
B70: Chemical Cost ($/Ac) | C70: ='Cash Crop Inputs'!C151 -> 0 | D70: ='Cash Crop Inputs'!D151 -> 0 | E70: ='Cash Crop Inputs'!E151 -> 0 | F70: ='Cash Crop Inputs'!F151 -> 0 | G70: ='Cash Crop Inputs'!G151 -> 0 | H70: ='Cash Crop Inputs'!H151 -> 0 | I70: ='Cash Crop Inputs'!I151 -> 0 | J70: ='Cash Crop Inputs'!J151 -> 0 | K70: ='Cash Crop Inputs'!K151 -> 0 | L70: ='Cash Crop Inputs'!L151 -> 0
B71: Benchmark Per Acre Net Income by Crop ($/Ac) | C71: =IFERROR(C60-(SUM(C64,C65:C70)),IF(AND(C58="",C84=""),"",0)) -> 0 | D71: 0 | E71: 0 | F71: 0 | G71: 0 | H71: 0 | I71: 0 | J71: 0 | K71: 0 | L71: 0
B72: Acres Per Year | C72: =IF('Study Area Overview'!$D$48="","",'Study Area Overview'!$D$48) ->  | D72: =IF('Study Area Overview'!$D$49="","",'Study Area Overview'!$D$49) ->  | E72: =IF('Study Area Overview'!$D$50="","",'Study Area Overview'!$D$50) ->  | F72: =IF('Study Area Overview'!$D$51="","",'Study Area Overview'!$D$51) ->  | G72: =IF('Study Area Overview'!$D$52="","",'Study Area Overview'!$D$52) ->  | H72: =IF('Study Area Overview'!$D$53="","",'Study Area Overview'!$D$53) ->  | I72: =IF('Study Area Overview'!$D$54="","",'Study Area Overview'!$D$54) ->  | J72: =IF('Study Area Overview'!$D$55="","",'Study Area Overview'!$D$55) ->  | K72: =IF('Study Area Overview'!$D$56="","",'Study Area Overview'!$D$56) ->  | L72: =IF('Study Area Overview'!$D$57="","",'Study Area Overview'!$D$57) -> 
B73: Crop Gross Revenue ($/Yr) | C73: =IFERROR(C60*C$72,"") -> 
B74: Total Crop Handling Costs ($/Yr) | C74: =IFERROR(C64*C$72,"") -> 
B75: Machinery Cost ($/Yr) | C75: =IFERROR(C65*C$72,"") ->  | E75: =IFERROR(E65*E$72,"") ->  | F75: =IFERROR(F65*F$72,"") -> 
B76: Cash Crop Seed ($/Yr) | C76: =IFERROR(C66*C$72,"") ->  | D76: =IFERROR(D66*D$72,"") ->  | E76: =IFERROR(E66*E$72,"") ->  | F76: =IFERROR(F66*F$72,"") -> 
B77: Cash Crop Soil Sampling ($/Yr) | C77: =IFERROR(C67*C$72,"") ->  | D77: =IFERROR(D67*D$72,"") -> 
B78: Fertilizer Cost ($/Yr) | C78: =IFERROR(C68*C$72,"") ->  | E78: =IFERROR(E68*E$72,"") ->  | F78: =IFERROR(F68*F$72,"") -> 
B79: Manure Cost ($/Yr) | C79: =IFERROR(C69*C$72,"") ->  | E79: =IFERROR(E69*E$72,"") ->  | F79: =IFERROR(F69*F$72,"") -> 
B80: Chemical Cost ($/Yr) | C80: =IFERROR(C70*C$72,"") ->  | E80: =IFERROR(E70*E$72,"") ->  | F80: =IFERROR(F70*F$72,"") -> 
B81: Benchmark Annual Net Income by Crop ($/Yr) | C81: =IFERROR(C71*C$72,IF(AND(C58="",C84=""),"",0)) -> 
B84: Current Data by Cash Crop | C84: =IF('Study Area Overview'!$B$61="","",'Study Area Overview'!$B$61) ->  | D84: =IF('Study Area Overview'!$B$62="","",'Study Area Overview'!$B$62) ->  | E84: =IF('Study Area Overview'!$B$63="","",'Study Area Overview'!$B$63) ->  | F84: =IF('Study Area Overview'!$B$64="","",'Study Area Overview'!$B$64) ->  | G84: =IF('Study Area Overview'!$B$65="","",'Study Area Overview'!$B$65) ->  | H84: =IF('Study Area Overview'!$B$66="","",'Study Area Overview'!$B$66) ->  | I84: =IF('Study Area Overview'!$B$67="","",'Study Area Overview'!$B$67) ->  | J84: =IF('Study Area Overview'!$B$68="","",'Study Area Overview'!$B$68) ->  | K84: =IF('Study Area Overview'!$B$69="","",'Study Area Overview'!$B$69) ->  | L84: =IF('Study Area Overview'!$B$70="","",'Study Area Overview'!$B$70) -> 
B85: Standard Crop Price per Unit | C85: =IFERROR(IF(VLOOKUP(C$84,'Study Area Overview'!$B$104:$D$125,3,FALSE)>0,VLOOKUP(C$84,'Study Area Overview'!$B$104:$D$125,3,FALSE),IF('Study Area Overview'!$B$15="Y",VLOOKUP(Yields!C$84,'Prices (2023)'!$B$62:$D$82,3,FALSE),VLOOKUP(Yields!C$84,'Prices (2023)'!$B$20:$D$41,3,FALSE))),"") ->  | D85: =IFERROR(IF(VLOOKUP(D$84,'Study Area Overview'!$B$104:$D$125,3,FALSE)>0,VLOOKUP(D$84,'Study Area Overview'!$B$104:$D$125,3,FALSE),IF('Study Area Overview'!$B$15="Y",VLOOKUP(Yields!D$84,'Prices (2023)'!$B$62:$D$82,3,FALSE),VLOOKUP(Yields!D$84,'Prices (2023)'!$B$20:$D$41,3,FALSE))),"") ->  | E85: =IFERROR(IF(VLOOKUP(E$84,'Study Area Overview'!$B$104:$D$125,3,FALSE)>0,VLOOKUP(E$84,'Study Area Overview'!$B$104:$D$125,3,FALSE),IF('Study Area Overview'!$B$15="Y",VLOOKUP(Yields!E$84,'Prices (2023)'!$B$62:$D$82,3,FALSE),VLOOKUP(Yields!E$84,'Prices (2023)'!$B$20:$D$41,3,FALSE))),"") ->  | F85: =IFERROR(IF(VLOOKUP(F$84,'Study Area Overview'!$B$104:$D$125,3,FALSE)>0,VLOOKUP(F$84,'Study Area Overview'!$B$104:$D$125,3,FALSE),IF('Study Area Overview'!$B$15="Y",VLOOKUP(Yields!F$84,'Prices (2023)'!$B$62:$D$82,3,FALSE),VLOOKUP(Yields!F$84,'Prices (2023)'!$B$20:$D$41,3,FALSE))),"") ->  | G85: =IFERROR(IF(VLOOKUP(G$84,'Study Area Overview'!$B$104:$D$125,3,FALSE)>0,VLOOKUP(G$84,'Study Area Overview'!$B$104:$D$125,3,FALSE),IF('Study Area Overview'!$B$15="Y",VLOOKUP(Yields!G$84,'Prices (2023)'!$B$62:$D$82,3,FALSE),VLOOKUP(Yields!G$84,'Prices (2023)'!$B$20:$D$41,3,FALSE))),"") ->  | H85: =IFERROR(IF(VLOOKUP(H$84,'Study Area Overview'!$B$104:$D$125,3,FALSE)>0,VLOOKUP(H$84,'Study Area Overview'!$B$104:$D$125,3,FALSE),IF('Study Area Overview'!$B$15="Y",VLOOKUP(Yields!H$84,'Prices (2023)'!$B$62:$D$82,3,FALSE),VLOOKUP(Yields!H$84,'Prices (2023)'!$B$20:$D$41,3,FALSE))),"") ->  | I85: =IFERROR(IF(VLOOKUP(I$84,'Study Area Overview'!$B$104:$D$125,3,FALSE)>0,VLOOKUP(I$84,'Study Area Overview'!$B$104:$D$125,3,FALSE),IF('Study Area Overview'!$B$15="Y",VLOOKUP(Yields!I$84,'Prices (2023)'!$B$62:$D$82,3,FALSE),VLOOKUP(Yields!I$84,'Prices (2023)'!$B$20:$D$41,3,FALSE))),"") ->  | J85: =IFERROR(IF(VLOOKUP(J$84,'Study Area Overview'!$B$104:$D$125,3,FALSE)>0,VLOOKUP(J$84,'Study Area Overview'!$B$104:$D$125,3,FALSE),IF('Study Area Overview'!$B$15="Y",VLOOKUP(Yields!J$84,'Prices (2023)'!$B$62:$D$82,3,FALSE),VLOOKUP(Yields!J$84,'Prices (2023)'!$B$20:$D$41,3,FALSE))),"") ->  | K85: =IFERROR(IF(VLOOKUP(K$84,'Study Area Overview'!$B$104:$D$125,3,FALSE)>0,VLOOKUP(K$84,'Study Area Overview'!$B$104:$D$125,3,FALSE),IF('Study Area Overview'!$B$15="Y",VLOOKUP(Yields!K$84,'Prices (2023)'!$B$62:$D$82,3,FALSE),VLOOKUP(Yields!K$84,'Prices (2023)'!$B$20:$D$41,3,FALSE))),"") ->  | L85: =IFERROR(IF(VLOOKUP(L$84,'Study Area Overview'!$B$104:$D$125,3,FALSE)>0,VLOOKUP(L$84,'Study Area Overview'!$B$104:$D$125,3,FALSE),IF('Study Area Overview'!$B$15="Y",VLOOKUP(Yields!L$84,'Prices (2023)'!$B$62:$D$82,3,FALSE),VLOOKUP(Yields!L$84,'Prices (2023)'!$B$20:$D$41,3,FALSE))),"") -> 
B86: Crop Gross Revenue ($/Ac) | C86: =IF(C47>0,C85*C47,IF(AND(C58="",C84=""),0,0)) -> 0 | D86: 0 | E86: 0 | F86: 0 | G86: 0 | H86: 0 | I86: 0 | J86: 0 | K86: 0 | L86: 0
B87: Crop Trucking ($/Ac) | C87: =IFERROR(VLOOKUP(C$84,'Prices (2023)'!$B$117:$E$139,4,FALSE)*Yields!C$47,"") ->  | D87: =IFERROR(VLOOKUP(D$84,'Prices (2023)'!$B$117:$E$139,4,FALSE)*Yields!D$47,"") ->  | E87: =IFERROR(VLOOKUP(E$84,'Prices (2023)'!$B$117:$E$139,4,FALSE)*Yields!E$47,"") ->  | F87: =IFERROR(VLOOKUP(F$84,'Prices (2023)'!$B$117:$E$139,4,FALSE)*Yields!F$47,"") ->  | G87: =IFERROR(VLOOKUP(G$84,'Prices (2023)'!$B$117:$E$139,4,FALSE)*Yields!G$47,"") ->  | H87: =IFERROR(VLOOKUP(H$84,'Prices (2023)'!$B$117:$E$139,4,FALSE)*Yields!H$47,"") ->  | I87: =IFERROR(VLOOKUP(I$84,'Prices (2023)'!$B$117:$E$139,4,FALSE)*Yields!I$47,"") ->  | J87: =IFERROR(VLOOKUP(J$84,'Prices (2023)'!$B$117:$E$139,4,FALSE)*Yields!J$47,"") ->  | K87: =IFERROR(VLOOKUP(K$84,'Prices (2023)'!$B$117:$E$139,4,FALSE)*Yields!K$47,"") ->  | L87: =IFERROR(VLOOKUP(L$84,'Prices (2023)'!$B$117:$E$139,4,FALSE)*Yields!L$47,"") -> 
B88: Crop Drying ($/Ac) | C88: =IFERROR(VLOOKUP(C$84,'Prices (2023)'!$B$117:$E$139,2,FALSE)*Yields!C$47,"") ->  | D88: =IFERROR(VLOOKUP(D$84,'Prices (2023)'!$B$117:$E$139,2,FALSE)*Yields!D$47,"") ->  | E88: =IFERROR(VLOOKUP(E$84,'Prices (2023)'!$B$117:$E$139,2,FALSE)*Yields!E$47,"") ->  | F88: =IFERROR(VLOOKUP(F$84,'Prices (2023)'!$B$117:$E$139,2,FALSE)*Yields!F$47,"") ->  | G88: =IFERROR(VLOOKUP(G$84,'Prices (2023)'!$B$117:$E$139,2,FALSE)*Yields!G$47,"") ->  | H88: =IFERROR(VLOOKUP(H$84,'Prices (2023)'!$B$117:$E$139,2,FALSE)*Yields!H$47,"") ->  | I88: =IFERROR(VLOOKUP(I$84,'Prices (2023)'!$B$117:$E$139,2,FALSE)*Yields!I$47,"") ->  | J88: =IFERROR(VLOOKUP(J$84,'Prices (2023)'!$B$117:$E$139,2,FALSE)*Yields!J$47,"") ->  | K88: =IFERROR(VLOOKUP(K$84,'Prices (2023)'!$B$117:$E$139,2,FALSE)*Yields!K$47,"") ->  | L88: =IFERROR(VLOOKUP(L$84,'Prices (2023)'!$B$117:$E$139,2,FALSE)*Yields!L$47,"") -> 
B89: Crop Storage ($/Ac) | C89: =IFERROR(VLOOKUP(C$84,'Prices (2023)'!$B$117:$E$139,3,FALSE)*Yields!C$47,"") ->  | D89: =IFERROR(VLOOKUP(D$84,'Prices (2023)'!$B$117:$E$139,3,FALSE)*Yields!D$47,"") ->  | E89: =IFERROR(VLOOKUP(E$84,'Prices (2023)'!$B$117:$E$139,3,FALSE)*Yields!E$47,"") ->  | F89: =IFERROR(VLOOKUP(F$84,'Prices (2023)'!$B$117:$E$139,3,FALSE)*Yields!F$47,"") ->  | G89: =IFERROR(VLOOKUP(G$84,'Prices (2023)'!$B$117:$E$139,3,FALSE)*Yields!G$47,"") ->  | H89: =IFERROR(VLOOKUP(H$84,'Prices (2023)'!$B$117:$E$139,3,FALSE)*Yields!H$47,"") ->  | I89: =IFERROR(VLOOKUP(I$84,'Prices (2023)'!$B$117:$E$139,3,FALSE)*Yields!I$47,"") ->  | J89: =IFERROR(VLOOKUP(J$84,'Prices (2023)'!$B$117:$E$139,3,FALSE)*Yields!J$47,"") ->  | K89: =IFERROR(VLOOKUP(K$84,'Prices (2023)'!$B$117:$E$139,3,FALSE)*Yields!K$47,"") ->  | L89: =IFERROR(VLOOKUP(L$84,'Prices (2023)'!$B$117:$E$139,3,FALSE)*Yields!L$47,"") -> 
B90: Total Crop Handling Costs ($/Ac) | C90: =IF(SUM(C87:C89)>0,SUM(C87:C89),IF(AND(C58="",C84=""),0,0)) -> 0 | D90: =IF(SUM(D87:D89)>0,SUM(D87:D89),IF(AND(D58="",D84=""),0,0)) -> 0 | E90: =IF(SUM(E87:E89)>0,SUM(E87:E89),IF(AND(E58="",E84=""),0,0)) -> 0 | F90: =IF(SUM(F87:F89)>0,SUM(F87:F89),IF(AND(F58="",F84=""),0,0)) -> 0 | G90: =IF(SUM(G87:G89)>0,SUM(G87:G89),IF(AND(G58="",G84=""),0,0)) -> 0 | H90: 0 | I90: 0 | J90: 0 | K90: 0 | L90: 0
B91: Machinery Cost ($/Ac) | C91: =Machinery!E376 -> 0 | D91: =Machinery!E377 -> 0 | E91: =Machinery!E378 -> 0 | F91: =Machinery!E379 -> 0 | G91: =Machinery!E380 -> 0 | H91: =Machinery!E381 -> 0 | I91: =Machinery!E382 -> 0 | J91: =Machinery!E383 -> 0 | K91: =Machinery!E384 -> 0 | L91: =Machinery!E385 -> 0
B92: Cash Crop Seed ($/Ac) | C92: ='Cash Crop Inputs'!C153 -> 0 | D92: ='Cash Crop Inputs'!D153 -> 0 | E92: ='Cash Crop Inputs'!E153 -> 0 | F92: ='Cash Crop Inputs'!F153 -> 0 | G92: ='Cash Crop Inputs'!G153 -> 0 | H92: ='Cash Crop Inputs'!H153 -> 0 | I92: ='Cash Crop Inputs'!I153 -> 0 | J92: ='Cash Crop Inputs'!J153 -> 0 | K92: ='Cash Crop Inputs'!K153 -> 0 | L92: ='Cash Crop Inputs'!L153 -> 0
B93: Cash Crop Soil Sampling ($/Ac) | C93: ='Cash Crop Inputs'!C154 -> 0 | D93: ='Cash Crop Inputs'!D154 -> 0 | E93: ='Cash Crop Inputs'!E154 -> 0 | F93: ='Cash Crop Inputs'!F154 -> 0 | G93: ='Cash Crop Inputs'!G154 -> 0 | H93: ='Cash Crop Inputs'!H154 -> 0 | I93: ='Cash Crop Inputs'!I154 -> 0 | J93: ='Cash Crop Inputs'!J154 -> 0 | K93: ='Cash Crop Inputs'!K154 -> 0 | L93: ='Cash Crop Inputs'!L154 -> 0
B94: Fertilizer Cost ($/Ac) | C94: ='Cash Crop Inputs'!C155 -> 0 | D94: ='Cash Crop Inputs'!D155 -> 0 | E94: ='Cash Crop Inputs'!E155 -> 0 | F94: ='Cash Crop Inputs'!F155 -> 0 | G94: ='Cash Crop Inputs'!G155 -> 0 | H94: ='Cash Crop Inputs'!H155 -> 0 | I94: ='Cash Crop Inputs'!I155 -> 0 | J94: ='Cash Crop Inputs'!J155 -> 0 | K94: ='Cash Crop Inputs'!K155 -> 0 | L94: ='Cash Crop Inputs'!L155 -> 0
B95: Manure Cost ($/Ac) | C95: ='Cash Crop Inputs'!C156 -> 0 | D95: ='Cash Crop Inputs'!D156 -> 0 | E95: ='Cash Crop Inputs'!E156 -> 0 | F95: ='Cash Crop Inputs'!F156 -> 0 | G95: ='Cash Crop Inputs'!G156 -> 0 | H95: ='Cash Crop Inputs'!H156 -> 0 | I95: ='Cash Crop Inputs'!I156 -> 0 | J95: ='Cash Crop Inputs'!J156 -> 0 | K95: ='Cash Crop Inputs'!K156 -> 0 | L95: ='Cash Crop Inputs'!L156 -> 0
B96: Chemical Cost ($/Ac) | C96: ='Cash Crop Inputs'!C157 -> 0 | D96: ='Cash Crop Inputs'!D157 -> 0 | E96: ='Cash Crop Inputs'!E157 -> 0 | F96: ='Cash Crop Inputs'!F157 -> 0 | G96: ='Cash Crop Inputs'!G157 -> 0 | H96: ='Cash Crop Inputs'!H157 -> 0 | I96: ='Cash Crop Inputs'!I157 -> 0 | J96: ='Cash Crop Inputs'!J157 -> 0 | K96: ='Cash Crop Inputs'!K157 -> 0 | L96: ='Cash Crop Inputs'!L157 -> 0
B97: Current Net Income by Crop ($/Ac) | C97: =IFERROR(C86-(SUM(C90,C91:C96)),IF(AND(C58="",C84=""),"",0)) -> 0 | D97: =IFERROR(D86-(SUM(D90,D91:D96)),IF(AND(D58="",D84=""),"",0)) -> 0 | E97: 0 | F97: 0 | G97: 0 | H97: 0 | I97: 0 | J97: 0 | K97: 0 | L97: 0
B98: Acres Per Year | C98: =IF('Study Area Overview'!$D$61="","",'Study Area Overview'!$D$61) ->  | D98: =IF('Study Area Overview'!$D$62="","",'Study Area Overview'!$D$62) ->  | E98: =IF('Study Area Overview'!$D$63="","",'Study Area Overview'!$D$63) ->  | F98: =IF('Study Area Overview'!$D$64="","",'Study Area Overview'!$D$64) ->  | G98: =IF('Study Area Overview'!$D$65="","",'Study Area Overview'!$D$65) ->  | H98: =IF('Study Area Overview'!$D$66="","",'Study Area Overview'!$D$66) ->  | I98: =IF('Study Area Overview'!$D$67="","",'Study Area Overview'!$D$67) ->  | J98: =IF('Study Area Overview'!$D$68="","",'Study Area Overview'!$D$68) ->  | K98: =IF('Study Area Overview'!$D$69="","",'Study Area Overview'!$D$69) ->  | L98: =IF('Study Area Overview'!$D$70="","",'Study Area Overview'!$D$70) -> 
B99: Crop Gross Revenue ($/Yr) | C99: =IFERROR(C86*C$98,"") -> 
B100: Total Crop Handling Costs ($/Yr) | C100: =IFERROR(C90*C$98,"") -> 
B101: Machinery Cost ($/Yr) | C101: =IFERROR(C91*C$98,"") ->  | F101: =IFERROR(F91*F$98,"") ->  | G101: =IFERROR(G91*G$98,"") -> 
B102: Cash Crop Seed ($/Yr) | C102: =IFERROR(C92*C$98,"") ->  | D102: =IFERROR(D92*D$98,"") ->  | E102: =IFERROR(E92*E$98,"") ->  | F102: =IFERROR(F92*F$98,"") ->  | G102: =IFERROR(G92*G$98,"") -> 
B103: Cash Crop Soil Sampling ($/Yr) | C103: =IFERROR(C93*C$98,"") ->  | D103: =IFERROR(D93*D$98,"") -> 
B104: Fertilizer Cost ($/Yr) | C104: =IFERROR(C94*C$98,"") ->  | D104: =IFERROR(D94*D$98,"") -> 
B105: Manure Cost ($/Yr) | C105: =IFERROR(C95*C$98,"") ->  | D105: =IFERROR(D95*D$98,"") -> 
B106: Chemical Cost ($/Yr) | C106: =IFERROR(C96*C$98,"") ->  | D106: =IFERROR(D96*D$98,"") -> 
B107: Current Annual Net Income by Crop ($/Yr) | C107: =IFERROR(C97*C$98,IF(AND(C58="",C84=""),"",0)) -> 
B110: Change by Cash Crop | C110: =IF('Study Area Overview'!$B$61="","",'Study Area Overview'!$B$61) ->  | D110: =IF('Study Area Overview'!$B$62="","",'Study Area Overview'!$B$62) ->  | E110: =IF('Study Area Overview'!$B$63="","",'Study Area Overview'!$B$63) ->  | F110: =IF('Study Area Overview'!$B$64="","",'Study Area Overview'!$B$64) ->  | G110: =IF('Study Area Overview'!$B$65="","",'Study Area Overview'!$B$65) ->  | H110: =IF('Study Area Overview'!$B$66="","",'Study Area Overview'!$B$66) ->  | I110: =IF('Study Area Overview'!$B$67="","",'Study Area Overview'!$B$67) ->  | J110: =IF('Study Area Overview'!$B$68="","",'Study Area Overview'!$B$68) ->  | K110: =IF('Study Area Overview'!$B$69="","",'Study Area Overview'!$B$69) ->  | L110: =IF('Study Area Overview'!$B$70="","",'Study Area Overview'!$B$70) -> 
B111: Change in Gross Revenue plus Yield Change | C111: =IF(C$110="","",(IF(Matrix!F$37>0,(SUMPRODUCT(Matrix!$F$12:$O$12,$C$86:$L$86)-SUMPRODUCT(Matrix!$F$12:$O$12,$C$60:$L$60))*$C$49,0)+IF(Matrix!F$39+Matrix!F$40>0,SUM(C$86*Matrix!F$39,C$86*Matrix!F$40)-SUMPRODUCT(Matrix!$F$32:$O$32,$C$60:$L$60),0)+IF(Matrix!F$38>0,C$86*Matrix!F$38,0))/SUM(Matrix!F$37:F$40)) ->  | D111: =IF(D$110="","",(IF(Matrix!G$37>0,(SUMPRODUCT(Matrix!$F$14:$O$14,$C$86:$L$86)-SUMPRODUCT(Matrix!$F$14:$O$14,$C$60:$L$60))*D$49,0)+IF(Matrix!G$39+Matrix!G$40>0,SUM(D$86*Matrix!G$39,D$86*Matrix!G$40)-SUMPRODUCT(Matrix!$F$32:$O$32,$C$60:$L$60),0)+IF(Matrix!G$38>0,D$86*Matrix!G$38,0))/SUM(Matrix!G$37:G$40)) ->  | E111: =IF(E$110="","",(IF(Matrix!H$37>0,(SUMPRODUCT(Matrix!$F$16:$O$16,$C$86:$L$86)-SUMPRODUCT(Matrix!$F$16:$O$16,$C$60:$L$60))*E$49,0)+IF(Matrix!H$39+Matrix!H$40>0,SUM(E$86*Matrix!H$39,E$86*Matrix!H$40)-SUMPRODUCT(Matrix!$F$32:$O$32,$C$60:$L$60),0)+IF(Matrix!H$38>0,E$86*Matrix!H$38,0))/SUM(Matrix!H$37:H$40)) ->  | F111: =IF(F$110="","",(IF(Matrix!I$37>0,(SUMPRODUCT(Matrix!$F$18:$O$18,$C$86:$L$86)-SUMPRODUCT(Matrix!$F$18:$O$18,$C$60:$L$60))*F$49,0)+IF(Matrix!I$39+Matrix!I$40>0,SUM(F$86*Matrix!I$39,F$86*Matrix!I$40)-SUMPRODUCT(Matrix!$F$32:$O$32,$C$60:$L$60),0)+IF(Matrix!I$38>0,F$86*Matrix!I$38,0))/SUM(Matrix!I$37:I$40)) ->  | G111: =IF(G$110="","",(IF(Matrix!J$37>0,(SUMPRODUCT(Matrix!$F$20:$O$20,$C$86:$L$86)-SUMPRODUCT(Matrix!$F$20:$O$20,$C$60:$L$60))*G$49,0)+IF(Matrix!J$39+Matrix!J$40>0,SUM(G$86*Matrix!J$39,G$86*Matrix!J$40)-SUMPRODUCT(Matrix!$F$32:$O$32,$C$60:$L$60),0)+IF(Matrix!J$38>0,G$86*Matrix!J$38,0))/SUM(Matrix!J$37:J$40)) ->  | H111: =IF(H$110="","",(IF(Matrix!K$37>0,(SUMPRODUCT(Matrix!$F$22:$O$22,$C$86:$L$86)-SUMPRODUCT(Matrix!$F$22:$O$22,$C$60:$L$60))*H$49,0)+IF(Matrix!K$39+Matrix!K$40>0,SUM(H$86*Matrix!K$39,H$86*Matrix!K$40)-SUMPRODUCT(Matrix!$F$32:$O$32,$C$60:$L$60),0)+IF(Matrix!K$38>0,H$86*Matrix!K$38,0))/SUM(Matrix!K$37:K$40)) ->  | I111: =IF(I$110="","",(IF(Matrix!L$37>0,(SUMPRODUCT(Matrix!$F$24:$O$24,$C$86:$L$86)-SUMPRODUCT(Matrix!$F$24:$O$24,$C$60:$L$60))*I$49,0)+IF(Matrix!L$39+Matrix!L$40>0,SUM(I$86*Matrix!L$39,I$86*Matrix!L$40)-SUMPRODUCT(Matrix!$F$32:$O$32,$C$60:$L$60),0)+IF(Matrix!L$38>0,I$86*Matrix!L$38,0))/SUM(Matrix!L$37:L$40)) ->  | J111: =IF(J$110="","",(IF(Matrix!M$37>0,(SUMPRODUCT(Matrix!$F$26:$O$26,$C$86:$L$86)-SUMPRODUCT(Matrix!$F$26:$O$26,$C$60:$L$60))*J$49,0)+IF(Matrix!M$39+Matrix!M$40>0,SUM(J$86*Matrix!M$39,J$86*Matrix!M$40)-SUMPRODUCT(Matrix!$F$32:$O$32,$C$60:$L$60),0)+IF(Matrix!M$38>0,J$86*Matrix!M$38,0))/SUM(Matrix!M$37:M$40)) ->  | K111: =IF(K$110="","",(IF(Matrix!N$37>0,(SUMPRODUCT(Matrix!$F$28:$O$28,$C$86:$L$86)-SUMPRODUCT(Matrix!$F$28:$O$28,$C$60:$L$60))*K$49,0)+IF(Matrix!N$39+Matrix!N$40>0,SUM(K$86*Matrix!N$39,K$86*Matrix!N$40)-SUMPRODUCT(Matrix!$F$32:$O$32,$C$60:$L$60),0)+IF(Matrix!N$38>0,K$86*Matrix!N$38,0))/SUM(Matrix!N$37:N$40)) ->  | L111: =IF(L$110="","",(IF(Matrix!O$37>0,(SUMPRODUCT(Matrix!$F$30:$O$30,$C$86:$L$86)-SUMPRODUCT(Matrix!$F$30:$O$30,$C$60:$L$60))*L$49,0)+IF(Matrix!O$39+Matrix!O$40>0,SUM(L$86*Matrix!O$39,L$86*Matrix!O$40)-SUMPRODUCT(Matrix!$F$32:$O$32,$C$60:$L$60),0)+IF(Matrix!O$38>0,L$86*Matrix!O$38,0))/SUM(Matrix!O$37:O$40)) -> 
B112: Change in Crop Handling Costs ($/Ac) | C112: =IF(C$110="","",(IF(Matrix!F$37>0,(SUMPRODUCT(Matrix!$F$12:$O$12,$C$90:$L$90)-SUMPRODUCT(Matrix!$F$12:$O$12,$C$64:$L$64))*$C$49,0)+IF(Matrix!F$39+Matrix!F$40>0,SUM(C$90*Matrix!F$39,C$90*Matrix!F$40)-SUMPRODUCT(Matrix!$F$32:$O$32,$C$64:$L$64),0)+IF(Matrix!F$38>0,C$90*Matrix!F$38,0))/SUM(Matrix!F$37:F$40)) ->  | D112: =IF(D$110="","",(IF(Matrix!G$37>0,(SUMPRODUCT(Matrix!$F$14:$O$14,$C$90:$L$90)-SUMPRODUCT(Matrix!$F$14:$O$14,$C$64:$L$64))*D$49,0)+IF(Matrix!G$39+Matrix!G$40>0,SUM(D$90*Matrix!G$39,D$90*Matrix!G$40)-SUMPRODUCT(Matrix!$F$32:$O$32,$C$64:$L$64),0)+IF(Matrix!G$38>0,D$90*Matrix!G$38,0))/SUM(Matrix!G$37:G$40)) ->  | E112: =IF(E$110="","",(IF(Matrix!H$37>0,(SUMPRODUCT(Matrix!$F$16:$O$16,$C$90:$L$90)-SUMPRODUCT(Matrix!$F$16:$O$16,$C$64:$L$64))*E$49,0)+IF(Matrix!H$39+Matrix!H$40>0,SUM(E$90*Matrix!H$39,E$90*Matrix!H$40)-SUMPRODUCT(Matrix!$F$32:$O$32,$C$64:$L$64),0)+IF(Matrix!H$38>0,E$90*Matrix!H$38,0))/SUM(Matrix!H$37:H$40)) ->  | F112: =IF(F$110="","",(IF(Matrix!I$37>0,(SUMPRODUCT(Matrix!$F$18:$O$18,$C$90:$L$90)-SUMPRODUCT(Matrix!$F$18:$O$18,$C$64:$L$64))*F$49,0)+IF(Matrix!I$39+Matrix!I$40>0,SUM(F$90*Matrix!I$39,F$90*Matrix!I$40)-SUMPRODUCT(Matrix!$F$32:$O$32,$C$64:$L$64),0)+IF(Matrix!I$38>0,F$90*Matrix!I$38,0))/SUM(Matrix!I$37:I$40)) ->  | G112: =IF(G$110="","",(IF(Matrix!J$37>0,(SUMPRODUCT(Matrix!$F$20:$O$20,$C$90:$L$90)-SUMPRODUCT(Matrix!$F$20:$O$20,$C$64:$L$64))*G$49,0)+IF(Matrix!J$39+Matrix!J$40>0,SUM(G$90*Matrix!J$39,G$90*Matrix!J$40)-SUMPRODUCT(Matrix!$F$32:$O$32,$C$64:$L$64),0)+IF(Matrix!J$38>0,G$90*Matrix!J$38,0))/SUM(Matrix!J$37:J$40)) ->  | H112: =IF(H$110="","",(IF(Matrix!K$37>0,(SUMPRODUCT(Matrix!$F$22:$O$22,$C$90:$L$90)-SUMPRODUCT(Matrix!$F$22:$O$22,$C$64:$L$64))*H$49,0)+IF(Matrix!K$39+Matrix!K$40>0,SUM(H$90*Matrix!K$39,H$90*Matrix!K$40)-SUMPRODUCT(Matrix!$F$32:$O$32,$C$64:$L$64),0)+IF(Matrix!K$38>0,H$90*Matrix!K$38,0))/SUM(Matrix!K$37:K$40)) ->  | I112: =IF(I$110="","",(IF(Matrix!L$37>0,(SUMPRODUCT(Matrix!$F$24:$O$24,$C$90:$L$90)-SUMPRODUCT(Matrix!$F$24:$O$24,$C$64:$L$64))*I$49,0)+IF(Matrix!L$39+Matrix!L$40>0,SUM(I$90*Matrix!L$39,I$90*Matrix!L$40)-SUMPRODUCT(Matrix!$F$32:$O$32,$C$64:$L$64),0)+IF(Matrix!L$38>0,I$90*Matrix!L$38,0))/SUM(Matrix!L$37:L$40)) ->  | J112: =IF(J$110="","",(IF(Matrix!M$37>0,(SUMPRODUCT(Matrix!$F$26:$O$26,$C$90:$L$90)-SUMPRODUCT(Matrix!$F$26:$O$26,$C$64:$L$64))*J$49,0)+IF(Matrix!M$39+Matrix!M$40>0,SUM(J$90*Matrix!M$39,J$90*Matrix!M$40)-SUMPRODUCT(Matrix!$F$32:$O$32,$C$64:$L$64),0)+IF(Matrix!M$38>0,J$90*Matrix!M$38,0))/SUM(Matrix!M$37:M$40)) ->  | K112: =IF(K$110="","",(IF(Matrix!N$37>0,(SUMPRODUCT(Matrix!$F$28:$O$28,$C$90:$L$90)-SUMPRODUCT(Matrix!$F$28:$O$28,$C$64:$L$64))*K$49,0)+IF(Matrix!N$39+Matrix!N$40>0,SUM(K$90*Matrix!N$39,K$90*Matrix!N$40)-SUMPRODUCT(Matrix!$F$32:$O$32,$C$64:$L$64),0)+IF(Matrix!N$38>0,K$90*Matrix!N$38,0))/SUM(Matrix!N$37:N$40)) ->  | L112: =IF(L$110="","",(IF(Matrix!O$37>0,(SUMPRODUCT(Matrix!$F$30:$O$30,$C$90:$L$90)-SUMPRODUCT(Matrix!$F$30:$O$30,$C$64:$L$64))*L$49,0)+IF(Matrix!O$39+Matrix!O$40>0,SUM(L$90*Matrix!O$39,L$90*Matrix!O$40)-SUMPRODUCT(Matrix!$F$32:$O$32,$C$64:$L$64),0)+IF(Matrix!O$38>0,L$90*Matrix!O$38,0))/SUM(Matrix!O$37:O$40)) -> 
B113: Change in Gross Revenue minus Handling Costs ($/Ac) | C113: =IFERROR(IF(C110>0,C111-C112,0),0) -> 0 | D113: 0 | E113: 0 | F113: 0 | G113: 0 | H113: 0 | I113: 0 | J113: 0 | K113: 0 | L113: 0
B114: Change in Machinery Cost ($/Ac) | C114: =IF(C$110="",0,(IF(Matrix!F$37>0,(SUMPRODUCT(Matrix!$F$12:$O$12,$C$91:$L$91)-SUMPRODUCT(Matrix!$F$12:$O$12,$C$65:$L$65)),0)+IF(Matrix!F$39+Matrix!F$40>0,SUM(C$91*Matrix!F$39,C$91*Matrix!F$40)-SUMPRODUCT(Matrix!$F$32:$O$32,$C$65:$L$65),0)+IF(Matrix!F$38>0,C$91*Matrix!F$38,0))/SUM(Matrix!F$37:F$40)) -> 0 | D114: =IF(D$110="",0,(IF(Matrix!G$37>0,SUMPRODUCT(Matrix!$F$14:$O$14,$C$91:$L$91)-SUMPRODUCT(Matrix!$F$14:$O$14,$C$65:$L$65),0)+IF(Matrix!G$39+Matrix!G$40>0,SUM(D$91*Matrix!G$39,D$91*Matrix!G$40)-SUMPRODUCT(Matrix!$F$32:$O$32,$C$65:$L$65),0)+IF(Matrix!G$38>0,D$91*Matrix!G$38,0))/SUM(Matrix!G$37:G$40)) -> 0 | E114: =IF(E$110="",0,(IF(Matrix!H$37>0,SUMPRODUCT(Matrix!$F$16:$O$16,$C$91:$L$91)-SUMPRODUCT(Matrix!$F$16:$O$16,$C$65:$L$65),0)+IF(Matrix!H$39+Matrix!H$40>0,SUM(E$91*Matrix!H$39,E$91*Matrix!H$40)-SUMPRODUCT(Matrix!$F$32:$O$32,$C$65:$L$65),0)+IF(Matrix!H$38>0,E$91*Matrix!H$38,0))/SUM(Matrix!H$37:H$40)) -> 0 | F114: =IF(F$110="",0,(IF(Matrix!I$37>0,SUMPRODUCT(Matrix!$F$18:$O$18,$C$91:$L$91)-SUMPRODUCT(Matrix!$F$18:$O$18,$C$65:$L$65),0)+IF(Matrix!I$39+Matrix!I$40>0,SUM(F$91*Matrix!I$39,F$91*Matrix!I$40)-SUMPRODUCT(Matrix!$F$32:$O$32,$C$65:$L$65),0)+IF(Matrix!I$38>0,F$91*Matrix!I$38,0))/SUM(Matrix!I$37:I$40)) -> 0 | G114: =IF(G$110="",0,(IF(Matrix!J$37>0,SUMPRODUCT(Matrix!$F$20:$O$20,$C$91:$L$91)-SUMPRODUCT(Matrix!$F$20:$O$20,$C$65:$L$65),0)+IF(Matrix!J$39+Matrix!J$40>0,SUM(G$91*Matrix!J$39,G$91*Matrix!J$40)-SUMPRODUCT(Matrix!$F$32:$O$32,$C$65:$L$65),0)+IF(Matrix!J$38>0,G$91*Matrix!J$38,0))/SUM(Matrix!J$37:J$40)) -> 0 | H114: =IF(H$110="",0,(IF(Matrix!K$37>0,SUMPRODUCT(Matrix!$F$22:$O$22,$C$91:$L$91)-SUMPRODUCT(Matrix!$F$22:$O$22,$C$65:$L$65),0)+IF(Matrix!K$39+Matrix!K$40>0,SUM(H$91*Matrix!K$39,H$91*Matrix!K$40)-SUMPRODUCT(Matrix!$F$32:$O$32,$C$65:$L$65),0)+IF(Matrix!K$38>0,H$91*Matrix!K$38,0))/SUM(Matrix!K$37:K$40)) -> 0 | I114: =IF(I$110="",0,(IF(Matrix!L$37>0,SUMPRODUCT(Matrix!$F$24:$O$24,$C$91:$L$91)-SUMPRODUCT(Matrix!$F$24:$O$24,$C$65:$L$65),0)+IF(Matrix!L$39+Matrix!L$40>0,SUM(I$91*Matrix!L$39,I$91*Matrix!L$40)-SUMPRODUCT(Matrix!$F$32:$O$32,$C$65:$L$65),0)+IF(Matrix!L$38>0,I$91*Matrix!L$38,0))/SUM(Matrix!L$37:L$40)) -> 0 | J114: =IF(J$110="",0,(IF(Matrix!M$37>0,SUMPRODUCT(Matrix!$F$26:$O$26,$C$91:$L$91)-SUMPRODUCT(Matrix!$F$26:$O$26,$C$65:$L$65),0)+IF(Matrix!M$39+Matrix!M$40>0,SUM(J$91*Matrix!M$39,J$91*Matrix!M$40)-SUMPRODUCT(Matrix!$F$32:$O$32,$C$65:$L$65),0)+IF(Matrix!M$38>0,J$91*Matrix!M$38,0))/SUM(Matrix!M$37:M$40)) -> 0 | K114: =IF(K$110="",0,(IF(Matrix!N$37>0,SUMPRODUCT(Matrix!$F$28:$O$28,$C$91:$L$91)-SUMPRODUCT(Matrix!$F$28:$O$28,$C$65:$L$65),0)+IF(Matrix!N$39+Matrix!N$40>0,SUM(K$91*Matrix!N$39,K$91*Matrix!N$40)-SUMPRODUCT(Matrix!$F$32:$O$32,$C$65:$L$65),0)+IF(Matrix!N$38>0,K$91*Matrix!N$38,0))/SUM(Matrix!N$37:N$40)) -> 0 | L114: =IF(L$110="",0,(IF(Matrix!O$37>0,SUMPRODUCT(Matrix!$F$30:$O$30,$C$91:$L$91)-SUMPRODUCT(Matrix!$F$30:$O$30,$C$65:$L$65),0)+IF(Matrix!O$39+Matrix!O$40>0,SUM(L$91*Matrix!O$39,L$91*Matrix!O$40)-SUMPRODUCT(Matrix!$F$32:$O$32,$C$65:$L$65),0)+IF(Matrix!O$38>0,L$91*Matrix!O$38,0))/SUM(Matrix!O$37:O$40)) -> 0
B115: Change in Cash Crop Seed ($/Ac) | C115: =IFERROR('Cash Crop Inputs'!C172,"") -> 0 | D115: =IFERROR('Cash Crop Inputs'!D172,"") -> 0 | E115: =IFERROR('Cash Crop Inputs'!E172,"") -> 0 | F115: =IFERROR('Cash Crop Inputs'!F172,"") -> 0 | G115: =IFERROR('Cash Crop Inputs'!G172,"") -> 0 | H115: =IFERROR('Cash Crop Inputs'!H172,"") -> 0 | I115: =IFERROR('Cash Crop Inputs'!I172,"") -> 0 | J115: =IFERROR('Cash Crop Inputs'!J172,"") -> 0 | K115: =IFERROR('Cash Crop Inputs'!K172,"") -> 0 | L115: =IFERROR('Cash Crop Inputs'!L172,"") -> 0
B116: Change in Cash Crop Soil Sampling ($/Ac) | C116: =IFERROR('Cash Crop Inputs'!C174,"") -> 0 | D116: =IFERROR('Cash Crop Inputs'!D174,"") -> 0 | E116: =IFERROR('Cash Crop Inputs'!E174,"") -> 0 | F116: =IFERROR('Cash Crop Inputs'!F174,"") -> 0 | G116: =IFERROR('Cash Crop Inputs'!G174,"") -> 0 | H116: =IFERROR('Cash Crop Inputs'!H174,"") -> 0 | I116: =IFERROR('Cash Crop Inputs'!I174,"") -> 0 | J116: =IFERROR('Cash Crop Inputs'!J174,"") -> 0 | K116: =IFERROR('Cash Crop Inputs'!K174,"") -> 0 | L116: =IFERROR('Cash Crop Inputs'!L174,"") -> 0
B117: Change in Fertilizer Cost ($/Ac) | C117: =IFERROR('Cash Crop Inputs'!C176,"") -> 0 | D117: =IFERROR('Cash Crop Inputs'!D176,"") -> 0 | E117: =IFERROR('Cash Crop Inputs'!E176,"") -> 0 | F117: =IFERROR('Cash Crop Inputs'!F176,"") -> 0 | G117: =IFERROR('Cash Crop Inputs'!G176,"") -> 0 | H117: =IFERROR('Cash Crop Inputs'!H176,"") -> 0 | I117: =IFERROR('Cash Crop Inputs'!I176,"") -> 0 | J117: =IFERROR('Cash Crop Inputs'!J176,"") -> 0 | K117: =IFERROR('Cash Crop Inputs'!K176,"") -> 0 | L117: =IFERROR('Cash Crop Inputs'!L176,"") -> 0
B118: Change in Manure/Compost Cost ($/Ac) | C118: =IFERROR('Cash Crop Inputs'!C178,"") -> 0 | D118: =IFERROR('Cash Crop Inputs'!D178,"") -> 0 | E118: =IFERROR('Cash Crop Inputs'!E178,"") -> 0 | F118: =IFERROR('Cash Crop Inputs'!F178,"") -> 0 | G118: =IFERROR('Cash Crop Inputs'!G178,"") -> 0 | H118: =IFERROR('Cash Crop Inputs'!H178,"") -> 0 | I118: =IFERROR('Cash Crop Inputs'!I178,"") -> 0 | J118: =IFERROR('Cash Crop Inputs'!J178,"") -> 0 | K118: =IFERROR('Cash Crop Inputs'!K178,"") -> 0 | L118: =IFERROR('Cash Crop Inputs'!L178,"") -> 0
B119: Change in Chemical Cost ($/Ac) | C119: =IFERROR('Cash Crop Inputs'!C180,"") -> 0 | D119: =IFERROR('Cash Crop Inputs'!D180,"") -> 0 | E119: =IFERROR('Cash Crop Inputs'!E180,"") -> 0 | F119: =IFERROR('Cash Crop Inputs'!F180,"") -> 0 | G119: =IFERROR('Cash Crop Inputs'!G180,"") -> 0 | H119: =IFERROR('Cash Crop Inputs'!H180,"") -> 0 | I119: =IFERROR('Cash Crop Inputs'!I180,"") -> 0 | J119: =IFERROR('Cash Crop Inputs'!J180,"") -> 0 | K119: =IFERROR('Cash Crop Inputs'!K180,"") -> 0 | L119: =IFERROR('Cash Crop Inputs'!L180,"") -> 0
B120: Change in Per Acre Net Income by Crop ($/Ac) | C120: =IF(IF(ISNUMBER(C113),C113,0)-(SUM(C114:C119))=0,0,IF(ISNUMBER(C113),C113,0)-(SUM(C114:C119))) -> 0 | D120: 0 | E120: 0 | F120: 0 | G120: 0 | H120: 0 | I120: 0 | J120: 0 | K120: 0 | L120: 0
B121: Acres Per Year | C121: =C98 -> 
B122: Change in Gross Revenue plus Yield Change ($/Yr) | C122: =IFERROR(C111*C$121,"") ->  | D122: =IFERROR(D111*D$121,"") -> 
B123: Change in Crop Handling Costs ($/Yr) | C123: =IFERROR(C112*C$121,"") -> 
B124: Change in Gross Revenue minus Handling Costs ($/Yr) | C124: =IFERROR(C113*C$121,"") -> 
B125: Change in Machinery Cost ($/Yr) | C125: =IFERROR(C114*C121,"") ->  | D125: =IFERROR(D114*D121,"") -> 
B126: Change in Cash Crop Seed ($/Yr) | C126: =IFERROR(C115*C121,"") ->  | D126: =IFERROR(D115*D121,"") ->  | E126: =IFERROR(E115*E121,"") ->  | F126: =IFERROR(F115*F121,"") -> 
B127: Change in Cash Crop Soil Sampling ($/Yr) | C127: =IFERROR(C116*C121,"") ->  | D127: =IFERROR(D116*D121,"") ->  | E127: =IFERROR(E116*E121,"") ->  | F127: =IFERROR(F116*F121,"") -> 
B128: Change in Fertilizer Cost ($/Yr) | C128: =IFERROR(C117*C121,"") ->  | D128: =IFERROR(D117*D121,"") ->  | E128: =IFERROR(E117*E121,"") ->  | F128: =IFERROR(F117*F121,"") -> 
B129: Change in Manure/Compost Cost ($/Yr) | C129: =IFERROR(C118*C121,"") ->  | D129: =IFERROR(D118*D121,"") ->  | E129: =IFERROR(E118*E121,"") ->  | F129: =IFERROR(F118*F121,"") -> 
B130: Change in Chemical Cost ($/Yr) | C130: =IFERROR(C119*C121,"") ->  | D130: =IFERROR(D119*D121,"") ->  | E130: =IFERROR(E119*E121,"") ->  | F130: =IFERROR(F119*F121,"") -> 
B131: Change in Annual Net Income by Crop ($/Yr) | C131: =IFERROR(C124-SUM(C125:C130),"") ->  | D131: =IFERROR(D124-SUM(D125:D130),"") ->  | E131: =IFERROR(E124-SUM(E125:E130),"") -> 
B134: Cover Crop Costs | C134: =IF('Study Area Overview'!$C$82="","",'Study Area Overview'!$C$82) ->  | D134: =IF('Study Area Overview'!$C$83="","",'Study Area Overview'!$C$83) ->  | E134: =IF('Study Area Overview'!$C$84="","",'Study Area Overview'!$C$84) ->  | F134: =IF('Study Area Overview'!$C$85="","",'Study Area Overview'!$C$85) ->  | G134: =IF('Study Area Overview'!$C$86="","",'Study Area Overview'!$C$86) ->  | H134: =IF('Study Area Overview'!$C$87="","",'Study Area Overview'!$C$87) ->  | I134: =IF('Study Area Overview'!$C$88="","",'Study Area Overview'!$C$88) ->  | J134: =IF('Study Area Overview'!$C$89="","",'Study Area Overview'!$C$89) ->  | K134: =IF('Study Area Overview'!$C$90="","",'Study Area Overview'!$C$90) ->  | L134: =IF('Study Area Overview'!$C$91="","",'Study Area Overview'!$C$91) -> 
B135: Total Input Cost Per Acre | C135: =IF('Cover Crops'!$D$252>0,'Cover Crops'!$D$252,"") ->  | D135: =IF('Cover Crops'!$D$253>0,'Cover Crops'!$D$253,"") ->  | E135: =IF('Cover Crops'!$D$254>0,'Cover Crops'!$D$254,"") ->  | F135: =IF('Cover Crops'!$D$255>0,'Cover Crops'!$D$255,"") ->  | G135: =IF('Cover Crops'!$D$256>0,'Cover Crops'!$D$256,"") ->  | H135: =IF('Cover Crops'!$D$257>0,'Cover Crops'!$D$257,"") ->  | I135: =IF('Cover Crops'!$D$258>0,'Cover Crops'!$D$258,"") ->  | J135: =IF('Cover Crops'!$D$259>0,'Cover Crops'!$D$259,"") ->  | K135: =IF('Cover Crops'!$D$260>0,'Cover Crops'!$D$260,"") ->  | L135: =IF('Cover Crops'!$D$261>0,'Cover Crops'!$D$261,"") -> 
B136: Cover Crop Machinery Cost ($/Ac) | C136: =IF('Cover Crops'!$E$252>0,'Cover Crops'!$E$252,"") ->  | D136: =IF('Cover Crops'!$E$253>0,'Cover Crops'!$E$253,"") ->  | E136: =IF('Cover Crops'!$E$254>0,'Cover Crops'!$E$254,"") ->  | F136: =IF('Cover Crops'!$E$255>0,'Cover Crops'!$E$255,"") ->  | G136: =IF('Cover Crops'!$E$256>0,'Cover Crops'!$E$256,"") ->  | H136: =IF('Cover Crops'!$E$257>0,'Cover Crops'!$E$257,"") ->  | I136: =IF('Cover Crops'!$E$258>0,'Cover Crops'!$E$258,"") ->  | J136: =IF('Cover Crops'!$E$259>0,'Cover Crops'!$E$259,"") ->  | K136: =IF('Cover Crops'!$E$260>0,'Cover Crops'!$E$260,"") ->  | L136: =IF('Cover Crops'!$E$261>0,'Cover Crops'!$E$261,"") -> 
B137: Total Cost of Cover Crop ($/Ac) | C137: =IF(SUM(C135:C136)=0,"",SUM(C135:C136)) ->  | D137: =IF(SUM(D135:D136)=0,"",SUM(D135:D136)) -> 
B138: Cover Crop Acres Per Year | C138: =IF('Cover Crops'!$C$252>0,'Cover Crops'!$C$252,"") ->  | D138: =IF('Cover Crops'!$C$253>0,'Cover Crops'!$C$253,"") ->  | E138: =IF('Cover Crops'!$C$254>0,'Cover Crops'!$C$254,"") ->  | F138: =IF('Cover Crops'!$C$255>0,'Cover Crops'!$C$255,"") ->  | G138: =IF('Cover Crops'!$C$256>0,'Cover Crops'!$C$256,"") ->  | H138: =IF('Cover Crops'!$C$257>0,'Cover Crops'!$C$257,"") ->  | I138: =IF('Cover Crops'!$C$258>0,'Cover Crops'!$C$258,"") ->  | J138: =IF('Cover Crops'!$C$259>0,'Cover Crops'!$C$259,"") ->  | K138: =IF('Cover Crops'!$C$260>0,'Cover Crops'!$C$260,"") ->  | L138: =IF('Cover Crops'!$C$261>0,'Cover Crops'!$C$261,"") -> 
B139: Total Cost by Cover Crop ($/Cover Crop) | C139: =IFERROR(C137*C138,"") ->  | D139: =IFERROR(D137*D138,"") -> 
B142: Grazing and/or Haying Cover Crop Benefits
B143: Number of Acres Grazed | C143: ='Cover Crops'!C286 -> 0
B144: Grazing Benefit ($/Ac) | C144: =IF('Cover Crops'!C291>0,'Cover Crops'!C291,0) -> 0
B145: Grazing Cost ($/Ac) | C145: ='Cover Crops'!C302 -> 0
B146: Net Grazing Benefit ($/Ac) | C146: =IFERROR(C144-C145,"") -> 0
B147: Number of Acres Hayed | C147: ='Cover Crops'!G286 -> 0
B148: Haying Benefit ($/Ac) | C148: =IF('Cover Crops'!G288>0, 'Cover Crops'!G288, 0) -> 0
B149: Haying Cost ($/Ac) | C149: ='Cover Crops'!G289 -> 0
B150: Net Haying Benefit ($/Ac) | C150: =IFERROR(C148-C149,"") -> 0
B151: Net Per Acre Change due to Grazing and Hay Cover Crop ($/Ac) | C151: =IFERROR(((C150*C147)+(C146*C143))/(C147+C143),0) -> 0
B152: Net Total Change due to Grazing & Hay Cover Crop ($/Yr) | C152: =IFERROR((C146*C143)+(C150*C147),"") -> 0

Sheet Prices (2023)
A1: PRICES
A2: ABOUT THIS TAB:
A3: This tab is the source for price information used throughout the workbook. The prices and costs appearing below are linked to the preceding tabs to calculate costs and savings as data is entered. Users should evaluate the prices for relevancy in their area and adjust as needed using the ‘Study Area Overview’ tab in the tool using the farmer-provided prices tables, or make changes to values on this tab. Changes to values on this tab will automatically update the costs or savings calculated throughout the workbook.
B7: Labor Rate - Farm Manager
B8: Year | C8: $/hr
B9: 2023 | C9: 29.23
B10: U.S. Bureau of Labor Statistics. (April 3, 2024). 45-1011 First-Line Supervisors of Farming, Fishing, and Forestry Workers - Occupational Employment and Wages, May 2023. Retrieved May 8, 2024, from https://www.bls.gov/oes/current/oes451011.htm
B16: Crop Prices, 5yr-rolling National Average 1,2,3,4 | F16: Archive: Crop Prices, 2019-2023 1,2,3,4
B17: Note: Using the 5-year rolling average price column that adjusts year-to-year crop values to 2023 values using the Prices Received Index table. | F17: Note: The year-by-year prices are for reference only AND are not adjusted to 2023 values.
B19: Crop | C19: Unit | D19: 5-yr Rolling Avg. Price (2023 $/Unit) | F19: Crop | G19: Unit of production | H19: 2019 Prices1 ($/unit) | I19: 2020 Prices2 ($/unit) | J19: 2021 Prices3 ($/unit) | K19: 2022 Prices3 ($/unit) | L19: 2023 Prices3,4 ($/unit)
B20: Barley | C20: Bushels | D20: =AVERAGE(H20*($I$202/$E$202), I20*($I$202/$F$202),J20*($I$202/$G$202),K20*($I$202/$H$202), L20) -> 6.558758881 | F20: Barley | G20: Bushels | H20: 4.69 | I20: 4.75 | J20: 5.31 | K20: 7.4 | L20: 7.5
B21: Canola | C21: Bushels | D21: 13.31546572 | F21: Canola | G21: Bushels | H21: =(14.8/100)*50 -> 7.4 | I21: =(18.4/100)*50 -> 9.2 | J21: =(32.9/100)*50 -> 16.45 | K21: =(29.8/100)*50 -> 14.9 | L21: =(25/100)*50 -> 12.5
B22: Corn Grain | C22: Bushels | D22: 5.649232771 | F22: Corn Grain | G22: Bushels | H22: 3.56 | I22: 4.53 | J22: 6 | K22: 6.54 | L22: 4.8
A23: * | B23: Corn Silage | C23: Tons | D23: 53.248843 | F23: Corn Silage | G23: Tons | H23: =H22*9 -> 32.04 | I23: =I22*9 -> 40.77 | J23: =J22*9 -> 54 | K23: =K22*9 -> 58.86 | L23: =$K23*($I$202/$H$202) -> 55.22874032
A24: ** | B24: Ensilage (green chop) | C24: Tons | D24: 68.42424883 | F24: Ensilage (green chop) | G24: Tons | H24: =H26*0.4 -> 54 | I24: =I26*0.4 -> 52.8 | J24: =J26*0.4 -> 61.2 | K24: =K26*0.4 -> 70.8 | L24: =L26*0.4 -> 66.8
B25: Flaxseed | C25: Bushels | D25: 16.91724088 | F25: Flaxseed | G25: Bushels | H25: 9.15 | I25: 11.1 | J25: 25.9 | K25: 17.5 | L25: 12.8
B26: Forage (haylage) | C26: Tons | D26: 171.0606221 | F26: Forage (haylage) | G26: Tons | H26: =H29 -> 135 | I26: =I29 -> 132 | J26: =J29 -> 153 | K26: =K29 -> 177 | L26: =L29 -> 167
B27: Grain Sorghum (milo) | C27: Bushels | D27: 5.6876961 | F27: Grain Sorghum (milo) | G27: Bushels | H27: =(5.96/100)*56 -> 3.3376 | I27: =(9/100)*56 -> 5.04 | J27: =(10.6/100)*56 -> 5.936 | K27: =(11.4/100)*56 -> 6.384 | L27: =(8.65/100)*56 -> 4.844
B28: Hay, alfalfa | C28: Tons | D28: 237.9735077 | F28: Hay, alfalfa | G28: Tons | H28: 179 | I28: 171 | J28: 216 | K28: 273 | L28: 232
B29: Hay, all other | C29: Tons | D29: 171.0606221 | F29: Hay, all other | G29: Tons | H29: 135 | I29: 132 | J29: 153 | K29: 177 | L29: 167
B30: Millet (proso) | C30: Bushels | D30: 8.854222481 | F30: Millet (proso) | G30: Bushels | H30: 5.54 | I30: 11.2 | J30: 8.77 | K30: 8.96 | L30: 4.15
B31: Mustard seed | C31: Bushels | D31: 20.2364132 | F31: Mustard seed | G31: Bushels | H31: =(26.6/100)*50 -> 13.3 | I31: =(26.7/100)*50 -> 13.35 | J31: =(31.2/100)*50 -> 15.6 | K31: =(42.1/100)*50 -> 21.05 | L31: =(57.9/100)*50 -> 28.95
B32: Oats | C32: Bushels | D32: 4.081989058 | F32: Oats | G32: Bushels | H32: 2.82 | I32: 2.77 | J32: 4.55 | K32: 4.57 | L32: 3.7
B33: Rapeseed | C33: Bushels | D33: 11.73873797 | F33: Rapeseed | G33: Bushels | H33: =(20.2/100)*50 -> 10.1 | I33: =(22.6/100)*50 -> 11.3 | J33: =(18.7/100)*50 -> 9.35 | K33: =(21.5/100)*50 -> 10.75 | L33: =(20/100)*50 -> 10
B34: Rye | C34: Bushels | D34: 7.226817099 | F34: Rye | G34: Bushels | H34: 6.01 | I34: 5.35 | J34: 6.76 | K34: 7.17 | L34: 6.9
B35: Safflower | C35: Bushels | D35: 11.42063689 | F35: Safflower | G35: Bushels | H35: =(19.9/100)*38 -> 7.562 | I35: =(21.6/100)*38 -> 8.208 | J35: =(25.5/100)*38 -> 9.69 | K35: =(33.3/100)*38 -> 12.654 | L35: =(36/100)*38 -> 13.68
B36: Soybeans | C36: Bushels | D36: 13.25845753 | F36: Soybeans | G36: Bushels | H36: 8.57 | I36: 10.8 | J36: 13.3 | K36: 14.2 | L36: 12.7
A37: *** | B37: Sugarbeets | C37: Tons | D37: 59.62171351 | F37: Sugarbeets | G37: Tons | H37: 38.3 | I37: 50.5 | J37: 53 | K37: 65.2 | L37: =$K37*($I$202/$H$202) -> 61.17760565
B38: Sunflower | C38: Bushels | D38: 8.169802306 | F38: Sunflower | G38: Bushels | H38: =(19.5/100)*30 -> 5.85 | I38: =(21.3/100)*30 -> 6.39 | J38: =(32.9/100)*30 -> 9.87 | K38: =(27.8/100)*30 -> 8.34 | L38: =(19.8/100)*30 -> 5.94
A39: **** | B39: Triticale (grain) | C39: Tons | D39: =L39 -> 4.2 | F39: Triticale (grain) | G39: Bushels | L39: =5.67/1.35 -> 4.2
B40: Winter wheat | C40: Bushels | D40: =AVERAGE(H40*($I$202/$E$202), I40*($I$202/$F$202),J40*($I$202/$G$202),K40*($I$202/$H$202), L40) -> 7.058551653 | F40: Winter wheat | G40: Bushels | H40: 4.53 | I40: 4.98 | J40: 6.99 | K40: 8.58 | L40: 6.95
B41: Wheat, other spring | C41: Bushels | D41: =AVERAGE(H41*($I$202/$E$202), I41*($I$202/$F$202),J41*($I$202/$G$202),K41*($I$202/$H$202), L41) -> 7.621720311 | F41: Wheat, other spring | G41: Bushels | H41: 4.66 | I41: 5.09 | J41: 8.54 | K41: 8.99 | L41: 7.35
B42: Note: All prices are adjusted to 2023 value for average calculation.
B43: Note: Adjusted canola, grain sorghum (milo), mustard seed, rapeseed, safflower, & sunflower prices per counterweight to per bushel based on lbs/bu by crop as reported in various sources: https://www.rayglen.com/crop-bushel-weights/ (canola - 50 lbs/bu, sorghum - 56 lbs/bu, mustard - 50 lbs/bu, sunflower - 30 lbs/bu); https://www.smallfarmcanada.ca/resources/standard-weights-per-bushel-for-agricultural-commodities (rapeseed - 50 lbs/bu); https://www.ndsu.edu/agriculture/extension/publications/safflower-production (safflower - 38 lbs/bu)
B46: 1 USDA NASS. (February 24, 2022). Crop Values: 2021 Summary. Retrieved on February 6, 2024 from https://usda.library.cornell.edu/concern/publications/k35694332
B47: 2 USDA NASS. (February 24, 2023). Crop Values: 2022 Summary. Retrieved on February 6, 2024 from https://usda.library.cornell.edu/concern/publications/k35694332
B48: 3 USDA NASS. (February 26, 2024). Crop Values: 2023 Summary. Retrieved on March 20, 2024 from https://usda.library.cornell.edu/concern/publications/k35694332
B49: 4 Manitoba Agricultural Services Corporation. (2023). Crop Dollar Values for 2023. Retrieved on April 16, 2024 from https://www.masc.mb.ca/masc.nsf/factsheet_2023_crop_prices.pdf. (Source for triticale as grain price.)
B50: *Corn Silage price is nine times Corn Grain price based on guidance from Michigan State University Extension. Retrieved on May 9, 2022 from https://www.canr.msu.edu/news/pricing-standing-corn-silage
B51: **Ensilage price is 40% of hay, all other (dry) price, assuming 40% dry matter, based on guidance from Cornell University Extension, Bill Verbeten, NW New York Dairy, Livestock & Field Crops. Converting Hay Prices to Haylage Values. Retrieved on May 6, 2024 from https://nwnyteam.cce.cornell.edu/submission.php?id=343
B53: ***Sugarbeets 2023 prices unavailable so used the Price Received Index to estimate.
B54: **** Triticale grain price from Manitoba Canada divided by 1.35 to convert to U.S. dollars based on the IRS reported average 2023 currency exchange rate for Canada from https://www.irs.gov/individuals/international-taxpayers/yearly-average-currency-exchange-rates
B58: Organic Crop Prices, 3yr-rolling National Average 1,2,3 | F58: Archive: Organice Crop Prices: 2016, 2019 & 2021 (actual & adjusted) 1,2,3
B59: Note: Using the 3-year rolling average price column; based on year-to-year crop values (adjusted to 2023 values using the Prices Received Index table). | F59: Note: The year-to-year prices are for reference only AND we present the actual and adjusted values. The 3-year rolling average uses the adjusted 2023 values.
B61: Crop | C61: Unit | D61: 3-yr Rolling Avg. Price (2023 $/Unit) | F61: Crop | G61: Unit | H61: 2016 Value of Sales Quantity 1 | I61: 2016 Value of Sales Dollars 1 | J61: 2016 Natl. Avg. Price ($/unit) | K61: 2016 Natl. Avg. Price (2023 $/unit) * | L61: 2019 Value of Sales Quantity 2 | M61: 2019 Value of Sales Dollars 2 | N61: 2019 Natl. Avg. Price ($/unit) | O61: 2019 Natl. Avg. Price (2023 $/unit) * | P61: 2021 Value of SalesQuantity 3 | Q61: 2021 Value of Sales Dollars 3 | R61: 2021 Natl. Avg. Price ($/unit) | S61: 2021 Natl. Avg. Price (2023 $/unit) * | T61: 3yr Average Organic Crop Price (2023 $/unit)
B62: Barley | C62: Bushels | D62: =T62 -> 10.40247377 | F62: Barley | G62: Bushels | H62: 1937653 | I62: 16865872 | J62: =I62/H62 -> 8.704278836 | K62: =J62*($I$202/$C$202) -> 11.86283339 | L62: 3405339 | M62: 27794499 | N62: =M62/L62 -> 8.16203585 | O62: =N62*($I$202/$E$202) -> 10.95729708 | P62: 3122548 | Q62: 23692118 | R62: =Q62/P62 -> 7.587431162 | S62: =R62*($I$202/$G$202) -> 8.387290831 | T62: =AVERAGE(K62,O62,S62) -> 10.40247377
B63: Canola | C63: Bushels | D63: 0.4602498016 | F63: Canola | G63: Bushels | J63: NA | K63: NA | N63: NA | O63: NA | P63: =2831022/50 -> 56620.44 | Q63: =1178718/50 -> 23574.36 | R63: 0.4163577676 | S63: 0.4602498016 | T63: 0.4602498016
B64: Corn Grain | C64: Bushels | D64: 11.41048156 | F64: Corn Grain | G64: Bushels | H64: 18217993 | I64: 163877756 | J64: =I64/H64 -> 8.995379239 | K64: =J64*($I$202/$C$202) -> 12.25956649 | L64: 32269911 | M64: 278156872 | N64: =M64/L64 -> 8.619697526 | O64: =N64*($I$202/$E$202) -> 11.57169465 | P64: 45053009 | Q64: 423875063 | R64: 9.408363002 | S64: 10.40018355 | T64: 11.41048156
B65: Corn Silage | C65: Tons | D65: 84.44108672 | F65: Corn Silage | G65: Tons | H65: 91733 | I65: 5858590 | J65: 63.86567538 | K65: 87.04085434 | L65: 284421 | M65: 18531684 | N65: 65.15582183 | O65: 87.4698065 | P65: 422493 | Q65: 30122307 | R65: 71.29658243 | S65: 78.81259932 | T65: 84.44108672
B66: Ensilage (green chop) | C66: Tons | D66: 115.8341015 | F66: Ensilage (green chop) | G66: Tons | H66: 174630 | I66: 12393996 | J66: 70.97289126 | K66: 96.72709249 | L66: 249147 | M66: 25580441 | N66: 102.6720811 | O66: 137.8342997 | P66: 204781 | Q66: 20922521 | R66: 102.1702258 | S66: 112.9409123 | T66: 115.8341015
B67: Flaxseed | C67: Bushels | D67: 38.31079716 | F67: Flaxseed | G67: Bushels | H67: 75599 | I67: 2348213 | J67: 31.06142938 | K67: 42.33280764 | L67: 88994 | M67: 2399398 | N67: 26.96134571 | O67: 36.19482689 | P67: 62426 | Q67: 2055875 | R67: 32.93299266 | S67: 36.40475696 | T67: 38.31079716
B68: Forage (haylage) | C68: Tons | D68: 182.7561915 | F68: Forage (haylage) | G68: Tons | H68: =H71 -> 152469 | I68: =I71 -> 23374136 | J68: 153.3041864 | K68: 208.9342558 | L68: =L71 -> 283884 | M68: =M71 -> 37547215 | N68: 132.2625262 | O68: 177.5586164 | P68: =P71 -> 292664 | Q68: =Q71 -> 42830748 | R68: 146.3478528 | S68: 161.7757022 | T68: 182.7561915
B69: Grain Sorghum (milo) | C69: Bushels | D69: 9.505966372 | F69: Grain Sorghum (milo) | G69: Bushels | H69: 559567 | I69: 3999617 | J69: 7.147699918 | K69: 9.741412797 | L69: 322225 | M69: 2332306 | N69: 7.238128637 | O69: 9.716978368 | P69: 406087 | Q69: 3328103 | R69: 8.195541842 | S69: 9.059507952 | T69: 9.505966372
B70: Hay, alfalfa | C70: Tons | D70: 236.6533745 | F70: Hay, alfalfa | G70: Tons | H70: 546881 | I70: 106548248 | J70: 194.8289445 | K70: 265.5272598 | L70: 926647 | M70: 154446389 | N70: 166.6723024 | O70: 223.7527458 | P70: 898349 | Q70: 179341731 | R70: 199.634809 | S70: 220.6801178 | T70: 236.6533745
B71: Hay, all other | C71: Tons | D71: 182.7561915 | F71: Hay, all other | G71: Tons | H71: 152469 | I71: 23374136 | J71: 153.3041864 | K71: 208.9342558 | L71: 283884 | M71: 37547215 | N71: 132.2625262 | O71: 177.5586164 | P71: 292664 | Q71: 42830748 | R71: 146.3478528 | S71: 161.7757022 | T71: 182.7561915
B72: Millet (proso) | C72: Bushels | D72: 11.49853456 | F72: Millet (proso) | G72: Bushels | H72: 161977 | I72: 1233253 | J72: 7.613753805 | K72: 10.37658542 | L72: 307489 | M72: 2446282 | N72: 7.955673211 | O72: 10.68026121 | P72: 419640 | Q72: 5101631 | R72: 12.1571609 | S72: 13.43875707 | T72: 11.49853456
B73: Mustard seed | C73: Bushels | D73: NA | F73: Mustard seed | G73: Bushels | J73: NA | K73: NA | N73: NA | O73: NA | R73: NA | S73: NA | T73: NA
B74: Oats | C74: Bushels | D74: 7.396877431 | F74: Oats | G74: Bushels | H74: 2097703 | I74: 13342587 | J74: =I74/H74 -> 6.360570109 | K74: =J74*($I$202/$C$202) -> 8.66865422 | L74: 2555539 | M74: 13522613 | N74: =M74/L74 -> 5.291491541 | O74: =N74*($I$202/$E$202) -> 7.103674363 | P74: 3366672 | Q74: 19547631 | R74: =Q74/P74 -> 5.806217832 | S74: =R74*($I$202/$G$202) -> 6.418303711 | T74: =AVERAGE(K74,O74,S74) -> 7.396877431
B75: Rye | C75: Bushels | D75: 13.0569713 | F75: Rye | G75: Bushels | H75: 188299 | I75: 2038855 | J75: =I75/H75 -> 10.82775267 | K75: =J75*($I$202/$C$202) -> 14.7568602 | L75: 284945 | M75: 2802174 | N75: =M75/L75 -> 9.83408728 | O75: =N75*($I$202/$E$202) -> 13.20197777 | P75: 548020 | Q75: 5558473 | R75: =Q75/P75 -> 10.14282873 | S75: =R75*($I$202/$G$202) -> 11.21207594 | T75: =AVERAGE(K75,O75,S75) -> 13.0569713
B76: Safflower | C76: Lbs | D76: 0.3371289737 | F76: Safflower | G76: Bushels | H76: =1535979/38 -> 40420.5 | I76: =472301/38 -> 12428.97368 | J76: =I76/H76 -> 0.3074918342 | K76: =J76*($I$202/$C$202) -> 0.419072558 | L76: =2394926/38 -> 63024.36842 | M76: =569226/38 -> 14979.63158 | N76: =M76/L76 -> 0.2376799951 | O76: =N76*($I$202/$E$202) -> 0.3190785197 | P76: =5187441/38 -> 136511.6053 | Q76: =1282224/38 -> 33742.73684 | R76: =Q76/P76 -> 0.2471785221 | S76: =R76*($I$202/$G$202) -> 0.2732358433 | T76: =AVERAGE(K76,O76,S76) -> 0.3371289737
B77: Soybeans | C77: Bushels | D77: 28.1663972 | F77: Soybeans | G77: Bushels | H77: 3829144 | I77: 78490532 | J77: =I77/H77 -> 20.49819281 | K77: =J77*($I$202/$C$202) -> 27.93644949 | L77: 5404343 | M77: 108998945 | N77: =M77/L77 -> 20.1687689 | O77: =N77*($I$202/$E$202) -> 27.07598896 | P77: 9071060 | Q77: 241968067 | R77: =Q77/P77 -> 26.67472897 | S77: =R77*($I$202/$G$202) -> 29.48675315 | T77: =AVERAGE(K77,O77,S77) -> 28.1663972
B78: Sugarbeets | C78: Tons | D78: NA | F78: Sugarbeets | G78: Tons | J78: NA | K78: NA | N78: NA | O78: NA | R78: NA | S78: NA | T78: NA
B79: Sunflower seeds | C79: Lbs | D79: 0.5189936847 | F79: Sunflower seeds | G79: Bushels | H79: =8216746/30 -> 273891.5333 | I79: =3584451/30 -> 119481.7 | J79: =I79/H79 -> 0.4362372891 | K79: =J79*($I$202/$C$202) -> 0.5945363626 | L79: =6716814/30 -> 223893.8 | M79: =2547715/30 -> 84923.83333 | N79: =M79/L79 -> 0.3793040867 | O79: =N79*($I$202/$E$202) -> 0.509204767 | P79: =10582433/30 -> 352747.7667 | Q79: =4338971/30 -> 144632.3667 | R79: =Q79/P79 -> 0.4100163923 | S79: =R79*($I$202/$G$202) -> 0.4532399245 | T79: =AVERAGE(K79,O79,S79) -> 0.5189936847
B80: Triticale (grain) | C80: Tons | D80: 15.11173211 | F80: Triticale (grain) | G80: Tons | H80: 124173 | I80: 1132432 | J80: =I80/H80 -> 9.119792547 | K80: =J80*($I$202/$C$202) -> 12.42912613 | L80: 165512 | M80: 2567402 | N80: =M80/L80 -> 15.51187829 | O80: =N80*($I$202/$E$202) -> 20.824248 | P80: 304623 | Q80: 3329417 | R80: =Q80/P80 -> 10.92963105 | S80: =R80*($I$202/$G$202) -> 12.08182221 | T80: =AVERAGE(K80,O80,S80) -> 15.11173211
B81: Winter wheat | C81: Bushels | D81: 13.14307829 | F81: Winter wheat | G81: Bushels | H81: 6043895 | I81: 64169914 | J81: =I81/H81 -> 10.61731119 | K81: =J81*($I$202/$C$202) -> 14.47005502 | L81: 9351340 | M81: 89824701 | N81: =M81/L81 -> 9.60554327 | O81: =N81*($I$202/$E$202) -> 12.89516405 | P81: 8620349 | Q81: 94078375 | R81: =Q81/P81 -> 10.91352276 | S81: =R81*($I$202/$G$202) -> 12.06401579 | T81: =AVERAGE(K81,O81,S81) -> 13.14307829
B82: Wheat, other spring | C82: Bushels | D82: 16.73883516 | F82: Wheat, other spring | G82: Bushels | H82: 2434175 | I82: 34853317 | J82: =I82/H82 -> 14.31832839 | K82: =J82*($I$202/$C$202) -> 19.51407431 | L82: 4052708 | M82: 51363439 | N82: =M82/L82 -> 12.67385634 | O82: =N82*($I$202/$E$202) -> 17.01428562 | P82: 3374874 | Q82: 41790276 | R82: =Q82/P82 -> 12.38276629 | S82: =R82*($I$202/$G$202) -> 13.68814556 | T82: =AVERAGE(K82,O82,S82) -> 16.73883516
B83: 1 USDA NASS. (2017, October 4). Certified Organic Survey 2016 Summary: Table 13. Certified Organic Field Crops and Hay Harvested and Value of Sales: 2016 Organic Survey. Retrieved April 16, 2024, from https://www.nass.usda.gov/Surveys/Guide_to_NASS_Surveys/Organic_Production/index.php
B84: 2 USDA NASS. (2020, October 22). Certified Organic Survey 2019 Summary: Table 13. Certified Organic Field Crops and Hay Harvested and Value of Sales: 2019 Organic Survey. Retrieved February 28, 2022, from https://www.nass.usda.gov/Surveys/Guide_to_NASS_Surveys/Organic_Production/index.php
B85: 3 USDA NASS. (2022, December 15). Certified Organic Survey 2021 Summary: Table 13. Certified Organic Field Crops and Hay Harvested and Value of Sales: 2021 Organic Survey. Retrieved April 16, 2024, from https://www.nass.usda.gov/Surveys/Guide_to_NASS_Surveys/Organic_Production/index.php
B86: *All prices are adjusted to 2023 value for average calculation. NOTE: Adjusted canola, safflower, & sunflower prices per pound to per bushel based on lbs/bu by crop as reported in: https://www.rayglen.com/crop-bushel-weights/ (canola - 50 lbs/bu; sunflower - 30 lbs/bu); https://www.ndsu.edu/agriculture/extension/publications/safflower-production (safflower - 38 lbs/bu)
B90: Fertilizer Prices, 2019-2023 average1 | J90: Archive: Fertilizer Prices by Year, 2019-2023 1
B91: Note: Using the 5-year rolling average price column; based on year-to-year prices adjusted to 2023 values using the Prices Received Index table. | J91: Note: The year-by-year prices are for reference only AND are not adjusted to 2023 values.
B92: Fertilizer Element | C92: 5-yr Rolling Avg. Price (2023 $/lb) | D92: 2019 Prices (2023 $/lb) | E92: 2020 Prices (2023 $/lb) | F92: 2021 Prices (2023 $/lb) | G92: 2022 Prices (2023 $/lb) | H92: 2023 Prices ($/lb) | J92: Fertilizer Element | K92: 2019 Prices ($/lb) | L92: 2020 Prices ($/lb) | M92: 2021 Prices ($/lb) | N92: 2022 Prices ($/lb) | O92: 2023 Prices ($/lb)
B93: Nitrogen | C93: =AVERAGE(D93:H93) -> 0.6275676287 | D93: =K93*($H$181/$D$181) -> 0.4285181269 | E93: =L93*($H$181/$E$181) -> 0.4289068642 | F93: =0.72*($H$181/$F$181) -> 0.8386597794 | G93: =0.83*(H181/G181) -> 0.841753373 | H93: 0.6 | J93: Nitrogen | K93: 0.34 | L93: 0.34 | M93: 0.72 | N93: 0.83 | O93: 0.6
B94: Phosphorous | C94: =AVERAGE(D94:H94) -> 0.6146598605 | D94: =K94*($H$181/$D$181) -> 0.4285181269 | E94: =L94*($H$181/$E$181) -> 0.4919814031 | F94: =0.62*($H$181/$F$181) -> 0.7221792545 | G94: =0.75*(H181/G181) -> 0.7606205178 | H94: 0.67 | J94: Phosphorous | K94: 0.34 | L94: 0.39 | M94: 0.62 | N94: 0.75 | O94: 0.67
B95: Potash | C95: =AVERAGE(D95:H95) -> 0.5363283147 | D95: =K95*($H$181/$D$181) -> 0.3907077039 | E95: =L95*($H$181/$E$181) -> 0.3784472331 | F95: =0.56*($H$181/$F$181) -> 0.6522909396 | G95: =0.72*(H181/G181) -> 0.7301956971 | H95: 0.53 | J95: Potash | K95: 0.31 | L95: 0.3 | M95: 0.56 | N95: 0.72 | O95: 0.53
B96: Note: Nitrogen price is the average of anhydrous ammonia, Urea, and UAN prices. Phosphorus price is for phosphate. Potassium price for potash.
B97: 1 Iowa State University Extension and Outreach. (2020-2024). Ag Decision Maker: Estimated Costs of Crop Production in Iowa (File A1-20). Retrieved on February 6, 2024 from https://www.extension.iastate.edu/agdm/crops/html/a1-20.html
B101: Calculated Value ($/ton) of Reduced Nutrient Loss with Soil Erosion Reduction
B102: Fertilizer | C102: lbs/ton of soil1 | D102: 5-yr Rolling Avg. Price (2023 $/lb) | E102: $/ton
B103: Nitrogen | C103: 2.32 | D103: =C93 -> 0.6275676287 | E103: =D103*C103 -> 1.455956899
B104: Phosphorus | C104: 1 | D104: =C94 -> 0.6146598605 | E104: =D104*C104 -> 0.6146598605
B105: Total Combined Fertilizer Benefit ($/ton) | E105: =SUM(E103:E104) -> 2.070616759
B106: 1 USDA NRCS. (May 24, 2010). Final Benefit-Cost Analysis for the Environmental Quality Incentives Program (EQIP). Retrieved on February 22, 2022, from https://www.blogs.nrcs.usda.gov/Internet/FSE_DOCUMENTS/16/ nrcs143_007976.pdf
B110: Note: Following page 23 instructions in the above referece, we estimate the amount of Nitrogen and Phosphorous per ton eroded soil. They assume topsoil contains 40 lbs of organic matter of which 23.2 lbs is carbon. With an average carbon-nitrogren ratio of 10 to 1, each ton of soil eroded contains 2.32 lbs of nitrogen. The soil also contains 0.05% phosphorus, or one pound per ton of soil.
B115: Drying, Storage, and Trucking Cost Per Bushel (2023 values)
B116: Crop | C116: Drying | D116: Storage | E116: Trucking | F116: Unit | G116: Source # for Drying/ Storage/ Trucking
B117: Barley | C117: 0.04 | D117: 0 | E117: 0.21 | F117: $/bushel | G117: 4/NA/1
B118: Canola | C118: 0 | D118: 0 | E118: 0.21 | F118: $/bushel | G118: 6/NA/1
B119: Corn Grain | C119: 0.13 | D119: 0.08 | E119: 0.21 | F119: $/bushel | G119: 1/1/1
B120: Corn Silage | C120: 0 | D120: 0.55 | E120: 4 | F120: $/ton | G120: NA/7/2 | H120: *
B121: Ensilage (green chop) | C121: 0 | D121: 0.55 | E121: 4 | F121: $/ton | G121: NA/7/2 | H121: *
B122: Flaxseed | C122: 0 | D122: 0 | E122: 0.21 | F122: $/bushel | G122: 6/NA/1
B123: Forage (haylage) | C123: 0 | D123: 1.6 | E123: 3.4 | F123: $/ton | G123: NA/7/2 | H123: *
B124: Grain Sorghum (milo) | C124: 0.04 | D124: 0 | E124: 0.21 | F124: $/bushel | G124: 1/1/1
B125: Hay, alfalfa | C125: 0 | D125: 1.6 | E125: 3.4 | F125: $/ton | G125: NA/7/2 | H125: *
B126: Hay, all other | C126: 0 | D126: 1.6 | E126: 3.4 | F126: $/ton | G126: NA/7/2 | H126: *
B127: Millet (proso) | C127: 0.04 | D127: 0 | E127: 0.21 | F127: $/bushel | G127: 6/NA/1
B128: Mustard seed | C128: 0 | D128: 0 | E128: 0.21 | F128: $/bushel | G128: 6/NA/1
B129: Oats | C129: 0.08 | D129: 0 | E129: 0.21 | F129: $/bushel | G129: 9/NA/1
B130: Rapeseed | C130: 0 | D130: 0 | E130: 0.21 | F130: $/bushel | G130: NA/NA/1 | H130: *
B131: Rye | C131: 0.04 | D131: 0 | E131: 0.21 | F131: $/bushel | G131: 1/NA/1
B132: Safflower | C132: 0 | D132: 0 | E132: 0.21 | F132: $/bushel | G132: 6/NA/1
B133: Soybeans | C133: 0 | D133: 0.05 | E133: 0.21 | F133: $/bushel | G133: 1/1/1
B134: Sugarbeets | C134: 0 | D134: 0 | E134: 5.9 | F134: $/ton | G134: 11/11/11
B135: Sunflower | C135: 0 | D135: 0 | E135: 0.21 | F135: $/bushel | G135: 10/NA/1
B136: Triticale (grain) | C136: 0.04 | D136: 0 | E136: 0.21 | F136: $/bushel | G136: 1/1/1
B137: Winter wheat | C137: 0.04 | D137: 0 | E137: 0.21 | F137: $/bushel | G137: 1/1/1
B138: Wheat, other spring | C138: 0.04 | D138: 0 | E138: 0.21 | F138: $/bushel | G138: 1/1/1
B139: 1 University of Kentucky Department of Agricultural Economics. (March 2024). Corn and Soybean Budgets - 2024. Retrieved on April 14, 2024 from https://agecon.ca.uky.edu/budgets
B141: 2 University of Kentucky Department of Agricultural Economics. (October 2023). Wheat Double-Crop Soybean Budget (2023-2024). Retrieved on April 14, 2024 from https://agecon.ca.uky.edu/budgets
B143: 3 University of Kentucky Department of Agricultural Economics. (March 2022). Custom Machinery Rates Applicable to Kentucky (2022). Retrieved on April 14, 2024 from https://agecon.ca.uky.edu/files/custom_machinery_rates_applicable_to_kentucky_2022.pdf
B145: 4 Ohio State University Extension. (2020). Malting Barley Budget 2021. Retrieved on April 14, 2024 from https://farmoffice.osu.edu/farm-management/enterprise-budgets
B147: 5 University of Georgia Department of Agricultural & Applied Economics. (December 2023). 2024 Canola. Retrieved on April 14, 2024 from https://agecon.uga.edu/extension/budgets.html
B149: 6 North Dakota State University Extension. (February 2024). Projected 2024 Crop Budgets. Retrieved on April 14, 2024 from https://www.ndsu.edu/agriculture/sites/default/files/2024-02/2024%20North%20Central%20ND%20Projected% 20Crop%20Budget%20-%20PDF.pdf
B152: 7 University of Missouri Extension. (October 2023). Missouri Forage Budget. Retrieved on April 14, 2024 from https://extension.missouri.edu/programs/agricultural-business-and-policy-extension/missouri-crop-and-livestock-enterprise-budgets
B154: 8 Iowa State University Extension and Outreach. (2008). Organic Flax Production in Iowa. Retrieved on April 14, 2024 from https://www.extension.iastate.edu/search-results?search_broadness=wide&as_q=flax
B156: 9 Ohio State University Extension. (January 2024). Organic Oats Production Budget 2024. Retrieved on April 14, 2024 from https://farmoffice.osu.edu/farm-management/enterprise-budgets
B158: 10 Ohio State University Extension. (January 2024). Organic Sunflower Production Budget 2024. Retrieved on April 14, 2024 from https://farmoffice.osu.edu/farm-management/enterprise-budgets
B160: 11 University of Idaho Extension. (2022). 2022 Sugarbeet Enterprise Budget: Southwestern Idaho. Retrieved on April 14, 2024 from https://www.uidaho.edu/-/media/uidaho-responsive/files/cals/programs/idaho-agbiz/crop-budgets/southwest/ 2022-sugarbeet-budget-southwestern-idaho.pdf?la=en&rev=7d4ad1906ef84c7eb6796e9c8d81f1f0
B163: * No drying cost because crop dried in field or drying not needed
B166: Prices Paid Index (PPI): All Items
B167: United States: 2011=100
B168: Month | C168: 2018 | D168: 2019 | E168: 2020 | F168: 2021 | G168: 2022 | H168: 2023
B169: January | C169: 108.6 | D169: 110.8 | E169: 111 | F169: 113.4 | G169: 131 | H169: 140.3
B170: February | C170: 109.5 | D170: 110.7 | E170: 110.6 | F170: 114.8 | G170: 133.1 | H170: 140.3
B171: March | C171: 109.7 | D171: 110.9 | E171: 109.7 | F171: 116 | G171: 135 | H171: 140.3
B172: April | C172: 109.3 | D172: 111.4 | E172: 108.5 | F172: 117 | G172: 137.6 | H172: 139.7
B173: May | C173: 109.7 | D173: 110.8 | E173: 108.6 | F173: 117.9 | G173: 137.8 | H173: 138.9
B174: June | C174: 109.4 | D174: 110.3 | E174: 108.8 | F174: 119.2 | G174: 138.3 | H174: 138.5
B175: July | C175: 109.5 | D175: 110.4 | E175: 109.5 | F175: 120.4 | G175: 138.7 | H175: 138.6
B176: August | C176: 109.6 | D176: 109.6 | E176: 109.8 | F176: 121 | G176: 139.3 | H176: 138.7
B177: September | C177: 109.5 | D177: 109.2 | E177: 110.3 | F177: 121.3 | G177: 138.8 | H177: 138.7
B178: October | C178: 110 | D178: 109.9 | E178: 111.2 | F178: 122.7 | G178: 138.6 | H178: 138.8
B179: November | C179: 110.1 | D179: 110 | E179: 112 | F179: 123.7 | G179: 138.8 | H179: 138.3
B180: December | C180: 110.3 | D180: 110 | E180: 112.8 | F180: 125.2 | G180: 138.4 | H180: 137.6
B181: Average Annual PPI | C181: =AVERAGE(C169:C180) -> 109.6 | D181: =AVERAGE(D169:D180) -> 110.3333333 | E181: =AVERAGE(E169:E180) -> 110.2333333 | F181: =AVERAGE(F169:F180) -> 119.3833333 | G181: =AVERAGE(G169:G180) -> 137.1166667 | H181: =AVERAGE(H169:H180) -> 139.0583333
B182: % PPI Change from previous year | D182: =D181/C181 -> 1.006690998 | E182: =E181/D181 -> 0.9990936556 | F182: =F181/E181 -> 1.083005745 | G182: =G181/F181 -> 1.148541114 | H182: =H181/G181 -> 1.01416069
B183: USDA NASS. (Ongoing). Prices Paid: Indexes for All Items and Production Items by Month - United States. Retrieved February 6, 2024 from https://www.nass.usda.gov/Charts_and_Maps/Agricultural_Prices/index.php
B187: Prices Received Index (PRI): Crop Production
B188: United States: 2011=100
B189: Month | C189: 2016 | D189: 2018 | E189: 2019 | F189: 2020 | G189: 2021 | H189: 2022 | I189: 2023
B190: January | C190: 80.8 | D190: 78.4 | E190: 78 | F190: 82.2 | G190: 88.3 | H190: 105 | I190: 118
B191: February | C191: 85.7 | D191: 86.3 | E191: 84.3 | F191: 86.6 | G191: 97.2 | H191: 114.6 | I191: 120.6
B192: March | C192: 83.9 | D192: 87.7 | E192: 87.2 | F192: 87.4 | G192: 98.5 | H192: 120.9 | I192: 118.7
B193: April | C193: 87.5 | D193: 88.4 | E193: 85.2 | F193: 86.3 | G193: 105.1 | H193: 122.9 | I193: 126.2
B194: May | C194: 91.1 | D194: 88.7 | E194: 84 | F194: 86.7 | G194: 106.1 | H194: 124.2 | I194: 120.6
B195: June | C195: 88.7 | D195: 89.8 | E195: 89.5 | F195: 89.5 | G195: 107.5 | H195: 126.9 | I195: 120.7
B196: July | C196: 84.9 | D196: 86.5 | E196: 88.9 | F196: 88.4 | G196: 106.8 | H196: 125 | I196: 119.5
B197: August | C197: 84.9 | D197: 89.3 | E197: 89.4 | F197: 89.9 | G197: 110.5 | H197: 128.2 | I197: 117.7
B198: September | C198: 84.1 | D198: 87.8 | E198: 88.4 | F198: 93.1 | G198: 108.8 | H198: 126.8 | I198: 112.4
B199: October | C199: 79.5 | D199: 80 | E199: 83 | F199: 87.8 | G199: 106.4 | H199: 121.6 | I199: 103.9
B200: November | C200: 80.7 | D200: 83.9 | E200: 84.8 | F200: 91.6 | G200: 107.5 | H200: 127 | I200: 101
B201: December | C201: 81.5 | D201: 87.4 | E201: 86 | F201: 91.2 | G201: 106.6 | H201: 128.7 | I201: 101.7
B202: Average Annual PRI | C202: =AVERAGE(C190:C201) -> 84.44166667 | D202: =AVERAGE(D190:D201) -> 86.18333333 | E202: =AVERAGE(E190:E201) -> 85.725 | F202: 88.39166667 | G202: 104.1083333 | H202: 122.65 | I202: 115.0833333
B203: % PRI Change from previous year | D203: =D202/C202 -> 1.020625678 | E203: 0.9946818797 | F203: 1.031107223 | G203: 1.177807109 | H203: 1.178099736 | I203: 0.9383068352
B204: USDA NASS. (Ongoing). Prices Received: Indexes for Ag, Crop, and Livestock Production by Month - United States. Retrieved February 6, 2024, from https://www.nass.usda.gov/Charts_and_Maps/Agricultural_Prices/index.php

Sheet Machinery Costs
A1: MACHINERY COSTS AND PRICES
A3: ABOUT THIS TAB:
